Workbook

Sheet ProjectInformation
A1: CPN DATA
A2: INFORMATION ADDED BY DESIGNER
A3: Section Engineer | B3: Flattery
A4: Design Team | B4: Bell
A6: County | B6: BENTON
A7: Project Number | B7: NHS-030-6(87)--19-06
A8: English or Metric | B8: ENGLISH
A9: Revised
A10: Bridge Block
A11: File No.

Sheet PrintSheets
B94: FILE NO. | I94: =IF(ProjectInformation!$B$11<>"",ProjectInformation!$B$11,"") ->  | P94: =UPPER(ProjectInformation!B8) -> ENGLISH | W94: DESIGN TEAM | AF94: =IF(AND(ProjectInformation!$B$3<>"",ProjectInformation!$B$4<>"",ProjectInformation!$B$5<>""),ProjectInformation!$B$3&"\"&ProjectInformation!$B$4&"\"&ProjectInformation!$B$5,IF(AND(ProjectInformation!$B$3<>"",ProjectInformation!$B$4<>""),ProjectInformation!$B$3&"\"&ProjectInformation!$B$4,IF(ProjectInformation!$B$3<>"",ProjectInformation!$B$3,""))) -> Flattery\Bell | BN94: =IF(ProjectInformation!$B$6<>"",ProjectInformation!$B$6,"") -> BENTON | CX94: COUNTY | DD94: PROJECT NUMBER | DP94: =IF(ProjectInformation!$B$7<>"",ProjectInformation!$B$7,"") -> NHS-030-6(87)--19-06 | ET94: SHEET NUMBER | FD94: CE.1 | FJ94: =IF(FP94<>"","REVISED","") ->  | FP94: =IF(ProjectInformation!$B$9<>"",ProjectInformation!$B$9,"") -> 
B95: 6/2/2016 11:21:15 AM nfische c:\pw_work\pwmain\nfische\dms36272\06030087_CE01.xlsm
B189: FILE NO. | I189: =IF(ProjectInformation!$B$11<>"",ProjectInformation!$B$11,"") ->  | P189: =UPPER(ProjectInformation!B8) -> ENGLISH | W189: DESIGN TEAM | AF189: =IF(AND(ProjectInformation!$B$3<>"",ProjectInformation!$B$4<>"",ProjectInformation!$B$5<>""),ProjectInformation!$B$3&"\"&ProjectInformation!$B$4&"\"&ProjectInformation!$B$5,IF(AND(ProjectInformation!$B$3<>"",ProjectInformation!$B$4<>""),ProjectInformation!$B$3&"\"&ProjectInformation!$B$4,IF(ProjectInformation!$B$3<>"",ProjectInformation!$B$3,""))) -> Flattery\Bell | BN189: =IF(ProjectInformation!$B$6<>"",ProjectInformation!$B$6,"") -> BENTON | CX189: COUNTY | DD189: PROJECT NUMBER | DP189: =IF(ProjectInformation!$B$7<>"",ProjectInformation!$B$7,"") -> NHS-030-6(87)--19-06 | ET189: SHEET NUMBER | FD189: =IF($FD$94<>"","CE."& MID(OFFSET($FD$189,-95,0),4,LEN(OFFSET($FD$189,-95,0))-2)+1,"") -> CE.2 | FJ189: =IF(FP189<>"","REVISED","") ->  | FP189: =IF(ProjectInformation!$B$9<>"",ProjectInformation!$B$9,"") -> 
B190: 6/2/2016 11:21:15 AM nfische c:\pw_work\pwmain\nfische\dms36272\06030087_CE01.xlsm
B284: FILE NO. | I284: =IF(ProjectInformation!$B$11<>"",ProjectInformation!$B$11,"") ->  | P284: =UPPER(ProjectInformation!B8) -> ENGLISH | W284: DESIGN TEAM | AF284: =IF(AND(ProjectInformation!$B$3<>"",ProjectInformation!$B$4<>"",ProjectInformation!$B$5<>""),ProjectInformation!$B$3&"\"&ProjectInformation!$B$4&"\"&ProjectInformation!$B$5,IF(AND(ProjectInformation!$B$3<>"",ProjectInformation!$B$4<>""),ProjectInformation!$B$3&"\"&ProjectInformation!$B$4,IF(ProjectInformation!$B$3<>"",ProjectInformation!$B$3,""))) -> Flattery\Bell | BN284: =IF(ProjectInformation!$B$6<>"",ProjectInformation!$B$6,"") -> BENTON | CX284: COUNTY | DD284: PROJECT NUMBER | DP284: =IF(ProjectInformation!$B$7<>"",ProjectInformation!$B$7,"") -> NHS-030-6(87)--19-06 | ET284: SHEET NUMBER | FD284: =IF($FD$189<>"","CE."& MID(OFFSET($FD$284,-95,0),4,LEN(OFFSET($FD$284,-95,0))-2)+1,"") -> CE.3 | FJ284: =IF(FP284<>"","REVISED","") ->  | FP284: =IF(ProjectInformation!$B$9<>"",ProjectInformation!$B$9,"") -> 
B285: 6/2/2016 11:21:15 AM nfische c:\pw_work\pwmain\nfische\dms36272\06030087_CE01.xlsm
B379: FILE NO. | I379: =IF(ProjectInformation!$B$11<>"",ProjectInformation!$B$11,"") ->  | P379: =UPPER(ProjectInformation!B8) -> ENGLISH | W379: DESIGN TEAM | AF379: =IF(AND(ProjectInformation!$B$3<>"",ProjectInformation!$B$4<>"",ProjectInformation!$B$5<>""),ProjectInformation!$B$3&"\"&ProjectInformation!$B$4&"\"&ProjectInformation!$B$5,IF(AND(ProjectInformation!$B$3<>"",ProjectInformation!$B$4<>""),ProjectInformation!$B$3&"\"&ProjectInformation!$B$4,IF(ProjectInformation!$B$3<>"",ProjectInformation!$B$3,""))) -> Flattery\Bell | BN379: =IF(ProjectInformation!$B$6<>"",ProjectInformation!$B$6,"") -> BENTON | CX379: COUNTY | DD379: PROJECT NUMBER | DP379: =IF(ProjectInformation!$B$7<>"",ProjectInformation!$B$7,"") -> NHS-030-6(87)--19-06 | ET379: SHEET NUMBER | FD379: =IF($FD$284<>"","CE."& MID(OFFSET($FD$379,-95,0),4,LEN(OFFSET($FD$379,-95,0))-2)+1,"") -> CE.4 | FJ379: =IF(FP379<>"","REVISED","") ->  | FP379: =IF(ProjectInformation!$B$9<>"",ProjectInformation!$B$9,"") -> 
B380: 6/2/2016 11:21:15 AM nfische c:\pw_work\pwmain\nfische\dms36272\06030087_CE01.xlsm
B474: FILE NO. | I474: =IF(ProjectInformation!$B$11<>"",ProjectInformation!$B$11,"") ->  | P474: =UPPER(ProjectInformation!B8) -> ENGLISH | W474: DESIGN TEAM | AF474: =IF(AND(ProjectInformation!$B$3<>"",ProjectInformation!$B$4<>"",ProjectInformation!$B$5<>""),ProjectInformation!$B$3&"\"&ProjectInformation!$B$4&"\"&ProjectInformation!$B$5,IF(AND(ProjectInformation!$B$3<>"",ProjectInformation!$B$4<>""),ProjectInformation!$B$3&"\"&ProjectInformation!$B$4,IF(ProjectInformation!$B$3<>"",ProjectInformation!$B$3,""))) -> Flattery\Bell | BN474: =IF(ProjectInformation!$B$6<>"",ProjectInformation!$B$6,"") -> BENTON | CX474: COUNTY | DD474: PROJECT NUMBER | DP474: =IF(ProjectInformation!$B$7<>"",ProjectInformation!$B$7,"") -> NHS-030-6(87)--19-06 | ET474: SHEET NUMBER | FD474: =IF($FD$379<>"","CE."& MID(OFFSET($FD$474,-95,0),4,LEN(OFFSET($FD$474,-95,0))-2)+1,"") -> CE.5 | FJ474: =IF(FP474<>"","REVISED","") ->  | FP474: =IF(ProjectInformation!$B$9<>"",ProjectInformation!$B$9,"") -> 
B475: 6/2/2016 11:21:15 AM nfische c:\pw_work\pwmain\nfische\dms36272\06030087_CE01.xlsm
B569: FILE NO. | I569: =IF(ProjectInformation!$B$11<>"",ProjectInformation!$B$11,"") ->  | P569: =UPPER(ProjectInformation!B8) -> ENGLISH | W569: DESIGN TEAM | AF569: =IF(AND(ProjectInformation!$B$3<>"",ProjectInformation!$B$4<>"",ProjectInformation!$B$5<>""),ProjectInformation!$B$3&"\"&ProjectInformation!$B$4&"\"&ProjectInformation!$B$5,IF(AND(ProjectInformation!$B$3<>"",ProjectInformation!$B$4<>""),ProjectInformation!$B$3&"\"&ProjectInformation!$B$4,IF(ProjectInformation!$B$3<>"",ProjectInformation!$B$3,""))) -> Flattery\Bell | BN569: =IF(ProjectInformation!$B$6<>"",ProjectInformation!$B$6,"") -> BENTON | CX569: COUNTY | DD569: PROJECT NUMBER | DP569: =IF(ProjectInformation!$B$7<>"",ProjectInformation!$B$7,"") -> NHS-030-6(87)--19-06 | ET569: SHEET NUMBER | FD569: =IF($FD$474<>"","CE."& MID(OFFSET($FD$569,-95,0),4,LEN(OFFSET($FD$569,-95,0))-2)+1,"") -> CE.6 | FJ569: =IF(FP569<>"","REVISED","") ->  | FP569: =IF(ProjectInformation!$B$9<>"",ProjectInformation!$B$9,"") -> 
B570: 6/2/2016 11:21:15 AM nfische c:\pw_work\pwmain\nfische\dms36272\06030087_CE01.xlsm
B664: FILE NO. | I664: =IF(ProjectInformation!$B$11<>"",ProjectInformation!$B$11,"") ->  | P664: =UPPER(ProjectInformation!B8) -> ENGLISH | W664: DESIGN TEAM | AF664: =IF(AND(ProjectInformation!$B$3<>"",ProjectInformation!$B$4<>"",ProjectInformation!$B$5<>""),ProjectInformation!$B$3&"\"&ProjectInformation!$B$4&"\"&ProjectInformation!$B$5,IF(AND(ProjectInformation!$B$3<>"",ProjectInformation!$B$4<>""),ProjectInformation!$B$3&"\"&ProjectInformation!$B$4,IF(ProjectInformation!$B$3<>"",ProjectInformation!$B$3,""))) -> Flattery\Bell | BN664: =IF(ProjectInformation!$B$6<>"",ProjectInformation!$B$6,"") -> BENTON | CX664: COUNTY | DD664: PROJECT NUMBER | DP664: =IF(ProjectInformation!$B$7<>"",ProjectInformation!$B$7,"") -> NHS-030-6(87)--19-06 | ET664: SHEET NUMBER | FD664: =IF($FD$569<>"","CE."& MID(OFFSET($FD$664,-95,0),4,LEN(OFFSET($FD$664,-95,0))-2)+1,"") -> CE.7 | FJ664: =IF(FP664<>"","REVISED","") ->  | FP664: =IF(ProjectInformation!$B$9<>"",ProjectInformation!$B$9,"") -> 
B665: 6/2/2016 11:21:15 AM nfische c:\pw_work\pwmain\nfische\dms36272\06030087_CE01.xlsm
B759: FILE NO. | I759: =IF(ProjectInformation!$B$11<>"",ProjectInformation!$B$11,"") ->  | P759: =UPPER(ProjectInformation!B8) -> ENGLISH | W759: DESIGN TEAM | AF759: =IF(AND(ProjectInformation!$B$3<>"",ProjectInformation!$B$4<>"",ProjectInformation!$B$5<>""),ProjectInformation!$B$3&"\"&ProjectInformation!$B$4&"\"&ProjectInformation!$B$5,IF(AND(ProjectInformation!$B$3<>"",ProjectInformation!$B$4<>""),ProjectInformation!$B$3&"\"&ProjectInformation!$B$4,IF(ProjectInformation!$B$3<>"",ProjectInformation!$B$3,""))) -> Flattery\Bell | BN759: =IF(ProjectInformation!$B$6<>"",ProjectInformation!$B$6,"") -> BENTON | CX759: COUNTY | DD759: PROJECT NUMBER | DP759: =IF(ProjectInformation!$B$7<>"",ProjectInformation!$B$7,"") -> NHS-030-6(87)--19-06 | ET759: SHEET NUMBER | FD759: =IF($FD$664<>"","CE."& MID(OFFSET($FD$759,-95,0),4,LEN(OFFSET($FD$759,-95,0))-2)+1,"") -> CE.8 | FJ759: =IF(FP759<>"","REVISED","") ->  | FP759: =IF(ProjectInformation!$B$9<>"",ProjectInformation!$B$9,"") -> 
B760: 6/2/2016 11:21:15 AM nfische c:\pw_work\pwmain\nfische\dms36272\06030087_CE01.xlsm
B854: FILE NO. | I854: =IF(ProjectInformation!$B$11<>"",ProjectInformation!$B$11,"") ->  | P854: =UPPER(ProjectInformation!B8) -> ENGLISH | W854: DESIGN TEAM | AF854: =IF(AND(ProjectInformation!$B$3<>"",ProjectInformation!$B$4<>"",ProjectInformation!$B$5<>""),ProjectInformation!$B$3&"\"&ProjectInformation!$B$4&"\"&ProjectInformation!$B$5,IF(AND(ProjectInformation!$B$3<>"",ProjectInformation!$B$4<>""),ProjectInformation!$B$3&"\"&ProjectInformation!$B$4,IF(ProjectInformation!$B$3<>"",ProjectInformation!$B$3,""))) -> Flattery\Bell | BN854: =IF(ProjectInformation!$B$6<>"",ProjectInformation!$B$6,"") -> BENTON | CX854: COUNTY | DD854: PROJECT NUMBER | DP854: =IF(ProjectInformation!$B$7<>"",ProjectInformation!$B$7,"") -> NHS-030-6(87)--19-06 | ET854: SHEET NUMBER | FD854: =IF($FD$759<>"","CE."& MID(OFFSET($FD$854,-95,0),4,LEN(OFFSET($FD$854,-95,0))-2)+1,"") -> CE.9 | FJ854: =IF(FP854<>"","REVISED","") ->  | FP854: =IF(ProjectInformation!$B$9<>"",ProjectInformation!$B$9,"") -> 
B855: 6/2/2016 11:21:16 AM nfische c:\pw_work\pwmain\nfische\dms36272\06030087_CE01.xlsm
B949: FILE NO. | I949: =IF(ProjectInformation!$B$11<>"",ProjectInformation!$B$11,"") ->  | P949: =UPPER(ProjectInformation!B8) -> ENGLISH | W949: DESIGN TEAM | AF949: =IF(AND(ProjectInformation!$B$3<>"",ProjectInformation!$B$4<>"",ProjectInformation!$B$5<>""),ProjectInformation!$B$3&"\"&ProjectInformation!$B$4&"\"&ProjectInformation!$B$5,IF(AND(ProjectInformation!$B$3<>"",ProjectInformation!$B$4<>""),ProjectInformation!$B$3&"\"&ProjectInformation!$B$4,IF(ProjectInformation!$B$3<>"",ProjectInformation!$B$3,""))) -> Flattery\Bell | BN949: =IF(ProjectInformation!$B$6<>"",ProjectInformation!$B$6,"") -> BENTON | CX949: COUNTY | DD949: PROJECT NUMBER | DP949: =IF(ProjectInformation!$B$7<>"",ProjectInformation!$B$7,"") -> NHS-030-6(87)--19-06 | ET949: SHEET NUMBER | FD949: =IF($FD$854<>"","CE."& MID(OFFSET($FD$949,-95,0),4,LEN(OFFSET($FD$949,-95,0))-2)+1,"") -> CE.10 | FJ949: =IF(FP949<>"","REVISED","") ->  | FP949: =IF(ProjectInformation!$B$9<>"",ProjectInformation!$B$9,"") -> 
B950: 6/2/2016 11:21:16 AM nfische c:\pw_work\pwmain\nfische\dms36272\06030087_CE01.xlsm
B1044: FILE NO. | I1044: =IF(ProjectInformation!$B$11<>"",ProjectInformation!$B$11,"") ->  | P1044: =UPPER(ProjectInformation!B8) -> ENGLISH | W1044: DESIGN TEAM | AF1044: =IF(AND(ProjectInformation!$B$3<>"",ProjectInformation!$B$4<>"",ProjectInformation!$B$5<>""),ProjectInformation!$B$3&"\"&ProjectInformation!$B$4&"\"&ProjectInformation!$B$5,IF(AND(ProjectInformation!$B$3<>"",ProjectInformation!$B$4<>""),ProjectInformation!$B$3&"\"&ProjectInformation!$B$4,IF(ProjectInformation!$B$3<>"",ProjectInformation!$B$3,""))) -> Flattery\Bell | BN1044: =IF(ProjectInformation!$B$6<>"",ProjectInformation!$B$6,"") -> BENTON | CX1044: COUNTY | DD1044: PROJECT NUMBER | DP1044: =IF(ProjectInformation!$B$7<>"",ProjectInformation!$B$7,"") -> NHS-030-6(87)--19-06 | ET1044: SHEET NUMBER | FD1044: =IF($FD$949<>"","CE."& MID(OFFSET($FD$1044,-95,0),4,LEN(OFFSET($FD$1044,-95,0))-2)+1,"") -> CE.11 | FJ1044: =IF(FP1044<>"","REVISED","") ->  | FP1044: =IF(ProjectInformation!$B$9<>"",ProjectInformation!$B$9,"") -> 
B1045: 6/2/2016 11:21:16 AM nfische c:\pw_work\pwmain\nfische\dms36272\06030087_CE01.xlsm
B1139: FILE NO. | I1139: =IF(ProjectInformation!$B$11<>"",ProjectInformation!$B$11,"") ->  | P1139: =UPPER(ProjectInformation!B8) -> ENGLISH | W1139: DESIGN TEAM | AF1139: =IF(AND(ProjectInformation!$B$3<>"",ProjectInformation!$B$4<>"",ProjectInformation!$B$5<>""),ProjectInformation!$B$3&"\"&ProjectInformation!$B$4&"\"&ProjectInformation!$B$5,IF(AND(ProjectInformation!$B$3<>"",ProjectInformation!$B$4<>""),ProjectInformation!$B$3&"\"&ProjectInformation!$B$4,IF(ProjectInformation!$B$3<>"",ProjectInformation!$B$3,""))) -> Flattery\Bell | BN1139: =IF(ProjectInformation!$B$6<>"",ProjectInformation!$B$6,"") -> BENTON | CX1139: COUNTY | DD1139: PROJECT NUMBER | DP1139: =IF(ProjectInformation!$B$7<>"",ProjectInformation!$B$7,"") -> NHS-030-6(87)--19-06 | ET1139: SHEET NUMBER | FD1139: =IF($FD$1044<>"","CE."& MID(OFFSET($FD$1139,-95,0),4,LEN(OFFSET($FD$1139,-95,0))-2)+1,"") -> CE.12 | FJ1139: =IF(FP1139<>"","REVISED","") ->  | FP1139: =IF(ProjectInformation!$B$9<>"",ProjectInformation!$B$9,"") -> 
B1140: 6/2/2016 11:21:16 AM nfische c:\pw_work\pwmain\nfische\dms36272\06030087_CE01.xlsm
B1234: FILE NO. | I1234: =IF(ProjectInformation!$B$11<>"",ProjectInformation!$B$11,"") ->  | P1234: =UPPER(ProjectInformation!B8) -> ENGLISH | W1234: DESIGN TEAM | AF1234: =IF(AND(ProjectInformation!$B$3<>"",ProjectInformation!$B$4<>"",ProjectInformation!$B$5<>""),ProjectInformation!$B$3&"\"&ProjectInformation!$B$4&"\"&ProjectInformation!$B$5,IF(AND(ProjectInformation!$B$3<>"",ProjectInformation!$B$4<>""),ProjectInformation!$B$3&"\"&ProjectInformation!$B$4,IF(ProjectInformation!$B$3<>"",ProjectInformation!$B$3,""))) -> Flattery\Bell | BN1234: =IF(ProjectInformation!$B$6<>"",ProjectInformation!$B$6,"") -> BENTON | CX1234: COUNTY | DD1234: PROJECT NUMBER | DP1234: =IF(ProjectInformation!$B$7<>"",ProjectInformation!$B$7,"") -> NHS-030-6(87)--19-06 | ET1234: SHEET NUMBER | FD1234: =IF($FD$1139<>"","CE."& MID(OFFSET($FD$1234,-95,0),4,LEN(OFFSET($FD$1234,-95,0))-2)+1,"") -> CE.13 | FJ1234: =IF(FP1234<>"","REVISED","") ->  | FP1234: =IF(ProjectInformation!$B$9<>"",ProjectInformation!$B$9,"") -> 
B1235: 6/2/2016 11:21:16 AM nfische c:\pw_work\pwmain\nfische\dms36272\06030087_CE01.xlsm
B1329: FILE NO. | I1329: =IF(ProjectInformation!$B$11<>"",ProjectInformation!$B$11,"") ->  | P1329: =UPPER(ProjectInformation!B8) -> ENGLISH | W1329: DESIGN TEAM | AF1329: =IF(AND(ProjectInformation!$B$3<>"",ProjectInformation!$B$4<>"",ProjectInformation!$B$5<>""),ProjectInformation!$B$3&"\"&ProjectInformation!$B$4&"\"&ProjectInformation!$B$5,IF(AND(ProjectInformation!$B$3<>"",ProjectInformation!$B$4<>""),ProjectInformation!$B$3&"\"&ProjectInformation!$B$4,IF(ProjectInformation!$B$3<>"",ProjectInformation!$B$3,""))) -> Flattery\Bell | BN1329: =IF(ProjectInformation!$B$6<>"",ProjectInformation!$B$6,"") -> BENTON | CX1329: COUNTY | DD1329: PROJECT NUMBER | DP1329: =IF(ProjectInformation!$B$7<>"",ProjectInformation!$B$7,"") -> NHS-030-6(87)--19-06 | ET1329: SHEET NUMBER | FD1329: =IF($FD$1234<>"","CE."& MID(OFFSET($FD$1329,-95,0),4,LEN(OFFSET($FD$1329,-95,0))-2)+1,"") -> CE.14 | FJ1329: =IF(FP1329<>"","REVISED","") ->  | FP1329: =IF(ProjectInformation!$B$9<>"",ProjectInformation!$B$9,"") -> 
B1330: 6/2/2016 11:21:16 AM nfische c:\pw_work\pwmain\nfische\dms36272\06030087_CE01.xlsm
B1424: FILE NO. | I1424: =IF(ProjectInformation!$B$11<>"",ProjectInformation!$B$11,"") ->  | P1424: =UPPER(ProjectInformation!B8) -> ENGLISH | W1424: DESIGN TEAM | AF1424: =IF(AND(ProjectInformation!$B$3<>"",ProjectInformation!$B$4<>"",ProjectInformation!$B$5<>""),ProjectInformation!$B$3&"\"&ProjectInformation!$B$4&"\"&ProjectInformation!$B$5,IF(AND(ProjectInformation!$B$3<>"",ProjectInformation!$B$4<>""),ProjectInformation!$B$3&"\"&ProjectInformation!$B$4,IF(ProjectInformation!$B$3<>"",ProjectInformation!$B$3,""))) -> Flattery\Bell | BN1424: =IF(ProjectInformation!$B$6<>"",ProjectInformation!$B$6,"") -> BENTON | CX1424: COUNTY | DD1424: PROJECT NUMBER | DP1424: =IF(ProjectInformation!$B$7<>"",ProjectInformation!$B$7,"") -> NHS-030-6(87)--19-06 | ET1424: SHEET NUMBER | FD1424: =IF($FD$1329<>"","CE."& MID(OFFSET($FD$1424,-95,0),4,LEN(OFFSET($FD$1424,-95,0))-2)+1,"") -> CE.15 | FJ1424: =IF(FP1424<>"","REVISED","") ->  | FP1424: =IF(ProjectInformation!$B$9<>"",ProjectInformation!$B$9,"") -> 
B1425: 6/2/2016 11:21:16 AM nfische c:\pw_work\pwmain\nfische\dms36272\06030087_CE01.xlsm
B1519: FILE NO. | I1519: =IF(ProjectInformation!$B$11<>"",ProjectInformation!$B$11,"") ->  | P1519: =UPPER(ProjectInformation!B8) -> ENGLISH | W1519: DESIGN TEAM | AF1519: =IF(AND(ProjectInformation!$B$3<>"",ProjectInformation!$B$4<>"",ProjectInformation!$B$5<>""),ProjectInformation!$B$3&"\"&ProjectInformation!$B$4&"\"&ProjectInformation!$B$5,IF(AND(ProjectInformation!$B$3<>"",ProjectInformation!$B$4<>""),ProjectInformation!$B$3&"\"&ProjectInformation!$B$4,IF(ProjectInformation!$B$3<>"",ProjectInformation!$B$3,""))) -> Flattery\Bell | BN1519: =IF(ProjectInformation!$B$6<>"",ProjectInformation!$B$6,"") -> BENTON | CX1519: COUNTY | DD1519: PROJECT NUMBER | DP1519: =IF(ProjectInformation!$B$7<>"",ProjectInformation!$B$7,"") -> NHS-030-6(87)--19-06 | ET1519: SHEET NUMBER | FD1519: =IF($FD$1424<>"","CE."& MID(OFFSET($FD$1519,-95,0),4,LEN(OFFSET($FD$1519,-95,0))-2)+1,"") -> CE.16 | FJ1519: =IF(FP1519<>"","REVISED","") ->  | FP1519: =IF(ProjectInformation!$B$9<>"",ProjectInformation!$B$9,"") -> 
B1520: 6/2/2016 11:21:16 AM nfische c:\pw_work\pwmain\nfische\dms36272\06030087_CE01.xlsm
B1614: FILE NO. | I1614: =IF(ProjectInformation!$B$11<>"",ProjectInformation!$B$11,"") ->  | P1614: =UPPER(ProjectInformation!B8) -> ENGLISH | W1614: DESIGN TEAM | AF1614: =IF(AND(ProjectInformation!$B$3<>"",ProjectInformation!$B$4<>"",ProjectInformation!$B$5<>""),ProjectInformation!$B$3&"\"&ProjectInformation!$B$4&"\"&ProjectInformation!$B$5,IF(AND(ProjectInformation!$B$3<>"",ProjectInformation!$B$4<>""),ProjectInformation!$B$3&"\"&ProjectInformation!$B$4,IF(ProjectInformation!$B$3<>"",ProjectInformation!$B$3,""))) -> Flattery\Bell | BN1614: =IF(ProjectInformation!$B$6<>"",ProjectInformation!$B$6,"") -> BENTON | CX1614: COUNTY | DD1614: PROJECT NUMBER | DP1614: =IF(ProjectInformation!$B$7<>"",ProjectInformation!$B$7,"") -> NHS-030-6(87)--19-06 | ET1614: SHEET NUMBER | FD1614: =IF($FD$1519<>"","CE."& MID(OFFSET($FD$1614,-95,0),4,LEN(OFFSET($FD$1614,-95,0))-2)+1,"") -> CE.17 | FJ1614: =IF(FP1614<>"","REVISED","") ->  | FP1614: =IF(ProjectInformation!$B$9<>"",ProjectInformation!$B$9,"") -> 
B1615: 6/2/2016 11:21:16 AM nfische c:\pw_work\pwmain\nfische\dms36272\06030087_CE01.xlsm
B1709: FILE NO. | I1709: =IF(ProjectInformation!$B$11<>"",ProjectInformation!$B$11,"") ->  | P1709: =UPPER(ProjectInformation!B8) -> ENGLISH | W1709: DESIGN TEAM | AF1709: =IF(AND(ProjectInformation!$B$3<>"",ProjectInformation!$B$4<>"",ProjectInformation!$B$5<>""),ProjectInformation!$B$3&"\"&ProjectInformation!$B$4&"\"&ProjectInformation!$B$5,IF(AND(ProjectInformation!$B$3<>"",ProjectInformation!$B$4<>""),ProjectInformation!$B$3&"\"&ProjectInformation!$B$4,IF(ProjectInformation!$B$3<>"",ProjectInformation!$B$3,""))) -> Flattery\Bell | BN1709: =IF(ProjectInformation!$B$6<>"",ProjectInformation!$B$6,"") -> BENTON | CX1709: COUNTY | DD1709: PROJECT NUMBER | DP1709: =IF(ProjectInformation!$B$7<>"",ProjectInformation!$B$7,"") -> NHS-030-6(87)--19-06 | ET1709: SHEET NUMBER | FD1709: =IF($FD$1614<>"","CE."& MID(OFFSET($FD$1709,-95,0),4,LEN(OFFSET($FD$1709,-95,0))-2)+1,"") -> CE.18 | FJ1709: =IF(FP1709<>"","REVISED","") ->  | FP1709: =IF(ProjectInformation!$B$9<>"",ProjectInformation!$B$9,"") -> 
B1710: 6/2/2016 11:21:17 AM nfische c:\pw_work\pwmain\nfische\dms36272\06030087_CE01.xlsm
B1804: FILE NO. | I1804: =IF(ProjectInformation!$B$11<>"",ProjectInformation!$B$11,"") ->  | P1804: =UPPER(ProjectInformation!B8) -> ENGLISH | W1804: DESIGN TEAM | AF1804: =IF(AND(ProjectInformation!$B$3<>"",ProjectInformation!$B$4<>"",ProjectInformation!$B$5<>""),ProjectInformation!$B$3&"\"&ProjectInformation!$B$4&"\"&ProjectInformation!$B$5,IF(AND(ProjectInformation!$B$3<>"",ProjectInformation!$B$4<>""),ProjectInformation!$B$3&"\"&ProjectInformation!$B$4,IF(ProjectInformation!$B$3<>"",ProjectInformation!$B$3,""))) -> Flattery\Bell | BN1804: =IF(ProjectInformation!$B$6<>"",ProjectInformation!$B$6,"") -> BENTON | CX1804: COUNTY | DD1804: PROJECT NUMBER | DP1804: =IF(ProjectInformation!$B$7<>"",ProjectInformation!$B$7,"") -> NHS-030-6(87)--19-06 | ET1804: SHEET NUMBER | FD1804: =IF($FD$1709<>"","CE."& MID(OFFSET($FD$1804,-95,0),4,LEN(OFFSET($FD$1804,-95,0))-2)+1,"") -> CE.19 | FJ1804: =IF(FP1804<>"","REVISED","") ->  | FP1804: =IF(ProjectInformation!$B$9<>"",ProjectInformation!$B$9,"") -> 
B1805: 6/2/2016 11:21:17 AM nfische c:\pw_work\pwmain\nfische\dms36272\06030087_CE01.xlsm
B1899: FILE NO. | I1899: =IF(ProjectInformation!$B$11<>"",ProjectInformation!$B$11,"") ->  | P1899: =UPPER(ProjectInformation!B8) -> ENGLISH | W1899: DESIGN TEAM | AF1899: =IF(AND(ProjectInformation!$B$3<>"",ProjectInformation!$B$4<>"",ProjectInformation!$B$5<>""),ProjectInformation!$B$3&"\"&ProjectInformation!$B$4&"\"&ProjectInformation!$B$5,IF(AND(ProjectInformation!$B$3<>"",ProjectInformation!$B$4<>""),ProjectInformation!$B$3&"\"&ProjectInformation!$B$4,IF(ProjectInformation!$B$3<>"",ProjectInformation!$B$3,""))) -> Flattery\Bell | BN1899: =IF(ProjectInformation!$B$6<>"",ProjectInformation!$B$6,"") -> BENTON | CX1899: COUNTY | DD1899: PROJECT NUMBER | DP1899: =IF(ProjectInformation!$B$7<>"",ProjectInformation!$B$7,"") -> NHS-030-6(87)--19-06 | ET1899: SHEET NUMBER | FD1899: =IF($FD$1804<>"","CE."& MID(OFFSET($FD$1899,-95,0),4,LEN(OFFSET($FD$1899,-95,0))-2)+1,"") -> CE.20 | FJ1899: =IF(FP1899<>"","REVISED","") ->  | FP1899: =IF(ProjectInformation!$B$9<>"",ProjectInformation!$B$9,"") -> 
B1900: 6/2/2016 11:21:17 AM nfische c:\pw_work\pwmain\nfische\dms36272\06030087_CE01.xlsm

Sheet DE100_14
A1: TabTitle | B1: =C16 -> SILT BASINS | AL1: 1 | AM1: =SUMIFS(L$37:L$2820,C$37:C$2820,"=1") -> 4137.5
A2: Number of Tab Columns | B2: 11 | AL2: 2 | AM2: =SUMIFS(L$37:L$2820,C$37:C$2820,"=2") -> 0
A3: DE Starter Row Number | B3: 38 | AL3: 3 | AM3: =SUMIFS(L$37:L$2820,C$37:C$2820,"=3") -> 0
A4: TabSheet Starter Row Number | B4: 24 | AL4: 4 | AM4: =SUMIFS(L$37:L$2820,C$37:C$2820,"=4") -> 4775
A5: TabSheet Header Row Count | B5: 23 | AL5: 5 | AM5: =SUMIFS(L$37:L$2820,C$37:C$2820,"=5") -> 0
A6: Top Header Cell | B6: P15 | AL6: 6 | AM6: =SUMIFS(L$37:L$2820,C$37:C$2820,"=6") -> 3400
A7: Bottom Header Cell | B7: Z37 | AL7: 7 | AM7: =SUMIFS(L$37:L$2820,C$37:C$2820,"=7") -> 0
A8: DESheet Row Count | B8: 122 | AL8: 8 | AM8: =SUMIFS(L$37:L$2820,C$37:C$2820,"=8") -> 4800
A9: Fixed Empty Rows | B9: 10 | AL9: 9 | AM9: =SUMIFS(L$37:L$2820,C$37:C$2820,"=9") -> 5062.5
A10: Usable Empty Rows | B10: 0 | AL10: 10 | AM10: =SUMIFS(L$37:L$2820,C$37:C$2820,"=10") -> 0
A11: Total Rows Placed | B11: 132 | C11: xlRight(1) | D11: xlRight(1) | E11: xlLeft(1) | F11: xlRight(1) | G11: xlRight(1) | H11: xlRight(1) | I11: xlRight(1) | J11: xlRight(1) | K11: xlRight(1) | L11: xlRight(1) | N11: xlLeft(1) | P11: =C11 -> xlRight(1) | Q11: xlRight(1) | R11: xlLeft(1) | S11: xlRight(1) | T11: xlRight(1) | U11: xlRight(1) | V11: xlRight(1) | W11: xlRight(1) | X11: xlRight(1) | Y11: =L11 -> xlRight(1) | Z11: =N11 -> xlLeft(1) | AL11: 11 | AM11: =SUMIFS(L$37:L$2820,C$37:C$2820,"=11") -> 5075
A12: Total Rows Needed | B12: =SUM(B8:B10) -> 132 | C12: 0 | D12: #+00.00 | E12: General | F12: General | G12: General | H12: 0.0 | I12: 0.0 | J12: 0.00 | K12: 0.0% | L12: 0.0 | N12: General | P12: 0 | Q12: #+00.00 | R12: General | S12: General | T12: General | U12: 0.0 | V12: 0.0 | W12: 0.00 | X12: 0.0% | Y12: =L12 -> 0.0 | Z12: General | AL12: 12 | AM12: =SUMIFS(L$37:L$2820,C$37:C$2820,"=12") -> 4753.75
A13: Last Tab DE Starter Row | B13: 105 | C13: =CELL("width",C13) -> 6 | D13: =CELL("width",D13) -> 16 | E13: =CELL("width",E13) -> 10 | F13: =CELL("width",F13) -> 16 | G13: =CELL("width",G13) -> 16 | H13: =CELL("width",H13) -> 14 | I13: 14 | J13: 14 | K13: 14 | L13: 14 | N13: =CELL("width",N13) -> 19 | P13: =CELL("width",P13) -> 0 | Q13: =CELL("width",Q13) -> 0 | R13: =CELL("width",R13) -> 0 | S13: =CELL("width",S13) -> 0 | T13: =CELL("width",T13) -> 0 | U13: =CELL("width",U13) -> 0 | V13: 0 | W13: 0 | X13: 0 | Y13: 0 | Z13: =CELL("width",Z13) -> 0 | AL13: 13 | AM13: =SUMIFS(L$37:L$2820,C$37:C$2820,"=13") -> 0
A14: Last Tab TabSheet Starter Row | B14: 114 | C14: A | D14: B | E14: C | F14: D | G14: E | H14: F | I14: G | J14: H | K14: I | L14: J | N14: K | P14: =LOWER(C14) -> a | Q14: b | R14: c | S14: d | T14: e | U14: f | V14: g | W14: h | X14: i | Y14: j | Z14: =LOWER(N14) -> k | AL14: 14 | AM14: =SUMIFS(L$37:L$2820,C$37:C$2820,"=14") -> 5350
A15: Last Copy Starter Row | B15: 91 | C15: Totals: | L15: =SUBTOTAL(9,L38:L5999) -> 111666.25 | P15: 100-14 | AL15: 15 | AM15: =SUMIFS(L$37:L$2820,C$37:C$2820,"=15") -> 0
A16: Tab Loop Number | B16: 3 | C16: SILT BASINS | P16: =B17 -> 2016-10-18 | AL16: 16 | AM16: =SUMIFS(L$37:L$2820,C$37:C$2820,"=16") -> 0
A17: Revision Date | B17: 2016-10-18 | P17: =C16 -> SILT BASINS | AL17: 17 | AM17: =SUMIFS(L$37:L$2820,C$37:C$2820,"=17") -> 5425
A18: Tabulation Width | B18: 2 | C18: Possible Standard: EW-403 | AL18: 18 | AM18: =SUMIFS(L$37:L$2820,C$37:C$2820,"=18") -> 5200
A19: Horizontal Grid Lines | B19: Yes | AL19: 19 | AM19: =SUMIFS(L$37:L$2820,C$37:C$2820,"=19") -> 0
P20: =C18 -> Possible Standard: EW-403 | AL20: 20 | AM20: =SUMIFS(L$37:L$2820,C$37:C$2820,"=20") -> 5412.5
AL21: 21 | AM21: =SUMIFS(L$37:L$2820,C$37:C$2820,"=21") -> 0
AL22: 22 | AM22: =SUMIFS(L$37:L$2820,C$37:C$2820,"=22") -> 3337.5
AL23: 23 | AM23: =SUMIFS(L$37:L$2820,C$37:C$2820,"=23") -> 3575
AL24: 24 | AM24: =SUMIFS(L$37:L$2820,C$37:C$2820,"=24") -> 5075
AL25: 25 | AM25: =SUMIFS(L$37:L$2820,C$37:C$2820,"=25") -> 0
AL26: 26 | AM26: =SUMIFS(L$37:L$2820,C$37:C$2820,"=26") -> 5312.5
AL27: 27 | AM27: =SUMIFS(L$37:L$2820,C$37:C$2820,"=27") -> 0
AL28: 28 | AM28: =SUMIFS(L$37:L$2820,C$37:C$2820,"=28") -> 0
AL29: 29 | AM29: =SUMIFS(L$37:L$2820,C$37:C$2820,"=29") -> 4475
AL30: 30 | AM30: =SUMIFS(L$37:L$2820,C$37:C$2820,"=30") -> 0
AL31: 31 | AM31: =SUMIFS(L$37:L$2820,C$37:C$2820,"=31") -> 0
C32: * The functional height used in the volume equation is 95% of effective height. Effective height is 3 feet as shown in EW-403. | AL32: 32 | AM32: =SUMIFS(L$37:L$2820,C$37:C$2820,"=32") -> 5337.5
C33: * Volume equation: (0.5*Length*(Width*Height+Width*(Height-Length*Avg%Slope)) | P33: =C32 -> * The functional height used in the volume equation is 95% of effective height. Effective height is 3 feet as shown in EW-403. | AL33: 33 | AM33: =SUMIFS(L$37:L$2820,C$37:C$2820,"=33") -> 5037.5
C34: ="This Data Entry Sheet fills Tab "&P15&" effective "&TEXT(B17,"mm-dd-yy") -> This Data Entry Sheet fills Tab 100-14 effective 10-18-16 | P34: =C33 -> * Volume equation: (0.5*Length*(Width*Height+Width*(Height-Length*Avg%Slope)) | AL34: 34 | AM34: =SUMIFS(L$37:L$2820,C$37:C$2820,"=34") -> 0
C35: Basin No. | D35: Location | F35: Bid Items | H35: Stormwater Storage Volume Summary | M35: Subtotal | N35: Remarks | P35: =C35 -> Basin No. | Q35: =D35 -> Location | S35: =F35 -> Bid Items | U35: =H35 -> Stormwater Storage Volume Summary | Z35: =N35 -> Remarks | AL35: 35 | AM35: =SUMIFS(L$37:L$2820,C$37:C$2820,"=35") -> 0
D36: Station | E36: Side | F36: Installation | G36: Removal | H36: Basin Width | I36: Basin Length | J36: Height | K36: Avg. % Slope | L36: Volume* | Q36: =D36 -> Station | R36: =E36 -> Side | S36: =F36 -> Installation | T36: =G36 -> Removal | U36: =H36 -> Basin Width | V36: =I36 -> Basin Length | W36: =J36 -> Height | X36: =K36 -> Avg. % Slope | Y36: =L36 -> Volume* | AL36: 36 | AM36: =SUMIFS(L$37:L$2820,C$37:C$2820,"=36") -> 0
F37: EACH | G37: EACH | H37: FT | I37: FT | J37: FT | L37: CF | S37: =F37 -> EACH | T37: =G37 -> EACH | U37: =H37 -> FT | V37: =I37 -> FT | W37: =J37 -> FT | Y37: CF | AL37: 37 | AM37: =SUMIFS(L$37:L$2820,C$37:C$2820,"=37") -> 0
H38: =IF(D38<>"",10,"") ->  | I38: =IF(D38<>"",50,"") ->  | J38: =IF(D38<>"",3*0.95,"") ->  | L38: =IF(D38<>"",IF(J38-I38*K38<=0,0.5*I38*H38*J38,0.5*I38*(H38*J38+(H38*(J38-I38*K38)))),"") ->  | AL38: 38 | AM38: =SUMIFS(L$37:L$2820,C$37:C$2820,"=38") -> 5087.5
C39: 1 | D39: 78840 | E39: Rt. | F39: 1 | G39: 1 | H39: =IF(D39<>"",10,"") -> 10 | I39: =IF(D39<>"",50,"") -> 50 | J39: =IF(D39<>"",3*0.95,"") -> 2.85 | K39: -0.006 | L39: =IF(D39<>"",IF(J39-I39*ABS(K39)<=0,0.5*I39*H39*J39,0.5*I39*(H39*J39+(H39*(J39-I39*ABS(K39))))),"") -> 1350 | AL39: 39 | AM39: =SUMIFS(L$37:L$2820,C$37:C$2820,"=39") -> 5350
C40: 1 | D40: 78900 | E40: Rt. | F40: 1 | G40: 1 | H40: =IF(D40<>"",10,"") -> 10 | I40: =IF(D40<>"",50,"") -> 50 | J40: 2.85 | K40: 0.005 | L40: =IF(D40<>"",IF(J40-I40*ABS(K40)<=0,0.5*I40*H40*J40,0.5*I40*(H40*J40+(H40*(J40-I40*ABS(K40))))),"") -> 1362.5 | AL40: 40 | AM40: =SUMIFS(L$37:L$2820,C$37:C$2820,"=40") -> 5437.5
AL41: 41 | AM41: =SUMIFS(L$37:L$2820,C$37:C$2820,"=41") -> 5362.5
C42: 4 | D42: 84405 | E42: Lt. | F42: 1 | G42: 1 | H42: =IF(D42<>"",10,"") -> 10 | I42: =IF(D42<>"",50,"") -> 50 | J42: =IF(D42<>"",3*0.95,"") -> 2.85 | K42: -0.012 | L42: =IF(D42<>"",IF(J42-I42*ABS(K42)<=0,0.5*I42*H42*J42,0.5*I42*(H42*J42+(H42*(J42-I42*ABS(K42))))),"") -> 1275 | AL42: 42 | AM42: =SUMIFS(L$37:L$2820,C$37:C$2820,"=42") -> 4887.5
C43: 4 | D43: 84465 | E43: Lt. | F43: 1 | G43: 1 | H43: =IF(D43<>"",10,"") -> 10 | I43: =IF(D43<>"",50,"") -> 50 | J43: =IF(D43<>"",3*0.95,"") -> 2.85 | K43: 0.012 | L43: =IF(D43<>"",IF(J43-I43*ABS(K43)<=0,0.5*I43*H43*J43,0.5*I43*(H43*J43+(H43*(J43-I43*ABS(K43))))),"") -> 1275
C44: 4 | D44: 84405 | E44: Rt. | F44: 1 | G44: 1 | H44: =IF(D44<>"",10,"") -> 10 | I44: =IF(D44<>"",50,"") -> 50 | J44: =IF(D44<>"",3*0.95,"") -> 2.85 | K44: -0.03 | L44: =IF(D44<>"",IF(J44-I44*ABS(K44)<=0,0.5*I44*H44*J44,0.5*I44*(H44*J44+(H44*(J44-I44*ABS(K44))))),"") -> 1050
C45: 4 | D45: 84465 | E45: Rt. | F45: 1 | G45: 1 | H45: =IF(D45<>"",10,"") -> 10 | I45: =IF(D45<>"",50,"") -> 50 | J45: =IF(D45<>"",3*0.95,"") -> 2.85 | K45: 0.02 | L45: =IF(D45<>"",IF(J45-I45*ABS(K45)<=0,0.5*I45*H45*J45,0.5*I45*(H45*J45+(H45*(J45-I45*ABS(K45))))),"") -> 1175
C47: 6 | D47: 86935 | E47: Lt. | F47: 1 | G47: 1 | H47: =IF(D47<>"",10,"") -> 10 | I47: =IF(D47<>"",50,"") -> 50 | J47: =IF(D47<>"",3*0.95,"") -> 2.85 | K47: -0.137 | L47: =IF(D47<>"",IF(J47-I47*ABS(K47)<=0,0.5*I47*H47*J47,0.5*I47*(H47*J47+(H47*(J47-I47*ABS(K47))))),"") -> 712.5
C48: 6 | D48: 86990 | E48: Lt. | F48: 1 | G48: 1 | H48: =IF(D48<>"",10,"") -> 10 | I48: =IF(D48<>"",50,"") -> 50 | J48: =IF(D48<>"",3*0.95,"") -> 2.85 | K48: 0.14 | L48: =IF(D48<>"",IF(J48-I48*ABS(K48)<=0,0.5*I48*H48*J48,0.5*I48*(H48*J48+(H48*(J48-I48*ABS(K48))))),"") -> 712.5
C49: 6 | D49: 86935 | E49: Rt. | F49: 1 | G49: 1 | H49: =IF(D49<>"",10,"") -> 10 | I49: =IF(D49<>"",50,"") -> 50 | J49: =IF(D49<>"",3*0.95,"") -> 2.85 | K49: -0.013 | L49: =IF(D49<>"",IF(J49-I49*ABS(K49)<=0,0.5*I49*H49*J49,0.5*I49*(H49*J49+(H49*(J49-I49*ABS(K49))))),"") -> 1262.5
C50: 6 | D50: 86990 | E50: Rt. | F50: 1 | G50: 1 | H50: =IF(D50<>"",10,"") -> 10 | I50: =IF(D50<>"",50,"") -> 50 | J50: =IF(D50<>"",3*0.95,"") -> 2.85 | K50: 0.07 | L50: =IF(D50<>"",IF(J50-I50*ABS(K50)<=0,0.5*I50*H50*J50,0.5*I50*(H50*J50+(H50*(J50-I50*ABS(K50))))),"") -> 712.5
C52: 8 | D52: 90020 | E52: Lt. | F52: 1 | G52: 1 | H52: 10 | I52: 50 | J52: 2.85 | K52: -0.036 | L52: 975
C53: 8 | D53: 90080 | E53: Lt. | F53: 1 | G53: 1 | H53: 10 | I53: 50 | J53: 2.85 | K53: 0.017 | L53: 1212.5
C54: 8 | D54: 90020 | E54: Rt. | F54: 1 | G54: 1 | H54: 10 | I54: 50 | J54: 2.85 | K54: -0.011 | L54: 1287.5
C55: 8 | D55: 90080 | E55: Rt. | F55: 1 | G55: 1 | H55: 10 | I55: 50 | J55: 2.85 | K55: 0.008 | L55: 1325
C57: 11 | D57: 94245 | E57: Lt. | F57: 1 | G57: 1 | H57: 10 | I57: 50 | J57: 2.85 | K57: -0.021 | L57: 1162.5
C58: 11 | D58: 94305 | E58: Lt. | F58: 1 | G58: 1 | H58: 10 | I58: 50 | J58: 2.85 | K58: 0.016 | L58: 1225
C59: 11 | D59: 94475 | E59: Rt. | F59: 1 | G59: 1 | H59: 10 | I59: 50 | J59: 2.85 | K59: -0.006 | L59: 1350
C60: 11 | D60: 94550 | E60: Rt. | F60: 1 | G60: 1 | H60: 10 | I60: 50 | J60: 2.85 | K60: 0.007 | L60: 1337.5
C62: 14 | D62: 97845 | E62: Lt. | F62: 1 | G62: 1 | H62: 10 | I62: 50 | J62: 2.85 | K62: -0.007 | L62: 1337.5
C63: 14 | D63: 97905 | E63: Lt. | F63: 1 | G63: 1 | H63: 10 | I63: 50 | J63: 2.85 | K63: 0.005 | L63: 1362.5
C64: 14 | D64: 97845 | E64: Rt. | F64: 1 | G64: 1 | H64: 10 | I64: 50 | J64: 2.85 | K64: -0.012 | L64: 1275
C65: 14 | D65: 97905 | E65: Rt. | F65: 1 | G65: 1 | H65: 10 | I65: 50 | J65: 2.85 | K65: 0.004 | L65: 1375
C67: 17 | D67: 100785 | E67: Lt. | F67: 1 | G67: 1 | H67: 10 | I67: 50 | J67: 2.85 | K67: -0.006 | L67: 1350
C68: 17 | D68: 100845 | E68: Lt. | F68: 1 | G68: 1 | H68: 10 | I68: 50 | J68: 2.85 | K68: 0.007 | L68: 1337.5
C69: 17 | D69: 100785 | E69: Rt. | F69: 1 | G69: 1 | H69: 10 | I69: 50 | J69: 2.85 | K69: -0.005 | L69: 1362.5
C70: 17 | D70: 100845 | E70: Rt. | F70: 1 | G70: 1 | H70: 10 | I70: 50 | J70: 2.85 | K70: 0.004 | L70: 1375
C72: 18 | D72: 103265 | E72: Lt. | F72: 1 | G72: 1 | H72: 10 | I72: 50 | J72: 2.85 | K72: -0.005 | L72: 1362.5
C73: 18 | D73: 103325 | E73: Lt. | F73: 1 | G73: 1 | H73: 10 | I73: 50 | J73: 2.85 | K73: 0.01 | L73: 1300
C74: 18 | D74: 103265 | E74: Rt. | F74: 1 | G74: 1 | H74: 10 | I74: 50 | J74: 2.85 | K74: -0.009 | L74: 1312.5
C75: 18 | D75: 103325 | E75: Rt. | F75: 1 | G75: 1 | H75: 10 | I75: 50 | J75: 2.85 | K75: 0.016 | L75: 1225
C77: 20 | D77: 105920 | E77: Lt. | F77: 1 | G77: 1 | H77: 10 | I77: 50 | J77: 2.85 | K77: -0.004 | L77: 1375
C78: 20 | D78: 105980 | E78: Lt. | F78: 1 | G78: 1 | H78: 10 | I78: 50 | J78: 2.85 | K78: 0.003 | L78: 1387.5
C79: 20 | D79: 105920 | E79: Rt. | F79: 1 | G79: 1 | H79: 10 | I79: 50 | J79: 2.85 | K79: -0.012 | L79: 1275
C80: 20 | D80: 105980 | E80: Rt. | F80: 1 | G80: 1 | H80: 10 | I80: 50 | J80: 2.85 | K80: 0.004 | L80: 1375
C82: 22 | D82: 109030 | E82: Lt. | F82: 1 | G82: 1 | H82: 10 | I82: 50 | J82: 2.85 | K82: -0.127 | L82: 712.5
C83: 22 | D83: 109095 | E83: Lt. | F83: 1 | G83: 1 | H83: 10 | I83: 50 | J83: 2.85 | K83: 0.1757 | L83: 712.5
C84: 22 | D84: 108945 | E84: Rt. | F84: 1 | G84: 1 | H84: 10 | I84: 50 | J84: 2.85 | K84: -0.035 | L84: 987.5
C85: 22 | D85: 109030 | E85: Rt. | F85: 1 | G85: 1 | H85: 10 | I85: 50 | J85: 2.85 | K85: 0.04 | L85: 925
C87: 23 | D87: 110045 | E87: Lt. | F87: 1 | G87: 1 | H87: 10 | I87: 50 | J87: 2.85 | K87: -0.03 | L87: 1050
C88: 23 | D88: 110105 | E88: Lt. | F88: 1 | G88: 1 | H88: 10 | I88: 50 | J88: 2.85 | K88: 0.016 | L88: 1225
C89: 23 | D89: 110105 | E89: Rt. | F89: 1 | G89: 1 | H89: 10 | I89: 50 | J89: 2.85 | K89: 0.01 | L89: 1300
C91: 24 | D91: 111420 | E91: Lt. | F91: 1 | G91: 1 | H91: 10 | I91: 50 | J91: 2.85 | K91: -0.01 | L91: 1300
C92: 24 | D92: 111480 | E92: Lt. | F92: 1 | G92: 1 | H92: 10 | I92: 50 | J92: 2.85 | K92: 0.024 | L92: 1125
C93: 24 | D93: 111420 | E93: Rt. | F93: 1 | G93: 1 | H93: 10 | I93: 50 | J93: 2.85 | K93: -0.014 | L93: 1250
C94: 24 | D94: 111480 | E94: Rt. | F94: 1 | G94: 1 | H94: 10 | I94: 50 | J94: 2.85 | K94: 0.002 | L94: 1400
C96: 26 | D96: 112520 | E96: Lt. | F96: 1 | G96: 1 | H96: 10 | I96: 50 | J96: 2.85 | K96: -0.006 | L96: 1350
C97: 26 | D97: 112580 | E97: Lt. | F97: 1 | G97: 1 | H97: 10 | I97: 50 | J97: 2.85 | K97: 0.008 | L97: 1325
C98: 26 | D98: 112505 | E98: Rt. | F98: 1 | G98: 1 | H98: 10 | I98: 50 | J98: 2.85 | K98: -0.012 | L98: 1275
C99: 26 | D99: 112580 | E99: Rt. | F99: 1 | G99: 1 | H99: 10 | I99: 50 | J99: 2.85 | K99: 0.005 | L99: 1362.5
C101: 29 | D101: 120550 | E101: Lt. | F101: 1 | G101: 1 | H101: 10 | I101: 50 | J101: 2.85 | K101: -0.022 | L101: 1150
C102: 29 | D102: 120615 | E102: Lt. | F102: 1 | G102: 1 | H102: 10 | I102: 50 | J102: 2.85 | K102: 0.023 | L102: 1137.5
C103: 29 | D103: 120515 | E103: Rt. | F103: 1 | G103: 1 | H103: 10 | I103: 50 | J103: =IF(D103<>"",3*0.95,"") -> 2.85 | K103: -0.025 | L103: 1112.5
C104: 29 | D104: 120580 | E104: Rt. | F104: 1 | G104: 1 | H104: =IF(D104<>"",10,"") -> 10 | I104: =IF(D104<>"",50,"") -> 50 | J104: 2.85 | K104: 0.028 | L104: =IF(D104<>"",IF(J104-I104*ABS(K104)<=0,0.5*I104*H104*J104,0.5*I104*(H104*J104+(H104*(J104-I104*ABS(K104))))),"") -> 1075
C106: 32 | D106: 122390 | E106: Lt. | F106: 1 | G106: 1 | H106: 10 | I106: 50 | J106: 2.85 | K106: -0.012 | L106: 1275
C107: 32 | D107: 122450 | E107: Lt. | F107: 1 | G107: 1 | H107: 10 | I107: 50 | J107: 2.85 | K107: 0.007 | L107: 1337.5
C108: 32 | D108: 122440 | E108: Rt. | F108: 1 | G108: 1 | H108: 10 | I108: 50 | J108: 2.85 | K108: -0.005 | L108: 1362.5
C109: 32 | D109: 122500 | E109: Rt. | F109: 1 | G109: 1 | H109: 10 | I109: 50 | J109: 2.85 | K109: 0.005 | L109: 1362.5
C111: 33 | D111: 122860 | E111: Lt. | F111: 1 | G111: 1 | H111: 10 | I111: 50 | J111: 2.85 | K111: -0.011 | L111: 1287.5
C112: 33 | D112: 122915 | E112: Lt. | F112: 1 | G112: 1 | H112: 10 | I112: 50 | J112: 2.85 | K112: 0.022 | L112: 1150
C113: 33 | D113: 122860 | E113: Rt. | F113: 1 | G113: 1 | H113: 10 | I113: 50 | J113: 2.85 | K113: -0.008 | L113: 1325
C114: 33 | D114: 122915 | E114: Rt. | F114: 1 | G114: 1 | H114: 10 | I114: 50 | J114: 2.85 | K114: 0.012 | L114: 1275
C116: 38 | D116: 127795 | E116: Lt. | F116: 1 | G116: 1 | H116: 10 | I116: 50 | J116: 2.85 | K116: -0.008 | L116: 1325
C117: 38 | D117: 127855 | E117: Lt. | F117: 1 | G117: 1 | H117: 10 | I117: 50 | J117: 2.85 | K117: 0.013 | L117: 1262.5
C118: 38 | D118: 127795 | E118: Rt. | F118: 1 | G118: 1 | H118: 10 | I118: 50 | J118: 2.85 | K118: -0.021 | L118: 1162.5
C119: 38 | D119: 127855 | E119: Rt. | F119: 1 | G119: 1 | H119: 10 | I119: 50 | J119: 2.85 | K119: 0.007 | L119: 1337.5
C121: 39 | D121: 128355 | E121: Lt. | F121: 1 | G121: 1 | H121: 10 | I121: 50 | J121: 2.85 | K121: -0.005 | L121: 1362.5
C122: 39 | D122: 128415 | E122: Lt. | F122: 1 | G122: 1 | H122: 10 | I122: 50 | J122: 2.85 | K122: 0.006 | L122: 1350
C123: 39 | D123: 128355 | E123: Rt. | F123: 1 | G123: 1 | H123: 10 | I123: 50 | J123: 2.85 | K123: -0.006 | L123: 1350
C124: 39 | D124: 128415 | E124: Rt. | F124: 1 | G124: 1 | H124: 10 | I124: 50 | J124: 2.85 | K124: 0.011 | L124: 1287.5
C126: 40 | D126: 130490 | E126: Lt. | F126: 1 | G126: 1 | H126: 10 | I126: 50 | J126: 2.85 | K126: -0.005 | L126: 1362.5
C127: 40 | D127: 130550 | E127: Lt. | F127: 1 | G127: 1 | H127: 10 | I127: 50 | J127: 2.85 | K127: 0.005 | L127: 1362.5
C128: 40 | D128: 130490 | E128: Rt. | F128: 1 | G128: 1 | H128: 10 | I128: 50 | J128: 2.85 | K128: -0.006 | L128: 1350
C129: 40 | D129: 130550 | E129: Rt. | F129: 1 | G129: 1 | H129: 10 | I129: 50 | J129: 2.85 | K129: 0.005 | L129: 1362.5
C131: 41 | D131: 132540 | E131: Lt. | F131: 1 | G131: 1 | H131: 10 | I131: 50 | J131: 2.85 | K131: -0.007 | L131: 1337.5
C132: 41 | D132: 132595 | E132: Lt. | F132: 1 | G132: 1 | H132: 10 | I132: 50 | J132: 2.85 | K132: 0.008 | L132: 1325
C133: 41 | D133: 132540 | E133: Rt. | F133: 1 | G133: 1 | H133: 10 | I133: 50 | J133: 2.85 | K133: -0.004 | L133: 1375
C134: 41 | D134: 132595 | E134: Rt. | F134: 1 | G134: 1 | H134: 10 | I134: 50 | J134: 2.85 | K134: 0.008 | L134: 1325
C136: 42 | D136: 136060 | E136: Lt. | F136: 1 | G136: 1 | H136: 10 | I136: 50 | J136: 2.85 | K136: -0.02 | L136: 1175
C137: 42 | D137: 136130 | E137: Lt. | F137: 1 | G137: 1 | H137: 10 | I137: 50 | J137: 2.85 | K137: 0.015 | L137: 1237.5
C138: 42 | D138: 136060 | E138: Rt. | F138: 1 | G138: 1 | H138: 10 | I138: 50 | J138: 2.85 | K138: -0.016 | L138: 1225
C139: 42 | D139: 136130 | E139: Rt. | F139: 1 | G139: 1 | H139: 10 | I139: 50 | J139: 2.85 | K139: 0.014 | L139: 1250
D141: 11th Ave
C142: 1 | D142: 1179205 | E142: Lt. | F142: 1 | G142: 1 | H142: 10 | I142: 50 | J142: 2.85 | K142: 0.25 | L142: 712.5
C143: 1 | D143: 1179205 | E143: Rt. | F143: 1 | G143: 1 | H143: 10 | I143: 50 | J143: 2.85 | K143: 0.1 | L143: 712.5
D145: 13th Ave
C146: 9 | D146: 1390300 | E146: Lt. | F146: 1 | G146: 1 | H146: 10 | I146: 50 | J146: 2.85 | K146: -0.008 | L146: 1325
C147: 9 | D147: 1390370 | E147: Lt. | F147: 1 | G147: 1 | H147: 10 | I147: 50 | J147: 2.85 | K147: 0.017 | L147: 1212.5
C148: 9 | D148: 1390300 | E148: Rt. | F148: 1 | G148: 1 | H148: 10 | I148: 50 | J148: 2.85 | K148: -0.009 | L148: 1312.5
C149: 9 | D149: 1390370 | E149: Rt. | F149: 1 | G149: 1 | H149: 10 | I149: 50 | J149: 2.85 | K149: 0.017 | L149: 1212.5
D151: 14th Ave
C152: 12 | D152: 1494450 | E152: Lt. | F152: 1 | G152: 1 | H152: 10 | I152: 50 | J152: 2.85 | K152: -0.014 | L152: 1250
C153: 12 | D153: 1494550 | E153: Lt. | F153: 1 | G153: 1 | H153: 10 | I153: 50 | J153: 2.85 | K153: 0.0323 | L153: 1021.25
C154: 12 | D154: 1494425 | E154: Rt. | F154: 1 | G154: 1 | H154: 10 | I154: 50 | J154: 2.85 | K154: -0.005 | L154: 1362.5
C155: 12 | D155: 1494525 | E155: Rt. | F155: 1 | G155: 1 | H155: 10 | I155: 50 | J155: 2.85 | K155: 0.0244 | L155: 1120
E157: Totals: | F157: =SUM(F38:F155) -> 91 | G157: =SUM(G38:G155) -> 91
D158: Bid Totals: | F158: =F157*2 -> 182 | G158: =G157 -> 91
J167: =IF(D167<>"",3*0.95,"") -> 
H168: =IF(D168<>"",10,"") ->  | I168: =IF(D168<>"",50,"") ->  | L168: =IF(D168<>"",IF(J168-I168*ABS(K168)<=0,0.5*I168*H168*J168,0.5*I168*(H168*J168+(H168*(J168-I168*ABS(K168))))),"") -> 
J231: =IF(D231<>"",3*0.95,"") -> 
H232: =IF(D232<>"",10,"") ->  | I232: =IF(D232<>"",50,"") ->  | L232: =IF(D232<>"",IF(J232-I232*ABS(K232)<=0,0.5*I232*H232*J232,0.5*I232*(H232*J232+(H232*(J232-I232*ABS(K232))))),"") -> 
L239: =IF(D239<>"",IF(J239-I239*K239<=0,0.5*I239*H239*J239,0.5*I239*(H239*J239+(H239*(J239-I239*K239)))),"") -> 
J295: =IF(D295<>"",3*0.95,"") ->  | L295: =IF(D295<>"",IF(J295-I295*K295<=0,0.5*I295*H295*J295,0.5*I295*(H295*J295+(H295*(J295-I295*K295)))),"") -> 
H296: =IF(D296<>"",10,"") ->  | I296: =IF(D296<>"",50,"") -> 
J359: =IF(D359<>"",3*0.95,"") ->  | L359: =IF(D359<>"",IF(J359-I359*K359<=0,0.5*I359*H359*J359,0.5*I359*(H359*J359+(H359*(J359-I359*K359)))),"") -> 
H360: =IF(D360<>"",10,"") ->  | I360: =IF(D360<>"",50,"") -> 
J423: =IF(D423<>"",3*0.95,"") ->  | L423: =IF(D423<>"",IF(J423-I423*K423<=0,0.5*I423*H423*J423,0.5*I423*(H423*J423+(H423*(J423-I423*K423)))),"") -> 
H424: =IF(D424<>"",10,"") ->  | I424: =IF(D424<>"",50,"") -> 
J487: =IF(D487<>"",3*0.95,"") ->  | L487: =IF(D487<>"",IF(J487-I487*K487<=0,0.5*I487*H487*J487,0.5*I487*(H487*J487+(H487*(J487-I487*K487)))),"") -> 
H488: =IF(D488<>"",10,"") ->  | I488: =IF(D488<>"",50,"") -> 
J551: =IF(D551<>"",3*0.95,"") ->  | L551: =IF(D551<>"",IF(J551-I551*K551<=0,0.5*I551*H551*J551,0.5*I551*(H551*J551+(H551*(J551-I551*K551)))),"") -> 
H552: =IF(D552<>"",10,"") ->  | I552: =IF(D552<>"",50,"") -> 
J615: =IF(D615<>"",3*0.95,"") ->  | L615: =IF(D615<>"",IF(J615-I615*K615<=0,0.5*I615*H615*J615,0.5*I615*(H615*J615+(H615*(J615-I615*K615)))),"") -> 
H616: =IF(D616<>"",10,"") ->  | I616: =IF(D616<>"",50,"") -> 
J679: =IF(D679<>"",3*0.95,"") ->  | L679: =IF(D679<>"",IF(J679-I679*K679<=0,0.5*I679*H679*J679,0.5*I679*(H679*J679+(H679*(J679-I679*K679)))),"") -> 
H680: =IF(D680<>"",10,"") ->  | I680: =IF(D680<>"",50,"") -> 
J743: =IF(D743<>"",3*0.95,"") ->  | L743: =IF(D743<>"",IF(J743-I743*K743<=0,0.5*I743*H743*J743,0.5*I743*(H743*J743+(H743*(J743-I743*K743)))),"") -> 
H744: =IF(D744<>"",10,"") ->  | I744: =IF(D744<>"",50,"") -> 
J807: =IF(D807<>"",3*0.95,"") ->  | L807: =IF(D807<>"",IF(J807-I807*K807<=0,0.5*I807*H807*J807,0.5*I807*(H807*J807+(H807*(J807-I807*K807)))),"") -> 
H808: =IF(D808<>"",10,"") ->  | I808: =IF(D808<>"",50,"") -> 
J871: =IF(D871<>"",3*0.95,"") ->  | L871: =IF(D871<>"",IF(J871-I871*K871<=0,0.5*I871*H871*J871,0.5*I871*(H871*J871+(H871*(J871-I871*K871)))),"") -> 
H872: =IF(D872<>"",10,"") ->  | I872: =IF(D872<>"",50,"") -> 
J935: =IF(D935<>"",3*0.95,"") ->  | L935: =IF(D935<>"",IF(J935-I935*K935<=0,0.5*I935*H935*J935,0.5*I935*(H935*J935+(H935*(J935-I935*K935)))),"") -> 
H936: =IF(D936<>"",10,"") ->  | I936: =IF(D936<>"",50,"") -> 
J999: =IF(D999<>"",3*0.95,"") ->  | L999: =IF(D999<>"",IF(J999-I999*K999<=0,0.5*I999*H999*J999,0.5*I999*(H999*J999+(H999*(J999-I999*K999)))),"") -> 
H1000: =IF(D1000<>"",10,"") ->  | I1000: =IF(D1000<>"",50,"") -> 
J1063: =IF(D1063<>"",3*0.95,"") ->  | L1063: =IF(D1063<>"",IF(J1063-I1063*K1063<=0,0.5*I1063*H1063*J1063,0.5*I1063*(H1063*J1063+(H1063*(J1063-I1063*K1063)))),"") -> 
H1064: =IF(D1064<>"",10,"") ->  | I1064: =IF(D1064<>"",50,"") -> 
J1127: =IF(D1127<>"",3*0.95,"") ->  | L1127: =IF(D1127<>"",IF(J1127-I1127*K1127<=0,0.5*I1127*H1127*J1127,0.5*I1127*(H1127*J1127+(H1127*(J1127-I1127*K1127)))),"") -> 
H1128: =IF(D1128<>"",10,"") ->  | I1128: =IF(D1128<>"",50,"") -> 
J1191: =IF(D1191<>"",3*0.95,"") ->  | L1191: =IF(D1191<>"",IF(J1191-I1191*K1191<=0,0.5*I1191*H1191*J1191,0.5*I1191*(H1191*J1191+(H1191*(J1191-I1191*K1191)))),"") -> 
H1192: =IF(D1192<>"",10,"") ->  | I1192: =IF(D1192<>"",50,"") -> 
J1255: =IF(D1255<>"",3*0.95,"") ->  | L1255: =IF(D1255<>"",IF(J1255-I1255*K1255<=0,0.5*I1255*H1255*J1255,0.5*I1255*(H1255*J1255+(H1255*(J1255-I1255*K1255)))),"") -> 
H1256: =IF(D1256<>"",10,"") ->  | I1256: =IF(D1256<>"",50,"") -> 
J1319: =IF(D1319<>"",3*0.95,"") ->  | L1319: =IF(D1319<>"",IF(J1319-I1319*K1319<=0,0.5*I1319*H1319*J1319,0.5*I1319*(H1319*J1319+(H1319*(J1319-I1319*K1319)))),"") -> 
H1320: =IF(D1320<>"",10,"") ->  | I1320: =IF(D1320<>"",50,"") -> 
J1383: =IF(D1383<>"",3*0.95,"") ->  | L1383: =IF(D1383<>"",IF(J1383-I1383*K1383<=0,0.5*I1383*H1383*J1383,0.5*I1383*(H1383*J1383+(H1383*(J1383-I1383*K1383)))),"") -> 
H1384: =IF(D1384<>"",10,"") ->  | I1384: =IF(D1384<>"",50,"") -> 
J1447: =IF(D1447<>"",3*0.95,"") ->  | L1447: =IF(D1447<>"",IF(J1447-I1447*K1447<=0,0.5*I1447*H1447*J1447,0.5*I1447*(H1447*J1447+(H1447*(J1447-I1447*K1447)))),"") -> 
H1448: =IF(D1448<>"",10,"") ->  | I1448: =IF(D1448<>"",50,"") -> 
J1511: =IF(D1511<>"",3*0.95,"") ->  | L1511: =IF(D1511<>"",IF(J1511-I1511*K1511<=0,0.5*I1511*H1511*J1511,0.5*I1511*(H1511*J1511+(H1511*(J1511-I1511*K1511)))),"") -> 
H1512: =IF(D1512<>"",10,"") ->  | I1512: =IF(D1512<>"",50,"") -> 
J1575: =IF(D1575<>"",3*0.95,"") ->  | L1575: =IF(D1575<>"",IF(J1575-I1575*K1575<=0,0.5*I1575*H1575*J1575,0.5*I1575*(H1575*J1575+(H1575*(J1575-I1575*K1575)))),"") -> 
H1576: =IF(D1576<>"",10,"") ->  | I1576: =IF(D1576<>"",50,"") -> 
J1639: =IF(D1639<>"",3*0.95,"") ->  | L1639: =IF(D1639<>"",IF(J1639-I1639*K1639<=0,0.5*I1639*H1639*J1639,0.5*I1639*(H1639*J1639+(H1639*(J1639-I1639*K1639)))),"") -> 
H1640: =IF(D1640<>"",10,"") ->  | I1640: =IF(D1640<>"",50,"") -> 
J1703: =IF(D1703<>"",3*0.95,"") ->  | L1703: =IF(D1703<>"",IF(J1703-I1703*K1703<=0,0.5*I1703*H1703*J1703,0.5*I1703*(H1703*J1703+(H1703*(J1703-I1703*K1703)))),"") -> 
H1704: =IF(D1704<>"",10,"") ->  | I1704: =IF(D1704<>"",50,"") -> 
J1767: =IF(D1767<>"",3*0.95,"") ->  | L1767: =IF(D1767<>"",IF(J1767-I1767*K1767<=0,0.5*I1767*H1767*J1767,0.5*I1767*(H1767*J1767+(H1767*(J1767-I1767*K1767)))),"") -> 
H1768: =IF(D1768<>"",10,"") ->  | I1768: =IF(D1768<>"",50,"") -> 
J1831: =IF(D1831<>"",3*0.95,"") ->  | L1831: =IF(D1831<>"",IF(J1831-I1831*K1831<=0,0.5*I1831*H1831*J1831,0.5*I1831*(H1831*J1831+(H1831*(J1831-I1831*K1831)))),"") -> 
H1832: =IF(D1832<>"",10,"") ->  | I1832: =IF(D1832<>"",50,"") -> 
J1895: =IF(D1895<>"",3*0.95,"") ->  | L1895: =IF(D1895<>"",IF(J1895-I1895*K1895<=0,0.5*I1895*H1895*J1895,0.5*I1895*(H1895*J1895+(H1895*(J1895-I1895*K1895)))),"") -> 
H1896: =IF(D1896<>"",10,"") ->  | I1896: =IF(D1896<>"",50,"") -> 
J1959: =IF(D1959<>"",3*0.95,"") ->  | L1959: =IF(D1959<>"",IF(J1959-I1959*K1959<=0,0.5*I1959*H1959*J1959,0.5*I1959*(H1959*J1959+(H1959*(J1959-I1959*K1959)))),"") -> 
H1960: =IF(D1960<>"",10,"") ->  | I1960: =IF(D1960<>"",50,"") -> 
J2023: =IF(D2023<>"",3*0.95,"") ->  | L2023: =IF(D2023<>"",IF(J2023-I2023*K2023<=0,0.5*I2023*H2023*J2023,0.5*I2023*(H2023*J2023+(H2023*(J2023-I2023*K2023)))),"") -> 
H2024: =IF(D2024<>"",10,"") ->  | I2024: =IF(D2024<>"",50,"") -> 
J2087: =IF(D2087<>"",3*0.95,"") ->  | L2087: =IF(D2087<>"",IF(J2087-I2087*K2087<=0,0.5*I2087*H2087*J2087,0.5*I2087*(H2087*J2087+(H2087*(J2087-I2087*K2087)))),"") -> 
H2088: =IF(D2088<>"",10,"") ->  | I2088: =IF(D2088<>"",50,"") -> 
J2151: =IF(D2151<>"",3*0.95,"") ->  | L2151: =IF(D2151<>"",IF(J2151-I2151*K2151<=0,0.5*I2151*H2151*J2151,0.5*I2151*(H2151*J2151+(H2151*(J2151-I2151*K2151)))),"") -> 
H2152: =IF(D2152<>"",10,"") ->  | I2152: =IF(D2152<>"",50,"") -> 
... 120 more rows

Sheet DE100_17
A1: TabTitle | B1: =C16 -> TABULATION OF SILT FENCES
A2: Number of Tab Columns | B2: 5 | P2: Possible Contract Item
A3: DE Starter Row Number | B3: 23 | O3: 2602-0000020 | P3: SILT FENCE | Q3: =F15 -> 0
A4: TabSheet Starter Row Number | B4: 9
A5: TabSheet Header Row Count | B5: 8
A6: Top Header Cell | B6: I15
A7: Bottom Header Cell | B7: M22
A8: DESheet Row Count | B8: 0
A9: Fixed Empty Rows | B9: 2
A10: Usable Empty Rows | B10: 0
A11: Total Rows Placed | B11: 0 | C11: xlRight(1) | D11: xlRight(1) | E11: xlLeft(1) | F11: xlRight(1) | G11: xlLeft(1) | I11: =C11 -> xlRight(1) | J11: xlRight(1) | K11: xlLeft(1) | L11: xlRight(1) | M11: xlLeft(1)
A12: Total Rows Needed | B12: =SUM(B8:B10) -> 2 | C12: #+00.00 | D12: #+00.00 | E12: General | F12: 0.0 | G12: General | I12: #+00.00 | J12: #+00.00 | K12: General | L12: 0.0 | M12: General
A13: Last Tab DE Starter Row | B13: 0 | C13: =CELL("width",C13) -> 16 | D13: =CELL("width",D13) -> 16 | E13: =CELL("width",E13) -> 6 | F13: =CELL("width",F13) -> 10 | G13: =CELL("width",G13) -> 26 | I13: =CELL("width",I13) -> 0 | J13: =CELL("width",J13) -> 0 | K13: =CELL("width",K13) -> 0 | L13: =CELL("width",L13) -> 0 | M13: =CELL("width",M13) -> 0
A14: Last Tab Tabsheet Starter Row | B14: 0 | C14: A | D14: B | E14: C | F14: D | G14: E | I14: =LOWER(C14) -> a | J14: =LOWER(D14) -> b | K14: =LOWER(E14) -> c | L14: =LOWER(F14) -> d | M14: =LOWER(G14) -> e
A15: Last Copy Starter Row | B15: 0 | E15: Totals: | F15: =SUBTOTAL(9,F23:F6000) -> 0 | I15: 100-17
A16: Tab Loop Number | B16: 1 | C16: TABULATION OF SILT FENCES | I16: =B17 -> 2010-04-20
A17: Revision Date | B17: 2010-04-20 | I17: =C16 -> TABULATION OF SILT FENCES
A18: Tabulation Width | B18: 1 | C18: Refer to EC-201
A19: Horizontal Grid Lines | B19: Yes | C19: ="This Data Entry Sheet fills Tab "&I15&" effective "&TEXT(B17,"mm-dd-yy") -> This Data Entry Sheet fills Tab 100-17 effective 04-20-10 | I19: =C18 -> Refer to EC-201
C20: Location | F20: Length | G20: Remarks | I20: =C20 -> Location | L20: =F20 -> Length | M20: =G20 -> Remarks
C21: Begin Station | D21: End Station | E21: Side | I21: =C21 -> Begin Station | J21: =D21 -> End Station | K21: =E21 -> Side
F22: LF | L22: =F22 -> LF

Sheet DE100_18
A1: TabTitle | B1: =C16 -> SILT FENCES FOR DITCH CHECKS | AL1: 1 | AM1: =SUMIFS(P$37:P$3094,C$37:C$3094,"=1") -> 88220.96363
A2: Number of Tab Columns | B2: 13 | AL2: 2 | AM2: =SUMIFS(P$37:P$3094,C$37:C$3094,"=2") -> 35496.70707
A3: DE Starter Row Number | B3: 37 | AL3: 3 | AM3: =SUMIFS(P$37:P$3094,C$37:C$3094,"=3") -> 21285.29541
A4: TabSheet Starter Row Number | B4: 23 | AL4: 4 | AM4: =SUMIFS(P$37:P$3094,C$37:C$3094,"=4") -> 65440.0282
A5: TabSheet Header Row Count | B5: 22 | AL5: 5 | AM5: =SUMIFS(P$37:P$3094,C$37:C$3094,"=5") -> 1412.671988
A6: Top Header Cell | B6: T15 | AL6: 6 | AM6: =SUMIFS(P$37:P$3094,C$37:C$3094,"=6") -> 114824.2939
A7: Bottom Header Cell | B7: AF36 | AL7: 7 | AM7: =SUMIFS(P$37:P$3094,C$37:C$3094,"=7") -> 4243.038525
A8: DESheet Row Count | B8: 1904 | AL8: 8 | AM8: =SUMIFS(P$37:P$3094,C$37:C$3094,"=8") -> 105697.9992
A9: Fixed Empty Rows | B9: 10 | AL9: 9 | AM9: =SUMIFS(P$37:P$3094,C$37:C$3094,"=9") -> 12789.31897
A10: Usable Empty Rows | B10: 0 | AL10: 10 | AM10: =SUMIFS(P$37:P$3094,C$37:C$3094,"=10") -> 659.2469276
A11: Total Rows Placed | B11: 1914 | C11: xlRight(1) | D11: xlRight(1) | E11: xlRight(1) | F11: xlLeft(1) | G11: xlRight(1) | H11: xlRight(1) | I11: xlRight(1) | J11: xlRight(1) | K11: xlRight(1) | L11: xlRight(1) | M11: xlRight(1) | P11: xlRight(1) | R11: xlLeft(1) | T11: =C11 -> xlRight(1) | U11: =D11 -> xlRight(1) | V11: =E11 -> xlRight(1) | W11: xlLeft(1) | X11: xlRight(1) | Y11: xlRight(1) | Z11: xlRight(1) | AA11: xlRight(1) | AB11: xlRight(1) | AC11: xlRight(1) | AD11: xlRight(1) | AE11: =P11 -> xlRight(1) | AF11: =R11 -> xlLeft(1) | AL11: 11 | AM11: =SUMIFS(P$37:P$3094,C$37:C$3094,"=11") -> 53694.53723
A12: Total Rows Needed | B12: =SUM(B8:B10) -> 1914 | C12: 0 | D12: General | E12: #+00.00 | F12: General | G12: 0.0 | H12: 0.0 | I12: 0.0 | J12: 0.0 | K12: 0.0 | L12: 0.0 | M12: 0.0% | P12: 0.0 | R12: General | T12: =C12 -> 0 | U12: =D12 -> General | V12: #+00.00 | W12: General | X12: 0.0 | Y12: 0.0 | Z12: 0.0 | AA12: 0.0 | AB12: 0.0 | AC12: 0.0 | AD12: 0.0% | AE12: =P12 -> 0.0 | AF12: General | AL12: 12 | AM12: =SUMIFS(P$37:P$3094,C$37:C$3094,"=12") -> 43478.22269
A13: Last Tab DE Starter Row | B13: 1941 | C13: =CELL("width",C13) -> 6 | D13: =CELL("width",D13) -> 6 | E13: =CELL("width",E13) -> 16 | F13: =CELL("width",F13) -> 8 | G13: =CELL("width",G13) -> 14 | H13: =CELL("width",H13) -> 14 | I13: 8 | J13: 12 | K13: 12 | L13: 16 | M13: 16 | P13: 12 | R13: =CELL("width",R13) -> 9 | T13: =CELL("width",T13) -> 0 | U13: =CELL("width",U13) -> 0 | V13: =CELL("width",V13) -> 0 | W13: =CELL("width",W13) -> 0 | X13: =CELL("width",X13) -> 0 | Y13: =CELL("width",Y13) -> 0 | Z13: 0 | AA13: 0 | AB13: 0 | AC13: 0 | AD13: 0 | AE13: 0 | AF13: =CELL("width",AF13) -> 0 | AL13: 13 | AM13: =SUMIFS(P$37:P$3094,C$37:C$3094,"=13") -> 1412.671988
A14: Last Tab Tabsheet Starter Row | B14: 2543 | C14: A | D14: B | E14: C | F14: D | G14: E | H14: F | I14: G | J14: H | K14: I | L14: J | M14: K | P14: L | R14: M | T14: =LOWER(C14) -> a | U14: =LOWER(D14) -> b | V14: c | W14: d | X14: e | Y14: f | Z14: g | AA14: h | AB14: i | AC14: j | AD14: k | AE14: =LOWER(P14) -> l | AF14: =LOWER(R14) -> m | AL14: 14 | AM14: =SUMIFS(P$37:P$3094,C$37:C$3094,"=14") -> 69554.6129
A15: Last Copy Starter Row | B15: 2521 | C15: Totals: | G15: =SUBTOTAL(9,G37:G5999) -> 292194.6186 | H15: =SUBTOTAL(9,H37:H5999) -> 0 | I15: =SUBTOTAL(9,I37:I5999) -> 0 | P15: =SUBTOTAL(9,P37:P5999) -> 1705147.994 | T15: 100-18 | AH15: Slope Range | AI15: Spacing | AJ15: =D34 -> Type | AL15: 15 | AM15: =SUMIFS(P$37:P$3094,C$37:C$3094,"=15") -> 3013.70024
A16: Tab Loop Number | B16: 30 | C16: SILT FENCES FOR DITCH CHECKS | T16: =B17 -> 2016-10-18 | AH16: 0 | AI16: 315 | AJ16: 1 | AL16: 16 | AM16: =SUMIFS(P$37:P$3094,C$37:C$3094,"=16") -> 59968.01384
A17: Revision Date | B17: 2016-10-18 | T17: =C16 -> SILT FENCES FOR DITCH CHECKS | AH17: 0.001 | AI17: 315 | AJ17: 2 | AL17: 17 | AM17: =SUMIFS(P$37:P$3094,C$37:C$3094,"=17") -> 25506.4475
A18: Tabulation Width | B18: 2 | AH18: 0.002 | AI18: 315 | AJ18: 3 | AL18: 18 | AM18: =SUMIFS(P$37:P$3094,C$37:C$3094,"=18") -> 41433.60073
A19: Horizontal Grid Lines | B19: Yes | C19: Possible Standard: EC-201 Possible Detail: 570-4 | AH19: 0.003 | AI19: 315 | AJ19: 4 | AL19: 19 | AM19: =SUMIFS(P$37:P$3094,C$37:C$3094,"=19") -> 59178.88319
T20: =C19 -> Possible Standard: EC-201 Possible Detail: 570-4 | AH20: 0.004 | AI20: 315 | AJ20: 5 | AL20: 20 | AM20: =SUMIFS(P$37:P$3094,C$37:C$3094,"=20") -> 19852.80625
AH21: 0.005 | AI21: 315 | AL21: 21 | AM21: =SUMIFS(P$37:P$3094,C$37:C$3094,"=21") -> 22388.14371
AH22: 0.006 | AI22: 155 | AL22: 22 | AM22: =SUMIFS(P$37:P$3094,C$37:C$3094,"=22") -> 81186.0388
AH23: 0.007 | AI23: 155 | AL23: 23 | AM23: =SUMIFS(P$37:P$3094,C$37:C$3094,"=23") -> 9305.754948
AH24: 0.008 | AI24: 155 | AL24: 24 | AM24: =SUMIFS(P$37:P$3094,C$37:C$3094,"=24") -> 28189.14136
AH25: 0.009 | AI25: 155 | AL25: 25 | AM25: =SUMIFS(P$37:P$3094,C$37:C$3094,"=25") -> 4288.743591
AH26: 0.01 | AI26: 155 | AL26: 26 | AM26: =SUMIFS(P$37:P$3094,C$37:C$3094,"=26") -> 17472.46188
AH27: 0.011 | AI27: 100 | AL27: 27 | AM27: =SUMIFS(P$37:P$3094,C$37:C$3094,"=27") -> 164944.2173
AH28: 0.012 | AI28: 100 | AL28: 28 | AM28: =SUMIFS(P$37:P$3094,C$37:C$3094,"=28") -> 5179.797288
AH29: 0.013 | AI29: 100 | AL29: 29 | AM29: =SUMIFS(P$37:P$3094,C$37:C$3094,"=29") -> 78983.0277
AH30: 0.014 | AI30: 100 | AL30: 30 | AM30: =SUMIFS(P$37:P$3094,C$37:C$3094,"=30") -> 7110.449004
C31: * The functional height used in the volume equation is 85% of effective height. Effective height is 1.58 feet as shown on EC-201. | AH31: 0.015 | AI31: 100 | AL31: 31 | AM31: =SUMIFS(P$37:P$3094,C$37:C$3094,"=31") -> 4944.351957
C32: * Volume equation: [0.5*Spacing*(0.5*H2*FS+DW*H+0.5*H2*BS)] | T32: =C31 -> * The functional height used in the volume equation is 85% of effective height. Effective height is 1.58 feet as shown on EC-201. | AH32: 0.016 | AI32: 75 | AL32: 32 | AM32: =SUMIFS(P$37:P$3094,C$37:C$3094,"=32") -> 12343.3848
C33: ="This Data Entry Sheet fills Tab "&T15&" effective "&TEXT(B17,"mm-dd-yy") -> This Data Entry Sheet fills Tab 100-18 effective 10-18-16 | T33: * Volume equation: [0.5*Spacing*(0.5*H2*FS+DW*H+0.5*H2*BS)] | AH33: 0.017 | AI33: 75 | AL33: 33 | AM33: =SUMIFS(P$37:P$3094,C$37:C$3094,"=33") -> 19093.67336
C34: Basin No. | D34: Type | E34: Location | G34: Bid Items | J34: Stormwater Storage Volume Summary | Q34: Subtotal | R34: Remarks | T34: =C34 -> Basin No. | U34: =D34 -> Type | V34: =E34 -> Location | X34: =G34 -> Bid Items | AA34: =J34 -> Stormwater Storage Volume Summary | AF34: =R34 -> Remarks | AH34: 0.018 | AI34: 75 | AL34: 34 | AM34: =SUMIFS(P$37:P$3094,C$37:C$3094,"=34") -> 83662.245
E35: Station | F35: Side | G35: Installation | H35: Maintenance | I35: Removal | J35: Foreslope | K35: Backslope | L35: Ditch Width | M35: Avg. % Slope | N35: Spacing | O35: Down Stream | P35: Volume* | V35: =E35 -> Station | W35: =F35 -> Side | X35: =G35 -> Installation | Y35: =H35 -> Maintenance | Z35: =I35 -> Removal | AA35: =J35 -> Foreslope | AB35: =K35 -> Backslope | AC35: =L35 -> Ditch Width | AD35: =M35 -> Avg. % Slope | AE35: =P35 -> Volume* | AH35: 0.019 | AI35: 75 | AL35: 35 | AM35: =SUMIFS(P$37:P$3094,C$37:C$3094,"=35") -> 4238.015963
G36: LF | H36: LF | I36: LF | J36: FS:1 | K36: BS:1 | L36: FT | P36: CF | X36: =G36 -> LF | Y36: =H36 -> LF | Z36: =I36 -> LF | AA36: =J36 -> FS:1 | AB36: =K36 -> BS:1 | AC36: =L36 -> FT | AE36: =P36 -> CF | AH36: 0.02 | AI36: 75 | AL36: 36 | AM36: =SUMIFS(P$37:P$3094,C$37:C$3094,"=36") -> 29129.46619
N37: =IF(M37<>"",IF(M37<0.06,VLOOKUP(M37,$AH$16:$AI$75,2,TRUE),"XX"),"") ->  | O37: =IF(M37<>"",((0.5*1.343^2*J37)+(1.343*L37)+(0.5*1.343^2*K37)),"") ->  | P37: =IF(C37<>"",(0.5*N37*O37),"") ->  | AH37: 0.021 | AI37: 60 | AL37: 37 | AM37: =SUMIFS(P$37:P$3094,C$37:C$3094,"=37") -> 17267.18899
C38: 1 | D38: 1 | E38: =78050+N38 -> 78365 | F38: Lt. | G38: =(2*J38)+(2*K38)+L38 -> 22.98734177 | J38: 3.5 | K38: =(185.54-171.35)/(908.76-904.02) -> 2.993670886 | L38: 10 | M38: 0.005 | N38: =IF(M38<>"",IF(M38<0.06,VLOOKUP(M38,$AH$16:$AI$75,2,TRUE),"XX"),"") -> 315 | O38: =IF(M38<>"",((0.5*1.343^2*J38)+(1.343*L38)+(0.5*1.343^2*K38)),"") -> 19.2861515 | P38: 3037.568861 | AH38: 0.022 | AI38: 60 | AL38: 38 | AM38: =SUMIFS(P$37:P$3094,C$37:C$3094,"=38") -> 20782.82773
C39: 1 | D39: 1 | E39: =E38+N39 -> 78375 | F39: Lt. | G39: 22.98734177 | J39: 3.5 | K39: 2.993670886 | L39: 10 | M39: 0.005 | N39: 10 | O39: 19.2861515 | P39: 96.4307575 | AH39: 0.023 | AI39: 60 | AL39: 39 | AM39: =SUMIFS(P$37:P$3094,C$37:C$3094,"=39") -> 42507.62126
C40: 1 | D40: 1 | E40: 78410 | F40: Lt. | G40: 22.98734177 | J40: 3.5 | K40: 2.993670886 | L40: 10 | M40: 0.047 | N40: 35 | O40: 19.2861515 | P40: 337.5076512 | AH40: 0.024 | AI40: 60 | AL40: 40 | AM40: =SUMIFS(P$37:P$3094,C$37:C$3094,"=40") -> 14705.9858
C41: 1 | D41: 1 | E41: 78445 | F41: Lt. | G41: 22.98734177 | J41: 3.5 | K41: 2.993670886 | L41: 10 | M41: 0.047 | N41: 35 | O41: 19.2861515 | P41: 337.5076512 | AH41: 0.025 | AI41: 60 | AL41: 41 | AM41: =SUMIFS(P$37:P$3094,C$37:C$3094,"=41") -> 85469.60876
C42: 1 | D42: 4 | E42: 78480 | F42: Lt. | G42: =(2*J42)+(2*K42)+L42+N42 -> 57.98734177 | J42: 3.5 | K42: 2.993670886 | L42: 10 | M42: 0.047 | N42: 35 | O42: 19.2861515 | P42: 337.5076512 | AH42: 0.026 | AI42: 50 | AL42: 42 | AM42: =SUMIFS(P$37:P$3094,C$37:C$3094,"=42") -> 124792.7883
C43: 1 | D43: 4 | E43: 78515 | F43: Lt. | G43: =(2*J43)+(2*K43)+L43+N43 -> 57.98734177 | J43: 3.5 | K43: 2.993670886 | L43: 10 | M43: 0.047 | N43: 35 | O43: 19.2861515 | P43: 337.5076512 | AH43: 0.027 | AI43: 50
C44: 1 | D44: 4 | E44: 78550 | F44: Lt. | G44: =(2*J44)+(2*K44)+L44+N44 -> 57.98734177 | J44: 3.5 | K44: 2.993670886 | L44: 10 | M44: 0.047 | N44: 35 | O44: 19.2861515 | P44: 337.5076512 | AH44: 0.028 | AI44: 50
C45: 1 | D45: 4 | E45: 78610 | F45: Lt. | G45: =(2*J45)+(2*K45)+L45+N45 -> 82.98734177 | J45: 3.5 | K45: 2.993670886 | L45: 10 | M45: 0.023 | N45: 60 | O45: 19.2861515 | P45: 578.584545 | AH45: 0.029 | AI45: 50
C46: 1 | D46: 4 | E46: 78670 | F46: Lt. | G46: =(2*J46)+(2*K46)+L46+N46 -> 82.98734177 | J46: 3.5 | K46: 2.993670886 | L46: 10 | M46: 0.023 | N46: 60 | O46: 19.2861515 | P46: 578.584545 | AH46: 0.03 | AI46: 50
C47: 1 | D47: 4 | E47: 78700 | F47: Lt. | G47: =(2*J47)+(2*K47)+L47+N47 -> 52.98734177 | J47: 3.5 | K47: 2.993670886 | L47: 10 | M47: 0.023 | N47: 30 | O47: 19.2861515 | P47: 289.2922725 | AH47: 0.031 | AI47: 45
C48: 1 | D48: 1 | E48: 79100 | F48: Lt. | G48: =(2*J48)+(2*K48)+L48 -> 22.98734177 | J48: 3.5 | K48: 2.993670886 | L48: 10 | M48: 0.033 | N48: 45 | O48: 19.2861515 | P48: 433.9384087 | AH48: 0.032 | AI48: 45
C49: 1 | D49: 1 | E49: =E48+N48 -> 79145 | F49: Lt. | G49: 23 | J49: 3.5 | K49: =(154.63-142.15)/(909.84-905.68) -> 3 | L49: 10 | M49: 0.033 | N49: 45 | O49: 19.29185925 | P49: 434.0668331 | AH49: 0.033 | AI49: 45
C50: 1 | D50: 1 | E50: 79190 | F50: Lt. | G50: 22.99249244 | J50: =(128.31-95.67)/(916.65-907.33) -> 3.502145923 | K50: =(148.46-138.31)/(910.71-907.32) -> 2.994100295 | L50: 10 | M50: 0.033 | N50: 45 | O50: 19.288474 | P50: 433.9906649 | AH50: 0.034 | AI50: 45
C51: 1 | D51: 1 | E51: 79235 | F51: Lt. | G51: 22.99249244 | J51: =(128.31-95.67)/(916.65-907.33) -> 3.502145923 | K51: 2.994100295 | L51: 10 | M51: 0.033 | N51: 45 | O51: 19.288474 | P51: 433.9906649 | AH51: 0.035 | AI51: 45
C52: 1 | D52: 1 | E52: 79280 | F52: Lt. | G52: 22.99249244 | J52: =(128.31-95.67)/(916.65-907.33) -> 3.502145923 | K52: 2.994100295 | L52: 10 | M52: 0.033 | N52: 45 | O52: 19.288474 | P52: 433.9906649 | AH52: 0.036 | AI52: 40
C53: 1 | D53: 1 | E53: 79325 | F53: Lt. | G53: 22.98317546 | J53: =(123.52-95.68)/(919.41-911.45) -> 3.497487437 | K53: 2.994100295 | L53: 10 | M53: 0.033 | N53: 45 | O53: 19.28427286 | P53: 433.8961394 | AH53: 0.037 | AI53: 40
C54: 1 | D54: 1 | E54: 79370 | F54: Lt. | G54: 22.98317546 | J54: 3.497487437 | K54: 2.994100295 | L54: 10 | M54: 0.033 | N54: 45 | O54: 19.28427286 | P54: 433.8961394 | AH54: 0.038 | AI54: 40
C55: 1 | D55: 1 | E55: 79415 | F55: Lt. | G55: 22.98317546 | J55: 3.497487437 | K55: 2.994100295 | L55: 10 | M55: 0.033 | N55: 45 | O55: 19.28427286 | P55: 433.8961394 | AH55: 0.039 | AI55: 40
C56: 1 | D56: 1 | E56: 79460 | F56: Lt. | G56: 22.98317546 | J56: 3.497487437 | K56: 2.994100295 | L56: 10 | M56: 0.033 | N56: 45 | O56: 19.28427286 | P56: 433.8961394 | AH56: 0.04 | AI56: 40
C57: 1 | D57: 1 | E57: 79505 | F57: Lt. | G57: 22.98317546 | J57: 3.497487437 | K57: 2.994100295 | L57: 10 | M57: 0.033 | N57: 45 | O57: 19.28427286 | P57: 433.8961394 | AH57: 0.041 | AI57: 35
C58: 1 | D58: 1 | E58: 79550 | F58: Lt. | G58: 22.98317546 | J58: 3.497487437 | K58: 2.994100295 | L58: 10 | M58: 0.033 | N58: 45 | O58: 19.28427286 | P58: 433.8961394 | AH58: 0.042 | AI58: 35
C59: 1 | D59: 1 | E59: 79595 | F59: Lt. | G59: 22.98317546 | J59: 3.497487437 | K59: 2.994100295 | L59: 10 | M59: 0.033 | N59: 45 | O59: 19.28427286 | P59: 433.8961394 | AH59: 0.043 | AI59: 35
C60: 1 | D60: 1 | E60: 79640 | F60: Lt. | G60: 22.98317546 | J60: 3.497487437 | K60: 2.994100295 | L60: 10 | M60: 0.033 | N60: 45 | O60: 19.28427286 | P60: 433.8961394 | AH60: 0.044 | AI60: 35
C61: 1 | D61: 1 | E61: 79685 | F61: Lt. | G61: 22.98317546 | J61: 3.497487437 | K61: 2.994100295 | L61: 10 | M61: 0.033 | N61: 45 | O61: 19.28427286 | P61: 433.8961394 | AH61: 0.045 | AI61: 35
C62: 1 | D62: 1 | E62: 79730 | F62: Lt. | G62: 22.98317546 | J62: 3.497487437 | K62: 2.994100295 | L62: 10 | M62: 0.033 | N62: 45 | O62: 19.28427286 | P62: 433.8961394 | AH62: 0.046 | AI62: 35
C63: 1 | D63: 1 | E63: 79775 | F63: Lt. | G63: 22.98317546 | J63: 3.497487437 | K63: 2.994100295 | L63: 10 | M63: 0.033 | N63: 45 | O63: 19.28427286 | P63: 433.8961394 | AH63: 0.047 | AI63: 35
C64: 1 | D64: 1 | E64: 79820 | F64: Lt. | G64: 22.98317546 | J64: 3.497487437 | K64: 2.994100295 | L64: 10 | M64: 0.033 | N64: 45 | O64: 19.28427286 | P64: 433.8961394 | AH64: 0.048 | AI64: 35
C65: 1 | D65: 1 | E65: 79865 | F65: Lt. | G65: 22.98317546 | J65: 3.497487437 | K65: 2.994100295 | L65: 10 | M65: 0.033 | N65: 45 | O65: 19.28427286 | P65: 433.8961394 | AH65: 0.049 | AI65: 35
C66: 1 | D66: 1 | E66: 79910 | F66: Lt. | G66: 22.98317546 | J66: 3.497487437 | K66: 2.994100295 | L66: 10 | M66: 0.033 | N66: 45 | O66: 19.28427286 | P66: 433.8961394 | AH66: 0.05 | AI66: 35
C67: 1 | D67: 1 | E67: 79955 | F67: Lt. | G67: 22.98317546 | J67: 3.497487437 | K67: 2.994100295 | L67: 10 | M67: 0.033 | N67: 45 | O67: 19.28427286 | P67: 433.8961394 | AH67: 0.051 | AI67: 30
C68: 1 | D68: 1 | E68: 80000 | F68: Lt. | G68: 22.98317546 | J68: 3.497487437 | K68: 2.994100295 | L68: 10 | M68: 0.033 | N68: 45 | O68: 19.28427286 | P68: 433.8961394 | AH68: 0.052 | AI68: 30
C69: 1 | D69: 1 | E69: 80045 | F69: Lt. | G69: 22.98317546 | J69: 3.497487437 | K69: 2.994100295 | L69: 10 | M69: 0.033 | N69: 5 | O69: 19.28427286 | P69: 48.21068215 | AH69: 0.053 | AI69: 30
C70: 1 | D70: 1 | E70: 80050 | F70: Lt. | G70: 22.98820059 | J70: 3.5 | K70: 2.994100295 | L70: 10 | M70: 0.013 | N70: =IF(M70<>"",IF(M70<0.06,VLOOKUP(M70,$AH$16:$AI$75,2,TRUE),"XX"),"") -> 100 | O70: 19.28653875 | P70: 964.3269376 | AH70: 0.054 | AI70: 30
C71: 1 | D71: 1 | E71: 80150 | F71: Lt. | G71: 22.98820059 | J71: 3.5 | K71: 2.994100295 | L71: 10 | M71: 0.013 | N71: =IF(M71<>"",IF(M71<0.06,VLOOKUP(M71,$AH$16:$AI$75,2,TRUE),"XX"),"") -> 100 | O71: 19.28653875 | P71: 964.3269376 | AH71: 0.055 | AI71: 30
C72: 1 | D72: 4 | E72: 80250 | F72: Lt. | G72: =(2*J72)+(2*K72)+L72+N72 -> 122.9882006 | J72: 3.5 | K72: 2.994100295 | L72: 10 | M72: 0.013 | N72: =IF(M72<>"",IF(M72<0.06,VLOOKUP(M72,$AH$16:$AI$75,2,TRUE),"XX"),"") -> 100 | O72: 19.28653875 | P72: 964.3269376 | AH72: 0.056 | AI72: 25
C73: 1 | D73: 1 | E73: 80350 | F73: Lt. | G73: 22.98820059 | J73: 3.5 | K73: 2.994100295 | L73: 10 | M73: 0.013 | N73: 20 | O73: 19.28653875 | P73: 192.8653875 | AH73: 0.057 | AI73: 25
C74: 1 | D74: 4 | E74: 80370 | F74: Lt. | G74: =(2*J74)+(2*K74)+L74+N74 -> 337.9882006 | J74: 3.5 | K74: 2.994100295 | L74: 10 | M74: 0.004 | N74: =IF(M74<>"",IF(M74<0.06,VLOOKUP(M74,$AH$16:$AI$75,2,TRUE),"XX"),"") -> 315 | O74: 19.28653875 | P74: 3037.629853 | AH74: 0.058 | AI74: 25
C75: 1 | D75: 1 | E75: 80685 | F75: Lt. | G75: 22.98820059 | J75: 3.5 | K75: 2.994100295 | L75: 10 | M75: 0.004 | N75: =315-50 -> 265 | O75: 19.28653875 | P75: 2555.466385 | AH75: 0.059 | AI75: 25
C76: 2 | D76: 1 | E76: =80950+N76 -> 81050 | F76: Lt. | G76: 22.98820059 | J76: 3.5 | K76: 2.994100295 | L76: 10 | M76: 0.013 | N76: =IF(M76<>"",IF(M76<0.06,VLOOKUP(M76,$AH$16:$AI$75,2,TRUE),"XX"),"") -> 100 | O76: 19.28653875 | P76: 964.3269376
C77: 2 | D77: 1 | E77: =E76+N77 -> 81150 | F77: Lt. | G77: 22.98820059 | J77: 3.5 | K77: 2.994100295 | L77: 10 | M77: 0.013 | N77: 100 | O77: 19.28653875 | P77: 964.3269376
C78: 2 | D78: 1 | E78: 81250 | F78: Lt. | G78: 22.98820059 | J78: 3.5 | K78: 2.994100295 | L78: 10 | M78: 0.013 | N78: 100 | O78: 19.28653875 | P78: 964.3269376
C79: 2 | D79: 1 | E79: 81350 | F79: Lt. | G79: 22.98820059 | J79: 3.5 | K79: 2.994100295 | L79: 10 | M79: 0.013 | N79: 100 | O79: 19.28653875 | P79: 964.3269376
C80: 2 | D80: 1 | E80: 81450 | F80: Lt. | G80: 22.98820059 | J80: 3.5 | K80: 2.994100295 | L80: 10 | M80: 0.013 | N80: 100 | O80: 19.28653875 | P80: 964.3269376
C81: 2 | D81: 1 | E81: 81550 | F81: Lt. | G81: 22.98820059 | J81: 3.5 | K81: 2.994100295 | L81: 10 | M81: 0.013 | N81: 100 | O81: 19.28653875 | P81: 964.3269376
C82: 2 | D82: 1 | E82: 81625 | F82: Lt. | G82: 22.98820059 | J82: 3.5 | K82: 2.994100295 | L82: 10 | M82: 0.013 | N82: 75 | O82: 19.28653875 | P82: 723.2452032
C83: 2 | D83: 1 | E83: 81765 | F83: Lt. | G83: 22.98820059 | J83: 3.5 | K83: 2.994100295 | L83: 10 | M83: 0.014 | N83: =IF(M83<>"",IF(M83<0.06,VLOOKUP(M83,$AH$16:$AI$75,2,TRUE),"XX"),"") -> 100 | O83: 19.28653875 | P83: 964.3269376
C84: 2 | D84: 1 | E84: =E83+N83 -> 81865 | F84: Lt. | G84: 22.98820059 | J84: 3.5 | K84: 2.994100295 | L84: 10 | M84: 0.014 | N84: 100 | O84: 19.28653875 | P84: 964.3269376
C85: 2 | D85: 1 | E85: 81965 | F85: Lt. | G85: 22.98820059 | J85: 3.5 | K85: 2.994100295 | L85: 10 | M85: 0.014 | N85: 100 | O85: 19.28653875 | P85: 964.3269376
C86: 2 | D86: 1 | E86: 82065 | F86: Lt. | G86: 22.98820059 | J86: 3.5 | K86: 2.994100295 | L86: 10 | M86: 0.014 | N86: 100 | O86: 19.28653875 | P86: 964.3269376
C87: 2 | D87: 1 | E87: 82165 | F87: Lt. | G87: 22.98820059 | J87: 3.5 | K87: 2.994100295 | L87: 10 | M87: 0.014 | N87: 100 | O87: 19.28653875 | P87: 964.3269376
C88: 2 | D88: 1 | E88: 82265 | F88: Lt. | G88: 22.98820059 | J88: 3.5 | K88: 2.994100295 | L88: 10 | M88: 0.014 | N88: 100 | O88: 19.28653875 | P88: 964.3269376
C89: 2 | D89: 1 | E89: 82365 | F89: Lt. | G89: 22.98820059 | J89: 3.5 | K89: 2.994100295 | L89: 10 | M89: 0.014 | N89: 100 | O89: 19.28653875 | P89: 964.3269376
C90: 2 | D90: 1 | E90: 82465 | F90: Lt. | G90: 22.98820059 | J90: 3.5 | K90: 2.994100295 | L90: 10 | M90: 0.014 | N90: 100 | O90: 19.28653875 | P90: 964.3269376
C91: 2 | D91: 1 | E91: 82565 | F91: Lt. | G91: 22.98820059 | J91: 3.5 | K91: 2.994100295 | L91: 10 | M91: 0.014 | N91: 10 | O91: 19.28653875 | P91: 96.43269376
C92: 4 | D92: 1 | E92: =82575+N92 -> 82890 | F92: Lt. | G92: 22.98820059 | J92: 3.5 | K92: 2.994100295 | L92: 10 | M92: 0.005 | N92: =IF(M92<>"",IF(M92<0.06,VLOOKUP(M92,$AH$16:$AI$75,2,TRUE),"XX"),"") -> 315 | O92: 19.28653875 | P92: 3037.629853
C93: 4 | D93: 1 | E93: =E92+N93 -> 83205 | F93: Lt. | G93: 22.98820059 | J93: 3.5 | K93: 2.994100295 | L93: 10 | M93: 0.005 | N93: =IF(M93<>"",IF(M93<0.06,VLOOKUP(M93,$AH$16:$AI$75,2,TRUE),"XX"),"") -> 315 | O93: 19.28653875 | P93: 3037.629853
C94: 4 | D94: 4 | E94: 83350 | F94: Lt. | G94: =(2*J94)+(2*K94)+L94+N94 -> 167.9882006 | J94: 3.5 | K94: 2.994100295 | L94: 10 | M94: 0.005 | N94: 145 | O94: 19.28653875 | P94: 1398.274059
C95: 4 | D95: 1 | E95: 83450 | F95: Lt. | G95: 22.98820059 | J95: 3.5 | K95: 2.994100295 | L95: 10 | M95: 0.013 | N95: =IF(M95<>"",IF(M95<0.06,VLOOKUP(M95,$AH$16:$AI$75,2,TRUE),"XX"),"") -> 100 | O95: 19.28653875 | P95: 964.3269376
C96: 4 | D96: 1 | E96: 83550 | F96: Lt. | G96: 22.98820059 | J96: 3.5 | K96: 2.994100295 | L96: 10 | M96: 0.013 | N96: 100 | O96: 19.28653875 | P96: 964.3269376
C97: 4 | D97: 1 | E97: 83650 | F97: Lt. | G97: 22.98820059 | J97: 3.5 | K97: 2.994100295 | L97: 10 | M97: 0.013 | N97: 100 | O97: 19.28653875 | P97: 964.3269376
C98: 4 | D98: 1 | E98: 83750 | F98: Lt. | G98: 22.98820059 | J98: 3.5 | K98: 2.994100295 | L98: 10 | M98: 0.013 | N98: 100 | O98: 19.28653875 | P98: 964.3269376
C99: 4 | D99: 1 | E99: 83825 | F99: Lt. | G99: 22.98820059 | J99: 3.5 | K99: 2.994100295 | L99: 10 | M99: 0.02 | N99: 75 | O99: 19.28653875 | P99: 723.2452032
C100: 4 | D100: 1 | E100: 83900 | F100: Lt. | G100: 22.98820059 | J100: 3.5 | K100: 2.994100295 | L100: 10 | M100: 0.02 | N100: 75 | O100: 19.28653875 | P100: =IF(C100<>"",(0.5*N100*O100),"") -> 723.2452032
C101: 4 | D101: 4 | E101: 83975 | F101: Lt. | G101: =(2*J101)+(2*K101)+L101+N101 -> 97.98820059 | J101: 3.5 | K101: 2.994100295 | L101: 10 | M101: 0.02 | N101: 75 | O101: =IF(M101<>"",((0.5*1.343^2*J101)+(1.343*L101)+(0.5*1.343^2*K101)),"") -> 19.28653875 | P101: 723.2452032
C102: 4 | D102: 4 | E102: 84025 | F102: Lt. | G102: =(2*J102)+(2*K102)+L102+N102 -> 72.98820059 | J102: 3.5 | K102: 2.994100295 | L102: 10 | M102: 0.02 | N102: 50 | O102: 19.28653875 | P102: 482.1634688
C103: 4 | D103: 4 | E103: 84070 | F103: Lt. | G103: =(2*J103)+(2*K103)+L103+N103 -> 67.98820059 | J103: 3.5 | K103: 2.994100295 | L103: 10 | M103: 0.034 | N103: =IF(M103<>"",IF(M103<0.06,VLOOKUP(M103,$AH$16:$AI$75,2,TRUE),"XX"),"") -> 45 | O103: 19.28653875 | P103: 433.9471219
C104: 4 | D104: 4 | E104: 84115 | F104: Lt. | G104: =(2*J104)+(2*K104)+L104+N104 -> 67.98820059 | J104: 3.5 | K104: 2.994100295 | L104: 10 | M104: 0.034 | N104: =IF(M104<>"",IF(M104<0.06,VLOOKUP(M104,$AH$16:$AI$75,2,TRUE),"XX"),"") -> 45 | O104: 19.28653875 | P104: 433.9471219
C105: 4 | D105: 1 | E105: 84125 | F105: Lt. | G105: 22.98820059 | J105: 3.5 | K105: 2.994100295 | L105: 10 | M105: 0.034 | N105: 10 | O105: 19.28653875 | P105: 96.43269376
C106: 4 | D106: 4 | E106: 84260 | F106: Lt. | G106: =(2*J106)+(2*K106)+L106+N106 -> 157.9882006 | J106: 3.5 | K106: 2.994100295 | L106: 10 | M106: 0.005 | N106: 135 | O106: 19.28653875 | P106: 1301.841366
C107: 4 | D107: 1 | E107: 84390 | F107: Lt. | G107: 22.98820059 | J107: 3.5 | K107: 2.994100295 | L107: 10 | M107: 0.012 | N107: =IF(M107<>"",IF(M107<0.06,VLOOKUP(M107,$AH$16:$AI$75,2,TRUE),"XX"),"") -> 100 | O107: 19.28653875 | P107: 964.3269376
C108: 4 | D108: 1 | E108: =E107+N107 -> 84490 | F108: Lt. | G108: 22.98820059 | J108: 3.5 | K108: 2.994100295 | L108: 10 | M108: 0.012 | N108: =IF(M108<>"",IF(M108<0.06,VLOOKUP(M108,$AH$16:$AI$75,2,TRUE),"XX"),"") -> 100 | O108: 19.28653875 | P108: 964.3269376
C109: 4 | D109: 1 | E109: =E108+N108 -> 84590 | F109: Lt. | G109: 22.98820059 | J109: 3.5 | K109: 2.994100295 | L109: 10 | M109: 0.012 | N109: =IF(M109<>"",IF(M109<0.06,VLOOKUP(M109,$AH$16:$AI$75,2,TRUE),"XX"),"") -> 100 | O109: 19.28653875 | P109: 964.3269376
C110: 4 | D110: 1 | E110: =E109+N109 -> 84690 | F110: Lt. | G110: 22.98820059 | J110: 3.5 | K110: 2.994100295 | L110: 10 | M110: 0.012 | N110: =IF(M110<>"",IF(M110<0.06,VLOOKUP(M110,$AH$16:$AI$75,2,TRUE),"XX"),"") -> 100 | O110: 19.28653875 | P110: 964.3269376
C111: 4 | D111: 1 | E111: =E110+N110 -> 84790 | F111: Lt. | G111: 22.98820059 | J111: 3.5 | K111: 2.994100295 | L111: 10 | M111: 0.012 | N111: =IF(M111<>"",IF(M111<0.06,VLOOKUP(M111,$AH$16:$AI$75,2,TRUE),"XX"),"") -> 100 | O111: 19.28653875 | P111: 964.3269376
C112: 4 | D112: 1 | E112: =E111+N111 -> 84890 | F112: Lt. | G112: =(2*J112)+(2*K112)+L112 -> 22.98820059 | J112: 3.5 | K112: 2.994100295 | L112: 10 | M112: 0.012 | N112: 10 | O112: 19.28653875 | P112: 96.43269376
C113: 6 | D113: 1 | E113: =84900+N113 -> 85000 | F113: Lt. | G113: 22.98820059 | J113: 3.5 | K113: 2.994100295 | L113: 10 | M113: 0.012 | N113: =IF(M113<>"",IF(M113<0.06,VLOOKUP(M113,$AH$16:$AI$75,2,TRUE),"XX"),"") -> 100 | O113: 19.28653875 | P113: 964.3269376
C114: 6 | D114: 1 | E114: =E113+N114 -> 85100 | F114: Lt. | G114: 22.98820059 | J114: 3.5 | K114: =(148.46-138.31)/(910.71-907.32) -> 2.994100295 | L114: 10 | M114: 0.013 | N114: =IF(M114<>"",IF(M114<0.06,VLOOKUP(M114,$AH$16:$AI$75,2,TRUE),"XX"),"") -> 100 | O114: 19.28653875 | P114: 964.3269376
C115: 6 | D115: 1 | E115: 85200 | F115: Lt. | G115: 22.98820059 | J115: 3.5 | K115: 2.994100295 | L115: 10 | M115: 0.014 | N115: =IF(M115<>"",IF(M115<0.06,VLOOKUP(M115,$AH$16:$AI$75,2,TRUE),"XX"),"") -> 100 | O115: 19.28653875 | P115: 964.3269376
C116: 6 | D116: 1 | E116: 85300 | F116: Lt. | G116: 22.98820059 | J116: 3.5 | K116: 2.994100295 | L116: 10 | M116: 0.014 | N116: =IF(M116<>"",IF(M116<0.06,VLOOKUP(M116,$AH$16:$AI$75,2,TRUE),"XX"),"") -> 100 | O116: 19.28653875 | P116: 964.3269376
C117: 6 | D117: 4 | E117: 85375 | F117: Lt. | G117: =(2*J117)+(2*K117)+L117+N117 -> 97.98820059 | J117: 3.5 | K117: 2.994100295 | L117: 10 | M117: 0.015 | N117: 75 | O117: 19.28653875 | P117: 723.2452032
C118: 6 | D118: 4 | E118: 85410 | F118: Lt. | G118: =(2*J118)+(2*K118)+L118+N118 -> 57.98820059 | J118: 3.5 | K118: 2.994100295 | L118: 10 | M118: 0.047 | N118: =IF(M118<>"",IF(M118<0.06,VLOOKUP(M118,$AH$16:$AI$75,2,TRUE),"XX"),"") -> 35 | O118: 19.28653875 | P118: 337.5144282
C119: 6 | D119: 4 | E119: 85445 | F119: Lt. | G119: =(2*J119)+(2*K119)+L119+N119 -> 57.98820059 | J119: 3.5 | K119: 2.994100295 | L119: 10 | M119: 0.047 | N119: =IF(M119<>"",IF(M119<0.06,VLOOKUP(M119,$AH$16:$AI$75,2,TRUE),"XX"),"") -> 35 | O119: 19.28653875 | P119: 337.5144282
C120: 6 | D120: 4 | E120: 85475 | F120: Lt. | G120: =(2*J120)+(2*K120)+L120+N120 -> 52.98820059 | J120: 3.5 | K120: 2.994100295 | L120: 10 | M120: 0.047 | N120: 30 | O120: 19.28653875 | P120: 289.2980813
C121: 6 | D121: 1 | E121: 85550 | F121: Lt. | G121: 22.98820059 | J121: 3.5 | K121: 2.994100295 | L121: 10 | M121: 0.02 | N121: =IF(M121<>"",IF(M121<0.06,VLOOKUP(M121,$AH$16:$AI$75,2,TRUE),"XX"),"") -> 75 | O121: 19.28653875 | P121: 723.2452032
C122: 6 | D122: 1 | E122: 85625 | F122: Lt. | G122: 22.98820059 | J122: 3.5 | K122: 2.994100295 | L122: 10 | M122: 0.02 | N122: 75 | O122: 19.28653875 | P122: 723.2452032
C123: 6 | D123: 1 | E123: 85700 | F123: Lt. | G123: 22.98820059 | J123: 3.5 | K123: 2.994100295 | L123: 10 | M123: 0.02 | N123: 75 | O123: 19.28653875 | P123: 723.2452032
C124: 6 | D124: 1 | E124: 85775 | F124: Lt. | G124: 22.98820059 | J124: 3.5 | K124: 2.994100295 | L124: 10 | M124: 0.02 | N124: 75 | O124: 19.28653875 | P124: 723.2452032
C125: 6 | D125: 1 | E125: 85930 | F125: Lt. | G125: 22.98820059 | J125: 3.5 | K125: 2.994100295 | L125: 10 | M125: 0.007 | N125: 155 | O125: 19.28653875 | P125: 1494.706753
C126: 6 | D126: 1 | E126: 86085 | F126: Lt. | G126: 22.98820059 | J126: 3.5 | K126: 2.994100295 | L126: 10 | M126: 0.007 | N126: 155 | O126: 19.28653875 | P126: 1494.706753
C127: 6 | D127: 1 | E127: 86210 | F127: Lt. | G127: 22.98820059 | J127: 3.5 | K127: 2.994100295 | L127: 10 | M127: 0.007 | N127: 125 | O127: 19.28653875 | P127: 1205.408672
C128: 6 | D128: 1 | E128: 86285 | F128: Lt. | G128: 22.98820059 | J128: 3.5 | K128: 2.994100295 | L128: 10 | M128: 0.017 | N128: =IF(M128<>"",IF(M128<0.06,VLOOKUP(M128,$AH$16:$AI$75,2,TRUE),"XX"),"") -> 75 | O128: 19.28653875 | P128: 723.2452032
C129: 6 | D129: 1 | E129: 86360 | F129: Lt. | G129: 22.98820059 | J129: 3.5 | K129: 2.994100295 | L129: 10 | M129: 0.017 | N129: =IF(M129<>"",IF(M129<0.06,VLOOKUP(M129,$AH$16:$AI$75,2,TRUE),"XX"),"") -> 75 | O129: 19.28653875 | P129: 723.2452032
C130: 6 | D130: 1 | E130: 86435 | F130: Lt. | G130: 22.98820059 | J130: 3.5 | K130: 2.994100295 | L130: 10 | M130: 0.017 | N130: =IF(M130<>"",IF(M130<0.06,VLOOKUP(M130,$AH$16:$AI$75,2,TRUE),"XX"),"") -> 75 | O130: 19.28653875 | P130: 723.2452032
C131: 6 | D131: 1 | E131: 86500 | F131: Lt. | G131: 22.98820059 | J131: 3.5 | K131: 2.994100295 | L131: 10 | M131: 0.017 | N131: 65 | O131: 19.28653875 | P131: 626.8125094
C132: 6 | D132: 1 | E132: 86535 | F132: Lt. | G132: 22.98820059 | J132: 3.5 | K132: 2.994100295 | L132: 10 | M132: 0.046 | N132: =IF(M132<>"",IF(M132<0.06,VLOOKUP(M132,$AH$16:$AI$75,2,TRUE),"XX"),"") -> 35 | O132: 19.28653875 | P132: 337.5144282
C133: 6 | D133: 1 | E133: 86570 | F133: Lt. | G133: 22.98820059 | J133: 3.5 | K133: 2.994100295 | L133: 10 | M133: 0.046 | N133: 35 | O133: 19.28653875 | P133: 337.5144282
C134: 6 | D134: 1 | E134: 86605 | F134: Lt. | G134: 22.98820059 | J134: 3.5 | K134: 2.994100295 | L134: 10 | M134: 0.046 | N134: 35 | O134: 19.28653875 | P134: 337.5144282
C135: 6 | D135: 1 | E135: 86640 | F135: Lt. | G135: 22.98820059 | J135: 3.5 | K135: 2.994100295 | L135: 10 | M135: 0.046 | N135: 35 | O135: 19.28653875 | P135: 337.5144282
C136: 6 | D136: 1 | E136: 86675 | F136: Lt. | G136: 22.98820059 | J136: 3.5 | K136: 2.994100295 | L136: 10 | M136: 0.046 | N136: 35 | O136: 19.28653875 | P136: 337.5144282
C137: 6 | D137: 1 | E137: 86710 | F137: Lt. | G137: 22.98820059 | J137: 3.5 | K137: 2.994100295 | L137: 10 | M137: 0.046 | N137: 35 | O137: 19.28653875 | P137: 337.5144282
C138: 6 | D138: 1 | E138: 86745 | F138: Lt. | G138: 22.98820059 | J138: 3.5 | K138: 2.994100295 | L138: 10 | M138: 0.046 | N138: 35 | O138: 19.28653875 | P138: 337.5144282
C139: 6 | D139: 4 | E139: 86780 | F139: Lt. | G139: =(2*J139)+(2*K139)+L139+N139 -> 57.98820059 | J139: 3.5 | K139: 2.994100295 | L139: 10 | M139: 0.046 | N139: 35 | O139: 19.28653875 | P139: 337.5144282
C140: 6 | D140: 4 | E140: 86815 | F140: Lt. | G140: =(2*J140)+(2*K140)+L140+N140 -> 57.98820059 | J140: 3.5 | K140: 2.994100295 | L140: 10 | M140: 0.046 | N140: 35 | O140: 19.28653875 | P140: 337.5144282
C141: 6 | D141: 4 | E141: 86850 | F141: Lt. | G141: =(2*J141)+(2*K141)+L141+N141 -> 57.98820059 | J141: 3.5 | K141: 2.994100295 | L141: 10 | M141: 0.046 | N141: 35 | O141: 19.28653875 | P141: 337.5144282
C142: 6 | D142: 4 | E142: 86885 | F142: Lt. | G142: =(2*J142)+(2*K142)+L142+N142 -> 57.98820059 | J142: 3.5 | K142: 2.994100295 | L142: 10 | M142: 0.046 | N142: 35 | O142: 19.28653875 | P142: 337.5144282
C143: 6 | D143: 1 | E143: 86920 | F143: Lt. | G143: 22.98820059 | J143: 3.5 | K143: 2.994100295 | L143: 10 | M143: 0.046 | N143: 35 | O143: 19.28653875 | P143: 337.5144282
C144: 6 | D144: 1 | E144: 86950 | F144: Lt. | G144: 22.98820059 | J144: 3.5 | K144: 2.994100295 | L144: 10 | M144: 0.046 | N144: 30 | O144: 19.28653875 | P144: 289.2980813
C145: 6 | E145: Rock Check Dam
C146: 6 | D146: 1 | E146: 87450 | F146: Lt. | G146: =(2*J146)+(2*K146)+L146 -> 22.98820059 | J146: 3.5 | K146: =(148.46-138.31)/(910.71-907.32) -> 2.994100295 | L146: 10 | M146: 0.01 | N146: =IF(M146<>"",IF(M146<0.06,VLOOKUP(M146,$AH$16:$AI$75,2,TRUE),"XX"),"") -> 155 | O146: =IF(M146<>"",((0.5*1.343^2*J146)+(1.343*L146)+(0.5*1.343^2*K146)),"") -> 19.28653875 | P146: =IF(C146<>"",(0.5*N146*O146),"") -> 1494.706753
C147: 6 | D147: 1 | E147: =E146+N146 -> 87605 | F147: Lt. | G147: 22.98820059 | J147: 3.5 | K147: 2.994100295 | L147: 10 | M147: 0.01 | N147: 45 | O147: 19.28653875 | P147: 433.9471219
C148: 6 | D148: 1 | E148: 87650 | F148: Lt. | G148: 22.98820059 | J148: 3.5 | K148: 2.994100295 | L148: 10 | M148: 0.038 | N148: =IF(M148<>"",IF(M148<0.06,VLOOKUP(M148,$AH$16:$AI$75,2,TRUE),"XX"),"") -> 40 | O148: 19.28653875 | P148: 385.730775
C149: 6 | D149: 4 | E149: 87690 | F149: Lt. | G149: =(2*J149)+(2*K149)+L149+N149 -> 62.98820059 | J149: 3.5 | K149: 2.994100295 | L149: 10 | M149: 0.038 | N149: =IF(M149<>"",IF(M149<0.06,VLOOKUP(M149,$AH$16:$AI$75,2,TRUE),"XX"),"") -> 40 | O149: 19.28653875 | P149: 385.730775
C150: 6 | D150: 1 | E150: 87730 | F150: Lt. | G150: 22.98820059 | J150: 3.5 | K150: 2.994100295 | L150: 10 | M150: 0.038 | N150: =IF(M150<>"",IF(M150<0.06,VLOOKUP(M150,$AH$16:$AI$75,2,TRUE),"XX"),"") -> 40 | O150: 19.28653875 | P150: 385.730775
C151: 6 | D151: 1 | E151: 87770 | F151: Lt. | G151: 22.98820059 | J151: 3.5 | K151: 2.994100295 | L151: 10 | M151: 0.038 | N151: =IF(M151<>"",IF(M151<0.06,VLOOKUP(M151,$AH$16:$AI$75,2,TRUE),"XX"),"") -> 40 | O151: 19.28653875 | P151: 385.730775
C152: 6 | D152: 1 | E152: 87810 | F152: Lt. | G152: 22.98820059 | J152: 3.5 | K152: 2.994100295 | L152: 10 | M152: 0.038 | N152: =IF(M152<>"",IF(M152<0.06,VLOOKUP(M152,$AH$16:$AI$75,2,TRUE),"XX"),"") -> 40 | O152: 19.28653875 | P152: 385.730775
C153: 6 | D153: 1 | E153: 87850 | F153: Lt. | G153: 22.98820059 | J153: 3.5 | K153: 2.994100295 | L153: 10 | M153: 0.038 | N153: 25 | O153: 19.28653875 | P153: 241.0817344
C154: 6 | D154: 1 | E154: 87875 | F154: Lt. | G154: 22.98820059 | J154: 3.5 | K154: 2.994100295 | L154: 10 | M154: 0.014 | N154: =IF(M154<>"",IF(M154<0.06,VLOOKUP(M154,$AH$16:$AI$75,2,TRUE),"XX"),"") -> 100 | O154: 19.28653875 | P154: 964.3269376
C155: 6 | D155: 1 | E155: 87975 | F155: Lt. | G155: 22.98820059 | J155: 3.5 | K155: 2.994100295 | L155: 10 | M155: 0.014 | N155: 100 | O155: 19.28653875 | P155: 964.3269376
C156: 6 | D156: 1 | E156: 88075 | F156: Lt. | G156: 22.98820059 | J156: 3.5 | K156: 2.994100295 | L156: 10 | M156: 0.014 | N156: 100 | O156: 19.28653875 | P156: 964.3269376
C157: 6 | D157: 1 | E157: 88175 | F157: Lt. | G157: 22.98820059 | J157: 3.5 | K157: 2.994100295 | L157: 10 | M157: 0.014 | N157: 100 | O157: 19.28653875 | P157: 964.3269376
C158: 6 | D158: 1 | E158: 88275 | F158: Lt. | G158: 22.98820059 | J158: 3.5 | K158: 2.994100295 | L158: 10 | M158: 0.014 | N158: 100 | O158: 19.28653875 | P158: 964.3269376
C159: 6 | D159: 1 | E159: 88375 | F159: Lt. | G159: 22.98820059 | J159: 3.5 | K159: 2.994100295 | L159: 10 | M159: 0.014 | N159: 100 | O159: 19.28653875 | P159: 964.3269376
C160: 6 | D160: 1 | E160: 88475 | F160: Lt. | G160: 22.98820059 | J160: 3.5 | K160: 2.994100295 | L160: 10 | M160: 0.014 | N160: 50 | O160: 19.28653875 | P160: 482.1634688
C161: 6 | D161: 1 | E161: 88525 | F161: Lt. | G161: 22.98820059 | J161: 3.5 | K161: 2.994100295 | L161: 10 | M161: 0.034 | N161: =IF(M161<>"",IF(M161<0.06,VLOOKUP(M161,$AH$16:$AI$75,2,TRUE),"XX"),"") -> 45 | O161: 19.28653875 | P161: 433.9471219
C162: 6 | D162: 4 | E162: 88570 | F162: Lt. | G162: =(2*J162)+(2*K162)+L162+N162 -> 67.98820059 | J162: 3.5 | K162: 2.994100295 | L162: 10 | M162: 0.034 | N162: =IF(M162<>"",IF(M162<0.06,VLOOKUP(M162,$AH$16:$AI$75,2,TRUE),"XX"),"") -> 45 | O162: 19.28653875 | P162: 433.9471219
C163: 6 | D163: 4 | E163: 88615 | F163: Lt. | G163: =(2*J163)+(2*K163)+L163+N163 -> 67.98820059 | J163: 3.5 | K163: 2.994100295 | L163: 10 | M163: 0.034 | N163: =IF(M163<>"",IF(M163<0.06,VLOOKUP(M163,$AH$16:$AI$75,2,TRUE),"XX"),"") -> 45 | O163: 19.28653875 | P163: 433.9471219
C164: 6 | D164: 1 | E164: 88660 | F164: Lt. | G164: 22.98820059 | J164: 3.5 | K164: 2.994100295 | L164: 10 | M164: 0.034 | N164: 40 | O164: 19.28653875 | P164: 385.730775
C165: 6 | D165: 1 | E165: 88700 | F165: Lt. | G165: 22.98820059 | J165: 3.5 | K165: 2.994100295 | L165: 10 | M165: 0.011 | N165: =IF(M165<>"",IF(M165<0.06,VLOOKUP(M165,$AH$16:$AI$75,2,TRUE),"XX"),"") -> 100 | O165: 19.28653875 | P165: 964.3269376
C166: 6 | D166: 1 | E166: 88800 | F166: Lt. | G166: 22.98820059 | J166: 3.5 | K166: 2.994100295 | L166: 10 | M166: 0.011 | N166: =IF(M166<>"",IF(M166<0.06,VLOOKUP(M166,$AH$16:$AI$75,2,TRUE),"XX"),"") -> 100 | O166: 19.28653875 | P166: 964.3269376
C167: 6 | D167: 1 | E167: 88900 | F167: Lt. | G167: 22.98820059 | J167: 3.5 | K167: 2.994100295 | L167: 10 | M167: 0.011 | N167: =IF(M167<>"",IF(M167<0.06,VLOOKUP(M167,$AH$16:$AI$75,2,TRUE),"XX"),"") -> 100 | O167: 19.28653875 | P167: 964.3269376
C168: 7 | D168: 1 | E168: =89000+N168 -> 89155 | F168: Lt. | G168: 22.98820059 | J168: 3.5 | K168: 2.994100295 | L168: 10 | M168: 0.009 | N168: =IF(M168<>"",IF(M168<0.06,VLOOKUP(M168,$AH$16:$AI$75,2,TRUE),"XX"),"") -> 155 | O168: 19.28653875 | P168: 1494.706753
C169: 7 | D169: 5 | E169: =E168+N169 -> 89270 | F169: Lt. | G169: =(2*J169)+(2*K169)+L169+N169 -> 137.9882006 | J169: 3.5 | K169: 2.994100295 | L169: 10 | M169: 0.009 | N169: 115 | O169: 19.28653875 | P169: 1108.975978
C170: 7 | D170: 5 | E170: 89280 | F170: Lt. | G170: =(2*J170)+(2*K170)+L170+N170 -> 97.98820059 | J170: 3.5 | K170: 2.994100295 | L170: 10 | M170: 0.017 | N170: =IF(M170<>"",IF(M170<0.06,VLOOKUP(M170,$AH$16:$AI$75,2,TRUE),"XX"),"") -> 75 | O170: 19.28653875 | P170: 723.2452032
C171: 7 | D171: 4 | E171: =E170+N170 -> 89355 | F171: Lt. | G171: =(2*J171)+(2*K171)+L171+N171 -> 97.98820059 | J171: 3.5 | K171: 2.994100295 | L171: 10 | M171: 0.017 | N171: =IF(M171<>"",IF(M171<0.06,VLOOKUP(M171,$AH$16:$AI$75,2,TRUE),"XX"),"") -> 75 | O171: 19.28653875 | P171: 723.2452032
C172: 7 | D172: 4 | E172: =E171+N171 -> 89430 | F172: Lt. | G172: =(2*J172)+(2*K172)+L172+N172 -> 42.98820059 | J172: 3.5 | K172: 2.994100295 | L172: 10 | M172: 0.017 | N172: 20 | O172: 19.28653875 | P172: 192.8653875
C173: 9 | D173: 4 | E173: =89450+N173 -> 89525 | F173: Lt. | G173: =(2*J173)+(2*K173)+L173+N173 -> 97.98820059 | J173: 3.5 | K173: 2.994100295 | L173: 10 | M173: 0.019 | N173: =IF(M173<>"",IF(M173<0.06,VLOOKUP(M173,$AH$16:$AI$75,2,TRUE),"XX"),"") -> 75 | O173: 19.28653875 | P173: 723.2452032
C174: 9 | D174: 4 | E174: =E173+N174 -> 89575 | F174: Lt. | G174: =(2*J174)+(2*K174)+L174+N174 -> 72.98820059 | J174: 3.5 | K174: 2.994100295 | L174: 10 | M174: 0.019 | N174: 50 | O174: 19.28653875 | P174: 482.1634688
C175: 8 | D175: 1 | E175: =89700+N175 -> 89740 | F175: Lt. | G175: 22.98820059 | J175: 3.5 | K175: 2.994100295 | L175: 10 | M175: 0.036 | N175: =IF(M175<>"",IF(M175<0.06,VLOOKUP(M175,$AH$16:$AI$75,2,TRUE),"XX"),"") -> 40 | O175: 19.28653875 | P175: 385.730775
C176: 8 | D176: 4 | E176: =E175+N176 -> 89780 | F176: Lt. | G176: =(2*J176)+(2*K176)+L176+N176 -> 62.98820059 | J176: 3.5 | K176: 2.994100295 | L176: 10 | M176: 0.036 | N176: =IF(M176<>"",IF(M176<0.06,VLOOKUP(M176,$AH$16:$AI$75,2,TRUE),"XX"),"") -> 40 | O176: 19.28653875 | P176: 385.730775
C177: 8 | D177: 4 | E177: =E176+N177 -> 89820 | F177: Lt. | G177: =(2*J177)+(2*K177)+L177+N177 -> 62.98820059 | J177: 3.5 | K177: 2.994100295 | L177: 10 | M177: 0.036 | N177: =IF(M177<>"",IF(M177<0.06,VLOOKUP(M177,$AH$16:$AI$75,2,TRUE),"XX"),"") -> 40 | O177: 19.28653875 | P177: 385.730775
C178: 8 | D178: 4 | E178: =E177+N178 -> 89860 | F178: Lt. | G178: =(2*J178)+(2*K178)+L178+N178 -> 62.98820059 | J178: 3.5 | K178: 2.994100295 | L178: 10 | M178: 0.036 | N178: =IF(M178<>"",IF(M178<0.06,VLOOKUP(M178,$AH$16:$AI$75,2,TRUE),"XX"),"") -> 40 | O178: 19.28653875 | P178: 385.730775
C179: 8 | D179: 1 | E179: =E178+N179 -> 89900 | F179: Lt. | G179: =(2*J179)+(2*K179)+L179 -> 22.98820059 | J179: 3.5 | K179: 2.994100295 | L179: 10 | M179: 0.036 | N179: =IF(M179<>"",IF(M179<0.06,VLOOKUP(M179,$AH$16:$AI$75,2,TRUE),"XX"),"") -> 40 | O179: 19.28653875 | P179: 385.730775
C180: 8 | D180: 3 | E180: =E179+N180 -> 89920 | F180: Lt. | G180: 22.98820059 | J180: 3.5 | K180: 2.994100295 | L180: 10 | M180: 0.036 | N180: 20 | O180: 19.28653875 | P180: 192.8653875
C181: 8 | D181: 3 | E181: 89930 | F181: Lt. | G181: 22.98820059 | J181: 3.5 | K181: 2.994100295 | L181: 10 | M181: 0.017 | N181: =IF(M181<>"",IF(M181<0.06,VLOOKUP(M181,$AH$16:$AI$75,2,TRUE),"XX"),"") -> 75 | O181: 19.28653875 | P181: 723.2452032
C182: 8 | D182: 4 | E182: =E181+N181 -> 90005 | F182: Lt. | G182: =(2*J182)+(2*K182)+L182+N182 -> 97.98820059 | J182: 3.5 | K182: 2.994100295 | L182: 10 | M182: 0.017 | N182: 75 | O182: 19.28653875 | P182: 723.2452032
C183: 8 | D183: 1 | E183: 90080 | F183: Lt. | G183: 22.98820059 | J183: 3.5 | K183: 2.994100295 | L183: 10 | M183: 0.017 | N183: 75 | O183: 19.28653875 | P183: 723.2452032
C184: 8 | D184: 1 | E184: 90155 | F184: Lt. | G184: 22.98820059 | J184: 3.5 | K184: 2.994100295 | L184: 10 | M184: 0.017 | N184: 75 | O184: 19.28653875 | P184: 723.2452032
C185: 8 | D185: 1 | E185: 90230 | F185: Lt. | G185: 22.98820059 | J185: 3.5 | K185: 2.994100295 | L185: 10 | M185: 0.017 | N185: 75 | O185: 19.28653875 | P185: 723.2452032
C186: 8 | D186: 1 | E186: 90305 | F186: Lt. | G186: 22.98820059 | J186: 3.5 | K186: 2.994100295 | L186: 10 | M186: 0.017 | N186: 75 | O186: 19.28653875 | P186: 723.2452032
C187: 8 | D187: 1 | E187: 90380 | F187: Lt. | G187: 22.98820059 | J187: 3.5 | K187: 2.994100295 | L187: 10 | M187: 0.017 | N187: 45 | O187: 19.28653875 | P187: 433.9471219
C188: 8 | D188: 1 | E188: 90425 | F188: Lt. | G188: 22.98820059 | J188: 3.5 | K188: 2.994100295 | L188: 10 | M188: 0.006 | N188: =IF(M188<>"",IF(M188<0.06,VLOOKUP(M188,$AH$16:$AI$75,2,TRUE),"XX"),"") -> 155 | O188: 19.28653875 | P188: 1494.706753
C189: 8 | D189: 1 | E189: 90580 | F189: Lt. | G189: 22.98820059 | J189: 3.5 | K189: 2.994100295 | L189: 10 | M189: 0.006 | N189: =IF(M189<>"",IF(M189<0.06,VLOOKUP(M189,$AH$16:$AI$75,2,TRUE),"XX"),"") -> 155 | O189: 19.28653875 | P189: 1494.706753
C190: 8 | D190: 1 | E190: 90735 | F190: Lt. | G190: 22.98820059 | J190: 3.5 | K190: 2.994100295 | L190: 10 | M190: 0.006 | N190: =IF(M190<>"",IF(M190<0.06,VLOOKUP(M190,$AH$16:$AI$75,2,TRUE),"XX"),"") -> 155 | O190: 19.28653875 | P190: 1494.706753
C191: 8 | D191: 1 | E191: 90890 | F191: Lt. | G191: 22.98820059 | J191: 3.5 | K191: 2.994100295 | L191: 10 | M191: 0.006 | N191: =IF(M191<>"",IF(M191<0.06,VLOOKUP(M191,$AH$16:$AI$75,2,TRUE),"XX"),"") -> 155 | O191: 19.28653875 | P191: 1494.706753
C192: 8 | D192: 1 | E192: 91045 | F192: Lt. | G192: 22.98820059 | J192: 3.5 | K192: 2.994100295 | L192: 10 | M192: 0.006 | N192: =IF(M192<>"",IF(M192<0.06,VLOOKUP(M192,$AH$16:$AI$75,2,TRUE),"XX"),"") -> 155 | O192: 19.28653875 | P192: 1494.706753
C193: 8 | D193: 5 | E193: 91200 | F193: Lt. | G193: =(2*J193)+(2*K193)+L193+N193 -> 172.9882006 | J193: 3.5 | K193: 2.994100295 | L193: 10 | M193: 0.006 | N193: 150 | O193: 19.28653875 | P193: 1446.490406
C194: 8 | D194: 5 | E194: 91350 | F194: Lt. | G194: =(2*J194)+(2*K194)+L194+N194 -> 337.9882006 | J194: 3.5 | K194: 2.994100295 | L194: 10 | M194: 0.003 | N194: =IF(M194<>"",IF(M194<0.06,VLOOKUP(M194,$AH$16:$AI$75,2,TRUE),"XX"),"") -> 315 | O194: 19.28653875 | P194: 3037.629853
C195: 8 | D195: 1 | E195: 91665 | F195: Lt. | G195: 22.98820059 | J195: 3.5 | K195: 2.994100295 | L195: 10 | M195: 0.003 | N195: 315 | O195: 19.28653875 | P195: 3037.629853
C196: 8 | D196: 1 | E196: 91980 | F196: Lt. | G196: 22.98820059 | J196: 3.5 | K196: 2.994100295 | L196: 10 | M196: 0.003 | N196: 315 | O196: 19.28653875 | P196: 3037.629853
C197: 8 | D197: 1 | E197: 92295 | F197: Lt. | G197: 22.98820059 | J197: 3.5 | K197: 2.994100295 | L197: 10 | M197: 0.003 | N197: 315 | O197: 19.28653875 | P197: 3037.629853
C198: 8 | D198: 1 | E198: 92610 | F198: Lt. | G198: 22.98820059 | J198: 3.5 | K198: 2.994100295 | L198: 10 | M198: 0.003 | N198: 315 | O198: 19.28653875 | P198: 3037.629853
C199: 8 | D199: 4 | E199: 92925 | F199: Lt. | G199: =(2*J199)+(2*K199)+L199+N199 -> 337.9882006 | J199: 3.5 | K199: 2.994100295 | L199: 10 | M199: 0.003 | N199: 315 | O199: 19.28653875 | P199: 3037.629853
C200: 8 | D200: 1 | E200: 93240 | F200: Lt. | G200: 22.98820059 | J200: 3.5 | K200: 2.994100295 | L200: 10 | M200: 0.003 | N200: 60 | O200: 19.28653875 | P200: 578.5961625
... 1854 more rows

Sheet DE100_32
A1: TabTitle | B1: =C16 -> ROCK CHECK DAM | AL1: 1 | AM1: =SUMIFS(P$37:P$3198,C$37:C$3198,"=1") -> 970.2
A2: Number of Tab Columns | B2: 13 | AL2: 2 | AM2: =SUMIFS(P$37:P$3198,C$37:C$3198,"=2") -> 0
A3: DE Starter Row Number | B3: 37 | AL3: 3 | AM3: =SUMIFS(P$37:P$3198,C$37:C$3198,"=3") -> 0
A4: TabSheet Starter Row Number | B4: 23 | AL4: 4 | AM4: =SUMIFS(P$37:P$3198,C$37:C$3198,"=4") -> 1108.8
A5: TabSheet Header Row Count | B5: 22 | AL5: 5 | AM5: =SUMIFS(P$37:P$3198,C$37:C$3198,"=5") -> 0
A6: Top Header Cell | B6: T15 | AL6: 6 | AM6: =SUMIFS(P$37:P$3198,C$37:C$3198,"=6") -> 12695.85
A7: Bottom Header Cell | B7: AF36 | AL7: 7 | AM7: =SUMIFS(P$37:P$3198,C$37:C$3198,"=7") -> 0
A8: DESheet Row Count | B8: 75 | AL8: 8 | AM8: =SUMIFS(P$37:P$3198,C$37:C$3198,"=8") -> 0
A9: Fixed Empty Rows | B9: 10 | AL9: 9 | AM9: =SUMIFS(P$37:P$3198,C$37:C$3198,"=9") -> 5821.2
A10: Usable Empty Rows | B10: 0 | AL10: 10 | AM10: =SUMIFS(P$37:P$3198,C$37:C$3198,"=10") -> 0
A11: Total Rows Placed | B11: 85 | C11: xlRight(1) | D11: xlRight(1) | E11: xlRight(1) | F11: xlRight(1) | G11: xlRight(1) | H11: xlRight(1) | I11: xlRight(1) | J11: xlRight(1) | K11: xlRight(1) | L11: xlRight(1) | M11: xlRight(1) | P11: xlRight(1) | R11: xlLeft(1) | T11: =C11 -> xlRight(1) | U11: xlRight(1) | V11: xlRight(1) | W11: xlRight(1) | X11: xlRight(1) | Y11: xlRight(1) | Z11: xlRight(1) | AA11: xlRight(1) | AB11: xlRight(1) | AC11: xlRight(1) | AD11: xlRight(1) | AE11: =P11 -> xlRight(1) | AF11: =R11 -> xlLeft(1) | AL11: 11 | AM11: =SUMIFS(P$37:P$3198,C$37:C$3198,"=11") -> 0
A12: Total Rows Needed | B12: =SUM(B8:B10) -> 85 | C12: 0 | D12: #+00.00 | E12: General | F12: 0.0 | G12: 0.0 | H12: 0 | I12: 0 | J12: 0.0 | K12: 0.0 | L12: 0.0 | M12: 0.0% | P12: 0.0 | R12: General | T12: 0 | U12: #+00.00 | V12: General | W12: 0.0 | X12: 0.0 | Y12: 0 | Z12: 0 | AA12: 0.0 | AB12: 0.0 | AC12: 0.0 | AD12: 0.0% | AE12: =P12 -> 0.0 | AF12: General | AL12: 12 | AM12: =SUMIFS(P$37:P$3198,C$37:C$3198,"=12") -> 0
A13: Last Tab DE Starter Row | B13: 105 | C13: =CELL("width",C13) -> 6 | D13: 16 | E13: 8 | F13: 8 | G13: 14 | H13: 14 | I13: 14 | J13: 14 | K13: 14 | L13: 14 | M13: 14 | P13: 14 | R13: 80 | T13: =CELL("width",T13) -> 0 | U13: 0 | V13: 0 | W13: 0 | X13: 0 | Y13: 0 | Z13: 0 | AA13: 0 | AB13: 0 | AC13: 0 | AD13: 0 | AE13: 0 | AF13: 0 | AL13: 13 | AM13: =SUMIFS(P$37:P$3198,C$37:C$3198,"=13") -> 0
A14: Last Tab Tabsheet Starter Row | B14: 113 | C14: A | D14: B | E14: C | F14: D | G14: E | H14: F | I14: G | J14: H | K14: I | L14: J | M14: K | P14: L | R14: M | T14: =LOWER(C14) -> a | U14: b | V14: c | W14: d | X14: e | Y14: f | Z14: g | AA14: h | AB14: i | AC14: j | AD14: k | AE14: =LOWER(P14) -> l | AF14: =LOWER(R14) -> m | AL14: 14 | AM14: =SUMIFS(P$37:P$3198,C$37:C$3198,"=14") -> 0
A15: Last Copy Starter Row | B15: 91 | F15: Totals: | G15: =SUBTOTAL(9,G37:G6000) -> 2946 | H15: =SUBTOTAL(9,H37:H6000) -> 390 | I15: =SUBTOTAL(9,I37:I6000) -> 130 | P15: =SUBTOTAL(9,P37:P6000) -> 22307.85 | T15: 100-32 | AH15: % Slope | AI15: Spacing | AL15: 15 | AM15: =SUMIFS(P$37:P$3198,C$37:C$3198,"=15") -> 0
A16: Tab Loop Number | B16: 3 | C16: ROCK CHECK DAM | T16: =B17 -> 2016-10-18 | AH16: 0 | AI16: 400 | AL16: 16 | AM16: =SUMIFS(P$37:P$3198,C$37:C$3198,"=16") -> 0
A17: Revision Date | B17: 2016-10-18 | T17: =C16 -> ROCK CHECK DAM | AH17: 0.001 | AI17: 400 | AL17: 17 | AM17: =SUMIFS(P$37:P$3198,C$37:C$3198,"=17") -> 0
A18: Tabulation Width | B18: 3 | AH18: 0.002 | AI18: 400 | AL18: 18 | AM18: =SUMIFS(P$37:P$3198,C$37:C$3198,"=18") -> 0
A19: Horizontal Grid Lines | B19: Yes | C19: Possible Detail: 570-2 | AH19: 0.003 | AI19: 400 | AL19: 19 | AM19: =SUMIFS(P$37:P$3198,C$37:C$3198,"=19") -> 0
T20: =C19 -> Possible Detail: 570-2 | AH20: 0.004 | AI20: 400 | AL20: 20 | AM20: =SUMIFS(P$37:P$3198,C$37:C$3198,"=20") -> 0
AH21: 0.005 | AI21: 400 | AL21: 21 | AM21: =SUMIFS(P$37:P$3198,C$37:C$3198,"=21") -> 0
AH22: 0.006 | AI22: 200 | AL22: 22 | AM22: =SUMIFS(P$37:P$3198,C$37:C$3198,"=22") -> 1711.8
AH23: 0.007 | AI23: 200 | AL23: 23 | AM23: =SUMIFS(P$37:P$3198,C$37:C$3198,"=23") -> 0
AH24: 0.008 | AI24: 200 | AL24: 24 | AM24: =SUMIFS(P$37:P$3198,C$37:C$3198,"=24") -> 0
AH25: 0.009 | AI25: 200 | AL25: 25 | AM25: =SUMIFS(P$37:P$3198,C$37:C$3198,"=25") -> 0
AH26: 0.01 | AI26: 200 | AL26: 26 | AM26: =SUMIFS(P$37:P$3198,C$37:C$3198,"=26") -> 0
AH27: 0.011 | AI27: 130 | AL27: 27 | AM27: =SUMIFS(P$37:P$3198,C$37:C$3198,"=27") -> 0
AH28: 0.012 | AI28: 130 | AL28: 28 | AM28: =SUMIFS(P$37:P$3198,C$37:C$3198,"=28") -> 0
AH29: 0.013 | AI29: 130 | AL29: 29 | AM29: =SUMIFS(P$37:P$3198,C$37:C$3198,"=29") -> 0
AH30: 0.014 | AI30: 130 | AL30: 30 | AM30: =SUMIFS(P$37:P$3198,C$37:C$3198,"=30") -> 0
C31: * The functional height used in the volume equation is 90% of effective height. Effective height is 2 feet as shown in 570-2. | AH31: 0.015 | AI31: 130 | AL31: 31 | AM31: =SUMIFS(P$37:P$3198,C$37:C$3198,"=31") -> 0
C32: * Volume equation: [0.5*Spacing*(0.5*H2*FS+DW*H+0.5*H2*BS)] | T32: =C31 -> * The functional height used in the volume equation is 90% of effective height. Effective height is 2 feet as shown in 570-2. | AH32: 0.016 | AI32: 100 | AL32: 32 | AM32: =SUMIFS(P$37:P$3198,C$37:C$3198,"=32") -> 0
C33: ="This Data Entry Sheet fills Tab "&T15&" effective "&TEXT(B17,"mm-dd-yy") -> This Data Entry Sheet fills Tab 100-32 effective 10-18-16 | T33: * Volume equation: [0.5*Spacing*(0.5*H2*FS+DW*H+0.5*H2*BS)] | AH33: 0.017 | AI33: 100 | AL33: 33 | AM33: =SUMIFS(P$37:P$3198,C$37:C$3198,"=33") -> 0
C34: Basin No. | D34: Location | G34: Bid Items | J34: Stormwater Storage Volume Summary | Q34: Subtotal | R34: Remarks | T34: =C34 -> Basin No. | U34: =D34 -> Location | X34: =G34 -> Bid Items | AA34: =J34 -> Stormwater Storage Volume Summary | AF34: =R34 -> Remarks | AH34: 0.018 | AI34: 100 | AL34: 34 | AM34: =SUMIFS(P$37:P$3198,C$37:C$3198,"=34") -> 0
D35: Station | E35: Side | F35: Offset | G35: Installation | H35: Maintenance | I35: Removal | J35: Foreslope | K35: Backslope | L35: Ditch Width | M35: Avg. % Slope | N35: Spacing | O35: Down Stream | P35: Volume* | U35: =D35 -> Station | V35: =E35 -> Side | W35: =F35 -> Offset | X35: =G35 -> Installation | Y35: =H35 -> Maintenance | Z35: =I35 -> Removal | AA35: =J35 -> Foreslope | AB35: =K35 -> Backslope | AC35: =L35 -> Ditch Width | AD35: =M35 -> Avg. % Slope | AE35: =P35 -> Volume* | AH35: 0.019 | AI35: 100 | AL35: 35 | AM35: =SUMIFS(P$37:P$3198,C$37:C$3198,"=35") -> 0
F36: FT | G36: LF | H36: Each | I36: Each | J36: FS:1 | K36: BS:1 | L36: FT | P36: CF | W36: =F36 -> FT | X36: =G36 -> LF | Y36: =H36 -> Each | Z36: =I36 -> Each | AA36: =J36 -> FS:1 | AB36: =K36 -> BS:1 | AC36: =L36 -> FT | AE36: =P36 -> CF | AH36: 0.02 | AI36: 100 | AL36: 36 | AM36: =SUMIFS(P$37:P$3198,C$37:C$3198,"=36") -> 0
N37: =IF(M37<>"",VLOOKUP(M37,$AH$16:$AI$116,2,TRUE),"") ->  | O37: =IF(M37<>"",((0.5*1.8^2*J37)+(1.8*L37)+(0.5*1.8^2*K37)),"") ->  | P37: =IF(C37<>"",(0.5*N37*O37),"") ->  | AH37: 0.021 | AI37: 80 | AL37: 37 | AM37: =SUMIFS(P$37:P$3198,C$37:C$3198,"=37") -> 0
C38: 6 | D38: =86950+N38 -> 86970 | E38: Lt. | G38: =(J38*2)+(K38*2)+L38 -> 23 | H38: 3 | I38: 1 | J38: 3.5 | K38: 3 | L38: 10 | M38: 0.1366 | N38: =IF(M38<>"",VLOOKUP(M38,$AH$16:$AI$116,2,TRUE),"") -> 20 | O38: 28.53 | P38: 285.3 | AH38: 0.022 | AI38: 80 | AL38: 38 | AM38: =SUMIFS(P$37:P$3198,C$37:C$3198,"=38") -> 0
C39: 6 | D39: =D38+N39 -> 86990 | E39: Lt. | G39: 23 | H39: 3 | I39: 1 | J39: 3.5 | K39: 3 | L39: 10 | M39: 0.1366 | N39: =IF(M39<>"",VLOOKUP(M39,$AH$16:$AI$116,2,TRUE),"") -> 20 | O39: 28.53 | P39: 285.3 | AH39: 0.023 | AI39: 80 | AL39: 39 | AM39: =SUMIFS(P$37:P$3198,C$37:C$3198,"=39") -> 0
C40: 6 | D40: =D39+N40 -> 86995 | E40: Lt. | G40: 23 | H40: 3 | I40: 1 | J40: 3.5 | K40: 3 | L40: 10 | M40: 0.1366 | N40: 5 | O40: 28.53 | P40: 71.325 | AH40: 0.024 | AI40: 80 | AL40: 40 | AM40: =SUMIFS(P$37:P$3198,C$37:C$3198,"=40") -> 0
C41: 6 | D41: 87005 | E41: Lt. | G41: 23 | H41: 3 | I41: 1 | J41: 3.5 | K41: 3 | L41: 10 | M41: 0.14 | N41: =IF(M41<>"",VLOOKUP(M41,$AH$16:$AI$116,2,TRUE),"") -> 20 | O41: 28.53 | P41: 285.3 | AH41: 0.025 | AI41: 80 | AL41: 41 | AM41: =SUMIFS(P$37:P$3198,C$37:C$3198,"=41") -> 0
C42: 6 | D42: =D41+N41 -> 87025 | E42: Lt. | G42: 23 | H42: 3 | I42: 1 | J42: 3.5 | K42: 3 | L42: 10 | M42: 0.14 | N42: =IF(M42<>"",VLOOKUP(M42,$AH$16:$AI$116,2,TRUE),"") -> 20 | O42: 28.53 | P42: 285.3 | AH42: 0.026 | AI42: 65 | AL42: 42 | AM42: =SUMIFS(P$37:P$3198,C$37:C$3198,"=42") -> 0
C43: 6 | D43: 87045 | E43: Lt. | G43: 23 | H43: 3 | I43: 1 | J43: 3.5 | K43: 3 | L43: 10 | M43: 0.14 | N43: 5 | O43: 28.53 | P43: 71.325 | AH43: 0.027 | AI43: 65
C44: 6 | D44: 87050 | E44: Lt. | G44: 23 | H44: 3 | I44: 1 | J44: 3.5 | K44: 3 | L44: 10 | M44: 0.06 | N44: =IF(M44<>"",VLOOKUP(M44,$AH$16:$AI$116,2,TRUE),"") -> 30 | O44: 28.53 | P44: 427.95 | AH44: 0.028 | AI44: 65
C45: 6 | D45: 87080 | E45: Lt. | G45: 23 | H45: 3 | I45: 1 | J45: 3.5 | K45: 3 | L45: 10 | M45: 0.06 | N45: 30 | O45: 28.53 | P45: 427.95 | AH45: 0.029 | AI45: 65
C46: 6 | D46: 87110 | E46: Lt. | G46: 23 | H46: 3 | I46: 1 | J46: 3.5 | K46: 3 | L46: 10 | M46: 0.06 | N46: 30 | O46: 28.53 | P46: 427.95 | AH46: 0.03 | AI46: 65
C47: 6 | D47: 87140 | E47: Lt. | G47: 23 | H47: 3 | I47: 1 | J47: 3.5 | K47: 3 | L47: 10 | M47: 0.06 | N47: 30 | O47: 28.53 | P47: 427.95 | AH47: 0.031 | AI47: 55
C48: 6 | D48: 87170 | E48: Lt. | G48: 23 | H48: 3 | I48: 1 | J48: 3.5 | K48: 3 | L48: 10 | M48: 0.06 | N48: 30 | O48: 28.53 | P48: 427.95 | AH48: 0.032 | AI48: 55
C49: 6 | D49: 87200 | E49: Lt. | G49: 23 | H49: 3 | I49: 1 | J49: 3.5 | K49: 3 | L49: 10 | M49: 0.06 | N49: 30 | O49: 28.53 | P49: 427.95 | AH49: 0.033 | AI49: 55
C50: 6 | D50: 87230 | E50: Lt. | G50: 23 | H50: 3 | I50: 1 | J50: 3.5 | K50: 3 | L50: 10 | M50: 0.06 | N50: 30 | O50: 28.53 | P50: 427.95 | AH50: 0.034 | AI50: 55
C51: 6 | D51: 87260 | E51: Lt. | G51: 23 | H51: 3 | I51: 1 | J51: 3.5 | K51: 3 | L51: 10 | M51: 0.06 | N51: 30 | O51: 28.53 | P51: 427.95 | AH51: 0.035 | AI51: 55
C52: 6 | D52: 87290 | E52: Lt. | G52: 23 | H52: 3 | I52: 1 | J52: 3.5 | K52: 3 | L52: 10 | M52: 0.06 | N52: 30 | O52: 28.53 | P52: 427.95 | AH52: 0.036 | AI52: 50
C53: 6 | D53: 87320 | E53: Lt. | G53: 23 | H53: 3 | I53: 1 | J53: 3.5 | K53: 3 | L53: 10 | M53: 0.06 | N53: 30 | O53: 28.53 | P53: 427.95 | AH53: 0.037 | AI53: 50
C54: 6 | D54: 87350 | E54: Lt. | G54: 23 | H54: 3 | I54: 1 | J54: 3.5 | K54: 3 | L54: 10 | M54: 0.06 | N54: 30 | O54: 28.53 | P54: 427.95 | AH54: 0.038 | AI54: 50
C55: 6 | D55: 87380 | E55: Lt. | G55: 23 | H55: 3 | I55: 1 | J55: 3.5 | K55: 3 | L55: 10 | M55: 0.06 | N55: 30 | O55: 28.53 | P55: 427.95 | AH55: 0.039 | AI55: 50
C56: 6 | D56: 87410 | E56: Lt. | G56: 23 | H56: 3 | I56: 1 | J56: 3.5 | K56: 3 | L56: 10 | M56: 0.06 | N56: 30 | O56: 28.53 | P56: 427.95 | AH56: 0.04 | AI56: 50
C57: 6 | D57: 87440 | E57: Lt. | G57: 23 | H57: 3 | I57: 1 | J57: 3.5 | K57: 3 | L57: 10 | M57: 0.06 | N57: 10 | O57: 28.53 | P57: 142.65 | AH57: 0.041 | AI57: 45
C58: 22 | D58: =109000+N58 -> 109020 | E58: Lt. | G58: 23 | H58: 3 | I58: 1 | J58: 3.5 | K58: 3 | L58: 10 | M58: 0.1271 | N58: =IF(M58<>"",VLOOKUP(M58,$AH$16:$AI$116,2,TRUE),"") -> 20 | O58: 28.53 | P58: 285.3 | AH58: 0.042 | AI58: 45
C59: 22 | D59: =D58+N59 -> 109040 | E59: Lt. | G59: 23 | H59: 3 | I59: 1 | J59: 3.5 | K59: 3 | L59: 10 | M59: 0.1271 | N59: =IF(M59<>"",VLOOKUP(M59,$AH$16:$AI$116,2,TRUE),"") -> 20 | O59: 28.53 | P59: 285.3 | AH59: 0.043 | AI59: 45
C60: 22 | D60: =D59+N60 -> 109060 | E60: Lt. | G60: 23 | H60: 3 | I60: 1 | J60: 3.5 | K60: 3 | L60: 10 | M60: 0.1271 | N60: =IF(M60<>"",VLOOKUP(M60,$AH$16:$AI$116,2,TRUE),"") -> 20 | O60: 28.53 | P60: 285.3 | AH60: 0.044 | AI60: 45
C61: 22 | D61: =D60+N61 -> 109070 | E61: Lt. | G61: 23 | H61: 3 | I61: 1 | J61: 3.5 | K61: 3 | L61: 10 | M61: 0.1271 | N61: 10 | O61: 28.53 | P61: 142.65 | AH61: 0.045 | AI61: 45
C62: 22 | D62: 109100 | E62: Lt. | G62: 23 | H62: 3 | I62: 1 | J62: 3.5 | K62: 3 | L62: 10 | M62: 0.1757 | N62: =IF(M62<>"",VLOOKUP(M62,$AH$16:$AI$116,2,TRUE),"") -> 20 | O62: 28.53 | P62: 285.3 | AH62: 0.046 | AI62: 40
C63: 22 | D63: =D62+N62 -> 109120 | E63: Lt. | G63: 23 | H63: 3 | I63: 1 | J63: 3.5 | K63: 3 | L63: 10 | M63: 0.1757 | N63: =IF(M63<>"",VLOOKUP(M63,$AH$16:$AI$116,2,TRUE),"") -> 20 | O63: 28.53 | P63: 285.3 | AH63: 0.047 | AI63: 40
C64: 22 | D64: =D63+N63 -> 109140 | E64: Lt. | G64: 23 | H64: 3 | I64: 1 | J64: 3.5 | K64: 3 | L64: 10 | M64: 0.1757 | N64: 10 | O64: 28.53 | P64: 142.65 | AH64: 0.048 | AI64: 40
N65: =IF(M65<>"",VLOOKUP(M65,$AH$16:$AI$116,2,TRUE),"") ->  | AH65: 0.049 | AI65: 40
C66: 6 | D66: 87000 | E66: Rt. | G66: =(J66*2)+(K66*2)+L66 -> 23 | H66: 3 | I66: 1 | J66: 3.5 | K66: 3 | L66: 10 | M66: 0.07 | N66: 25 | O66: 28.53 | P66: 356.625 | AH66: 0.05 | AI66: 40
C67: 6 | D67: =D66+N66 -> 87025 | E67: Rt. | G67: 23 | H67: 3 | I67: 1 | J67: 3.5 | K67: 3 | L67: 10 | M67: 0.07 | N67: 25 | O67: 28.53 | P67: 356.625 | AH67: 0.051 | AI67: 35
C68: 6 | D68: 87050 | E68: Rt. | G68: 23 | H68: 3 | I68: 1 | J68: 3.5 | K68: 3 | L68: 10 | M68: 0.07 | N68: 25 | O68: 28.53 | P68: 356.625 | AH68: 0.052 | AI68: 35
C69: 6 | D69: 87075 | E69: Rt. | G69: 23 | H69: 3 | I69: 1 | J69: 3.5 | K69: 3 | L69: 10 | M69: 0.07 | N69: 25 | O69: 28.53 | P69: 356.625 | AH69: 0.053 | AI69: 35
C70: 6 | D70: 87100 | E70: Rt. | G70: 23 | H70: 3 | I70: 1 | J70: 3.5 | K70: 3 | L70: 10 | M70: 0.07 | N70: 25 | O70: 28.53 | P70: 356.625 | AH70: 0.054 | AI70: 35
C71: 6 | D71: 87125 | E71: Rt. | G71: 23 | H71: 3 | I71: 1 | J71: 3.5 | K71: 3 | L71: 10 | M71: 0.07 | N71: 25 | O71: 28.53 | P71: 356.625 | AH71: 0.055 | AI71: 35
C72: 6 | D72: 87150 | E72: Rt. | G72: 23 | H72: 3 | I72: 1 | J72: 3.5 | K72: 3 | L72: 10 | M72: 0.07 | N72: 25 | O72: 28.53 | P72: 356.625 | AH72: 0.056 | AI72: 30
C73: 6 | D73: 87175 | E73: Rt. | G73: 23 | H73: 3 | I73: 1 | J73: 3.5 | K73: 3 | L73: 10 | M73: 0.07 | N73: 25 | O73: 28.53 | P73: 356.625 | AH73: 0.057 | AI73: 30
C74: 6 | D74: 87200 | E74: Rt. | G74: 23 | H74: 3 | I74: 1 | J74: 3.5 | K74: 3 | L74: 10 | M74: 0.07 | N74: 25 | O74: 28.53 | P74: 356.625 | AH74: 0.058 | AI74: 30
C75: 6 | D75: 87225 | E75: Rt. | G75: 23 | H75: 3 | I75: 1 | J75: 3.5 | K75: 3 | L75: 10 | M75: 0.07 | N75: 25 | O75: 28.53 | P75: 356.625 | AH75: 0.059 | AI75: 30
C76: 6 | D76: 87250 | E76: Rt. | G76: 23 | H76: 3 | I76: 1 | J76: 3.5 | K76: 3 | L76: 10 | M76: 0.07 | N76: 25 | O76: 28.53 | P76: 356.625 | AH76: 0.06 | AI76: 30
C77: 6 | D77: 87275 | E77: Rt. | G77: 23 | H77: 3 | I77: 1 | J77: 3.5 | K77: 3 | L77: 10 | M77: 0.07 | N77: 25 | O77: 28.53 | P77: 356.625 | AH77: 0.061 | AI77: 30
C78: 6 | D78: 87300 | E78: Rt. | G78: 23 | H78: 3 | I78: 1 | J78: 3.5 | K78: 3 | L78: 10 | M78: 0.07 | N78: 25 | O78: 28.53 | P78: 356.625 | AH78: 0.062 | AI78: 30
C79: 6 | D79: 87325 | E79: Rt. | G79: 23 | H79: 3 | I79: 1 | J79: 3.5 | K79: 3 | L79: 10 | M79: 0.07 | N79: 25 | O79: 28.53 | P79: 356.625 | AH79: 0.063 | AI79: 30
C80: 6 | D80: 87350 | E80: Rt. | G80: 23 | H80: 3 | I80: 1 | J80: 3.5 | K80: 3 | L80: 10 | M80: 0.07 | N80: 25 | O80: 28.53 | P80: 356.625 | AH80: 0.064 | AI80: 30
C81: 6 | D81: 87375 | E81: Rt. | G81: 23 | H81: 3 | I81: 1 | J81: 3.5 | K81: 3 | L81: 10 | M81: 0.07 | N81: 25 | O81: 28.53 | P81: 356.625 | AH81: 0.065 | AI81: 30
AH82: 0.066 | AI82: 25
D83: 11th Ave | AH83: 0.067 | AI83: 25
C84: 1 | D84: 1179200 | E84: Lt. | G84: =(J84*2)+(K84*2)+L84 -> 22 | H84: 3 | I84: 1 | J84: 3 | K84: 3 | L84: 10 | M84: 0.25 | N84: 20 | O84: 27.72 | P84: 277.2 | AH84: 0.068 | AI84: 25
C85: 1 | D85: 1179200 | E85: Rt. | G85: =(J85*2)+(K85*2)+L85 -> 22 | H85: 3 | I85: 1 | J85: 3 | K85: 3 | L85: 10 | M85: 0.1 | N85: 20 | O85: 27.72 | P85: 277.2 | AH85: 0.069 | AI85: 25
C86: 1 | D86: =D85+N85 -> 1179220 | E86: Rt. | G86: =(J86*2)+(K86*2)+L86 -> 22 | H86: 3 | I86: 1 | J86: 3 | K86: 3 | L86: 10 | M86: 0.1 | N86: 20 | O86: 27.72 | P86: 277.2 | AH86: 0.07 | AI86: 25
C87: 1 | D87: =D86+N86 -> 1179240 | E87: Rt. | G87: =(J87*2)+(K87*2)+L87 -> 22 | H87: 3 | I87: 1 | J87: 3 | K87: 3 | L87: 10 | M87: 0.1 | N87: 10 | O87: 27.72 | P87: 138.6 | AH87: 0.071 | AI87: 25
N88: =IF(M88<>"",VLOOKUP(M88,$AH$16:$AI$116,2,TRUE),"") ->  | AH88: 0.072 | AI88: 25
D89: 12th Ave | N89: =IF(M89<>"",VLOOKUP(M89,$AH$16:$AI$116,2,TRUE),"") ->  | AH89: 0.073 | AI89: 25
C90: 4 | D90: =1284050+N90 -> 1284080 | E90: Rt. | G90: =(J90*2)+(K90*2)+L90 -> 22 | H90: 3 | I90: 1 | J90: 3 | K90: 3 | L90: 10 | M90: 0.063 | N90: =IF(M90<>"",VLOOKUP(M90,$AH$16:$AI$116,2,TRUE),"") -> 30 | O90: 27.72 | P90: 415.8 | AH90: 0.074 | AI90: 25
C91: 4 | D91: =D90+N91 -> 1284110 | E91: Rt. | G91: =(J91*2)+(K91*2)+L91 -> 22 | H91: 3 | I91: 1 | J91: 3 | K91: 3 | L91: 10 | M91: 0.063 | N91: =IF(M91<>"",VLOOKUP(M91,$AH$16:$AI$116,2,TRUE),"") -> 30 | O91: 27.72 | P91: 415.8 | AH91: 0.075 | AI91: 25
C92: 4 | D92: =D91+N92 -> 1284130 | E92: Rt. | G92: =(J92*2)+(K92*2)+L92 -> 22 | H92: 3 | I92: 1 | J92: 3 | K92: 3 | L92: 10 | M92: 0.063 | N92: 20 | O92: 27.72 | P92: 277.2 | AH92: 0.076 | AI92: 25
N93: =IF(M93<>"",VLOOKUP(M93,$AH$16:$AI$116,2,TRUE),"") ->  | AH93: 0.077 | AI93: 25
D94: 13th Ave | AH94: 0.078 | AI94: 25
C95: 9 | D95: =1389765+N95 -> 1389795 | E95: Lt. | G95: =(J95*2)+(K95*2)+L95 -> 22 | H95: 3 | I95: 1 | J95: 3 | K95: 3 | L95: 10 | M95: 0.06 | N95: 30 | O95: 27.72 | P95: 415.8 | AH95: 0.079 | AI95: 25
C96: 9 | D96: =D95+N96 -> 1389825 | E96: Lt. | G96: 22 | H96: 3 | I96: 1 | J96: 3 | K96: 3 | L96: 10 | M96: 0.06 | N96: 30 | O96: 27.72 | P96: 415.8 | AH96: 0.08 | AI96: 25
C97: 9 | D97: 1389855 | E97: Lt. | G97: 22 | H97: 3 | I97: 1 | J97: 3 | K97: 3 | L97: 10 | M97: 0.06 | N97: 30 | O97: 27.72 | P97: 415.8 | AH97: 0.081 | AI97: 20
C98: 9 | D98: 1389885 | E98: Lt. | G98: 22 | H98: 3 | I98: 1 | J98: 3 | K98: 3 | L98: 10 | M98: 0.06 | N98: 30 | O98: 27.72 | P98: 415.8 | AH98: 0.082 | AI98: 20
C99: 9 | D99: 1389915 | E99: Lt. | G99: 22 | H99: 3 | I99: 1 | J99: 3 | K99: 3 | L99: 10 | M99: 0.06 | N99: 30 | O99: 27.72 | P99: 415.8 | AH99: 0.083 | AI99: 20
C100: 9 | D100: 1389945 | E100: Lt. | G100: 22 | H100: 3 | I100: 1 | J100: 3 | K100: 3 | L100: 10 | M100: 0.06 | N100: 30 | O100: 27.72 | P100: 415.8 | AH100: 0.084 | AI100: 20
C101: 9 | D101: 1389975 | E101: Lt. | G101: 22 | H101: 3 | I101: 1 | J101: 3 | K101: 3 | L101: 10 | M101: 0.06 | N101: 30 | O101: =IF(M101<>"",((0.5*1.8^2*J101)+(1.8*L101)+(0.5*1.8^2*K101)),"") -> 27.72 | P101: =IF(C101<>"",(0.5*N101*O101),"") -> 415.8 | AH101: 0.085 | AI101: 20
C102: 9 | D102: 1390005 | E102: Lt. | G102: 22 | H102: 3 | I102: 1 | J102: 3 | K102: 3 | L102: 10 | M102: 0.06 | N102: 30 | O102: 27.72 | P102: 415.8 | AH102: 0.086 | AI102: 20
C103: 9 | D103: 1390035 | E103: Lt. | G103: 22 | H103: 3 | I103: 1 | J103: 3 | K103: 3 | L103: 10 | M103: 0.06 | N103: 30 | O103: 27.72 | P103: 415.8 | AH103: 0.087 | AI103: 20
C104: 9 | D104: 1390060 | E104: Lt. | G104: 22 | H104: 3 | I104: 1 | J104: 3 | K104: 3 | L104: 10 | M104: 0.06 | N104: 25 | O104: 27.72 | P104: 346.5 | AH104: 0.088 | AI104: 20
C105: 9 | D105: 1390575 | E105: Rt. | G105: 22 | H105: 3 | I105: 1 | J105: 3 | K105: 3 | L105: 10 | M105: 0.06 | N105: =IF(M105<>"",VLOOKUP(M105,$AH$16:$AI$116,2,TRUE),"") -> 30 | O105: 27.72 | P105: 415.8 | AH105: 0.089 | AI105: 20
C106: 9 | D106: =D105+N105 -> 1390605 | E106: Rt. | G106: 22 | H106: 3 | I106: 1 | J106: 3 | K106: 3 | L106: 10 | M106: 0.06 | N106: 30 | O106: 27.72 | P106: 415.8 | AH106: 0.09 | AI106: 20
C107: 9 | D107: =D106+N106 -> 1390635 | E107: Rt. | G107: 22 | H107: 3 | I107: 1 | J107: 3 | K107: 3 | L107: 10 | M107: 0.06 | N107: 30 | O107: 27.72 | P107: 415.8 | AH107: 0.091 | AI107: 20
C108: 9 | D108: =D107+N107 -> 1390665 | E108: Rt. | G108: 22 | H108: 3 | I108: 1 | J108: 3 | K108: 3 | L108: 10 | M108: 0.06 | N108: 30 | O108: 27.72 | P108: 415.8 | AH108: 0.092 | AI108: 20
C109: 9 | D109: =D108+N108 -> 1390695 | E109: Rt. | G109: 22 | H109: 3 | I109: 1 | J109: 3 | K109: 3 | L109: 10 | M109: 0.06 | N109: 5 | O109: 27.72 | P109: 69.3 | AH109: 0.093 | AI109: 20
AH110: 0.094 | AI110: 20
E111: Bid Totals: | G111: =SUM(G38:G109) -> 1473 | H111: =SUM(H38:H109) -> 195 | I111: =SUM(I38:I109) -> 65 | AH111: 0.095 | AI111: 20
AH112: 0.096 | AI112: 20
AH113: 0.097 | AI113: 20
N114: =IF(M114<>"",VLOOKUP(M114,$AH$16:$AI$116,2,TRUE),"") ->  | O114: =IF(M114<>"",((0.5*1.8^2*J114)+(1.8*L114)+(0.5*1.8^2*K114)),"") ->  | P114: =IF(C114<>"",(0.5*N114*O114),"") ->  | AH114: 0.098 | AI114: 20
AH115: 0.099 | AI115: 20
AH116: 0.1 | AI116: 20
P165: =IF(C165<>"",(0.5*N165*O165),"") -> 
O166: =IF(M166<>"",((0.5*1.8^2*J166)+(1.8*L166)+(0.5*1.8^2*K166)),"") -> 
N167: =IF(M167<>"",VLOOKUP(M167,$AH$16:$AI$116,2,TRUE),"") -> 
P229: =IF(C229<>"",(0.5*N229*O229),"") -> 
O230: =IF(M230<>"",((0.5*1.8^2*J230)+(1.8*L230)+(0.5*1.8^2*K230)),"") -> 
N231: =IF(M231<>"",VLOOKUP(M231,$AH$16:$AI$116,2,TRUE),"") -> 
P293: =IF(C293<>"",(0.5*N293*O293),"") -> 
O294: =IF(M294<>"",((0.5*1.8^2*J294)+(1.8*L294)+(0.5*1.8^2*K294)),"") -> 
N295: =IF(M295<>"",VLOOKUP(M295,$AH$16:$AI$116,2,TRUE),"") -> 
P357: =IF(C357<>"",(0.5*N357*O357),"") -> 
O358: =IF(M358<>"",((0.5*1.8^2*J358)+(1.8*L358)+(0.5*1.8^2*K358)),"") -> 
N359: =IF(M359<>"",VLOOKUP(M359,$AH$16:$AI$116,2,TRUE),"") -> 
P421: =IF(C421<>"",(0.5*N421*O421),"") -> 
O422: =IF(M422<>"",((0.5*1.8^2*J422)+(1.8*L422)+(0.5*1.8^2*K422)),"") -> 
N423: =IF(M423<>"",VLOOKUP(M423,$AH$16:$AI$116,2,TRUE),"") -> 
P485: =IF(C485<>"",(0.5*N485*O485),"") -> 
O486: =IF(M486<>"",((0.5*1.8^2*J486)+(1.8*L486)+(0.5*1.8^2*K486)),"") -> 
N487: =IF(M487<>"",VLOOKUP(M487,$AH$16:$AI$116,2,TRUE),"") -> 
P549: =IF(C549<>"",(0.5*N549*O549),"") -> 
O550: =IF(M550<>"",((0.5*1.8^2*J550)+(1.8*L550)+(0.5*1.8^2*K550)),"") -> 
N551: =IF(M551<>"",VLOOKUP(M551,$AH$16:$AI$116,2,TRUE),"") -> 
P613: =IF(C613<>"",(0.5*N613*O613),"") -> 
O614: =IF(M614<>"",((0.5*1.8^2*J614)+(1.8*L614)+(0.5*1.8^2*K614)),"") -> 
N615: =IF(M615<>"",VLOOKUP(M615,$AH$16:$AI$116,2,TRUE),"") -> 
P677: =IF(C677<>"",(0.5*N677*O677),"") -> 
O678: =IF(M678<>"",((0.5*1.8^2*J678)+(1.8*L678)+(0.5*1.8^2*K678)),"") -> 
N679: =IF(M679<>"",VLOOKUP(M679,$AH$16:$AI$116,2,TRUE),"") -> 
P741: =IF(C741<>"",(0.5*N741*O741),"") -> 
O742: =IF(M742<>"",((0.5*1.8^2*J742)+(1.8*L742)+(0.5*1.8^2*K742)),"") -> 
N743: =IF(M743<>"",VLOOKUP(M743,$AH$16:$AI$116,2,TRUE),"") -> 
P805: =IF(C805<>"",(0.5*N805*O805),"") -> 
O806: =IF(M806<>"",((0.5*1.8^2*J806)+(1.8*L806)+(0.5*1.8^2*K806)),"") -> 
N807: =IF(M807<>"",VLOOKUP(M807,$AH$16:$AI$116,2,TRUE),"") -> 
P869: =IF(C869<>"",(0.5*N869*O869),"") -> 
O870: =IF(M870<>"",((0.5*1.8^2*J870)+(1.8*L870)+(0.5*1.8^2*K870)),"") -> 
N871: =IF(M871<>"",VLOOKUP(M871,$AH$16:$AI$116,2,TRUE),"") -> 
P933: =IF(C933<>"",(0.5*N933*O933),"") -> 
O934: =IF(M934<>"",((0.5*1.8^2*J934)+(1.8*L934)+(0.5*1.8^2*K934)),"") -> 
N935: =IF(M935<>"",VLOOKUP(M935,$AH$16:$AI$116,2,TRUE),"") -> 
P997: =IF(C997<>"",(0.5*N997*O997),"") -> 
O998: =IF(M998<>"",((0.5*1.8^2*J998)+(1.8*L998)+(0.5*1.8^2*K998)),"") -> 
N999: =IF(M999<>"",VLOOKUP(M999,$AH$16:$AI$116,2,TRUE),"") -> 
P1061: =IF(C1061<>"",(0.5*N1061*O1061),"") -> 
O1062: =IF(M1062<>"",((0.5*1.8^2*J1062)+(1.8*L1062)+(0.5*1.8^2*K1062)),"") -> 
N1063: =IF(M1063<>"",VLOOKUP(M1063,$AH$16:$AI$116,2,TRUE),"") -> 
P1125: =IF(C1125<>"",(0.5*N1125*O1125),"") -> 
O1126: =IF(M1126<>"",((0.5*1.8^2*J1126)+(1.8*L1126)+(0.5*1.8^2*K1126)),"") -> 
N1127: =IF(M1127<>"",VLOOKUP(M1127,$AH$16:$AI$116,2,TRUE),"") -> 
P1189: =IF(C1189<>"",(0.5*N1189*O1189),"") -> 
O1190: =IF(M1190<>"",((0.5*1.8^2*J1190)+(1.8*L1190)+(0.5*1.8^2*K1190)),"") -> 
N1191: =IF(M1191<>"",VLOOKUP(M1191,$AH$16:$AI$116,2,TRUE),"") -> 
P1253: =IF(C1253<>"",(0.5*N1253*O1253),"") -> 
O1254: =IF(M1254<>"",((0.5*1.8^2*J1254)+(1.8*L1254)+(0.5*1.8^2*K1254)),"") -> 
N1255: =IF(M1255<>"",VLOOKUP(M1255,$AH$16:$AI$116,2,TRUE),"") -> 
P1317: =IF(C1317<>"",(0.5*N1317*O1317),"") -> 
O1318: =IF(M1318<>"",((0.5*1.8^2*J1318)+(1.8*L1318)+(0.5*1.8^2*K1318)),"") -> 
N1319: =IF(M1319<>"",VLOOKUP(M1319,$AH$16:$AI$116,2,TRUE),"") -> 
P1381: =IF(C1381<>"",(0.5*N1381*O1381),"") -> 
O1382: =IF(M1382<>"",((0.5*1.8^2*J1382)+(1.8*L1382)+(0.5*1.8^2*K1382)),"") -> 
N1383: =IF(M1383<>"",VLOOKUP(M1383,$AH$16:$AI$116,2,TRUE),"") -> 
P1445: =IF(C1445<>"",(0.5*N1445*O1445),"") -> 
O1446: =IF(M1446<>"",((0.5*1.8^2*J1446)+(1.8*L1446)+(0.5*1.8^2*K1446)),"") -> 
N1447: =IF(M1447<>"",VLOOKUP(M1447,$AH$16:$AI$116,2,TRUE),"") -> 
P1509: =IF(C1509<>"",(0.5*N1509*O1509),"") -> 
O1510: =IF(M1510<>"",((0.5*1.8^2*J1510)+(1.8*L1510)+(0.5*1.8^2*K1510)),"") -> 
N1511: =IF(M1511<>"",VLOOKUP(M1511,$AH$16:$AI$116,2,TRUE),"") -> 
P1573: =IF(C1573<>"",(0.5*N1573*O1573),"") -> 
O1574: =IF(M1574<>"",((0.5*1.8^2*J1574)+(1.8*L1574)+(0.5*1.8^2*K1574)),"") -> 
N1575: =IF(M1575<>"",VLOOKUP(M1575,$AH$16:$AI$116,2,TRUE),"") -> 
P1637: =IF(C1637<>"",(0.5*N1637*O1637),"") -> 
O1638: =IF(M1638<>"",((0.5*1.8^2*J1638)+(1.8*L1638)+(0.5*1.8^2*K1638)),"") -> 
N1639: =IF(M1639<>"",VLOOKUP(M1639,$AH$16:$AI$116,2,TRUE),"") -> 
P1701: =IF(C1701<>"",(0.5*N1701*O1701),"") -> 
O1702: =IF(M1702<>"",((0.5*1.8^2*J1702)+(1.8*L1702)+(0.5*1.8^2*K1702)),"") -> 
N1703: =IF(M1703<>"",VLOOKUP(M1703,$AH$16:$AI$116,2,TRUE),"") -> 
P1765: =IF(C1765<>"",(0.5*N1765*O1765),"") -> 
O1766: =IF(M1766<>"",((0.5*1.8^2*J1766)+(1.8*L1766)+(0.5*1.8^2*K1766)),"") -> 
N1767: =IF(M1767<>"",VLOOKUP(M1767,$AH$16:$AI$116,2,TRUE),"") -> 
P1829: =IF(C1829<>"",(0.5*N1829*O1829),"") -> 
O1830: =IF(M1830<>"",((0.5*1.8^2*J1830)+(1.8*L1830)+(0.5*1.8^2*K1830)),"") -> 
N1831: =IF(M1831<>"",VLOOKUP(M1831,$AH$16:$AI$116,2,TRUE),"") -> 
P1893: =IF(C1893<>"",(0.5*N1893*O1893),"") -> 
O1894: =IF(M1894<>"",((0.5*1.8^2*J1894)+(1.8*L1894)+(0.5*1.8^2*K1894)),"") -> 
N1895: =IF(M1895<>"",VLOOKUP(M1895,$AH$16:$AI$116,2,TRUE),"") -> 
... 192 more rows

Sheet DE100_33
A1: TabTitle | B1: =C16 -> TEMPORARY SEDIMENT CONTROL BASIN | AL1: 1 | AM1: =SUMIFS(M$37:M$3210,C$37:C$3210,"=1") -> 0
A2: Number of Tab Columns | B2: 12 | AL2: 2 | AM2: =SUMIFS(M$37:M$3210,C$37:C$3210,"=2") -> 0
A3: DE Starter Row Number | B3: 37 | AL3: 3 | AM3: =SUMIFS(M$37:M$3210,C$37:C$3210,"=3") -> 0
A4: TabSheet Starter Row Number | B4: 23 | AL4: 4 | AM4: =SUMIFS(M$37:M$3210,C$37:C$3210,"=4") -> 0
A5: TabSheet Header Row Count | B5: 22 | AL5: 5 | AM5: =SUMIFS(M$37:M$3210,C$37:C$3210,"=5") -> 0
A6: Top Header Cell | B6: Q15 | AL6: 6 | AM6: =SUMIFS(M$37:M$3210,C$37:C$3210,"=6") -> 0
A7: Bottom Header Cell | B7: AB36 | AL7: 7 | AM7: =SUMIFS(M$37:M$3210,C$37:C$3210,"=7") -> 3071.157602
A8: DESheet Row Count | B8: 9 | AL8: 8 | AM8: =SUMIFS(M$37:M$3210,C$37:C$3210,"=8") -> 0
A9: Fixed Empty Rows | B9: 10 | AL9: 9 | AM9: =SUMIFS(M$37:M$3210,C$37:C$3210,"=9") -> 0
A10: Usable Empty Rows | B10: 0 | AL10: 10 | AM10: =SUMIFS(M$37:M$3210,C$37:C$3210,"=10") -> 0
A11: Total Rows Placed | B11: 19 | C11: xlRight(1) | D11: xlRight(1) | E11: xlRight(1) | F11: xlRight(1) | G11: xlRight(1) | H11: xlRight(1) | I11: xlRight(1) | J11: xlRight(1) | K11: xlRight(1) | L11: xlRight(1) | M11: xlRight(1) | O11: xlLeft(1) | Q11: =C11 -> xlRight(1) | R11: xlRight(1) | S11: xlRight(1) | T11: xlRight(1) | U11: xlRight(1) | V11: xlRight(1) | W11: xlRight(1) | X11: xlRight(1) | Y11: xlRight(1) | Z11: xlRight(1) | AA11: xlRight(1) | AB11: =O11 -> xlLeft(1) | AL11: 11 | AM11: =SUMIFS(M$37:M$3210,C$37:C$3210,"=11") -> 0
A12: Total Rows Needed | B12: =SUM(B8:B10) -> 19 | C12: 0 | D12: #+00.00 | E12: General | F12: 0 | G12: 0 | H12: 0 | I12: 0.0 | J12: 0.0 | K12: 0.00 | L12: 0.0% | M12: 0.0 | O12: General | Q12: 0 | R12: #+00.00 | S12: General | T12: 0 | U12: 0 | V12: 0 | W12: 0.0 | X12: 0.0 | Y12: 0.00 | Z12: 0.0% | AA12: 0.0 | AB12: =O12 -> General | AL12: 12 | AM12: =SUMIFS(M$37:M$3210,C$37:C$3210,"=12") -> 0
A13: Last Tab DE Starter Row | B13: 37 | C13: =CELL("width",C13) -> 6 | D13: 16 | E13: 10 | F13: 14 | G13: 14 | H13: 8 | I13: 10 | J13: 10 | K13: 14 | L13: 18 | M13: 10 | O13: =CELL("width",O13) -> 21 | Q13: =CELL("width",Q13) -> 0 | R13: 0 | S13: 0 | T13: 0 | U13: 0 | V13: 0 | W13: 0 | X13: 0 | Y13: 0 | Z13: 0 | AA13: 0 | AB13: 0 | AL13: 13 | AM13: =SUMIFS(M$37:M$3210,C$37:C$3210,"=13") -> 0
A14: Last Tab Tabsheet Starter Row | B14: 23 | C14: A | D14: B | E14: C | F14: D | G14: E | H14: F | I14: G | J14: H | K14: I | L14: J | M14: K | O14: L | Q14: =LOWER(C14) -> a | R14: b | S14: c | T14: d | U14: e | V14: f | W14: g | X14: h | Y14: i | Z14: j | AA14: k | AB14: =LOWER(O14) -> l | AL14: 14 | AM14: =SUMIFS(M$37:M$3210,C$37:C$3210,"=14") -> 0
A15: Last Copy Starter Row | B15: 1 | E15: Totals: | F15: =SUBTOTAL(9,F37:F10003) -> 10 | G15: =SUBTOTAL(9,G37:G10003) -> 30 | H15: =SUBTOTAL(9,H37:H10003) -> 0 | M15: =SUBTOTAL(9,M37:M10003) -> 11298.96994 | Q15: 100-33 | AL15: 15 | AM15: =SUMIFS(M$37:M$3210,C$37:C$3210,"=15") -> 0
A16: Tab Loop Number | B16: 2 | C16: TEMPORARY SEDIMENT CONTROL BASIN | Q16: =B17 -> 2016-10-18 | AL16: 16 | AM16: =SUMIFS(M$37:M$3210,C$37:C$3210,"=16") -> 0
A17: Revision Date | B17: 2016-10-18 | Q17: =C16 -> TEMPORARY SEDIMENT CONTROL BASIN | AL17: 17 | AM17: =SUMIFS(M$37:M$3210,C$37:C$3210,"=17") -> 0
A18: Tabulation Width | B18: 2 | AL18: 18 | AM18: =SUMIFS(M$37:M$3210,C$37:C$3210,"=18") -> 0
A19: Horizontal Grid Lines | B19: Yes | C19: Possible Detail 570-3 | AL19: 19 | AM19: =SUMIFS(M$37:M$3210,C$37:C$3210,"=19") -> 0
Q20: =C19 -> Possible Detail 570-3 | AL20: 20 | AM20: =SUMIFS(M$37:M$3210,C$37:C$3210,"=20") -> 0
AL21: 21 | AM21: =SUMIFS(M$37:M$3210,C$37:C$3210,"=21") -> 0
AL22: 22 | AM22: =SUMIFS(M$37:M$3210,C$37:C$3210,"=22") -> 0
AL23: 23 | AM23: =SUMIFS(M$37:M$3210,C$37:C$3210,"=23") -> 0
AL24: 24 | AM24: =SUMIFS(M$37:M$3210,C$37:C$3210,"=24") -> 0
AL25: 25 | AM25: =SUMIFS(M$37:M$3210,C$37:C$3210,"=25") -> 0
AL26: 26 | AM26: =SUMIFS(M$37:M$3210,C$37:C$3210,"=26") -> 0
AL27: 27 | AM27: =SUMIFS(M$37:M$3210,C$37:C$3210,"=27") -> 0
AL28: 28 | AM28: =SUMIFS(M$37:M$3210,C$37:C$3210,"=28") -> 0
AL29: 29 | AM29: =SUMIFS(M$37:M$3210,C$37:C$3210,"=29") -> 8227.812336
AL30: 30 | AM30: =SUMIFS(M$37:M$3210,C$37:C$3210,"=30") -> 0
C31: * The functional height used in the volume equation is 95% of effective height. Effective height is 2.5 feet as shown in 570-3. | AL31: 31 | AM31: =SUMIFS(M$37:M$3210,C$37:C$3210,"=31") -> 0
C32: * Volume equation: [(1/4*(FS*H2))+(1/2*DW*H)+(1/4*(BS*H2))]*(H/Avg%Slope) | Q32: =C31 -> * The functional height used in the volume equation is 95% of effective height. Effective height is 2.5 feet as shown in 570-3. | AL32: 32 | AM32: =SUMIFS(M$37:M$3210,C$37:C$3210,"=32") -> 0
C33: ="This Data Entry Sheet fills Tab "&Q15&" effective "&TEXT(B17,"mm-dd-yy") -> This Data Entry Sheet fills Tab 100-33 effective 10-18-16 | Q33: * Volume equation: [(1/4(FS*H2))+(DW*H)+(1/4*(BS*H2))]*(H/Avg%Slope) | AL33: 33 | AM33: =SUMIFS(M$37:M$3210,C$37:C$3210,"=33") -> 0
C34: Basin No. | D34: Location | F34: Bid Items | I34: Stormwater Storage Volume Summary | N34: Subtotal | O34: Remarks | Q34: =C34 -> Basin No. | R34: =D34 -> Location | T34: =F34 -> Bid Items | W34: =I34 -> Stormwater Storage Volume Summary | AB34: =O34 -> Remarks | AL34: 34 | AM34: =SUMIFS(M$37:M$3210,C$37:C$3210,"=34") -> 0
D35: Station | E35: Side | F35: Installation | G35: Maintenance | H35: Removal | I35: Foreslope | J35: Backslope | K35: Ditch Width | L35: Average % Slope | M35: Volume* | R35: =D35 -> Station | S35: =E35 -> Side | T35: =F35 -> Installation | U35: =G35 -> Maintenance | V35: =H35 -> Removal | W35: =I35 -> Foreslope | X35: =J35 -> Backslope | Y35: =K35 -> Ditch Width | Z35: =L35 -> Average % Slope | AA35: =M35 -> Volume* | AL35: 35 | AM35: =SUMIFS(M$37:M$3210,C$37:C$3210,"=35") -> 0
F36: Each | G36: Each | H36: Each | I36: FS:1 | J36: BS:1 | K36: FT | M36: CF | T36: =F36 -> Each | U36: =G36 -> Each | V36: =H36 -> Each | W36: =I36 -> FS:1 | X36: =J36 -> BS:1 | Y36: =K36 -> FT | AA36: =M36 -> CF | AL36: 36 | AM36: =SUMIFS(M$37:M$3210,C$37:C$3210,"=36") -> 0
M37: =IF(C37<>"", (((0.25*2.375^2*I37)+(0.5*2.375*K37)+(0.25*2.375^2*J37))*(2.375/L37)),"") ->  | AL37: 37 | AM37: =SUMIFS(M$37:M$3210,C$37:C$3210,"=37") -> 0
C38: 7 | D38: 89275 | E38: Lt. | F38: 1 | G38: 3 | I38: 3.5 | J38: 0 | K38: 10 | L38: 0.013 | M38: 3071.157602 | AL38: 38 | AM38: =SUMIFS(M$37:M$3210,C$37:C$3210,"=38") -> 0
AL39: 39 | AM39: =SUMIFS(M$37:M$3210,C$37:C$3210,"=39") -> 0
C40: 29 | D40: 120400 | E40: Lt. | F40: 1 | G40: 3 | I40: 3.5 | J40: 3 | K40: 10 | L40: 0.022 | M40: 2271.473278 | AL40: 40 | AM40: =SUMIFS(M$37:M$3210,C$37:C$3210,"=40") -> 0
C41: 29 | D41: 120400 | E41: Rt. | F41: 1 | G41: 3 | I41: 3.5 | J41: 3 | K41: 10 | L41: 0.025 | M41: 1998.896484 | AL41: 41 | AM41: =SUMIFS(M$37:M$3210,C$37:C$3210,"=41") -> 0
C42: 29 | D42: 120700 | E42: Lt. | F42: 1 | G42: 3 | I42: 3.5 | J42: 3 | K42: 10 | L42: 0.023 | M42: 2172.71357 | AL42: 42 | AM42: =SUMIFS(M$37:M$3210,C$37:C$3210,"=42") -> 0
C43: 29 | D43: 120700 | E43: Rt. | F43: 1 | G43: 3 | I43: 3.5 | J43: 3 | K43: 10 | L43: 0.028 | M43: 1784.729004
D45: Bid Totals: | F45: =SUM(F38:F43) -> 5 | G45: =SUM(G38:G43) -> 15
M101: =IF(C101<>"", (((0.25*2.375^2*I101)+(0.5*2.375*K101)+(0.25*2.375^2*J101))*(2.375/L101)),"") -> 
M165: =IF(C165<>"", (((0.25*2.375^2*I165)+(0.5*2.375*K165)+(0.25*2.375^2*J165))*(2.375/L165)),"") -> 
M229: =IF(C229<>"", (((0.25*2.375^2*I229)+(0.5*2.375*K229)+(0.25*2.375^2*J229))*(2.375/L229)),"") -> 
M293: =IF(C293<>"", (((0.25*2.375^2*I293)+(0.5*2.375*K293)+(0.25*2.375^2*J293))*(2.375/L293)),"") -> 
M357: =IF(C357<>"", (((0.25*2.375^2*I357)+(0.5*2.375*K357)+(0.25*2.375^2*J357))*(2.375/L357)),"") -> 
M421: =IF(C421<>"", (((0.25*2.375^2*I421)+(0.5*2.375*K421)+(0.25*2.375^2*J421))*(2.375/L421)),"") -> 
M485: =IF(C485<>"", (((0.25*2.375^2*I485)+(0.5*2.375*K485)+(0.25*2.375^2*J485))*(2.375/L485)),"") -> 
M549: =IF(C549<>"", (((0.25*2.375^2*I549)+(0.5*2.375*K549)+(0.25*2.375^2*J549))*(2.375/L549)),"") -> 
M613: =IF(C613<>"", (((0.25*2.375^2*I613)+(0.5*2.375*K613)+(0.25*2.375^2*J613))*(2.375/L613)),"") -> 
M677: =IF(C677<>"", (((0.25*2.375^2*I677)+(0.5*2.375*K677)+(0.25*2.375^2*J677))*(2.375/L677)),"") -> 
M741: =IF(C741<>"", (((0.25*2.375^2*I741)+(0.5*2.375*K741)+(0.25*2.375^2*J741))*(2.375/L741)),"") -> 
M805: =IF(C805<>"", (((0.25*2.375^2*I805)+(0.5*2.375*K805)+(0.25*2.375^2*J805))*(2.375/L805)),"") -> 
M869: =IF(C869<>"", (((0.25*2.375^2*I869)+(0.5*2.375*K869)+(0.25*2.375^2*J869))*(2.375/L869)),"") -> 
M933: =IF(C933<>"", (((0.25*2.375^2*I933)+(0.5*2.375*K933)+(0.25*2.375^2*J933))*(2.375/L933)),"") -> 
M997: =IF(C997<>"", (((0.25*2.375^2*I997)+(0.5*2.375*K997)+(0.25*2.375^2*J997))*(2.375/L997)),"") -> 
M1061: =IF(C1061<>"", (((0.25*2.375^2*I1061)+(0.5*2.375*K1061)+(0.25*2.375^2*J1061))*(2.375/L1061)),"") -> 
M1125: =IF(C1125<>"", (((0.25*2.375^2*I1125)+(0.5*2.375*K1125)+(0.25*2.375^2*J1125))*(2.375/L1125)),"") -> 
M1189: =IF(C1189<>"", (((0.25*2.375^2*I1189)+(0.5*2.375*K1189)+(0.25*2.375^2*J1189))*(2.375/L1189)),"") -> 
M1253: =IF(C1253<>"", (((0.25*2.375^2*I1253)+(0.5*2.375*K1253)+(0.25*2.375^2*J1253))*(2.375/L1253)),"") -> 
M1317: =IF(C1317<>"", (((0.25*2.375^2*I1317)+(0.5*2.375*K1317)+(0.25*2.375^2*J1317))*(2.375/L1317)),"") -> 
M1381: =IF(C1381<>"", (((0.25*2.375^2*I1381)+(0.5*2.375*K1381)+(0.25*2.375^2*J1381))*(2.375/L1381)),"") -> 
M1445: =IF(C1445<>"", (((0.25*2.375^2*I1445)+(0.5*2.375*K1445)+(0.25*2.375^2*J1445))*(2.375/L1445)),"") -> 
M1509: =IF(C1509<>"", (((0.25*2.375^2*I1509)+(0.5*2.375*K1509)+(0.25*2.375^2*J1509))*(2.375/L1509)),"") -> 
M1573: =IF(C1573<>"", (((0.25*2.375^2*I1573)+(0.5*2.375*K1573)+(0.25*2.375^2*J1573))*(2.375/L1573)),"") -> 
M1637: =IF(C1637<>"", (((0.25*2.375^2*I1637)+(0.5*2.375*K1637)+(0.25*2.375^2*J1637))*(2.375/L1637)),"") -> 
M1701: =IF(C1701<>"", (((0.25*2.375^2*I1701)+(0.5*2.375*K1701)+(0.25*2.375^2*J1701))*(2.375/L1701)),"") -> 
M1765: =IF(C1765<>"", (((0.25*2.375^2*I1765)+(0.5*2.375*K1765)+(0.25*2.375^2*J1765))*(2.375/L1765)),"") -> 
M1829: =IF(C1829<>"", (((0.25*2.375^2*I1829)+(0.5*2.375*K1829)+(0.25*2.375^2*J1829))*(2.375/L1829)),"") -> 
M1893: =IF(C1893<>"", (((0.25*2.375^2*I1893)+(0.5*2.375*K1893)+(0.25*2.375^2*J1893))*(2.375/L1893)),"") -> 
M1957: =IF(C1957<>"", (((0.25*2.375^2*I1957)+(0.5*2.375*K1957)+(0.25*2.375^2*J1957))*(2.375/L1957)),"") -> 
M2021: =IF(C2021<>"", (((0.25*2.375^2*I2021)+(0.5*2.375*K2021)+(0.25*2.375^2*J2021))*(2.375/L2021)),"") -> 
M2085: =IF(C2085<>"", (((0.25*2.375^2*I2085)+(0.5*2.375*K2085)+(0.25*2.375^2*J2085))*(2.375/L2085)),"") -> 
M2149: =IF(C2149<>"", (((0.25*2.375^2*I2149)+(0.5*2.375*K2149)+(0.25*2.375^2*J2149))*(2.375/L2149)),"") -> 
M2213: =IF(C2213<>"", (((0.25*2.375^2*I2213)+(0.5*2.375*K2213)+(0.25*2.375^2*J2213))*(2.375/L2213)),"") -> 
M2277: =IF(C2277<>"", (((0.25*2.375^2*I2277)+(0.5*2.375*K2277)+(0.25*2.375^2*J2277))*(2.375/L2277)),"") -> 
M2341: =IF(C2341<>"", (((0.25*2.375^2*I2341)+(0.5*2.375*K2341)+(0.25*2.375^2*J2341))*(2.375/L2341)),"") -> 
M2405: =IF(C2405<>"", (((0.25*2.375^2*I2405)+(0.5*2.375*K2405)+(0.25*2.375^2*J2405))*(2.375/L2405)),"") -> 
M2469: =IF(C2469<>"", (((0.25*2.375^2*I2469)+(0.5*2.375*K2469)+(0.25*2.375^2*J2469))*(2.375/L2469)),"") -> 
M2533: =IF(C2533<>"", (((0.25*2.375^2*I2533)+(0.5*2.375*K2533)+(0.25*2.375^2*J2533))*(2.375/L2533)),"") -> 
M2597: =IF(C2597<>"", (((0.25*2.375^2*I2597)+(0.5*2.375*K2597)+(0.25*2.375^2*J2597))*(2.375/L2597)),"") -> 
M2661: =IF(C2661<>"", (((0.25*2.375^2*I2661)+(0.5*2.375*K2661)+(0.25*2.375^2*J2661))*(2.375/L2661)),"") -> 
M2725: =IF(C2725<>"", (((0.25*2.375^2*I2725)+(0.5*2.375*K2725)+(0.25*2.375^2*J2725))*(2.375/L2725)),"") -> 
M2789: =IF(C2789<>"", (((0.25*2.375^2*I2789)+(0.5*2.375*K2789)+(0.25*2.375^2*J2789))*(2.375/L2789)),"") -> 
M2853: =IF(C2853<>"", (((0.25*2.375^2*I2853)+(0.5*2.375*K2853)+(0.25*2.375^2*J2853))*(2.375/L2853)),"") -> 
M2917: =IF(C2917<>"", (((0.25*2.375^2*I2917)+(0.5*2.375*K2917)+(0.25*2.375^2*J2917))*(2.375/L2917)),"") -> 
M2981: =IF(C2981<>"", (((0.25*2.375^2*I2981)+(0.5*2.375*K2981)+(0.25*2.375^2*J2981))*(2.375/L2981)),"") -> 
M3045: =IF(C3045<>"", (((0.25*2.375^2*I3045)+(0.5*2.375*K3045)+(0.25*2.375^2*J3045))*(2.375/L3045)),"") -> 
M3109: =IF(C3109<>"", (((0.25*2.375^2*I3109)+(0.5*2.375*K3109)+(0.25*2.375^2*J3109))*(2.375/L3109)),"") -> 
M3173: =IF(C3173<>"", (((0.25*2.375^2*I3173)+(0.5*2.375*K3173)+(0.25*2.375^2*J3173))*(2.375/L3173)),"") -> 
M3237: =IF(C3237<>"", (((0.25*2.375^2*I3237)+(0.5*2.375*K3237)+(0.25*2.375^2*J3237))*(2.375/L3237)),"") -> 
M3301: =IF(C3301<>"", (((0.25*2.375^2*I3301)+(0.5*2.375*K3301)+(0.25*2.375^2*J3301))*(2.375/L3301)),"") -> 
M3365: =IF(C3365<>"", (((0.25*2.375^2*I3365)+(0.5*2.375*K3365)+(0.25*2.375^2*J3365))*(2.375/L3365)),"") -> 
M3429: =IF(C3429<>"", (((0.25*2.375^2*I3429)+(0.5*2.375*K3429)+(0.25*2.375^2*J3429))*(2.375/L3429)),"") -> 
M3493: =IF(C3493<>"", (((0.25*2.375^2*I3493)+(0.5*2.375*K3493)+(0.25*2.375^2*J3493))*(2.375/L3493)),"") -> 
M3557: =IF(C3557<>"", (((0.25*2.375^2*I3557)+(0.5*2.375*K3557)+(0.25*2.375^2*J3557))*(2.375/L3557)),"") -> 
M3621: =IF(C3621<>"", (((0.25*2.375^2*I3621)+(0.5*2.375*K3621)+(0.25*2.375^2*J3621))*(2.375/L3621)),"") -> 
M3685: =IF(C3685<>"", (((0.25*2.375^2*I3685)+(0.5*2.375*K3685)+(0.25*2.375^2*J3685))*(2.375/L3685)),"") -> 
M3749: =IF(C3749<>"", (((0.25*2.375^2*I3749)+(0.5*2.375*K3749)+(0.25*2.375^2*J3749))*(2.375/L3749)),"") -> 
M3813: =IF(C3813<>"", (((0.25*2.375^2*I3813)+(0.5*2.375*K3813)+(0.25*2.375^2*J3813))*(2.375/L3813)),"") -> 
M3877: =IF(C3877<>"", (((0.25*2.375^2*I3877)+(0.5*2.375*K3877)+(0.25*2.375^2*J3877))*(2.375/L3877)),"") -> 
M3941: =IF(C3941<>"", (((0.25*2.375^2*I3941)+(0.5*2.375*K3941)+(0.25*2.375^2*J3941))*(2.375/L3941)),"") -> 
M4005: =IF(C4005<>"", (((0.25*2.375^2*I4005)+(0.5*2.375*K4005)+(0.25*2.375^2*J4005))*(2.375/L4005)),"") -> 
M4069: =IF(C4069<>"", (((0.25*2.375^2*I4069)+(0.5*2.375*K4069)+(0.25*2.375^2*J4069))*(2.375/L4069)),"") -> 
M4133: =IF(C4133<>"", (((0.25*2.375^2*I4133)+(0.5*2.375*K4133)+(0.25*2.375^2*J4133))*(2.375/L4133)),"") -> 
M4197: =IF(C4197<>"", (((0.25*2.375^2*I4197)+(0.5*2.375*K4197)+(0.25*2.375^2*J4197))*(2.375/L4197)),"") -> 
M4261: =IF(C4261<>"", (((0.25*2.375^2*I4261)+(0.5*2.375*K4261)+(0.25*2.375^2*J4261))*(2.375/L4261)),"") -> 
M4325: =IF(C4325<>"", (((0.25*2.375^2*I4325)+(0.5*2.375*K4325)+(0.25*2.375^2*J4325))*(2.375/L4325)),"") -> 
M4389: =IF(C4389<>"", (((0.25*2.375^2*I4389)+(0.5*2.375*K4389)+(0.25*2.375^2*J4389))*(2.375/L4389)),"") -> 
M4453: =IF(C4453<>"", (((0.25*2.375^2*I4453)+(0.5*2.375*K4453)+(0.25*2.375^2*J4453))*(2.375/L4453)),"") -> 
M4517: =IF(C4517<>"", (((0.25*2.375^2*I4517)+(0.5*2.375*K4517)+(0.25*2.375^2*J4517))*(2.375/L4517)),"") -> 
M4581: =IF(C4581<>"", (((0.25*2.375^2*I4581)+(0.5*2.375*K4581)+(0.25*2.375^2*J4581))*(2.375/L4581)),"") -> 
M4645: =IF(C4645<>"", (((0.25*2.375^2*I4645)+(0.5*2.375*K4645)+(0.25*2.375^2*J4645))*(2.375/L4645)),"") -> 
M4709: =IF(C4709<>"", (((0.25*2.375^2*I4709)+(0.5*2.375*K4709)+(0.25*2.375^2*J4709))*(2.375/L4709)),"") -> 
M4773: =IF(C4773<>"", (((0.25*2.375^2*I4773)+(0.5*2.375*K4773)+(0.25*2.375^2*J4773))*(2.375/L4773)),"") -> 
M4837: =IF(C4837<>"", (((0.25*2.375^2*I4837)+(0.5*2.375*K4837)+(0.25*2.375^2*J4837))*(2.375/L4837)),"") -> 
M4901: =IF(C4901<>"", (((0.25*2.375^2*I4901)+(0.5*2.375*K4901)+(0.25*2.375^2*J4901))*(2.375/L4901)),"") -> 
M4965: =IF(C4965<>"", (((0.25*2.375^2*I4965)+(0.5*2.375*K4965)+(0.25*2.375^2*J4965))*(2.375/L4965)),"") -> 
M5029: =IF(C5029<>"", (((0.25*2.375^2*I5029)+(0.5*2.375*K5029)+(0.25*2.375^2*J5029))*(2.375/L5029)),"") -> 
M5093: =IF(C5093<>"", (((0.25*2.375^2*I5093)+(0.5*2.375*K5093)+(0.25*2.375^2*J5093))*(2.375/L5093)),"") -> 
M5157: =IF(C5157<>"", (((0.25*2.375^2*I5157)+(0.5*2.375*K5157)+(0.25*2.375^2*J5157))*(2.375/L5157)),"") -> 
M5221: =IF(C5221<>"", (((0.25*2.375^2*I5221)+(0.5*2.375*K5221)+(0.25*2.375^2*J5221))*(2.375/L5221)),"") -> 
M5285: =IF(C5285<>"", (((0.25*2.375^2*I5285)+(0.5*2.375*K5285)+(0.25*2.375^2*J5285))*(2.375/L5285)),"") -> 
M5349: =IF(C5349<>"", (((0.25*2.375^2*I5349)+(0.5*2.375*K5349)+(0.25*2.375^2*J5349))*(2.375/L5349)),"") -> 
M5413: =IF(C5413<>"", (((0.25*2.375^2*I5413)+(0.5*2.375*K5413)+(0.25*2.375^2*J5413))*(2.375/L5413)),"") -> 
M5477: =IF(C5477<>"", (((0.25*2.375^2*I5477)+(0.5*2.375*K5477)+(0.25*2.375^2*J5477))*(2.375/L5477)),"") -> 
M5541: =IF(C5541<>"", (((0.25*2.375^2*I5541)+(0.5*2.375*K5541)+(0.25*2.375^2*J5541))*(2.375/L5541)),"") -> 
M5605: =IF(C5605<>"", (((0.25*2.375^2*I5605)+(0.5*2.375*K5605)+(0.25*2.375^2*J5605))*(2.375/L5605)),"") -> 
M5669: =IF(C5669<>"", (((0.25*2.375^2*I5669)+(0.5*2.375*K5669)+(0.25*2.375^2*J5669))*(2.375/L5669)),"") -> 
M5733: =IF(C5733<>"", (((0.25*2.375^2*I5733)+(0.5*2.375*K5733)+(0.25*2.375^2*J5733))*(2.375/L5733)),"") -> 
M5797: =IF(C5797<>"", (((0.25*2.375^2*I5797)+(0.5*2.375*K5797)+(0.25*2.375^2*J5797))*(2.375/L5797)),"") -> 
M5861: =IF(C5861<>"", (((0.25*2.375^2*I5861)+(0.5*2.375*K5861)+(0.25*2.375^2*J5861))*(2.375/L5861)),"") -> 
M5925: =IF(C5925<>"", (((0.25*2.375^2*I5925)+(0.5*2.375*K5925)+(0.25*2.375^2*J5925))*(2.375/L5925)),"") -> 
M5989: =IF(C5989<>"", (((0.25*2.375^2*I5989)+(0.5*2.375*K5989)+(0.25*2.375^2*J5989))*(2.375/L5989)),"") -> 

Sheet DE100_34
A1: TabTitle | B1: =C16 -> STORMWATER DRAINAGE BASIN
A2: Number of Tab Columns | B2: 9
A3: DE Starter Row Number | B3: 24
A4: TabSheet Starter Row Number | B4: 10
A5: TabSheet Header Row Count | B5: 9
A6: Top Header Cell | B6: M15
A7: Bottom Header Cell | B7: U23
A8: DESheet Row Count | B8: 43
A9: Fixed Empty Rows | B9: 10
A10: Usable Empty Rows | B10: 0
A11: Total Rows Placed | B11: 53 | C11: xlRight(1) | D11: xlRight(1) | E11: xlRight(1) | F11: xlRight(1) | G11: xlRight(1) | H11: xlRight(1) | I11: xlRight(1) | J11: xlRight(1) | K11: xlLeft(1) | M11: =C11 -> xlRight(1) | N11: =D11 -> xlRight(1) | O11: =E11 -> xlRight(1) | P11: =F11 -> xlRight(1) | Q11: =G11 -> xlRight(1) | R11: xlRight(1) | S11: xlRight(1) | T11: xlRight(1) | U11: xlLeft(1)
A12: Total Rows Needed | B12: =SUM(B8:B10) -> 53 | C12: General | D12: #+00.00 | E12: #+00.00 | F12: General | G12: 0.0 | H12: #+00.00 | I12: General | J12: 0.0 | K12: General | M12: General | N12: =D12 -> #+00.00 | O12: =E12 -> #+00.00 | P12: =F12 -> General | Q12: 0.0 | R12: #+00.00 | S12: General | T12: 0.0 | U12: General
A13: Last Tab DE Starter Row | B13: 24 | C13: =CELL("width",C13) -> 6 | D13: 16 | E13: 16 | F13: 8 | G13: 12 | H13: 16 | I13: 16 | J13: 16 | K13: 48 | M13: =CELL("width",M13) -> 0 | N13: 0 | O13: 0 | P13: 0 | Q13: 0 | R13: 0 | S13: 0 | T13: 0 | U13: 0
A14: Last Tab Tabsheet Starter Row | B14: 10 | C14: A | D14: B | E14: C | F14: D | G14: E | H14: F | I14: G | J14: H | K14: I | M14: =LOWER(C14) -> a | N14: =LOWER(D14) -> b | O14: =LOWER(E14) -> c | P14: =LOWER(F14) -> d | Q14: =LOWER(G14) -> e | R14: f | S14: g | T14: h | U14: i
A15: Last Copy Starter Row | B15: 1 | C15: Totals: | G15: =SUBTOTAL(9,G24:G6001) -> 433.4 | J15: =SUBTOTAL(9,J24:J6001) -> 1560240 | M15: 100-34
A16: Tab Loop Number | B16: 2 | C16: STORMWATER DRAINAGE BASIN | M16: =B17 -> 2016-04-19
A17: Revision Date | B17: 2016-04-19 | M17: =C16 -> STORMWATER DRAINAGE BASIN
A18: Tabulation Width | B18: 2
A19: Horizontal Grid Lines | B19: Yes
C20: ="This Data Entry Sheet fills Tab "&M15&" effective "&TEXT(B17,"mm-dd-yy") -> This Data Entry Sheet fills Tab 100-34 effective 04-19-16
C21: Basin No. | D21: Station to Station | F21: Side | G21: Disturbed Area | H21: Discharge Point | J21: Required Storage Volume | K21: Remarks | M21: =C21 -> Basin No. | N21: =D21 -> Station to Station | P21: =F21 -> Side | Q21: =G21 -> Disturbed Area | R21: =H21 -> Discharge Point | T21: =J21 -> Required Storage Volume | U21: =K21 -> Remarks
H22: Station | I22: Side | R22: =H22 -> Station | S22: =I22 -> Side
G23: Acres | J23: CF | Q23: =G23 -> Acres | T23: =J23 -> CF
J24: =IF(G24<>"",(G24*3600),"") -> 
C25: 1 | D25: 78050 | E25: 81700 | F25: All | G25: 21.85 | H25: 78900 | I25: Lt. | J25: =IF(G25<>"",(G25*3600),"") -> 78660
C26: 2 | D26: 80850 | E26: 82575 | F26: Lt,Rt | G26: 8.64 | H26: 81650 | I26: Rt. | J26: 31104
C27: 3 | D27: 81700 | E27: 82725 | F27: Med,Rt | G27: 5.18 | H27: 81750 | I27: Rt. | J27: 18648
C28: 4 | D28: 82575 | E28: 84975 | F28: All | G28: 15.85 | H28: 84460 | I28: Rt. | J28: 57060
C29: 5 | D29: 84275 | E29: 84375 | F29: Rt. | G29: 0.23 | H29: 84325 | I29: Rt. | J29: 828
C30: 6 | D30: 84325 | E30: 89625 | F30: All | G30: 31.47 | H30: 86987 | I30: Rt. | J30: 113292
C31: 7 | D31: 89000 | E31: 89450 | F31: Lt. | G31: 1.4 | H31: 89275 | I31: Lt. | J31: 5040
C32: 8 | D32: 89340 | E32: 93309 | F32: All | G32: 26.18 | H32: 89925 | I32: Lt. | J32: 94248
C33: 9 | D33: 89450 | E33: 89600 | F33: Lt. | G33: 3.25 | H33: 89575 | I33: Lt. | J33: 11700
C34: 10 | D34: 89500 | E34: 89525 | F34: Rt. | G34: 0.06 | H34: 89510 | I34: Rt. | J34: 216
C35: 11 | D35: 93309 | E35: 95815 | F35: All | G35: 12.7 | H35: 94410 | I35: Rt. | J35: 45720
C36: 12 | D36: 94850 | E36: 97050 | F36: Med,Rt | G36: 10.74 | H36: 95000 | I36: Rt. | J36: 38664
C37: 13 | D37: 94925 | E37: 95000 | F37: Rt. | G37: 0.22 | H37: 94950 | I37: Rt. | J37: 792
C38: 14 | D38: 95815 | E38: 99375 | F38: All | G38: 16.9 | H38: 97900 | I38: Lt. | J38: 60840
C39: 15 | D39: 97550 | E39: 97625 | F39: Rt. | G39: 0.25 | H39: 97575 | I39: Rt. | J39: 900
C40: 16 | D40: 98525 | E40: 102100 | F40: All | G40: 15.47 | H40: 100200 | I40: Lt. | J40: 55692
C41: 17 | D41: 100700 | E41: 102450 | F41: Lt,Rt | G41: 5.41 | H41: 100840 | I41: Lt. | J41: 19476
C42: 18 | D42: 101583 | E42: 103587 | F42: All | G42: 10.04 | H42: 103320 | I42: Lt. | J42: 36144
C43: 19 | D43: 103587 | E43: 105625 | F43: All | G43: 13.17 | H43: 105570 | I43: Lt. | J43: 47412
C44: 20 | D44: 105570 | E44: 106850 | F44: Lt,Rt | G44: 4.68 | H44: 105975 | I44: Lt. | J44: 16848
C45: 21 | D45: 105570 | E45: 107550 | F45: Med,Rt | G45: 5.22 | H45: 107475 | I45: Rt. | J45: 18792
C46: 22 | D46: 106850 | E46: 110830 | F46: All | G46: 22 | H46: 109053 | I46: Lt. | J46: 79200
C47: 23 | D47: 109950 | E47: 110525 | F47: Lt,Rt | G47: 2.23 | H47: 110100 | I47: Lt. | J47: 8028
C48: 24 | D48: 110500 | E48: 111900 | F48: All | G48: 7.66 | H48: 111450 | I48: Lt. | J48: 27576
C49: 25 | D49: 110525 | E49: 110900 | F49: Lt. | G49: 1.16 | H49: 110830 | I49: Lt. | J49: 4176
C50: 26 | D50: 111725 | E50: 112725 | F50: All | G50: 6.17 | H50: 112575 | I50: Lt. | J50: 22212
C51: 27 | D51: 112575 | E51: 119500 | F51: All | G51: 44.77 | H51: 114600 | I51: Rt. | J51: 161172
C52: 28 | D52: 113400 | E52: 113500 | F52: Rt. | G52: 0.64 | H52: 113450 | I52: Rt. | J52: 2304
C53: 29 | D53: 119475 | E53: 123000 | F53: All | G53: 24.54 | H53: 120591 | I53: Rt. | J53: 88344
C54: 30 | D54: 121300 | E54: 121550 | F54: Lt. | G54: 1 | H54: 121350 | I54: Lt. | J54: 3600
C55: 31 | D55: 121300 | E55: 121450 | F55: Rt. | G55: 0.61 | H55: 121350 | I55: Rt. | J55: 2196
C56: 32 | D56: 121900 | E56: 122600 | F56: Lt,Rt | G56: 3.45 | H56: 122466 | I56: Rt. | J56: 12420
C57: 33 | D57: 122500 | E57: 123600 | F57: Lt,Rt | G57: 6.18 | H57: 122913 | I57: Rt. | J57: 22248
C58: 34 | D58: 123000 | E58: 126620 | F58: All | G58: 21.34 | H58: 125686 | I58: Rt. | J58: 76824
C59: 35 | D59: 126550 | E59: 126620 | F59: Lt. | G59: 0.51 | H59: 126575 | I59: Lt. | J59: 1836
C60: 36 | D60: 126550 | E60: 127675 | F60: Med,Rt | G60: 5.25 | H60: 126620 | I60: Rt. | J60: 18900
C61: 37 | D61: 126620 | E61: 127675 | F61: Lt. | G61: 3.17 | H61: 126650 | I61: Lt. | J61: 11412
C62: 38 | D62: 127650 | E62: 128675 | F62: All | G62: 4.97 | H62: 127850 | I62: Rt. | J62: 17892
C63: 39 | D63: 128300 | E63: 129980 | F63: All | G63: 10.56 | H63: 128410 | I63: Rt. | J63: 38016
C64: 40 | D64: 129870 | E64: 130800 | F64: Lt,Rt | G64: 3.49 | H64: 130545 | I64: Lt. | J64: 12564
C65: 41 | D65: 129870 | E65: 133460 | F65: All | G65: 22.22 | H65: 132592 | I65: Rt. | J65: 79992
C66: 42 | D66: 133100 | E66: 137800 | F66: All | G66: 32.57 | H66: 136125 | I66: Rt. | J66: 117252
J89: =IF(G89<>"",(G89*3600),"") -> 
J153: =IF(G153<>"",(G153*3600),"") -> 
J217: =IF(G217<>"",(G217*3600),"") -> 
J281: =IF(G281<>"",(G281*3600),"") -> 
J345: =IF(G345<>"",(G345*3600),"") -> 
J409: =IF(G409<>"",(G409*3600),"") -> 
J473: =IF(G473<>"",(G473*3600),"") -> 
J537: =IF(G537<>"",(G537*3600),"") -> 
J601: =IF(G601<>"",(G601*3600),"") -> 
J665: =IF(G665<>"",(G665*3600),"") -> 
J729: =IF(G729<>"",(G729*3600),"") -> 
J793: =IF(G793<>"",(G793*3600),"") -> 
J857: =IF(G857<>"",(G857*3600),"") -> 
J921: =IF(G921<>"",(G921*3600),"") -> 
J985: =IF(G985<>"",(G985*3600),"") -> 
J1049: =IF(G1049<>"",(G1049*3600),"") -> 
J1113: =IF(G1113<>"",(G1113*3600),"") -> 
J1177: =IF(G1177<>"",(G1177*3600),"") -> 
J1241: =IF(G1241<>"",(G1241*3600),"") -> 
J1305: =IF(G1305<>"",(G1305*3600),"") -> 
J1369: =IF(G1369<>"",(G1369*3600),"") -> 
J1433: =IF(G1433<>"",(G1433*3600),"") -> 
J1497: =IF(G1497<>"",(G1497*3600),"") -> 
J1561: =IF(G1561<>"",(G1561*3600),"") -> 
J1625: =IF(G1625<>"",(G1625*3600),"") -> 
J1689: =IF(G1689<>"",(G1689*3600),"") -> 
J1753: =IF(G1753<>"",(G1753*3600),"") -> 
J1817: =IF(G1817<>"",(G1817*3600),"") -> 
J1881: =IF(G1881<>"",(G1881*3600),"") -> 
J1945: =IF(G1945<>"",(G1945*3600),"") -> 
J2009: =IF(G2009<>"",(G2009*3600),"") -> 
J2073: =IF(G2073<>"",(G2073*3600),"") -> 
J2137: =IF(G2137<>"",(G2137*3600),"") -> 
J2201: =IF(G2201<>"",(G2201*3600),"") -> 
J2265: =IF(G2265<>"",(G2265*3600),"") -> 
J2329: =IF(G2329<>"",(G2329*3600),"") -> 
J2393: =IF(G2393<>"",(G2393*3600),"") -> 
J2457: =IF(G2457<>"",(G2457*3600),"") -> 
J2521: =IF(G2521<>"",(G2521*3600),"") -> 
J2585: =IF(G2585<>"",(G2585*3600),"") -> 
J2649: =IF(G2649<>"",(G2649*3600),"") -> 
J2713: =IF(G2713<>"",(G2713*3600),"") -> 
J2777: =IF(G2777<>"",(G2777*3600),"") -> 
J2841: =IF(G2841<>"",(G2841*3600),"") -> 
J2905: =IF(G2905<>"",(G2905*3600),"") -> 
J2969: =IF(G2969<>"",(G2969*3600),"") -> 
J3033: =IF(G3033<>"",(G3033*3600),"") -> 
J3097: =IF(G3097<>"",(G3097*3600),"") -> 
J3161: =IF(G3161<>"",(G3161*3600),"") -> 
J3225: =IF(G3225<>"",(G3225*3600),"") -> 
J3289: =IF(G3289<>"",(G3289*3600),"") -> 
J3353: =IF(G3353<>"",(G3353*3600),"") -> 
J3417: =IF(G3417<>"",(G3417*3600),"") -> 
J3481: =IF(G3481<>"",(G3481*3600),"") -> 
J3545: =IF(G3545<>"",(G3545*3600),"") -> 
J3609: =IF(G3609<>"",(G3609*3600),"") -> 
J3673: =IF(G3673<>"",(G3673*3600),"") -> 
J3737: =IF(G3737<>"",(G3737*3600),"") -> 
J3801: =IF(G3801<>"",(G3801*3600),"") -> 
J3865: =IF(G3865<>"",(G3865*3600),"") -> 
J3929: =IF(G3929<>"",(G3929*3600),"") -> 
J3993: =IF(G3993<>"",(G3993*3600),"") -> 
J4057: =IF(G4057<>"",(G4057*3600),"") -> 
J4121: =IF(G4121<>"",(G4121*3600),"") -> 
J4185: =IF(G4185<>"",(G4185*3600),"") -> 
J4249: =IF(G4249<>"",(G4249*3600),"") -> 
J4313: =IF(G4313<>"",(G4313*3600),"") -> 
J4377: =IF(G4377<>"",(G4377*3600),"") -> 
J4441: =IF(G4441<>"",(G4441*3600),"") -> 
J4505: =IF(G4505<>"",(G4505*3600),"") -> 
J4569: =IF(G4569<>"",(G4569*3600),"") -> 
J4633: =IF(G4633<>"",(G4633*3600),"") -> 
J4697: =IF(G4697<>"",(G4697*3600),"") -> 
J4761: =IF(G4761<>"",(G4761*3600),"") -> 
J4825: =IF(G4825<>"",(G4825*3600),"") -> 
J4889: =IF(G4889<>"",(G4889*3600),"") -> 
J4953: =IF(G4953<>"",(G4953*3600),"") -> 
J5017: =IF(G5017<>"",(G5017*3600),"") -> 
J5081: =IF(G5081<>"",(G5081*3600),"") -> 
J5145: =IF(G5145<>"",(G5145*3600),"") -> 
J5209: =IF(G5209<>"",(G5209*3600),"") -> 
J5273: =IF(G5273<>"",(G5273*3600),"") -> 
J5337: =IF(G5337<>"",(G5337*3600),"") -> 
J5401: =IF(G5401<>"",(G5401*3600),"") -> 
J5465: =IF(G5465<>"",(G5465*3600),"") -> 
J5529: =IF(G5529<>"",(G5529*3600),"") -> 
J5593: =IF(G5593<>"",(G5593*3600),"") -> 
J5657: =IF(G5657<>"",(G5657*3600),"") -> 
J5721: =IF(G5721<>"",(G5721*3600),"") -> 
J5785: =IF(G5785<>"",(G5785*3600),"") -> 
J5849: =IF(G5849<>"",(G5849*3600),"") -> 
J5913: =IF(G5913<>"",(G5913*3600),"") -> 
J5977: =IF(G5977<>"",(G5977*3600),"") -> 

Sheet DE100_35
A1: TabTitle | B1: =C16 -> SUMMARY OF STORMWATER STORAGE
A2: Number of Tab Columns | B2: 5
A3: DE Starter Row Number | B3: 25
A4: TabSheet Starter Row Number | B4: 11
A5: TabSheet Header Row Count | B5: 10
A6: Top Header Cell | B6: I15
A7: Bottom Header Cell | B7: M24
A8: DESheet Row Count | B8: 294
A9: Fixed Empty Rows | B9: 10
A10: Usable Empty Rows | B10: 0
A11: Total Rows Placed | B11: 304 | C11: xlLeft(1) | D11: xlLeft(1) | E11: xlRight(1) | F11: xlRight(1) | G11: xlLeft(1) | I11: =C11 -> xlLeft(1) | J11: xlLeft(1) | K11: xlRight(1) | L11: xlRight(1) | M11: xlLeft(1)
A12: Total Rows Needed | B12: =SUM(B8:B10) -> 304 | C12: General | D12: General | E12: 0.0 | F12: 0.0 | G12: General | I12: General | J12: General | K12: 0.0 | L12: 0.0 | M12: General
A13: Last Tab DE Starter Row | B13: 265 | C13: =CELL("width",C13) -> 6 | D13: 77 | E13: 20 | F13: 20 | G13: 32 | I13: =CELL("width",I13) -> 0 | J13: 0 | K13: 0 | L13: 0 | M13: 0
A14: Last Tab Tabsheet Starter Row | B14: 281 | C14: A | D14: B | E14: C | F14: D | G14: E | I14: =LOWER(C14) -> a | J14: =LOWER(D14) -> b | K14: =LOWER(E14) -> c | L14: =LOWER(F14) -> d | M14: e
A15: Last Copy Starter Row | B15: 271 | E15: =SUBTOTAL(9,E25:E6000) -> 3700842.128 | F15: =SUBTOTAL(9,F25:F6000) -> 1560240 | I15: 100-35
A16: Tab Loop Number | B16: 5 | C16: SUMMARY OF STORMWATER STORAGE | I16: =B17 -> 2016-04-19
A17: Revision Date | B17: 2016-04-19 | I17: =C16 -> SUMMARY OF STORMWATER STORAGE
A18: Tabulation Width | B18: 2
A19: Horizontal Grid Lines | B19: Yes | C19: Refer to EC Standards and 570s Details.
C20: ="This Data Entry Sheet fills Tab "&I15&" effective "&TEXT(B17,"mm-dd-yy") -> This Data Entry Sheet fills Tab 100-35 effective 04-19-16
C21: Basin No. | D21: Item | E21: Total Storage Volume Provided | F21: Total Storage Volume Required | G21: Remarks | I21: =C21 -> Basin No. | J21: =D21 -> Item | K21: =E21 -> Total Storage Volume Provided | L21: =F21 -> Total Storage Volume Required | M21: Remarks
E24: CF | F24: CF | K24: =E24 -> CF | L24: =F24 -> CF
C26: 1 | D26: Silt Fence for Ditch Checks | E26: =DE100_18!AM1 -> 88220.96363
D27: Silt Basins | E27: =DE100_14!AM1 -> 4137.5
D28: Temporary Sediment Control Basin | E28: =DE100_33!AM1 -> 0
D29: Rock Check Dam | E29: =DE100_32!AM1 -> 970.2
D31: Totals: | E31: =SUM(E26:E29) -> 93328.66363 | F31: =DE100_34!J25 -> 78660 | G31: =IF(F31>E31,(F31-E31)*-1,"OK") -> OK
C33: 2 | D33: Silt Fence for Ditch Checks | E33: =DE100_18!AM2 -> 35496.70707
D34: Silt Basins | E34: =DE100_14!AM2 -> 0
D35: Temporary Sediment Control Basin | E35: =DE100_33!AM2 -> 0
D36: Rock Check Dam | E36: =DE100_32!AM2 -> 0
D38: Totals: | E38: =SUM(E33:E36) -> 35496.70707 | F38: =DE100_34!J26 -> 31104 | G38: =IF(F38>E38,(F38-E38)*-1,"OK") -> OK
C40: 3 | D40: Silt Fence for Ditch Checks | E40: =DE100_18!AM3 -> 21285.29541
D41: Silt Basins | E41: =DE100_14!AM3 -> 0
D42: Temporary Sediment Control Basin | E42: =DE100_33!AM3 -> 0
D43: Rock Check Dam | E43: =DE100_32!AM3 -> 0
D45: Totals: | E45: =SUM(E40:E43) -> 21285.29541 | F45: =DE100_34!J27 -> 18648 | G45: =IF(F45>E45,(F45-E45)*-1,"OK") -> OK
C47: 4 | D47: Silt Fence for Ditch Checks | E47: =DE100_18!AM4 -> 65440.0282
D48: Silt Basins | E48: =DE100_14!AM4 -> 4775
D49: Temporary Sediment Control Basin | E49: =DE100_33!AM4 -> 0
D50: Rock Check Dam | E50: =DE100_32!AM4 -> 1108.8
D52: Totals: | E52: =SUM(E47:E50) -> 71323.8282 | F52: =DE100_34!J28 -> 57060 | G52: =IF(F52>E52,(F52-E52)*-1,"OK") -> OK
C54: 5 | D54: Silt Fence for Ditch Checks | E54: =DE100_18!AM5 -> 1412.671988
D55: Silt Basins | E55: =DE100_14!AM5 -> 0
D56: Temporary Sediment Control Basin | E56: =DE100_33!AM5 -> 0
D57: Rock Check Dam | E57: =DE100_32!AM5 -> 0
D59: Totals: | E59: =SUM(E54:E57) -> 1412.671988 | F59: =DE100_34!J29 -> 828 | G59: =IF(F59>E59,(F59-E59)*-1,"OK") -> OK
C61: 6 | D61: Silt Fence for Ditch Checks | E61: =DE100_18!AM6 -> 114824.2939
D62: Silt Basins | E62: =DE100_14!AM6 -> 3400
D63: Temporary Sediment Control Basin | E63: =DE100_33!AM6 -> 0
D64: Rock Check Dam | E64: =DE100_32!AM6 -> 12695.85
D66: Totals: | E66: =SUM(E61:E64) -> 130920.1439 | F66: =DE100_34!J30 -> 113292 | G66: =IF(F66>E66,(F66-E66)*-1,"OK") -> OK
C68: 7 | D68: Silt Fence for Ditch Checks | E68: =DE100_18!AM7 -> 4243.038525
D69: Silt Basins | E69: =DE100_14!AM7 -> 0
D70: Temporary Sediment Control Basin | E70: =DE100_33!AM7 -> 3071.157602
D71: Rock Check Dam | E71: =DE100_32!AM7 -> 0
D73: Totals: | E73: =SUM(E68:E71) -> 7314.196127 | F73: =DE100_34!J31 -> 5040 | G73: =IF(F73>E73,(F73-E73)*-1,"OK") -> OK
C75: 8 | D75: Silt Fence for Ditch Checks | E75: =DE100_18!AM8 -> 105697.9992
D76: Silt Basins | E76: =DE100_14!AM8 -> 4800
D77: Temporary Sediment Control Basin | E77: =DE100_33!AM8 -> 0
D78: Rock Check Dam | E78: =DE100_32!AM8 -> 0
D80: Totals: | E80: =SUM(E75:E78) -> 110497.9992 | F80: =DE100_34!J32 -> 94248 | G80: =IF(F80>E80,(F80-E80)*-1,"OK") -> OK
C82: 9 | D82: Silt Fence for Ditch Checks | E82: =DE100_18!AM9 -> 12789.31897
D83: Silt Basins | E83: =DE100_14!AM9 -> 5062.5
D84: Temporary Sediment Control Basin | E84: =DE100_33!AM9 -> 0
D85: Rock Check Dam | E85: =DE100_32!AM9 -> 5821.2
D87: Totals: | E87: =SUM(E82:E85) -> 23673.01897 | F87: =DE100_34!J33 -> 11700 | G87: =IF(F87>E87,(F87-E87)*-1,"OK") -> OK
C89: 10 | D89: Silt Fence for Ditch Checks | E89: =DE100_18!AM10 -> 659.2469276
D90: Silt Basins | E90: =DE100_14!AM10 -> 0
D91: Temporary Sediment Control Basin | E91: =DE100_33!AM10 -> 0
D92: Rock Check Dam | E92: =DE100_32!AM10 -> 0
D94: Totals: | E94: =SUM(E89:E92) -> 659.2469276 | F94: =DE100_34!J34 -> 216 | G94: =IF(F94>E94,(F94-E94)*-1,"OK") -> OK
C96: 11 | D96: Silt Fence for Ditch Checks | E96: =DE100_18!AM11 -> 53694.53723
D97: Silt Basins | E97: =DE100_14!AM11 -> 5075
D98: Temporary Sediment Control Basin | E98: =DE100_33!AM11 -> 0
D99: Rock Check Dam | E99: =DE100_32!AM11 -> 0
D101: Totals: | E101: =SUM(E96:E99) -> 58769.53723 | F101: =DE100_34!J35 -> 45720 | G101: =IF(F101>E101,(F101-E101)*-1,"OK") -> OK
C103: 12 | D103: Silt Fence for Ditch Checks | E103: =DE100_18!AM12 -> 43478.22269
D104: Silt Basins | E104: =DE100_14!AM12 -> 4753.75
D105: Temporary Sediment Control Basin | E105: =DE100_33!AM12 -> 0
D106: Rock Check Dam | E106: =DE100_32!AM12 -> 0
D108: Totals: | E108: =SUM(E103:E106) -> 48231.97269 | F108: =DE100_34!J36 -> 38664 | G108: =IF(F108>E108,(F108-E108)*-1,"OK") -> OK
C110: 13 | D110: Silt Fence for Ditch Checks | E110: =DE100_18!AM13 -> 1412.671988
D111: Silt Basins | E111: =DE100_14!AM13 -> 0
D112: Temporary Sediment Control Basin | E112: =DE100_33!AM13 -> 0
D113: Rock Check Dam | E113: =DE100_32!AM13 -> 0
D115: Totals: | E115: =SUM(E110:E113) -> 1412.671988 | F115: =DE100_34!J37 -> 792 | G115: =IF(F115>E115,(F115-E115)*-1,"OK") -> OK
C117: 14 | D117: Silt Fence for Ditch Checks | E117: =DE100_18!AM14 -> 69554.6129
D118: Silt Basins | E118: =DE100_14!AM14 -> 5350
D119: Temporary Sediment Control Basin | E119: =DE100_33!AM14 -> 0
D120: Rock Check Dam | E120: =DE100_32!AM14 -> 0
D122: Totals: | E122: =SUM(E117:E120) -> 74904.6129 | F122: =DE100_34!J38 -> 60840 | G122: =IF(F122>E122,(F122-E122)*-1,"OK") -> OK
C124: 15 | D124: Silt Fence for Ditch Checks | E124: =DE100_18!AM15 -> 3013.70024
D125: Silt Basins | E125: =DE100_14!AM15 -> 0
D126: Temporary Sediment Control Basin | E126: =DE100_33!AM15 -> 0
D127: Rock Check Dam | E127: =DE100_32!AM15 -> 0
D129: Totals: | E129: =SUM(E124:E127) -> 3013.70024 | F129: =DE100_34!J39 -> 900 | G129: =IF(F129>E129,(F129-E129)*-1,"OK") -> OK
C131: 16 | D131: Silt Fence for Ditch Checks | E131: =DE100_18!AM16 -> 59968.01384
D132: Silt Basins | E132: =DE100_14!AM16 -> 0
D133: Temporary Sediment Control Basin | E133: =DE100_33!AM16 -> 0
D134: Rock Check Dam | E134: =DE100_32!AM16 -> 0
D136: Totals: | E136: =SUM(E131:E134) -> 59968.01384 | F136: =DE100_34!J40 -> 55692 | G136: =IF(F136>E136,(F136-E136)*-1,"OK") -> OK
C138: 17 | D138: Silt Fence for Ditch Checks | E138: =DE100_18!AM17 -> 25506.4475
D139: Silt Basins | E139: =DE100_14!AM17 -> 5425
D140: Temporary Sediment Control Basin | E140: =DE100_33!AM17 -> 0
D141: Rock Check Dam | E141: =DE100_32!AM17 -> 0
D143: Totals: | E143: =SUM(E138:E141) -> 30931.4475 | F143: =DE100_34!J41 -> 19476 | G143: =IF(F143>E143,(F143-E143)*-1,"OK") -> OK
C145: 18 | D145: Silt Fence for Ditch Checks | E145: =DE100_18!AM18 -> 41433.60073
D146: Silt Basins | E146: =DE100_14!AM18 -> 5200
D147: Temporary Sediment Control Basin | E147: =DE100_33!AM18 -> 0
D148: Rock Check Dam | E148: =DE100_32!AM18 -> 0
D150: Totals: | E150: =SUM(E145:E148) -> 46633.60073 | F150: =DE100_34!J42 -> 36144 | G150: =IF(F150>E150,(F150-E150)*-1,"OK") -> OK
C152: 19 | D152: Silt Fence for Ditch Checks | E152: =DE100_18!AM19 -> 59178.88319
D153: Silt Basins | E153: =DE100_14!AM19 -> 0
D154: Temporary Sediment Control Basin | E154: =DE100_33!AM19 -> 0
D155: Rock Check Dam | E155: =DE100_32!AM19 -> 0
D157: Totals: | E157: =SUM(E152:E155) -> 59178.88319 | F157: =DE100_34!J43 -> 47412 | G157: =IF(F157>E157,(F157-E157)*-1,"OK") -> OK
C159: 20 | D159: Silt Fence for Ditch Checks | E159: =DE100_18!AM20 -> 19852.80625
D160: Silt Basins | E160: =DE100_14!AM20 -> 5412.5
D161: Temporary Sediment Control Basin | E161: =DE100_33!AM20 -> 0
D162: Rock Check Dam | E162: =DE100_32!AM20 -> 0
D164: Totals: | E164: =SUM(E159:E162) -> 25265.30625 | F164: =DE100_34!J44 -> 16848 | G164: =IF(F164>E164,(F164-E164)*-1,"OK") -> OK
C166: 21 | D166: Silt Fence for Ditch Checks | E166: =DE100_18!AM21 -> 22388.14371
D167: Silt Basins | E167: =DE100_14!AM21 -> 0
D168: Temporary Sediment Control Basin | E168: =DE100_33!AM21 -> 0
D169: Rock Check Dam | E169: =DE100_32!AM21 -> 0
D171: Totals: | E171: =SUM(E166:E169) -> 22388.14371 | F171: =DE100_34!J45 -> 18792 | G171: =IF(F171>E171,(F171-E171)*-1,"OK") -> OK
C173: 22 | D173: Silt Fence for Ditch Checks | E173: =DE100_18!AM22 -> 81186.0388
D174: Silt Basins | E174: =DE100_14!AM22 -> 3337.5
D175: Temporary Sediment Control Basin | E175: =DE100_33!AM22 -> 0
D176: Rock Check Dam | E176: =DE100_32!AM22 -> 1711.8
D178: Totals: | E178: =SUM(E173:E176) -> 86235.3388 | F178: =DE100_34!J46 -> 79200 | G178: =IF(F178>E178,(F178-E178)*-1,"OK") -> OK
C180: 23 | D180: Silt Fence for Ditch Checks | E180: =DE100_18!AM23 -> 9305.754948
D181: Silt Basins | E181: =DE100_14!AM23 -> 3575
D182: Temporary Sediment Control Basin | E182: =DE100_33!AM23 -> 0
D183: Rock Check Dam | E183: =DE100_32!AM23 -> 0
D185: Totals: | E185: =SUM(E180:E183) -> 12880.75495 | F185: =DE100_34!J47 -> 8028 | G185: =IF(F185>E185,(F185-E185)*-1,"OK") -> OK
C187: 24 | D187: Silt Fence for Ditch Checks | E187: =DE100_18!AM24 -> 28189.14136
D188: Silt Basins | E188: =DE100_14!AM24 -> 5075
D189: Temporary Sediment Control Basin | E189: =DE100_33!AM24 -> 0
D190: Rock Check Dam | E190: =DE100_32!AM24 -> 0
D192: Totals: | E192: =SUM(E187:E190) -> 33264.14136 | F192: =DE100_34!J48 -> 27576 | G192: =IF(F192>E192,(F192-E192)*-1,"OK") -> OK
C194: 25 | D194: Silt Fence for Ditch Checks | E194: =DE100_18!AM25 -> 4288.743591
D195: Silt Basins | E195: =DE100_14!AM25 -> 0
D196: Temporary Sediment Control Basin | E196: =DE100_33!AM25 -> 0
D197: Rock Check Dam | E197: =DE100_32!AM25 -> 0
D199: Totals: | E199: =SUM(E194:E197) -> 4288.743591 | F199: =DE100_34!J49 -> 4176 | G199: =IF(F199>E199,(F199-E199)*-1,"OK") -> OK
C201: 26 | D201: Silt Fence for Ditch Checks | E201: =DE100_18!AM26 -> 17472.46188
D202: Silt Basins | E202: =DE100_14!AM26 -> 5312.5
D203: Temporary Sediment Control Basin | E203: =DE100_33!AM26 -> 0
D204: Rock Check Dam | E204: =DE100_32!AM26 -> 0
D206: Totals: | E206: =SUM(E201:E204) -> 22784.96188 | F206: =DE100_34!J50 -> 22212 | G206: =IF(F206>E206,(F206-E206)*-1,"OK") -> OK
C208: 27 | D208: Silt Fence for Ditch Checks | E208: =DE100_18!AM27 -> 164944.2173
D209: Silt Basins | E209: =DE100_14!AM27 -> 0
D210: Temporary Sediment Control Basin | E210: =DE100_33!AM27 -> 0
D211: Rock Check Dam | E211: =DE100_32!AM27 -> 0
D213: Totals: | E213: =SUM(E208:E211) -> 164944.2173 | F213: =DE100_34!J51 -> 161172 | G213: =IF(F213>E213,(F213-E213)*-1,"OK") -> OK
C215: 28 | D215: Silt Fence for Ditch Checks | E215: =DE100_18!AM28 -> 5179.797288
D216: Silt Basins | E216: =DE100_14!AM28 -> 0
D217: Temporary Sediment Control Basin | E217: =DE100_33!AM28 -> 0
D218: Rock Check Dam | E218: =DE100_32!AM28 -> 0
D220: Totals: | E220: =SUM(E215:E218) -> 5179.797288 | F220: =DE100_34!J52 -> 2304 | G220: =IF(F220>E220,(F220-E220)*-1,"OK") -> OK
C222: 29 | D222: Silt Fence for Ditch Checks | E222: =DE100_18!AM29 -> 78983.0277
D223: Silt Basins | E223: =DE100_14!AM29 -> 4475
D224: Temporary Sediment Control Basin | E224: =DE100_33!AM29 -> 8227.812336
D225: Rock Check Dam | E225: =DE100_32!AM29 -> 0
D227: Totals: | E227: =SUM(E222:E225) -> 91685.84004 | F227: =DE100_34!J53 -> 88344 | G227: =IF(F227>E227,(F227-E227)*-1,"OK") -> OK
C229: 30 | D229: Silt Fence for Ditch Checks | E229: =DE100_18!AM30 -> 7110.449004
D230: Silt Basins | E230: =DE100_14!AM30 -> 0
D231: Temporary Sediment Control Basin | E231: =DE100_33!AM30 -> 0
D232: Rock Check Dam | E232: =DE100_32!AM30 -> 0
D234: Totals: | E234: =SUM(E229:E232) -> 7110.449004 | F234: =DE100_34!J54 -> 3600 | G234: =IF(F234>E234,(F234-E234)*-1,"OK") -> OK
C236: 31 | D236: Silt Fence for Ditch Checks | E236: =DE100_18!AM31 -> 4944.351957
D237: Silt Basins | E237: =DE100_14!AM31 -> 0
D238: Temporary Sediment Control Basin | E238: =DE100_33!AM31 -> 0
D239: Rock Check Dam | E239: =DE100_32!AM31 -> 0
D241: Totals: | E241: =SUM(E236:E239) -> 4944.351957 | F241: =DE100_34!J55 -> 2196 | G241: =IF(F241>E241,(F241-E241)*-1,"OK") -> OK
C243: 32 | D243: Silt Fence for Ditch Checks | E243: =DE100_18!AM32 -> 12343.3848
D244: Silt Basins | E244: =DE100_14!AM32 -> 5337.5
D245: Temporary Sediment Control Basin | E245: =DE100_33!AM32 -> 0
D246: Rock Check Dam | E246: =DE100_32!AM32 -> 0
D248: Totals: | E248: =SUM(E243:E246) -> 17680.8848 | F248: =DE100_34!J56 -> 12420 | G248: =IF(F248>E248,(F248-E248)*-1,"OK") -> OK
C250: 33 | D250: Silt Fence for Ditch Checks | E250: =DE100_18!AM33 -> 19093.67336
D251: Silt Basins | E251: =DE100_14!AM33 -> 5037.5
D252: Temporary Sediment Control Basin | E252: =DE100_33!AM33 -> 0
D253: Rock Check Dam | E253: =DE100_32!AM33 -> 0
D255: Totals: | E255: =SUM(E250:E253) -> 24131.17336 | F255: =DE100_34!J57 -> 22248 | G255: =IF(F255>E255,(F255-E255)*-1,"OK") -> OK
C257: 34 | D257: Silt Fence for Ditch Checks | E257: =DE100_18!AM34 -> 83662.245
D258: Silt Basins | E258: =DE100_14!AM34 -> 0
D259: Temporary Sediment Control Basin | E259: =DE100_33!AM34 -> 0
D260: Rock Check Dam | E260: =DE100_32!AM34 -> 0
D262: Totals: | E262: =SUM(E257:E260) -> 83662.245 | F262: =DE100_34!J58 -> 76824 | G262: =IF(F262>E262,(F262-E262)*-1,"OK") -> OK
C264: 35 | D264: Silt Fence for Ditch Checks | E264: =DE100_18!AM35 -> 4238.015963
D265: Silt Basins | E265: =DE100_14!AM35 -> 0
D266: Temporary Sediment Control Basin | E266: =DE100_33!AM35 -> 0
D267: Rock Check Dam | E267: =DE100_32!AM35 -> 0
D269: Totals: | E269: =SUM(E264:E267) -> 4238.015963 | F269: =DE100_34!J59 -> 1836 | G269: =IF(F269>E269,(F269-E269)*-1,"OK") -> OK
C271: 36 | D271: Silt Fence for Ditch Checks | E271: =DE100_18!AM36 -> 29129.46619
D272: Silt Basins | E272: =DE100_14!AM36 -> 0
D273: Temporary Sediment Control Basin | E273: =DE100_33!AM36 -> 0
... 32 more rows

Sheet 100_14
A1: 100-14
A2: 2016-10-18
A3: SILT BASINS
A6: Possible Standard: EW-403
A19: * The functional height used in the volume equation is 95% of effective height. Effective height is 3 feet as shown in EW-403.
A20: * Volume equation: (0.5*Length*(Width*Height+Width*(Height-Length*Avg%Slope))
A21: Basin No. | B21: Location | D21: Bid Items | F21: Stormwater Storage Volume Summary | K21: Remarks
B22: Station | C22: Side | D22: Installation | E22: Removal | F22: Basin Width | G22: Basin Length | H22: Height | I22: Avg. % Slope | J22: Volume*
D23: EACH | E23: EACH | F23: FT | G23: FT | H23: FT | J23: CF
A24: =IF(OFFSET(DE100_14!$C$38,ROWS($C$38:C38)-1,COLUMNS($C$38:C38)-1)<>"",OFFSET(DE100_14!$C$38,ROWS($C$38:C38)-1,COLUMNS($C$38:C38)-1),"") ->  | B24: =IF(OFFSET(DE100_14!$D$38,ROWS($D$38:D38)-1,COLUMNS($D$38:D38)-1)<>"",OFFSET(DE100_14!$D$38,ROWS($D$38:D38)-1,COLUMNS($D$38:D38)-1),"") ->  | C24: =IF(OFFSET(DE100_14!$E$38,ROWS($E$38:E38)-1,COLUMNS($E$38:E38)-1)<>"",OFFSET(DE100_14!$E$38,ROWS($E$38:E38)-1,COLUMNS($E$38:E38)-1),"") ->  | D24: =IF(OFFSET(DE100_14!$F$38,ROWS($F$38:F38)-1,COLUMNS($F$38:F38)-1)<>"",OFFSET(DE100_14!$F$38,ROWS($F$38:F38)-1,COLUMNS($F$38:F38)-1),"") ->  | E24: =IF(OFFSET(DE100_14!$G$38,ROWS($G$38:G38)-1,COLUMNS($G$38:G38)-1)<>"",OFFSET(DE100_14!$G$38,ROWS($G$38:G38)-1,COLUMNS($G$38:G38)-1),"") ->  | F24: =IF(OFFSET(DE100_14!$H$38,ROWS($H$38:H38)-1,COLUMNS($H$38:H38)-1)<>"",OFFSET(DE100_14!$H$38,ROWS($H$38:H38)-1,COLUMNS($H$38:H38)-1),"") ->  | G24: =IF(OFFSET(DE100_14!$I$38,ROWS($I$38:I38)-1,COLUMNS($I$38:I38)-1)<>"",OFFSET(DE100_14!$I$38,ROWS($I$38:I38)-1,COLUMNS($I$38:I38)-1),"") ->  | H24: =IF(OFFSET(DE100_14!$J$38,ROWS($J$38:J38)-1,COLUMNS($J$38:J38)-1)<>"",OFFSET(DE100_14!$J$38,ROWS($J$38:J38)-1,COLUMNS($J$38:J38)-1),"") ->  | I24: =IF(OFFSET(DE100_14!$K$38,ROWS($K$38:K38)-1,COLUMNS($K$38:K38)-1)<>"",OFFSET(DE100_14!$K$38,ROWS($K$38:K38)-1,COLUMNS($K$38:K38)-1),"") ->  | J24: =IF(OFFSET(DE100_14!$L$38,ROWS($L$38:L38)-1,COLUMNS($L$38:L38)-1)<>"",OFFSET(DE100_14!$L$38,ROWS($L$38:L38)-1,COLUMNS($L$38:L38)-1),"") ->  | K24: =IF(OFFSET(DE100_14!$N$38,ROWS($N$38:N38)-1,COLUMNS($N$38:N38)-1)<>"",OFFSET(DE100_14!$N$38,ROWS($N$38:N38)-1,COLUMNS($N$38:N38)-1),"") -> 
A25: =IF(OFFSET(DE100_14!$C$38,ROWS($C$38:C39)-1,COLUMNS($C$38:C39)-1)<>"",OFFSET(DE100_14!$C$38,ROWS($C$38:C39)-1,COLUMNS($C$38:C39)-1),"") -> 1 | B25: =IF(OFFSET(DE100_14!$D$38,ROWS($D$38:D39)-1,COLUMNS($D$38:D39)-1)<>"",OFFSET(DE100_14!$D$38,ROWS($D$38:D39)-1,COLUMNS($D$38:D39)-1),"") -> 78840 | C25: =IF(OFFSET(DE100_14!$E$38,ROWS($E$38:E39)-1,COLUMNS($E$38:E39)-1)<>"",OFFSET(DE100_14!$E$38,ROWS($E$38:E39)-1,COLUMNS($E$38:E39)-1),"") -> Rt. | D25: =IF(OFFSET(DE100_14!$F$38,ROWS($F$38:F39)-1,COLUMNS($F$38:F39)-1)<>"",OFFSET(DE100_14!$F$38,ROWS($F$38:F39)-1,COLUMNS($F$38:F39)-1),"") -> 1 | E25: =IF(OFFSET(DE100_14!$G$38,ROWS($G$38:G39)-1,COLUMNS($G$38:G39)-1)<>"",OFFSET(DE100_14!$G$38,ROWS($G$38:G39)-1,COLUMNS($G$38:G39)-1),"") -> 1 | F25: =IF(OFFSET(DE100_14!$H$38,ROWS($H$38:H39)-1,COLUMNS($H$38:H39)-1)<>"",OFFSET(DE100_14!$H$38,ROWS($H$38:H39)-1,COLUMNS($H$38:H39)-1),"") -> 10 | G25: =IF(OFFSET(DE100_14!$I$38,ROWS($I$38:I39)-1,COLUMNS($I$38:I39)-1)<>"",OFFSET(DE100_14!$I$38,ROWS($I$38:I39)-1,COLUMNS($I$38:I39)-1),"") -> 50 | H25: =IF(OFFSET(DE100_14!$J$38,ROWS($J$38:J39)-1,COLUMNS($J$38:J39)-1)<>"",OFFSET(DE100_14!$J$38,ROWS($J$38:J39)-1,COLUMNS($J$38:J39)-1),"") -> 2.85 | I25: =IF(OFFSET(DE100_14!$K$38,ROWS($K$38:K39)-1,COLUMNS($K$38:K39)-1)<>"",OFFSET(DE100_14!$K$38,ROWS($K$38:K39)-1,COLUMNS($K$38:K39)-1),"") -> -0.006 | J25: =IF(OFFSET(DE100_14!$L$38,ROWS($L$38:L39)-1,COLUMNS($L$38:L39)-1)<>"",OFFSET(DE100_14!$L$38,ROWS($L$38:L39)-1,COLUMNS($L$38:L39)-1),"") -> 1350 | K25: =IF(OFFSET(DE100_14!$N$38,ROWS($N$38:N39)-1,COLUMNS($N$38:N39)-1)<>"",OFFSET(DE100_14!$N$38,ROWS($N$38:N39)-1,COLUMNS($N$38:N39)-1),"") -> 
A26: =IF(OFFSET(DE100_14!$C$38,ROWS($C$38:C40)-1,COLUMNS($C$38:C40)-1)<>"",OFFSET(DE100_14!$C$38,ROWS($C$38:C40)-1,COLUMNS($C$38:C40)-1),"") -> 1 | B26: =IF(OFFSET(DE100_14!$D$38,ROWS($D$38:D40)-1,COLUMNS($D$38:D40)-1)<>"",OFFSET(DE100_14!$D$38,ROWS($D$38:D40)-1,COLUMNS($D$38:D40)-1),"") -> 78900 | C26: =IF(OFFSET(DE100_14!$E$38,ROWS($E$38:E40)-1,COLUMNS($E$38:E40)-1)<>"",OFFSET(DE100_14!$E$38,ROWS($E$38:E40)-1,COLUMNS($E$38:E40)-1),"") -> Rt. | D26: =IF(OFFSET(DE100_14!$F$38,ROWS($F$38:F40)-1,COLUMNS($F$38:F40)-1)<>"",OFFSET(DE100_14!$F$38,ROWS($F$38:F40)-1,COLUMNS($F$38:F40)-1),"") -> 1 | E26: =IF(OFFSET(DE100_14!$G$38,ROWS($G$38:G40)-1,COLUMNS($G$38:G40)-1)<>"",OFFSET(DE100_14!$G$38,ROWS($G$38:G40)-1,COLUMNS($G$38:G40)-1),"") -> 1 | F26: =IF(OFFSET(DE100_14!$H$38,ROWS($H$38:H40)-1,COLUMNS($H$38:H40)-1)<>"",OFFSET(DE100_14!$H$38,ROWS($H$38:H40)-1,COLUMNS($H$38:H40)-1),"") -> 10 | G26: =IF(OFFSET(DE100_14!$I$38,ROWS($I$38:I40)-1,COLUMNS($I$38:I40)-1)<>"",OFFSET(DE100_14!$I$38,ROWS($I$38:I40)-1,COLUMNS($I$38:I40)-1),"") -> 50 | H26: =IF(OFFSET(DE100_14!$J$38,ROWS($J$38:J40)-1,COLUMNS($J$38:J40)-1)<>"",OFFSET(DE100_14!$J$38,ROWS($J$38:J40)-1,COLUMNS($J$38:J40)-1),"") -> 2.85 | I26: =IF(OFFSET(DE100_14!$K$38,ROWS($K$38:K40)-1,COLUMNS($K$38:K40)-1)<>"",OFFSET(DE100_14!$K$38,ROWS($K$38:K40)-1,COLUMNS($K$38:K40)-1),"") -> 0.005 | J26: =IF(OFFSET(DE100_14!$L$38,ROWS($L$38:L40)-1,COLUMNS($L$38:L40)-1)<>"",OFFSET(DE100_14!$L$38,ROWS($L$38:L40)-1,COLUMNS($L$38:L40)-1),"") -> 1362.5 | K26: =IF(OFFSET(DE100_14!$N$38,ROWS($N$38:N40)-1,COLUMNS($N$38:N40)-1)<>"",OFFSET(DE100_14!$N$38,ROWS($N$38:N40)-1,COLUMNS($N$38:N40)-1),"") -> 
A27: =IF(OFFSET(DE100_14!$C$38,ROWS($C$38:C41)-1,COLUMNS($C$38:C41)-1)<>"",OFFSET(DE100_14!$C$38,ROWS($C$38:C41)-1,COLUMNS($C$38:C41)-1),"") ->  | B27: =IF(OFFSET(DE100_14!$D$38,ROWS($D$38:D41)-1,COLUMNS($D$38:D41)-1)<>"",OFFSET(DE100_14!$D$38,ROWS($D$38:D41)-1,COLUMNS($D$38:D41)-1),"") ->  | C27: =IF(OFFSET(DE100_14!$E$38,ROWS($E$38:E41)-1,COLUMNS($E$38:E41)-1)<>"",OFFSET(DE100_14!$E$38,ROWS($E$38:E41)-1,COLUMNS($E$38:E41)-1),"") ->  | D27: =IF(OFFSET(DE100_14!$F$38,ROWS($F$38:F41)-1,COLUMNS($F$38:F41)-1)<>"",OFFSET(DE100_14!$F$38,ROWS($F$38:F41)-1,COLUMNS($F$38:F41)-1),"") ->  | E27: =IF(OFFSET(DE100_14!$G$38,ROWS($G$38:G41)-1,COLUMNS($G$38:G41)-1)<>"",OFFSET(DE100_14!$G$38,ROWS($G$38:G41)-1,COLUMNS($G$38:G41)-1),"") ->  | F27: =IF(OFFSET(DE100_14!$H$38,ROWS($H$38:H41)-1,COLUMNS($H$38:H41)-1)<>"",OFFSET(DE100_14!$H$38,ROWS($H$38:H41)-1,COLUMNS($H$38:H41)-1),"") ->  | G27: =IF(OFFSET(DE100_14!$I$38,ROWS($I$38:I41)-1,COLUMNS($I$38:I41)-1)<>"",OFFSET(DE100_14!$I$38,ROWS($I$38:I41)-1,COLUMNS($I$38:I41)-1),"") ->  | H27: =IF(OFFSET(DE100_14!$J$38,ROWS($J$38:J41)-1,COLUMNS($J$38:J41)-1)<>"",OFFSET(DE100_14!$J$38,ROWS($J$38:J41)-1,COLUMNS($J$38:J41)-1),"") ->  | I27: =IF(OFFSET(DE100_14!$K$38,ROWS($K$38:K41)-1,COLUMNS($K$38:K41)-1)<>"",OFFSET(DE100_14!$K$38,ROWS($K$38:K41)-1,COLUMNS($K$38:K41)-1),"") ->  | J27: =IF(OFFSET(DE100_14!$L$38,ROWS($L$38:L41)-1,COLUMNS($L$38:L41)-1)<>"",OFFSET(DE100_14!$L$38,ROWS($L$38:L41)-1,COLUMNS($L$38:L41)-1),"") ->  | K27: =IF(OFFSET(DE100_14!$N$38,ROWS($N$38:N41)-1,COLUMNS($N$38:N41)-1)<>"",OFFSET(DE100_14!$N$38,ROWS($N$38:N41)-1,COLUMNS($N$38:N41)-1),"") -> 
A28: =IF(OFFSET(DE100_14!$C$38,ROWS($C$38:C42)-1,COLUMNS($C$38:C42)-1)<>"",OFFSET(DE100_14!$C$38,ROWS($C$38:C42)-1,COLUMNS($C$38:C42)-1),"") -> 4 | B28: =IF(OFFSET(DE100_14!$D$38,ROWS($D$38:D42)-1,COLUMNS($D$38:D42)-1)<>"",OFFSET(DE100_14!$D$38,ROWS($D$38:D42)-1,COLUMNS($D$38:D42)-1),"") -> 84405 | C28: =IF(OFFSET(DE100_14!$E$38,ROWS($E$38:E42)-1,COLUMNS($E$38:E42)-1)<>"",OFFSET(DE100_14!$E$38,ROWS($E$38:E42)-1,COLUMNS($E$38:E42)-1),"") -> Lt. | D28: =IF(OFFSET(DE100_14!$F$38,ROWS($F$38:F42)-1,COLUMNS($F$38:F42)-1)<>"",OFFSET(DE100_14!$F$38,ROWS($F$38:F42)-1,COLUMNS($F$38:F42)-1),"") -> 1 | E28: =IF(OFFSET(DE100_14!$G$38,ROWS($G$38:G42)-1,COLUMNS($G$38:G42)-1)<>"",OFFSET(DE100_14!$G$38,ROWS($G$38:G42)-1,COLUMNS($G$38:G42)-1),"") -> 1 | F28: =IF(OFFSET(DE100_14!$H$38,ROWS($H$38:H42)-1,COLUMNS($H$38:H42)-1)<>"",OFFSET(DE100_14!$H$38,ROWS($H$38:H42)-1,COLUMNS($H$38:H42)-1),"") -> 10 | G28: =IF(OFFSET(DE100_14!$I$38,ROWS($I$38:I42)-1,COLUMNS($I$38:I42)-1)<>"",OFFSET(DE100_14!$I$38,ROWS($I$38:I42)-1,COLUMNS($I$38:I42)-1),"") -> 50 | H28: =IF(OFFSET(DE100_14!$J$38,ROWS($J$38:J42)-1,COLUMNS($J$38:J42)-1)<>"",OFFSET(DE100_14!$J$38,ROWS($J$38:J42)-1,COLUMNS($J$38:J42)-1),"") -> 2.85 | I28: =IF(OFFSET(DE100_14!$K$38,ROWS($K$38:K42)-1,COLUMNS($K$38:K42)-1)<>"",OFFSET(DE100_14!$K$38,ROWS($K$38:K42)-1,COLUMNS($K$38:K42)-1),"") -> -0.012 | J28: =IF(OFFSET(DE100_14!$L$38,ROWS($L$38:L42)-1,COLUMNS($L$38:L42)-1)<>"",OFFSET(DE100_14!$L$38,ROWS($L$38:L42)-1,COLUMNS($L$38:L42)-1),"") -> 1275 | K28: =IF(OFFSET(DE100_14!$N$38,ROWS($N$38:N42)-1,COLUMNS($N$38:N42)-1)<>"",OFFSET(DE100_14!$N$38,ROWS($N$38:N42)-1,COLUMNS($N$38:N42)-1),"") -> 
A29: =IF(OFFSET(DE100_14!$C$38,ROWS($C$38:C43)-1,COLUMNS($C$38:C43)-1)<>"",OFFSET(DE100_14!$C$38,ROWS($C$38:C43)-1,COLUMNS($C$38:C43)-1),"") -> 4 | B29: =IF(OFFSET(DE100_14!$D$38,ROWS($D$38:D43)-1,COLUMNS($D$38:D43)-1)<>"",OFFSET(DE100_14!$D$38,ROWS($D$38:D43)-1,COLUMNS($D$38:D43)-1),"") -> 84465 | C29: =IF(OFFSET(DE100_14!$E$38,ROWS($E$38:E43)-1,COLUMNS($E$38:E43)-1)<>"",OFFSET(DE100_14!$E$38,ROWS($E$38:E43)-1,COLUMNS($E$38:E43)-1),"") -> Lt. | D29: =IF(OFFSET(DE100_14!$F$38,ROWS($F$38:F43)-1,COLUMNS($F$38:F43)-1)<>"",OFFSET(DE100_14!$F$38,ROWS($F$38:F43)-1,COLUMNS($F$38:F43)-1),"") -> 1 | E29: =IF(OFFSET(DE100_14!$G$38,ROWS($G$38:G43)-1,COLUMNS($G$38:G43)-1)<>"",OFFSET(DE100_14!$G$38,ROWS($G$38:G43)-1,COLUMNS($G$38:G43)-1),"") -> 1 | F29: =IF(OFFSET(DE100_14!$H$38,ROWS($H$38:H43)-1,COLUMNS($H$38:H43)-1)<>"",OFFSET(DE100_14!$H$38,ROWS($H$38:H43)-1,COLUMNS($H$38:H43)-1),"") -> 10 | G29: =IF(OFFSET(DE100_14!$I$38,ROWS($I$38:I43)-1,COLUMNS($I$38:I43)-1)<>"",OFFSET(DE100_14!$I$38,ROWS($I$38:I43)-1,COLUMNS($I$38:I43)-1),"") -> 50 | H29: =IF(OFFSET(DE100_14!$J$38,ROWS($J$38:J43)-1,COLUMNS($J$38:J43)-1)<>"",OFFSET(DE100_14!$J$38,ROWS($J$38:J43)-1,COLUMNS($J$38:J43)-1),"") -> 2.85 | I29: =IF(OFFSET(DE100_14!$K$38,ROWS($K$38:K43)-1,COLUMNS($K$38:K43)-1)<>"",OFFSET(DE100_14!$K$38,ROWS($K$38:K43)-1,COLUMNS($K$38:K43)-1),"") -> 0.012 | J29: =IF(OFFSET(DE100_14!$L$38,ROWS($L$38:L43)-1,COLUMNS($L$38:L43)-1)<>"",OFFSET(DE100_14!$L$38,ROWS($L$38:L43)-1,COLUMNS($L$38:L43)-1),"") -> 1275 | K29: =IF(OFFSET(DE100_14!$N$38,ROWS($N$38:N43)-1,COLUMNS($N$38:N43)-1)<>"",OFFSET(DE100_14!$N$38,ROWS($N$38:N43)-1,COLUMNS($N$38:N43)-1),"") -> 
A30: =IF(OFFSET(DE100_14!$C$38,ROWS($C$38:C44)-1,COLUMNS($C$38:C44)-1)<>"",OFFSET(DE100_14!$C$38,ROWS($C$38:C44)-1,COLUMNS($C$38:C44)-1),"") -> 4 | B30: =IF(OFFSET(DE100_14!$D$38,ROWS($D$38:D44)-1,COLUMNS($D$38:D44)-1)<>"",OFFSET(DE100_14!$D$38,ROWS($D$38:D44)-1,COLUMNS($D$38:D44)-1),"") -> 84405 | C30: =IF(OFFSET(DE100_14!$E$38,ROWS($E$38:E44)-1,COLUMNS($E$38:E44)-1)<>"",OFFSET(DE100_14!$E$38,ROWS($E$38:E44)-1,COLUMNS($E$38:E44)-1),"") -> Rt. | D30: =IF(OFFSET(DE100_14!$F$38,ROWS($F$38:F44)-1,COLUMNS($F$38:F44)-1)<>"",OFFSET(DE100_14!$F$38,ROWS($F$38:F44)-1,COLUMNS($F$38:F44)-1),"") -> 1 | E30: =IF(OFFSET(DE100_14!$G$38,ROWS($G$38:G44)-1,COLUMNS($G$38:G44)-1)<>"",OFFSET(DE100_14!$G$38,ROWS($G$38:G44)-1,COLUMNS($G$38:G44)-1),"") -> 1 | F30: =IF(OFFSET(DE100_14!$H$38,ROWS($H$38:H44)-1,COLUMNS($H$38:H44)-1)<>"",OFFSET(DE100_14!$H$38,ROWS($H$38:H44)-1,COLUMNS($H$38:H44)-1),"") -> 10 | G30: =IF(OFFSET(DE100_14!$I$38,ROWS($I$38:I44)-1,COLUMNS($I$38:I44)-1)<>"",OFFSET(DE100_14!$I$38,ROWS($I$38:I44)-1,COLUMNS($I$38:I44)-1),"") -> 50 | H30: =IF(OFFSET(DE100_14!$J$38,ROWS($J$38:J44)-1,COLUMNS($J$38:J44)-1)<>"",OFFSET(DE100_14!$J$38,ROWS($J$38:J44)-1,COLUMNS($J$38:J44)-1),"") -> 2.85 | I30: =IF(OFFSET(DE100_14!$K$38,ROWS($K$38:K44)-1,COLUMNS($K$38:K44)-1)<>"",OFFSET(DE100_14!$K$38,ROWS($K$38:K44)-1,COLUMNS($K$38:K44)-1),"") -> -0.03 | J30: =IF(OFFSET(DE100_14!$L$38,ROWS($L$38:L44)-1,COLUMNS($L$38:L44)-1)<>"",OFFSET(DE100_14!$L$38,ROWS($L$38:L44)-1,COLUMNS($L$38:L44)-1),"") -> 1050 | K30: =IF(OFFSET(DE100_14!$N$38,ROWS($N$38:N44)-1,COLUMNS($N$38:N44)-1)<>"",OFFSET(DE100_14!$N$38,ROWS($N$38:N44)-1,COLUMNS($N$38:N44)-1),"") -> 
A31: =IF(OFFSET(DE100_14!$C$38,ROWS($C$38:C45)-1,COLUMNS($C$38:C45)-1)<>"",OFFSET(DE100_14!$C$38,ROWS($C$38:C45)-1,COLUMNS($C$38:C45)-1),"") -> 4 | B31: =IF(OFFSET(DE100_14!$D$38,ROWS($D$38:D45)-1,COLUMNS($D$38:D45)-1)<>"",OFFSET(DE100_14!$D$38,ROWS($D$38:D45)-1,COLUMNS($D$38:D45)-1),"") -> 84465 | C31: =IF(OFFSET(DE100_14!$E$38,ROWS($E$38:E45)-1,COLUMNS($E$38:E45)-1)<>"",OFFSET(DE100_14!$E$38,ROWS($E$38:E45)-1,COLUMNS($E$38:E45)-1),"") -> Rt. | D31: =IF(OFFSET(DE100_14!$F$38,ROWS($F$38:F45)-1,COLUMNS($F$38:F45)-1)<>"",OFFSET(DE100_14!$F$38,ROWS($F$38:F45)-1,COLUMNS($F$38:F45)-1),"") -> 1 | E31: =IF(OFFSET(DE100_14!$G$38,ROWS($G$38:G45)-1,COLUMNS($G$38:G45)-1)<>"",OFFSET(DE100_14!$G$38,ROWS($G$38:G45)-1,COLUMNS($G$38:G45)-1),"") -> 1 | F31: =IF(OFFSET(DE100_14!$H$38,ROWS($H$38:H45)-1,COLUMNS($H$38:H45)-1)<>"",OFFSET(DE100_14!$H$38,ROWS($H$38:H45)-1,COLUMNS($H$38:H45)-1),"") -> 10 | G31: =IF(OFFSET(DE100_14!$I$38,ROWS($I$38:I45)-1,COLUMNS($I$38:I45)-1)<>"",OFFSET(DE100_14!$I$38,ROWS($I$38:I45)-1,COLUMNS($I$38:I45)-1),"") -> 50 | H31: =IF(OFFSET(DE100_14!$J$38,ROWS($J$38:J45)-1,COLUMNS($J$38:J45)-1)<>"",OFFSET(DE100_14!$J$38,ROWS($J$38:J45)-1,COLUMNS($J$38:J45)-1),"") -> 2.85 | I31: =IF(OFFSET(DE100_14!$K$38,ROWS($K$38:K45)-1,COLUMNS($K$38:K45)-1)<>"",OFFSET(DE100_14!$K$38,ROWS($K$38:K45)-1,COLUMNS($K$38:K45)-1),"") -> 0.02 | J31: =IF(OFFSET(DE100_14!$L$38,ROWS($L$38:L45)-1,COLUMNS($L$38:L45)-1)<>"",OFFSET(DE100_14!$L$38,ROWS($L$38:L45)-1,COLUMNS($L$38:L45)-1),"") -> 1175 | K31: =IF(OFFSET(DE100_14!$N$38,ROWS($N$38:N45)-1,COLUMNS($N$38:N45)-1)<>"",OFFSET(DE100_14!$N$38,ROWS($N$38:N45)-1,COLUMNS($N$38:N45)-1),"") -> 
A32: =IF(OFFSET(DE100_14!$C$38,ROWS($C$38:C46)-1,COLUMNS($C$38:C46)-1)<>"",OFFSET(DE100_14!$C$38,ROWS($C$38:C46)-1,COLUMNS($C$38:C46)-1),"") ->  | B32: =IF(OFFSET(DE100_14!$D$38,ROWS($D$38:D46)-1,COLUMNS($D$38:D46)-1)<>"",OFFSET(DE100_14!$D$38,ROWS($D$38:D46)-1,COLUMNS($D$38:D46)-1),"") ->  | C32: =IF(OFFSET(DE100_14!$E$38,ROWS($E$38:E46)-1,COLUMNS($E$38:E46)-1)<>"",OFFSET(DE100_14!$E$38,ROWS($E$38:E46)-1,COLUMNS($E$38:E46)-1),"") ->  | D32: =IF(OFFSET(DE100_14!$F$38,ROWS($F$38:F46)-1,COLUMNS($F$38:F46)-1)<>"",OFFSET(DE100_14!$F$38,ROWS($F$38:F46)-1,COLUMNS($F$38:F46)-1),"") ->  | E32: =IF(OFFSET(DE100_14!$G$38,ROWS($G$38:G46)-1,COLUMNS($G$38:G46)-1)<>"",OFFSET(DE100_14!$G$38,ROWS($G$38:G46)-1,COLUMNS($G$38:G46)-1),"") ->  | F32: =IF(OFFSET(DE100_14!$H$38,ROWS($H$38:H46)-1,COLUMNS($H$38:H46)-1)<>"",OFFSET(DE100_14!$H$38,ROWS($H$38:H46)-1,COLUMNS($H$38:H46)-1),"") ->  | G32: =IF(OFFSET(DE100_14!$I$38,ROWS($I$38:I46)-1,COLUMNS($I$38:I46)-1)<>"",OFFSET(DE100_14!$I$38,ROWS($I$38:I46)-1,COLUMNS($I$38:I46)-1),"") ->  | H32: =IF(OFFSET(DE100_14!$J$38,ROWS($J$38:J46)-1,COLUMNS($J$38:J46)-1)<>"",OFFSET(DE100_14!$J$38,ROWS($J$38:J46)-1,COLUMNS($J$38:J46)-1),"") ->  | I32: =IF(OFFSET(DE100_14!$K$38,ROWS($K$38:K46)-1,COLUMNS($K$38:K46)-1)<>"",OFFSET(DE100_14!$K$38,ROWS($K$38:K46)-1,COLUMNS($K$38:K46)-1),"") ->  | J32: =IF(OFFSET(DE100_14!$L$38,ROWS($L$38:L46)-1,COLUMNS($L$38:L46)-1)<>"",OFFSET(DE100_14!$L$38,ROWS($L$38:L46)-1,COLUMNS($L$38:L46)-1),"") ->  | K32: =IF(OFFSET(DE100_14!$N$38,ROWS($N$38:N46)-1,COLUMNS($N$38:N46)-1)<>"",OFFSET(DE100_14!$N$38,ROWS($N$38:N46)-1,COLUMNS($N$38:N46)-1),"") -> 
A33: =IF(OFFSET(DE100_14!$C$38,ROWS($C$38:C47)-1,COLUMNS($C$38:C47)-1)<>"",OFFSET(DE100_14!$C$38,ROWS($C$38:C47)-1,COLUMNS($C$38:C47)-1),"") -> 6 | B33: =IF(OFFSET(DE100_14!$D$38,ROWS($D$38:D47)-1,COLUMNS($D$38:D47)-1)<>"",OFFSET(DE100_14!$D$38,ROWS($D$38:D47)-1,COLUMNS($D$38:D47)-1),"") -> 86935 | C33: =IF(OFFSET(DE100_14!$E$38,ROWS($E$38:E47)-1,COLUMNS($E$38:E47)-1)<>"",OFFSET(DE100_14!$E$38,ROWS($E$38:E47)-1,COLUMNS($E$38:E47)-1),"") -> Lt. | D33: =IF(OFFSET(DE100_14!$F$38,ROWS($F$38:F47)-1,COLUMNS($F$38:F47)-1)<>"",OFFSET(DE100_14!$F$38,ROWS($F$38:F47)-1,COLUMNS($F$38:F47)-1),"") -> 1 | E33: =IF(OFFSET(DE100_14!$G$38,ROWS($G$38:G47)-1,COLUMNS($G$38:G47)-1)<>"",OFFSET(DE100_14!$G$38,ROWS($G$38:G47)-1,COLUMNS($G$38:G47)-1),"") -> 1 | F33: =IF(OFFSET(DE100_14!$H$38,ROWS($H$38:H47)-1,COLUMNS($H$38:H47)-1)<>"",OFFSET(DE100_14!$H$38,ROWS($H$38:H47)-1,COLUMNS($H$38:H47)-1),"") -> 10 | G33: =IF(OFFSET(DE100_14!$I$38,ROWS($I$38:I47)-1,COLUMNS($I$38:I47)-1)<>"",OFFSET(DE100_14!$I$38,ROWS($I$38:I47)-1,COLUMNS($I$38:I47)-1),"") -> 50 | H33: =IF(OFFSET(DE100_14!$J$38,ROWS($J$38:J47)-1,COLUMNS($J$38:J47)-1)<>"",OFFSET(DE100_14!$J$38,ROWS($J$38:J47)-1,COLUMNS($J$38:J47)-1),"") -> 2.85 | I33: =IF(OFFSET(DE100_14!$K$38,ROWS($K$38:K47)-1,COLUMNS($K$38:K47)-1)<>"",OFFSET(DE100_14!$K$38,ROWS($K$38:K47)-1,COLUMNS($K$38:K47)-1),"") -> -0.137 | J33: =IF(OFFSET(DE100_14!$L$38,ROWS($L$38:L47)-1,COLUMNS($L$38:L47)-1)<>"",OFFSET(DE100_14!$L$38,ROWS($L$38:L47)-1,COLUMNS($L$38:L47)-1),"") -> 712.5 | K33: =IF(OFFSET(DE100_14!$N$38,ROWS($N$38:N47)-1,COLUMNS($N$38:N47)-1)<>"",OFFSET(DE100_14!$N$38,ROWS($N$38:N47)-1,COLUMNS($N$38:N47)-1),"") -> 
A34: =IF(OFFSET(DE100_14!$C$38,ROWS($C$38:C48)-1,COLUMNS($C$38:C48)-1)<>"",OFFSET(DE100_14!$C$38,ROWS($C$38:C48)-1,COLUMNS($C$38:C48)-1),"") -> 6 | B34: =IF(OFFSET(DE100_14!$D$38,ROWS($D$38:D48)-1,COLUMNS($D$38:D48)-1)<>"",OFFSET(DE100_14!$D$38,ROWS($D$38:D48)-1,COLUMNS($D$38:D48)-1),"") -> 86990 | C34: =IF(OFFSET(DE100_14!$E$38,ROWS($E$38:E48)-1,COLUMNS($E$38:E48)-1)<>"",OFFSET(DE100_14!$E$38,ROWS($E$38:E48)-1,COLUMNS($E$38:E48)-1),"") -> Lt. | D34: =IF(OFFSET(DE100_14!$F$38,ROWS($F$38:F48)-1,COLUMNS($F$38:F48)-1)<>"",OFFSET(DE100_14!$F$38,ROWS($F$38:F48)-1,COLUMNS($F$38:F48)-1),"") -> 1 | E34: =IF(OFFSET(DE100_14!$G$38,ROWS($G$38:G48)-1,COLUMNS($G$38:G48)-1)<>"",OFFSET(DE100_14!$G$38,ROWS($G$38:G48)-1,COLUMNS($G$38:G48)-1),"") -> 1 | F34: =IF(OFFSET(DE100_14!$H$38,ROWS($H$38:H48)-1,COLUMNS($H$38:H48)-1)<>"",OFFSET(DE100_14!$H$38,ROWS($H$38:H48)-1,COLUMNS($H$38:H48)-1),"") -> 10 | G34: =IF(OFFSET(DE100_14!$I$38,ROWS($I$38:I48)-1,COLUMNS($I$38:I48)-1)<>"",OFFSET(DE100_14!$I$38,ROWS($I$38:I48)-1,COLUMNS($I$38:I48)-1),"") -> 50 | H34: =IF(OFFSET(DE100_14!$J$38,ROWS($J$38:J48)-1,COLUMNS($J$38:J48)-1)<>"",OFFSET(DE100_14!$J$38,ROWS($J$38:J48)-1,COLUMNS($J$38:J48)-1),"") -> 2.85 | I34: =IF(OFFSET(DE100_14!$K$38,ROWS($K$38:K48)-1,COLUMNS($K$38:K48)-1)<>"",OFFSET(DE100_14!$K$38,ROWS($K$38:K48)-1,COLUMNS($K$38:K48)-1),"") -> 0.14 | J34: =IF(OFFSET(DE100_14!$L$38,ROWS($L$38:L48)-1,COLUMNS($L$38:L48)-1)<>"",OFFSET(DE100_14!$L$38,ROWS($L$38:L48)-1,COLUMNS($L$38:L48)-1),"") -> 712.5 | K34: =IF(OFFSET(DE100_14!$N$38,ROWS($N$38:N48)-1,COLUMNS($N$38:N48)-1)<>"",OFFSET(DE100_14!$N$38,ROWS($N$38:N48)-1,COLUMNS($N$38:N48)-1),"") -> 
A35: =IF(OFFSET(DE100_14!$C$38,ROWS($C$38:C49)-1,COLUMNS($C$38:C49)-1)<>"",OFFSET(DE100_14!$C$38,ROWS($C$38:C49)-1,COLUMNS($C$38:C49)-1),"") -> 6 | B35: =IF(OFFSET(DE100_14!$D$38,ROWS($D$38:D49)-1,COLUMNS($D$38:D49)-1)<>"",OFFSET(DE100_14!$D$38,ROWS($D$38:D49)-1,COLUMNS($D$38:D49)-1),"") -> 86935 | C35: =IF(OFFSET(DE100_14!$E$38,ROWS($E$38:E49)-1,COLUMNS($E$38:E49)-1)<>"",OFFSET(DE100_14!$E$38,ROWS($E$38:E49)-1,COLUMNS($E$38:E49)-1),"") -> Rt. | D35: =IF(OFFSET(DE100_14!$F$38,ROWS($F$38:F49)-1,COLUMNS($F$38:F49)-1)<>"",OFFSET(DE100_14!$F$38,ROWS($F$38:F49)-1,COLUMNS($F$38:F49)-1),"") -> 1 | E35: =IF(OFFSET(DE100_14!$G$38,ROWS($G$38:G49)-1,COLUMNS($G$38:G49)-1)<>"",OFFSET(DE100_14!$G$38,ROWS($G$38:G49)-1,COLUMNS($G$38:G49)-1),"") -> 1 | F35: =IF(OFFSET(DE100_14!$H$38,ROWS($H$38:H49)-1,COLUMNS($H$38:H49)-1)<>"",OFFSET(DE100_14!$H$38,ROWS($H$38:H49)-1,COLUMNS($H$38:H49)-1),"") -> 10 | G35: =IF(OFFSET(DE100_14!$I$38,ROWS($I$38:I49)-1,COLUMNS($I$38:I49)-1)<>"",OFFSET(DE100_14!$I$38,ROWS($I$38:I49)-1,COLUMNS($I$38:I49)-1),"") -> 50 | H35: =IF(OFFSET(DE100_14!$J$38,ROWS($J$38:J49)-1,COLUMNS($J$38:J49)-1)<>"",OFFSET(DE100_14!$J$38,ROWS($J$38:J49)-1,COLUMNS($J$38:J49)-1),"") -> 2.85 | I35: =IF(OFFSET(DE100_14!$K$38,ROWS($K$38:K49)-1,COLUMNS($K$38:K49)-1)<>"",OFFSET(DE100_14!$K$38,ROWS($K$38:K49)-1,COLUMNS($K$38:K49)-1),"") -> -0.013 | J35: =IF(OFFSET(DE100_14!$L$38,ROWS($L$38:L49)-1,COLUMNS($L$38:L49)-1)<>"",OFFSET(DE100_14!$L$38,ROWS($L$38:L49)-1,COLUMNS($L$38:L49)-1),"") -> 1262.5 | K35: =IF(OFFSET(DE100_14!$N$38,ROWS($N$38:N49)-1,COLUMNS($N$38:N49)-1)<>"",OFFSET(DE100_14!$N$38,ROWS($N$38:N49)-1,COLUMNS($N$38:N49)-1),"") -> 
A36: =IF(OFFSET(DE100_14!$C$38,ROWS($C$38:C50)-1,COLUMNS($C$38:C50)-1)<>"",OFFSET(DE100_14!$C$38,ROWS($C$38:C50)-1,COLUMNS($C$38:C50)-1),"") -> 6 | B36: =IF(OFFSET(DE100_14!$D$38,ROWS($D$38:D50)-1,COLUMNS($D$38:D50)-1)<>"",OFFSET(DE100_14!$D$38,ROWS($D$38:D50)-1,COLUMNS($D$38:D50)-1),"") -> 86990 | C36: =IF(OFFSET(DE100_14!$E$38,ROWS($E$38:E50)-1,COLUMNS($E$38:E50)-1)<>"",OFFSET(DE100_14!$E$38,ROWS($E$38:E50)-1,COLUMNS($E$38:E50)-1),"") -> Rt. | D36: =IF(OFFSET(DE100_14!$F$38,ROWS($F$38:F50)-1,COLUMNS($F$38:F50)-1)<>"",OFFSET(DE100_14!$F$38,ROWS($F$38:F50)-1,COLUMNS($F$38:F50)-1),"") -> 1 | E36: =IF(OFFSET(DE100_14!$G$38,ROWS($G$38:G50)-1,COLUMNS($G$38:G50)-1)<>"",OFFSET(DE100_14!$G$38,ROWS($G$38:G50)-1,COLUMNS($G$38:G50)-1),"") -> 1 | F36: =IF(OFFSET(DE100_14!$H$38,ROWS($H$38:H50)-1,COLUMNS($H$38:H50)-1)<>"",OFFSET(DE100_14!$H$38,ROWS($H$38:H50)-1,COLUMNS($H$38:H50)-1),"") -> 10 | G36: =IF(OFFSET(DE100_14!$I$38,ROWS($I$38:I50)-1,COLUMNS($I$38:I50)-1)<>"",OFFSET(DE100_14!$I$38,ROWS($I$38:I50)-1,COLUMNS($I$38:I50)-1),"") -> 50 | H36: =IF(OFFSET(DE100_14!$J$38,ROWS($J$38:J50)-1,COLUMNS($J$38:J50)-1)<>"",OFFSET(DE100_14!$J$38,ROWS($J$38:J50)-1,COLUMNS($J$38:J50)-1),"") -> 2.85 | I36: =IF(OFFSET(DE100_14!$K$38,ROWS($K$38:K50)-1,COLUMNS($K$38:K50)-1)<>"",OFFSET(DE100_14!$K$38,ROWS($K$38:K50)-1,COLUMNS($K$38:K50)-1),"") -> 0.07 | J36: =IF(OFFSET(DE100_14!$L$38,ROWS($L$38:L50)-1,COLUMNS($L$38:L50)-1)<>"",OFFSET(DE100_14!$L$38,ROWS($L$38:L50)-1,COLUMNS($L$38:L50)-1),"") -> 712.5 | K36: =IF(OFFSET(DE100_14!$N$38,ROWS($N$38:N50)-1,COLUMNS($N$38:N50)-1)<>"",OFFSET(DE100_14!$N$38,ROWS($N$38:N50)-1,COLUMNS($N$38:N50)-1),"") -> 
A37: =IF(OFFSET(DE100_14!$C$38,ROWS($C$38:C51)-1,COLUMNS($C$38:C51)-1)<>"",OFFSET(DE100_14!$C$38,ROWS($C$38:C51)-1,COLUMNS($C$38:C51)-1),"") ->  | B37: =IF(OFFSET(DE100_14!$D$38,ROWS($D$38:D51)-1,COLUMNS($D$38:D51)-1)<>"",OFFSET(DE100_14!$D$38,ROWS($D$38:D51)-1,COLUMNS($D$38:D51)-1),"") ->  | C37: =IF(OFFSET(DE100_14!$E$38,ROWS($E$38:E51)-1,COLUMNS($E$38:E51)-1)<>"",OFFSET(DE100_14!$E$38,ROWS($E$38:E51)-1,COLUMNS($E$38:E51)-1),"") ->  | D37: =IF(OFFSET(DE100_14!$F$38,ROWS($F$38:F51)-1,COLUMNS($F$38:F51)-1)<>"",OFFSET(DE100_14!$F$38,ROWS($F$38:F51)-1,COLUMNS($F$38:F51)-1),"") ->  | E37: =IF(OFFSET(DE100_14!$G$38,ROWS($G$38:G51)-1,COLUMNS($G$38:G51)-1)<>"",OFFSET(DE100_14!$G$38,ROWS($G$38:G51)-1,COLUMNS($G$38:G51)-1),"") ->  | F37: =IF(OFFSET(DE100_14!$H$38,ROWS($H$38:H51)-1,COLUMNS($H$38:H51)-1)<>"",OFFSET(DE100_14!$H$38,ROWS($H$38:H51)-1,COLUMNS($H$38:H51)-1),"") ->  | G37: =IF(OFFSET(DE100_14!$I$38,ROWS($I$38:I51)-1,COLUMNS($I$38:I51)-1)<>"",OFFSET(DE100_14!$I$38,ROWS($I$38:I51)-1,COLUMNS($I$38:I51)-1),"") ->  | H37: =IF(OFFSET(DE100_14!$J$38,ROWS($J$38:J51)-1,COLUMNS($J$38:J51)-1)<>"",OFFSET(DE100_14!$J$38,ROWS($J$38:J51)-1,COLUMNS($J$38:J51)-1),"") ->  | I37: =IF(OFFSET(DE100_14!$K$38,ROWS($K$38:K51)-1,COLUMNS($K$38:K51)-1)<>"",OFFSET(DE100_14!$K$38,ROWS($K$38:K51)-1,COLUMNS($K$38:K51)-1),"") ->  | J37: =IF(OFFSET(DE100_14!$L$38,ROWS($L$38:L51)-1,COLUMNS($L$38:L51)-1)<>"",OFFSET(DE100_14!$L$38,ROWS($L$38:L51)-1,COLUMNS($L$38:L51)-1),"") ->  | K37: =IF(OFFSET(DE100_14!$N$38,ROWS($N$38:N51)-1,COLUMNS($N$38:N51)-1)<>"",OFFSET(DE100_14!$N$38,ROWS($N$38:N51)-1,COLUMNS($N$38:N51)-1),"") -> 
A38: =IF(OFFSET(DE100_14!$C$38,ROWS($C$38:C52)-1,COLUMNS($C$38:C52)-1)<>"",OFFSET(DE100_14!$C$38,ROWS($C$38:C52)-1,COLUMNS($C$38:C52)-1),"") -> 8 | B38: =IF(OFFSET(DE100_14!$D$38,ROWS($D$38:D52)-1,COLUMNS($D$38:D52)-1)<>"",OFFSET(DE100_14!$D$38,ROWS($D$38:D52)-1,COLUMNS($D$38:D52)-1),"") -> 90020 | C38: =IF(OFFSET(DE100_14!$E$38,ROWS($E$38:E52)-1,COLUMNS($E$38:E52)-1)<>"",OFFSET(DE100_14!$E$38,ROWS($E$38:E52)-1,COLUMNS($E$38:E52)-1),"") -> Lt. | D38: =IF(OFFSET(DE100_14!$F$38,ROWS($F$38:F52)-1,COLUMNS($F$38:F52)-1)<>"",OFFSET(DE100_14!$F$38,ROWS($F$38:F52)-1,COLUMNS($F$38:F52)-1),"") -> 1 | E38: =IF(OFFSET(DE100_14!$G$38,ROWS($G$38:G52)-1,COLUMNS($G$38:G52)-1)<>"",OFFSET(DE100_14!$G$38,ROWS($G$38:G52)-1,COLUMNS($G$38:G52)-1),"") -> 1 | F38: =IF(OFFSET(DE100_14!$H$38,ROWS($H$38:H52)-1,COLUMNS($H$38:H52)-1)<>"",OFFSET(DE100_14!$H$38,ROWS($H$38:H52)-1,COLUMNS($H$38:H52)-1),"") -> 10 | G38: =IF(OFFSET(DE100_14!$I$38,ROWS($I$38:I52)-1,COLUMNS($I$38:I52)-1)<>"",OFFSET(DE100_14!$I$38,ROWS($I$38:I52)-1,COLUMNS($I$38:I52)-1),"") -> 50 | H38: =IF(OFFSET(DE100_14!$J$38,ROWS($J$38:J52)-1,COLUMNS($J$38:J52)-1)<>"",OFFSET(DE100_14!$J$38,ROWS($J$38:J52)-1,COLUMNS($J$38:J52)-1),"") -> 2.85 | I38: =IF(OFFSET(DE100_14!$K$38,ROWS($K$38:K52)-1,COLUMNS($K$38:K52)-1)<>"",OFFSET(DE100_14!$K$38,ROWS($K$38:K52)-1,COLUMNS($K$38:K52)-1),"") -> -0.036 | J38: =IF(OFFSET(DE100_14!$L$38,ROWS($L$38:L52)-1,COLUMNS($L$38:L52)-1)<>"",OFFSET(DE100_14!$L$38,ROWS($L$38:L52)-1,COLUMNS($L$38:L52)-1),"") -> 975 | K38: =IF(OFFSET(DE100_14!$N$38,ROWS($N$38:N52)-1,COLUMNS($N$38:N52)-1)<>"",OFFSET(DE100_14!$N$38,ROWS($N$38:N52)-1,COLUMNS($N$38:N52)-1),"") -> 
A39: =IF(OFFSET(DE100_14!$C$38,ROWS($C$38:C53)-1,COLUMNS($C$38:C53)-1)<>"",OFFSET(DE100_14!$C$38,ROWS($C$38:C53)-1,COLUMNS($C$38:C53)-1),"") -> 8 | B39: =IF(OFFSET(DE100_14!$D$38,ROWS($D$38:D53)-1,COLUMNS($D$38:D53)-1)<>"",OFFSET(DE100_14!$D$38,ROWS($D$38:D53)-1,COLUMNS($D$38:D53)-1),"") -> 90080 | C39: =IF(OFFSET(DE100_14!$E$38,ROWS($E$38:E53)-1,COLUMNS($E$38:E53)-1)<>"",OFFSET(DE100_14!$E$38,ROWS($E$38:E53)-1,COLUMNS($E$38:E53)-1),"") -> Lt. | D39: =IF(OFFSET(DE100_14!$F$38,ROWS($F$38:F53)-1,COLUMNS($F$38:F53)-1)<>"",OFFSET(DE100_14!$F$38,ROWS($F$38:F53)-1,COLUMNS($F$38:F53)-1),"") -> 1 | E39: =IF(OFFSET(DE100_14!$G$38,ROWS($G$38:G53)-1,COLUMNS($G$38:G53)-1)<>"",OFFSET(DE100_14!$G$38,ROWS($G$38:G53)-1,COLUMNS($G$38:G53)-1),"") -> 1 | F39: =IF(OFFSET(DE100_14!$H$38,ROWS($H$38:H53)-1,COLUMNS($H$38:H53)-1)<>"",OFFSET(DE100_14!$H$38,ROWS($H$38:H53)-1,COLUMNS($H$38:H53)-1),"") -> 10 | G39: =IF(OFFSET(DE100_14!$I$38,ROWS($I$38:I53)-1,COLUMNS($I$38:I53)-1)<>"",OFFSET(DE100_14!$I$38,ROWS($I$38:I53)-1,COLUMNS($I$38:I53)-1),"") -> 50 | H39: =IF(OFFSET(DE100_14!$J$38,ROWS($J$38:J53)-1,COLUMNS($J$38:J53)-1)<>"",OFFSET(DE100_14!$J$38,ROWS($J$38:J53)-1,COLUMNS($J$38:J53)-1),"") -> 2.85 | I39: =IF(OFFSET(DE100_14!$K$38,ROWS($K$38:K53)-1,COLUMNS($K$38:K53)-1)<>"",OFFSET(DE100_14!$K$38,ROWS($K$38:K53)-1,COLUMNS($K$38:K53)-1),"") -> 0.017 | J39: =IF(OFFSET(DE100_14!$L$38,ROWS($L$38:L53)-1,COLUMNS($L$38:L53)-1)<>"",OFFSET(DE100_14!$L$38,ROWS($L$38:L53)-1,COLUMNS($L$38:L53)-1),"") -> 1212.5 | K39: =IF(OFFSET(DE100_14!$N$38,ROWS($N$38:N53)-1,COLUMNS($N$38:N53)-1)<>"",OFFSET(DE100_14!$N$38,ROWS($N$38:N53)-1,COLUMNS($N$38:N53)-1),"") -> 
A40: =IF(OFFSET(DE100_14!$C$38,ROWS($C$38:C54)-1,COLUMNS($C$38:C54)-1)<>"",OFFSET(DE100_14!$C$38,ROWS($C$38:C54)-1,COLUMNS($C$38:C54)-1),"") -> 8 | B40: =IF(OFFSET(DE100_14!$D$38,ROWS($D$38:D54)-1,COLUMNS($D$38:D54)-1)<>"",OFFSET(DE100_14!$D$38,ROWS($D$38:D54)-1,COLUMNS($D$38:D54)-1),"") -> 90020 | C40: =IF(OFFSET(DE100_14!$E$38,ROWS($E$38:E54)-1,COLUMNS($E$38:E54)-1)<>"",OFFSET(DE100_14!$E$38,ROWS($E$38:E54)-1,COLUMNS($E$38:E54)-1),"") -> Rt. | D40: =IF(OFFSET(DE100_14!$F$38,ROWS($F$38:F54)-1,COLUMNS($F$38:F54)-1)<>"",OFFSET(DE100_14!$F$38,ROWS($F$38:F54)-1,COLUMNS($F$38:F54)-1),"") -> 1 | E40: =IF(OFFSET(DE100_14!$G$38,ROWS($G$38:G54)-1,COLUMNS($G$38:G54)-1)<>"",OFFSET(DE100_14!$G$38,ROWS($G$38:G54)-1,COLUMNS($G$38:G54)-1),"") -> 1 | F40: =IF(OFFSET(DE100_14!$H$38,ROWS($H$38:H54)-1,COLUMNS($H$38:H54)-1)<>"",OFFSET(DE100_14!$H$38,ROWS($H$38:H54)-1,COLUMNS($H$38:H54)-1),"") -> 10 | G40: =IF(OFFSET(DE100_14!$I$38,ROWS($I$38:I54)-1,COLUMNS($I$38:I54)-1)<>"",OFFSET(DE100_14!$I$38,ROWS($I$38:I54)-1,COLUMNS($I$38:I54)-1),"") -> 50 | H40: =IF(OFFSET(DE100_14!$J$38,ROWS($J$38:J54)-1,COLUMNS($J$38:J54)-1)<>"",OFFSET(DE100_14!$J$38,ROWS($J$38:J54)-1,COLUMNS($J$38:J54)-1),"") -> 2.85 | I40: =IF(OFFSET(DE100_14!$K$38,ROWS($K$38:K54)-1,COLUMNS($K$38:K54)-1)<>"",OFFSET(DE100_14!$K$38,ROWS($K$38:K54)-1,COLUMNS($K$38:K54)-1),"") -> -0.011 | J40: =IF(OFFSET(DE100_14!$L$38,ROWS($L$38:L54)-1,COLUMNS($L$38:L54)-1)<>"",OFFSET(DE100_14!$L$38,ROWS($L$38:L54)-1,COLUMNS($L$38:L54)-1),"") -> 1287.5 | K40: =IF(OFFSET(DE100_14!$N$38,ROWS($N$38:N54)-1,COLUMNS($N$38:N54)-1)<>"",OFFSET(DE100_14!$N$38,ROWS($N$38:N54)-1,COLUMNS($N$38:N54)-1),"") -> 
A41: =IF(OFFSET(DE100_14!$C$38,ROWS($C$38:C55)-1,COLUMNS($C$38:C55)-1)<>"",OFFSET(DE100_14!$C$38,ROWS($C$38:C55)-1,COLUMNS($C$38:C55)-1),"") -> 8 | B41: =IF(OFFSET(DE100_14!$D$38,ROWS($D$38:D55)-1,COLUMNS($D$38:D55)-1)<>"",OFFSET(DE100_14!$D$38,ROWS($D$38:D55)-1,COLUMNS($D$38:D55)-1),"") -> 90080 | C41: =IF(OFFSET(DE100_14!$E$38,ROWS($E$38:E55)-1,COLUMNS($E$38:E55)-1)<>"",OFFSET(DE100_14!$E$38,ROWS($E$38:E55)-1,COLUMNS($E$38:E55)-1),"") -> Rt. | D41: =IF(OFFSET(DE100_14!$F$38,ROWS($F$38:F55)-1,COLUMNS($F$38:F55)-1)<>"",OFFSET(DE100_14!$F$38,ROWS($F$38:F55)-1,COLUMNS($F$38:F55)-1),"") -> 1 | E41: =IF(OFFSET(DE100_14!$G$38,ROWS($G$38:G55)-1,COLUMNS($G$38:G55)-1)<>"",OFFSET(DE100_14!$G$38,ROWS($G$38:G55)-1,COLUMNS($G$38:G55)-1),"") -> 1 | F41: =IF(OFFSET(DE100_14!$H$38,ROWS($H$38:H55)-1,COLUMNS($H$38:H55)-1)<>"",OFFSET(DE100_14!$H$38,ROWS($H$38:H55)-1,COLUMNS($H$38:H55)-1),"") -> 10 | G41: =IF(OFFSET(DE100_14!$I$38,ROWS($I$38:I55)-1,COLUMNS($I$38:I55)-1)<>"",OFFSET(DE100_14!$I$38,ROWS($I$38:I55)-1,COLUMNS($I$38:I55)-1),"") -> 50 | H41: =IF(OFFSET(DE100_14!$J$38,ROWS($J$38:J55)-1,COLUMNS($J$38:J55)-1)<>"",OFFSET(DE100_14!$J$38,ROWS($J$38:J55)-1,COLUMNS($J$38:J55)-1),"") -> 2.85 | I41: =IF(OFFSET(DE100_14!$K$38,ROWS($K$38:K55)-1,COLUMNS($K$38:K55)-1)<>"",OFFSET(DE100_14!$K$38,ROWS($K$38:K55)-1,COLUMNS($K$38:K55)-1),"") -> 0.008 | J41: =IF(OFFSET(DE100_14!$L$38,ROWS($L$38:L55)-1,COLUMNS($L$38:L55)-1)<>"",OFFSET(DE100_14!$L$38,ROWS($L$38:L55)-1,COLUMNS($L$38:L55)-1),"") -> 1325 | K41: =IF(OFFSET(DE100_14!$N$38,ROWS($N$38:N55)-1,COLUMNS($N$38:N55)-1)<>"",OFFSET(DE100_14!$N$38,ROWS($N$38:N55)-1,COLUMNS($N$38:N55)-1),"") -> 
A42: =IF(OFFSET(DE100_14!$C$38,ROWS($C$38:C56)-1,COLUMNS($C$38:C56)-1)<>"",OFFSET(DE100_14!$C$38,ROWS($C$38:C56)-1,COLUMNS($C$38:C56)-1),"") ->  | B42: =IF(OFFSET(DE100_14!$D$38,ROWS($D$38:D56)-1,COLUMNS($D$38:D56)-1)<>"",OFFSET(DE100_14!$D$38,ROWS($D$38:D56)-1,COLUMNS($D$38:D56)-1),"") ->  | C42: =IF(OFFSET(DE100_14!$E$38,ROWS($E$38:E56)-1,COLUMNS($E$38:E56)-1)<>"",OFFSET(DE100_14!$E$38,ROWS($E$38:E56)-1,COLUMNS($E$38:E56)-1),"") ->  | D42: =IF(OFFSET(DE100_14!$F$38,ROWS($F$38:F56)-1,COLUMNS($F$38:F56)-1)<>"",OFFSET(DE100_14!$F$38,ROWS($F$38:F56)-1,COLUMNS($F$38:F56)-1),"") ->  | E42: =IF(OFFSET(DE100_14!$G$38,ROWS($G$38:G56)-1,COLUMNS($G$38:G56)-1)<>"",OFFSET(DE100_14!$G$38,ROWS($G$38:G56)-1,COLUMNS($G$38:G56)-1),"") ->  | F42: =IF(OFFSET(DE100_14!$H$38,ROWS($H$38:H56)-1,COLUMNS($H$38:H56)-1)<>"",OFFSET(DE100_14!$H$38,ROWS($H$38:H56)-1,COLUMNS($H$38:H56)-1),"") ->  | G42: =IF(OFFSET(DE100_14!$I$38,ROWS($I$38:I56)-1,COLUMNS($I$38:I56)-1)<>"",OFFSET(DE100_14!$I$38,ROWS($I$38:I56)-1,COLUMNS($I$38:I56)-1),"") ->  | H42: =IF(OFFSET(DE100_14!$J$38,ROWS($J$38:J56)-1,COLUMNS($J$38:J56)-1)<>"",OFFSET(DE100_14!$J$38,ROWS($J$38:J56)-1,COLUMNS($J$38:J56)-1),"") ->  | I42: =IF(OFFSET(DE100_14!$K$38,ROWS($K$38:K56)-1,COLUMNS($K$38:K56)-1)<>"",OFFSET(DE100_14!$K$38,ROWS($K$38:K56)-1,COLUMNS($K$38:K56)-1),"") ->  | J42: =IF(OFFSET(DE100_14!$L$38,ROWS($L$38:L56)-1,COLUMNS($L$38:L56)-1)<>"",OFFSET(DE100_14!$L$38,ROWS($L$38:L56)-1,COLUMNS($L$38:L56)-1),"") ->  | K42: =IF(OFFSET(DE100_14!$N$38,ROWS($N$38:N56)-1,COLUMNS($N$38:N56)-1)<>"",OFFSET(DE100_14!$N$38,ROWS($N$38:N56)-1,COLUMNS($N$38:N56)-1),"") -> 
A43: =IF(OFFSET(DE100_14!$C$38,ROWS($C$38:C57)-1,COLUMNS($C$38:C57)-1)<>"",OFFSET(DE100_14!$C$38,ROWS($C$38:C57)-1,COLUMNS($C$38:C57)-1),"") -> 11 | B43: =IF(OFFSET(DE100_14!$D$38,ROWS($D$38:D57)-1,COLUMNS($D$38:D57)-1)<>"",OFFSET(DE100_14!$D$38,ROWS($D$38:D57)-1,COLUMNS($D$38:D57)-1),"") -> 94245 | C43: =IF(OFFSET(DE100_14!$E$38,ROWS($E$38:E57)-1,COLUMNS($E$38:E57)-1)<>"",OFFSET(DE100_14!$E$38,ROWS($E$38:E57)-1,COLUMNS($E$38:E57)-1),"") -> Lt. | D43: =IF(OFFSET(DE100_14!$F$38,ROWS($F$38:F57)-1,COLUMNS($F$38:F57)-1)<>"",OFFSET(DE100_14!$F$38,ROWS($F$38:F57)-1,COLUMNS($F$38:F57)-1),"") -> 1 | E43: =IF(OFFSET(DE100_14!$G$38,ROWS($G$38:G57)-1,COLUMNS($G$38:G57)-1)<>"",OFFSET(DE100_14!$G$38,ROWS($G$38:G57)-1,COLUMNS($G$38:G57)-1),"") -> 1 | F43: =IF(OFFSET(DE100_14!$H$38,ROWS($H$38:H57)-1,COLUMNS($H$38:H57)-1)<>"",OFFSET(DE100_14!$H$38,ROWS($H$38:H57)-1,COLUMNS($H$38:H57)-1),"") -> 10 | G43: =IF(OFFSET(DE100_14!$I$38,ROWS($I$38:I57)-1,COLUMNS($I$38:I57)-1)<>"",OFFSET(DE100_14!$I$38,ROWS($I$38:I57)-1,COLUMNS($I$38:I57)-1),"") -> 50 | H43: =IF(OFFSET(DE100_14!$J$38,ROWS($J$38:J57)-1,COLUMNS($J$38:J57)-1)<>"",OFFSET(DE100_14!$J$38,ROWS($J$38:J57)-1,COLUMNS($J$38:J57)-1),"") -> 2.85 | I43: =IF(OFFSET(DE100_14!$K$38,ROWS($K$38:K57)-1,COLUMNS($K$38:K57)-1)<>"",OFFSET(DE100_14!$K$38,ROWS($K$38:K57)-1,COLUMNS($K$38:K57)-1),"") -> -0.021 | J43: =IF(OFFSET(DE100_14!$L$38,ROWS($L$38:L57)-1,COLUMNS($L$38:L57)-1)<>"",OFFSET(DE100_14!$L$38,ROWS($L$38:L57)-1,COLUMNS($L$38:L57)-1),"") -> 1162.5 | K43: =IF(OFFSET(DE100_14!$N$38,ROWS($N$38:N57)-1,COLUMNS($N$38:N57)-1)<>"",OFFSET(DE100_14!$N$38,ROWS($N$38:N57)-1,COLUMNS($N$38:N57)-1),"") -> 
A44: =IF(OFFSET(DE100_14!$C$38,ROWS($C$38:C58)-1,COLUMNS($C$38:C58)-1)<>"",OFFSET(DE100_14!$C$38,ROWS($C$38:C58)-1,COLUMNS($C$38:C58)-1),"") -> 11 | B44: =IF(OFFSET(DE100_14!$D$38,ROWS($D$38:D58)-1,COLUMNS($D$38:D58)-1)<>"",OFFSET(DE100_14!$D$38,ROWS($D$38:D58)-1,COLUMNS($D$38:D58)-1),"") -> 94305 | C44: =IF(OFFSET(DE100_14!$E$38,ROWS($E$38:E58)-1,COLUMNS($E$38:E58)-1)<>"",OFFSET(DE100_14!$E$38,ROWS($E$38:E58)-1,COLUMNS($E$38:E58)-1),"") -> Lt. | D44: =IF(OFFSET(DE100_14!$F$38,ROWS($F$38:F58)-1,COLUMNS($F$38:F58)-1)<>"",OFFSET(DE100_14!$F$38,ROWS($F$38:F58)-1,COLUMNS($F$38:F58)-1),"") -> 1 | E44: =IF(OFFSET(DE100_14!$G$38,ROWS($G$38:G58)-1,COLUMNS($G$38:G58)-1)<>"",OFFSET(DE100_14!$G$38,ROWS($G$38:G58)-1,COLUMNS($G$38:G58)-1),"") -> 1 | F44: =IF(OFFSET(DE100_14!$H$38,ROWS($H$38:H58)-1,COLUMNS($H$38:H58)-1)<>"",OFFSET(DE100_14!$H$38,ROWS($H$38:H58)-1,COLUMNS($H$38:H58)-1),"") -> 10 | G44: =IF(OFFSET(DE100_14!$I$38,ROWS($I$38:I58)-1,COLUMNS($I$38:I58)-1)<>"",OFFSET(DE100_14!$I$38,ROWS($I$38:I58)-1,COLUMNS($I$38:I58)-1),"") -> 50 | H44: =IF(OFFSET(DE100_14!$J$38,ROWS($J$38:J58)-1,COLUMNS($J$38:J58)-1)<>"",OFFSET(DE100_14!$J$38,ROWS($J$38:J58)-1,COLUMNS($J$38:J58)-1),"") -> 2.85 | I44: =IF(OFFSET(DE100_14!$K$38,ROWS($K$38:K58)-1,COLUMNS($K$38:K58)-1)<>"",OFFSET(DE100_14!$K$38,ROWS($K$38:K58)-1,COLUMNS($K$38:K58)-1),"") -> 0.016 | J44: =IF(OFFSET(DE100_14!$L$38,ROWS($L$38:L58)-1,COLUMNS($L$38:L58)-1)<>"",OFFSET(DE100_14!$L$38,ROWS($L$38:L58)-1,COLUMNS($L$38:L58)-1),"") -> 1225 | K44: =IF(OFFSET(DE100_14!$N$38,ROWS($N$38:N58)-1,COLUMNS($N$38:N58)-1)<>"",OFFSET(DE100_14!$N$38,ROWS($N$38:N58)-1,COLUMNS($N$38:N58)-1),"") -> 
A45: =IF(OFFSET(DE100_14!$C$38,ROWS($C$38:C59)-1,COLUMNS($C$38:C59)-1)<>"",OFFSET(DE100_14!$C$38,ROWS($C$38:C59)-1,COLUMNS($C$38:C59)-1),"") -> 11 | B45: =IF(OFFSET(DE100_14!$D$38,ROWS($D$38:D59)-1,COLUMNS($D$38:D59)-1)<>"",OFFSET(DE100_14!$D$38,ROWS($D$38:D59)-1,COLUMNS($D$38:D59)-1),"") -> 94475 | C45: =IF(OFFSET(DE100_14!$E$38,ROWS($E$38:E59)-1,COLUMNS($E$38:E59)-1)<>"",OFFSET(DE100_14!$E$38,ROWS($E$38:E59)-1,COLUMNS($E$38:E59)-1),"") -> Rt. | D45: =IF(OFFSET(DE100_14!$F$38,ROWS($F$38:F59)-1,COLUMNS($F$38:F59)-1)<>"",OFFSET(DE100_14!$F$38,ROWS($F$38:F59)-1,COLUMNS($F$38:F59)-1),"") -> 1 | E45: =IF(OFFSET(DE100_14!$G$38,ROWS($G$38:G59)-1,COLUMNS($G$38:G59)-1)<>"",OFFSET(DE100_14!$G$38,ROWS($G$38:G59)-1,COLUMNS($G$38:G59)-1),"") -> 1 | F45: =IF(OFFSET(DE100_14!$H$38,ROWS($H$38:H59)-1,COLUMNS($H$38:H59)-1)<>"",OFFSET(DE100_14!$H$38,ROWS($H$38:H59)-1,COLUMNS($H$38:H59)-1),"") -> 10 | G45: =IF(OFFSET(DE100_14!$I$38,ROWS($I$38:I59)-1,COLUMNS($I$38:I59)-1)<>"",OFFSET(DE100_14!$I$38,ROWS($I$38:I59)-1,COLUMNS($I$38:I59)-1),"") -> 50 | H45: =IF(OFFSET(DE100_14!$J$38,ROWS($J$38:J59)-1,COLUMNS($J$38:J59)-1)<>"",OFFSET(DE100_14!$J$38,ROWS($J$38:J59)-1,COLUMNS($J$38:J59)-1),"") -> 2.85 | I45: =IF(OFFSET(DE100_14!$K$38,ROWS($K$38:K59)-1,COLUMNS($K$38:K59)-1)<>"",OFFSET(DE100_14!$K$38,ROWS($K$38:K59)-1,COLUMNS($K$38:K59)-1),"") -> -0.006 | J45: =IF(OFFSET(DE100_14!$L$38,ROWS($L$38:L59)-1,COLUMNS($L$38:L59)-1)<>"",OFFSET(DE100_14!$L$38,ROWS($L$38:L59)-1,COLUMNS($L$38:L59)-1),"") -> 1350 | K45: =IF(OFFSET(DE100_14!$N$38,ROWS($N$38:N59)-1,COLUMNS($N$38:N59)-1)<>"",OFFSET(DE100_14!$N$38,ROWS($N$38:N59)-1,COLUMNS($N$38:N59)-1),"") -> 
A46: =IF(OFFSET(DE100_14!$C$38,ROWS($C$38:C60)-1,COLUMNS($C$38:C60)-1)<>"",OFFSET(DE100_14!$C$38,ROWS($C$38:C60)-1,COLUMNS($C$38:C60)-1),"") -> 11 | B46: =IF(OFFSET(DE100_14!$D$38,ROWS($D$38:D60)-1,COLUMNS($D$38:D60)-1)<>"",OFFSET(DE100_14!$D$38,ROWS($D$38:D60)-1,COLUMNS($D$38:D60)-1),"") -> 94550 | C46: =IF(OFFSET(DE100_14!$E$38,ROWS($E$38:E60)-1,COLUMNS($E$38:E60)-1)<>"",OFFSET(DE100_14!$E$38,ROWS($E$38:E60)-1,COLUMNS($E$38:E60)-1),"") -> Rt. | D46: =IF(OFFSET(DE100_14!$F$38,ROWS($F$38:F60)-1,COLUMNS($F$38:F60)-1)<>"",OFFSET(DE100_14!$F$38,ROWS($F$38:F60)-1,COLUMNS($F$38:F60)-1),"") -> 1 | E46: =IF(OFFSET(DE100_14!$G$38,ROWS($G$38:G60)-1,COLUMNS($G$38:G60)-1)<>"",OFFSET(DE100_14!$G$38,ROWS($G$38:G60)-1,COLUMNS($G$38:G60)-1),"") -> 1 | F46: =IF(OFFSET(DE100_14!$H$38,ROWS($H$38:H60)-1,COLUMNS($H$38:H60)-1)<>"",OFFSET(DE100_14!$H$38,ROWS($H$38:H60)-1,COLUMNS($H$38:H60)-1),"") -> 10 | G46: =IF(OFFSET(DE100_14!$I$38,ROWS($I$38:I60)-1,COLUMNS($I$38:I60)-1)<>"",OFFSET(DE100_14!$I$38,ROWS($I$38:I60)-1,COLUMNS($I$38:I60)-1),"") -> 50 | H46: =IF(OFFSET(DE100_14!$J$38,ROWS($J$38:J60)-1,COLUMNS($J$38:J60)-1)<>"",OFFSET(DE100_14!$J$38,ROWS($J$38:J60)-1,COLUMNS($J$38:J60)-1),"") -> 2.85 | I46: =IF(OFFSET(DE100_14!$K$38,ROWS($K$38:K60)-1,COLUMNS($K$38:K60)-1)<>"",OFFSET(DE100_14!$K$38,ROWS($K$38:K60)-1,COLUMNS($K$38:K60)-1),"") -> 0.007 | J46: =IF(OFFSET(DE100_14!$L$38,ROWS($L$38:L60)-1,COLUMNS($L$38:L60)-1)<>"",OFFSET(DE100_14!$L$38,ROWS($L$38:L60)-1,COLUMNS($L$38:L60)-1),"") -> 1337.5 | K46: =IF(OFFSET(DE100_14!$N$38,ROWS($N$38:N60)-1,COLUMNS($N$38:N60)-1)<>"",OFFSET(DE100_14!$N$38,ROWS($N$38:N60)-1,COLUMNS($N$38:N60)-1),"") -> 
A47: =IF(OFFSET(DE100_14!$C$38,ROWS($C$38:C61)-1,COLUMNS($C$38:C61)-1)<>"",OFFSET(DE100_14!$C$38,ROWS($C$38:C61)-1,COLUMNS($C$38:C61)-1),"") ->  | B47: =IF(OFFSET(DE100_14!$D$38,ROWS($D$38:D61)-1,COLUMNS($D$38:D61)-1)<>"",OFFSET(DE100_14!$D$38,ROWS($D$38:D61)-1,COLUMNS($D$38:D61)-1),"") ->  | C47: =IF(OFFSET(DE100_14!$E$38,ROWS($E$38:E61)-1,COLUMNS($E$38:E61)-1)<>"",OFFSET(DE100_14!$E$38,ROWS($E$38:E61)-1,COLUMNS($E$38:E61)-1),"") ->  | D47: =IF(OFFSET(DE100_14!$F$38,ROWS($F$38:F61)-1,COLUMNS($F$38:F61)-1)<>"",OFFSET(DE100_14!$F$38,ROWS($F$38:F61)-1,COLUMNS($F$38:F61)-1),"") ->  | E47: =IF(OFFSET(DE100_14!$G$38,ROWS($G$38:G61)-1,COLUMNS($G$38:G61)-1)<>"",OFFSET(DE100_14!$G$38,ROWS($G$38:G61)-1,COLUMNS($G$38:G61)-1),"") ->  | F47: =IF(OFFSET(DE100_14!$H$38,ROWS($H$38:H61)-1,COLUMNS($H$38:H61)-1)<>"",OFFSET(DE100_14!$H$38,ROWS($H$38:H61)-1,COLUMNS($H$38:H61)-1),"") ->  | G47: =IF(OFFSET(DE100_14!$I$38,ROWS($I$38:I61)-1,COLUMNS($I$38:I61)-1)<>"",OFFSET(DE100_14!$I$38,ROWS($I$38:I61)-1,COLUMNS($I$38:I61)-1),"") ->  | H47: =IF(OFFSET(DE100_14!$J$38,ROWS($J$38:J61)-1,COLUMNS($J$38:J61)-1)<>"",OFFSET(DE100_14!$J$38,ROWS($J$38:J61)-1,COLUMNS($J$38:J61)-1),"") ->  | I47: =IF(OFFSET(DE100_14!$K$38,ROWS($K$38:K61)-1,COLUMNS($K$38:K61)-1)<>"",OFFSET(DE100_14!$K$38,ROWS($K$38:K61)-1,COLUMNS($K$38:K61)-1),"") ->  | J47: =IF(OFFSET(DE100_14!$L$38,ROWS($L$38:L61)-1,COLUMNS($L$38:L61)-1)<>"",OFFSET(DE100_14!$L$38,ROWS($L$38:L61)-1,COLUMNS($L$38:L61)-1),"") ->  | K47: =IF(OFFSET(DE100_14!$N$38,ROWS($N$38:N61)-1,COLUMNS($N$38:N61)-1)<>"",OFFSET(DE100_14!$N$38,ROWS($N$38:N61)-1,COLUMNS($N$38:N61)-1),"") -> 
A48: =IF(OFFSET(DE100_14!$C$38,ROWS($C$38:C62)-1,COLUMNS($C$38:C62)-1)<>"",OFFSET(DE100_14!$C$38,ROWS($C$38:C62)-1,COLUMNS($C$38:C62)-1),"") -> 14 | B48: =IF(OFFSET(DE100_14!$D$38,ROWS($D$38:D62)-1,COLUMNS($D$38:D62)-1)<>"",OFFSET(DE100_14!$D$38,ROWS($D$38:D62)-1,COLUMNS($D$38:D62)-1),"") -> 97845 | C48: =IF(OFFSET(DE100_14!$E$38,ROWS($E$38:E62)-1,COLUMNS($E$38:E62)-1)<>"",OFFSET(DE100_14!$E$38,ROWS($E$38:E62)-1,COLUMNS($E$38:E62)-1),"") -> Lt. | D48: =IF(OFFSET(DE100_14!$F$38,ROWS($F$38:F62)-1,COLUMNS($F$38:F62)-1)<>"",OFFSET(DE100_14!$F$38,ROWS($F$38:F62)-1,COLUMNS($F$38:F62)-1),"") -> 1 | E48: =IF(OFFSET(DE100_14!$G$38,ROWS($G$38:G62)-1,COLUMNS($G$38:G62)-1)<>"",OFFSET(DE100_14!$G$38,ROWS($G$38:G62)-1,COLUMNS($G$38:G62)-1),"") -> 1 | F48: =IF(OFFSET(DE100_14!$H$38,ROWS($H$38:H62)-1,COLUMNS($H$38:H62)-1)<>"",OFFSET(DE100_14!$H$38,ROWS($H$38:H62)-1,COLUMNS($H$38:H62)-1),"") -> 10 | G48: =IF(OFFSET(DE100_14!$I$38,ROWS($I$38:I62)-1,COLUMNS($I$38:I62)-1)<>"",OFFSET(DE100_14!$I$38,ROWS($I$38:I62)-1,COLUMNS($I$38:I62)-1),"") -> 50 | H48: =IF(OFFSET(DE100_14!$J$38,ROWS($J$38:J62)-1,COLUMNS($J$38:J62)-1)<>"",OFFSET(DE100_14!$J$38,ROWS($J$38:J62)-1,COLUMNS($J$38:J62)-1),"") -> 2.85 | I48: =IF(OFFSET(DE100_14!$K$38,ROWS($K$38:K62)-1,COLUMNS($K$38:K62)-1)<>"",OFFSET(DE100_14!$K$38,ROWS($K$38:K62)-1,COLUMNS($K$38:K62)-1),"") -> -0.007 | J48: =IF(OFFSET(DE100_14!$L$38,ROWS($L$38:L62)-1,COLUMNS($L$38:L62)-1)<>"",OFFSET(DE100_14!$L$38,ROWS($L$38:L62)-1,COLUMNS($L$38:L62)-1),"") -> 1337.5 | K48: =IF(OFFSET(DE100_14!$N$38,ROWS($N$38:N62)-1,COLUMNS($N$38:N62)-1)<>"",OFFSET(DE100_14!$N$38,ROWS($N$38:N62)-1,COLUMNS($N$38:N62)-1),"") -> 
A49: =IF(OFFSET(DE100_14!$C$38,ROWS($C$38:C63)-1,COLUMNS($C$38:C63)-1)<>"",OFFSET(DE100_14!$C$38,ROWS($C$38:C63)-1,COLUMNS($C$38:C63)-1),"") -> 14 | B49: =IF(OFFSET(DE100_14!$D$38,ROWS($D$38:D63)-1,COLUMNS($D$38:D63)-1)<>"",OFFSET(DE100_14!$D$38,ROWS($D$38:D63)-1,COLUMNS($D$38:D63)-1),"") -> 97905 | C49: =IF(OFFSET(DE100_14!$E$38,ROWS($E$38:E63)-1,COLUMNS($E$38:E63)-1)<>"",OFFSET(DE100_14!$E$38,ROWS($E$38:E63)-1,COLUMNS($E$38:E63)-1),"") -> Lt. | D49: =IF(OFFSET(DE100_14!$F$38,ROWS($F$38:F63)-1,COLUMNS($F$38:F63)-1)<>"",OFFSET(DE100_14!$F$38,ROWS($F$38:F63)-1,COLUMNS($F$38:F63)-1),"") -> 1 | E49: =IF(OFFSET(DE100_14!$G$38,ROWS($G$38:G63)-1,COLUMNS($G$38:G63)-1)<>"",OFFSET(DE100_14!$G$38,ROWS($G$38:G63)-1,COLUMNS($G$38:G63)-1),"") -> 1 | F49: =IF(OFFSET(DE100_14!$H$38,ROWS($H$38:H63)-1,COLUMNS($H$38:H63)-1)<>"",OFFSET(DE100_14!$H$38,ROWS($H$38:H63)-1,COLUMNS($H$38:H63)-1),"") -> 10 | G49: =IF(OFFSET(DE100_14!$I$38,ROWS($I$38:I63)-1,COLUMNS($I$38:I63)-1)<>"",OFFSET(DE100_14!$I$38,ROWS($I$38:I63)-1,COLUMNS($I$38:I63)-1),"") -> 50 | H49: =IF(OFFSET(DE100_14!$J$38,ROWS($J$38:J63)-1,COLUMNS($J$38:J63)-1)<>"",OFFSET(DE100_14!$J$38,ROWS($J$38:J63)-1,COLUMNS($J$38:J63)-1),"") -> 2.85 | I49: =IF(OFFSET(DE100_14!$K$38,ROWS($K$38:K63)-1,COLUMNS($K$38:K63)-1)<>"",OFFSET(DE100_14!$K$38,ROWS($K$38:K63)-1,COLUMNS($K$38:K63)-1),"") -> 0.005 | J49: =IF(OFFSET(DE100_14!$L$38,ROWS($L$38:L63)-1,COLUMNS($L$38:L63)-1)<>"",OFFSET(DE100_14!$L$38,ROWS($L$38:L63)-1,COLUMNS($L$38:L63)-1),"") -> 1362.5 | K49: =IF(OFFSET(DE100_14!$N$38,ROWS($N$38:N63)-1,COLUMNS($N$38:N63)-1)<>"",OFFSET(DE100_14!$N$38,ROWS($N$38:N63)-1,COLUMNS($N$38:N63)-1),"") -> 
A50: =IF(OFFSET(DE100_14!$C$38,ROWS($C$38:C64)-1,COLUMNS($C$38:C64)-1)<>"",OFFSET(DE100_14!$C$38,ROWS($C$38:C64)-1,COLUMNS($C$38:C64)-1),"") -> 14 | B50: =IF(OFFSET(DE100_14!$D$38,ROWS($D$38:D64)-1,COLUMNS($D$38:D64)-1)<>"",OFFSET(DE100_14!$D$38,ROWS($D$38:D64)-1,COLUMNS($D$38:D64)-1),"") -> 97845 | C50: =IF(OFFSET(DE100_14!$E$38,ROWS($E$38:E64)-1,COLUMNS($E$38:E64)-1)<>"",OFFSET(DE100_14!$E$38,ROWS($E$38:E64)-1,COLUMNS($E$38:E64)-1),"") -> Rt. | D50: =IF(OFFSET(DE100_14!$F$38,ROWS($F$38:F64)-1,COLUMNS($F$38:F64)-1)<>"",OFFSET(DE100_14!$F$38,ROWS($F$38:F64)-1,COLUMNS($F$38:F64)-1),"") -> 1 | E50: =IF(OFFSET(DE100_14!$G$38,ROWS($G$38:G64)-1,COLUMNS($G$38:G64)-1)<>"",OFFSET(DE100_14!$G$38,ROWS($G$38:G64)-1,COLUMNS($G$38:G64)-1),"") -> 1 | F50: =IF(OFFSET(DE100_14!$H$38,ROWS($H$38:H64)-1,COLUMNS($H$38:H64)-1)<>"",OFFSET(DE100_14!$H$38,ROWS($H$38:H64)-1,COLUMNS($H$38:H64)-1),"") -> 10 | G50: =IF(OFFSET(DE100_14!$I$38,ROWS($I$38:I64)-1,COLUMNS($I$38:I64)-1)<>"",OFFSET(DE100_14!$I$38,ROWS($I$38:I64)-1,COLUMNS($I$38:I64)-1),"") -> 50 | H50: =IF(OFFSET(DE100_14!$J$38,ROWS($J$38:J64)-1,COLUMNS($J$38:J64)-1)<>"",OFFSET(DE100_14!$J$38,ROWS($J$38:J64)-1,COLUMNS($J$38:J64)-1),"") -> 2.85 | I50: =IF(OFFSET(DE100_14!$K$38,ROWS($K$38:K64)-1,COLUMNS($K$38:K64)-1)<>"",OFFSET(DE100_14!$K$38,ROWS($K$38:K64)-1,COLUMNS($K$38:K64)-1),"") -> -0.012 | J50: =IF(OFFSET(DE100_14!$L$38,ROWS($L$38:L64)-1,COLUMNS($L$38:L64)-1)<>"",OFFSET(DE100_14!$L$38,ROWS($L$38:L64)-1,COLUMNS($L$38:L64)-1),"") -> 1275 | K50: =IF(OFFSET(DE100_14!$N$38,ROWS($N$38:N64)-1,COLUMNS($N$38:N64)-1)<>"",OFFSET(DE100_14!$N$38,ROWS($N$38:N64)-1,COLUMNS($N$38:N64)-1),"") -> 
A51: =IF(OFFSET(DE100_14!$C$38,ROWS($C$38:C65)-1,COLUMNS($C$38:C65)-1)<>"",OFFSET(DE100_14!$C$38,ROWS($C$38:C65)-1,COLUMNS($C$38:C65)-1),"") -> 14 | B51: =IF(OFFSET(DE100_14!$D$38,ROWS($D$38:D65)-1,COLUMNS($D$38:D65)-1)<>"",OFFSET(DE100_14!$D$38,ROWS($D$38:D65)-1,COLUMNS($D$38:D65)-1),"") -> 97905 | C51: =IF(OFFSET(DE100_14!$E$38,ROWS($E$38:E65)-1,COLUMNS($E$38:E65)-1)<>"",OFFSET(DE100_14!$E$38,ROWS($E$38:E65)-1,COLUMNS($E$38:E65)-1),"") -> Rt. | D51: =IF(OFFSET(DE100_14!$F$38,ROWS($F$38:F65)-1,COLUMNS($F$38:F65)-1)<>"",OFFSET(DE100_14!$F$38,ROWS($F$38:F65)-1,COLUMNS($F$38:F65)-1),"") -> 1 | E51: =IF(OFFSET(DE100_14!$G$38,ROWS($G$38:G65)-1,COLUMNS($G$38:G65)-1)<>"",OFFSET(DE100_14!$G$38,ROWS($G$38:G65)-1,COLUMNS($G$38:G65)-1),"") -> 1 | F51: =IF(OFFSET(DE100_14!$H$38,ROWS($H$38:H65)-1,COLUMNS($H$38:H65)-1)<>"",OFFSET(DE100_14!$H$38,ROWS($H$38:H65)-1,COLUMNS($H$38:H65)-1),"") -> 10 | G51: =IF(OFFSET(DE100_14!$I$38,ROWS($I$38:I65)-1,COLUMNS($I$38:I65)-1)<>"",OFFSET(DE100_14!$I$38,ROWS($I$38:I65)-1,COLUMNS($I$38:I65)-1),"") -> 50 | H51: =IF(OFFSET(DE100_14!$J$38,ROWS($J$38:J65)-1,COLUMNS($J$38:J65)-1)<>"",OFFSET(DE100_14!$J$38,ROWS($J$38:J65)-1,COLUMNS($J$38:J65)-1),"") -> 2.85 | I51: =IF(OFFSET(DE100_14!$K$38,ROWS($K$38:K65)-1,COLUMNS($K$38:K65)-1)<>"",OFFSET(DE100_14!$K$38,ROWS($K$38:K65)-1,COLUMNS($K$38:K65)-1),"") -> 0.004 | J51: =IF(OFFSET(DE100_14!$L$38,ROWS($L$38:L65)-1,COLUMNS($L$38:L65)-1)<>"",OFFSET(DE100_14!$L$38,ROWS($L$38:L65)-1,COLUMNS($L$38:L65)-1),"") -> 1375 | K51: =IF(OFFSET(DE100_14!$N$38,ROWS($N$38:N65)-1,COLUMNS($N$38:N65)-1)<>"",OFFSET(DE100_14!$N$38,ROWS($N$38:N65)-1,COLUMNS($N$38:N65)-1),"") -> 
A52: =IF(OFFSET(DE100_14!$C$38,ROWS($C$38:C66)-1,COLUMNS($C$38:C66)-1)<>"",OFFSET(DE100_14!$C$38,ROWS($C$38:C66)-1,COLUMNS($C$38:C66)-1),"") ->  | B52: =IF(OFFSET(DE100_14!$D$38,ROWS($D$38:D66)-1,COLUMNS($D$38:D66)-1)<>"",OFFSET(DE100_14!$D$38,ROWS($D$38:D66)-1,COLUMNS($D$38:D66)-1),"") ->  | C52: =IF(OFFSET(DE100_14!$E$38,ROWS($E$38:E66)-1,COLUMNS($E$38:E66)-1)<>"",OFFSET(DE100_14!$E$38,ROWS($E$38:E66)-1,COLUMNS($E$38:E66)-1),"") ->  | D52: =IF(OFFSET(DE100_14!$F$38,ROWS($F$38:F66)-1,COLUMNS($F$38:F66)-1)<>"",OFFSET(DE100_14!$F$38,ROWS($F$38:F66)-1,COLUMNS($F$38:F66)-1),"") ->  | E52: =IF(OFFSET(DE100_14!$G$38,ROWS($G$38:G66)-1,COLUMNS($G$38:G66)-1)<>"",OFFSET(DE100_14!$G$38,ROWS($G$38:G66)-1,COLUMNS($G$38:G66)-1),"") ->  | F52: =IF(OFFSET(DE100_14!$H$38,ROWS($H$38:H66)-1,COLUMNS($H$38:H66)-1)<>"",OFFSET(DE100_14!$H$38,ROWS($H$38:H66)-1,COLUMNS($H$38:H66)-1),"") ->  | G52: =IF(OFFSET(DE100_14!$I$38,ROWS($I$38:I66)-1,COLUMNS($I$38:I66)-1)<>"",OFFSET(DE100_14!$I$38,ROWS($I$38:I66)-1,COLUMNS($I$38:I66)-1),"") ->  | H52: =IF(OFFSET(DE100_14!$J$38,ROWS($J$38:J66)-1,COLUMNS($J$38:J66)-1)<>"",OFFSET(DE100_14!$J$38,ROWS($J$38:J66)-1,COLUMNS($J$38:J66)-1),"") ->  | I52: =IF(OFFSET(DE100_14!$K$38,ROWS($K$38:K66)-1,COLUMNS($K$38:K66)-1)<>"",OFFSET(DE100_14!$K$38,ROWS($K$38:K66)-1,COLUMNS($K$38:K66)-1),"") ->  | J52: =IF(OFFSET(DE100_14!$L$38,ROWS($L$38:L66)-1,COLUMNS($L$38:L66)-1)<>"",OFFSET(DE100_14!$L$38,ROWS($L$38:L66)-1,COLUMNS($L$38:L66)-1),"") ->  | K52: =IF(OFFSET(DE100_14!$N$38,ROWS($N$38:N66)-1,COLUMNS($N$38:N66)-1)<>"",OFFSET(DE100_14!$N$38,ROWS($N$38:N66)-1,COLUMNS($N$38:N66)-1),"") -> 
A53: =IF(OFFSET(DE100_14!$C$38,ROWS($C$38:C67)-1,COLUMNS($C$38:C67)-1)<>"",OFFSET(DE100_14!$C$38,ROWS($C$38:C67)-1,COLUMNS($C$38:C67)-1),"") -> 17 | B53: =IF(OFFSET(DE100_14!$D$38,ROWS($D$38:D67)-1,COLUMNS($D$38:D67)-1)<>"",OFFSET(DE100_14!$D$38,ROWS($D$38:D67)-1,COLUMNS($D$38:D67)-1),"") -> 100785 | C53: =IF(OFFSET(DE100_14!$E$38,ROWS($E$38:E67)-1,COLUMNS($E$38:E67)-1)<>"",OFFSET(DE100_14!$E$38,ROWS($E$38:E67)-1,COLUMNS($E$38:E67)-1),"") -> Lt. | D53: =IF(OFFSET(DE100_14!$F$38,ROWS($F$38:F67)-1,COLUMNS($F$38:F67)-1)<>"",OFFSET(DE100_14!$F$38,ROWS($F$38:F67)-1,COLUMNS($F$38:F67)-1),"") -> 1 | E53: =IF(OFFSET(DE100_14!$G$38,ROWS($G$38:G67)-1,COLUMNS($G$38:G67)-1)<>"",OFFSET(DE100_14!$G$38,ROWS($G$38:G67)-1,COLUMNS($G$38:G67)-1),"") -> 1 | F53: =IF(OFFSET(DE100_14!$H$38,ROWS($H$38:H67)-1,COLUMNS($H$38:H67)-1)<>"",OFFSET(DE100_14!$H$38,ROWS($H$38:H67)-1,COLUMNS($H$38:H67)-1),"") -> 10 | G53: =IF(OFFSET(DE100_14!$I$38,ROWS($I$38:I67)-1,COLUMNS($I$38:I67)-1)<>"",OFFSET(DE100_14!$I$38,ROWS($I$38:I67)-1,COLUMNS($I$38:I67)-1),"") -> 50 | H53: =IF(OFFSET(DE100_14!$J$38,ROWS($J$38:J67)-1,COLUMNS($J$38:J67)-1)<>"",OFFSET(DE100_14!$J$38,ROWS($J$38:J67)-1,COLUMNS($J$38:J67)-1),"") -> 2.85 | I53: =IF(OFFSET(DE100_14!$K$38,ROWS($K$38:K67)-1,COLUMNS($K$38:K67)-1)<>"",OFFSET(DE100_14!$K$38,ROWS($K$38:K67)-1,COLUMNS($K$38:K67)-1),"") -> -0.006 | J53: =IF(OFFSET(DE100_14!$L$38,ROWS($L$38:L67)-1,COLUMNS($L$38:L67)-1)<>"",OFFSET(DE100_14!$L$38,ROWS($L$38:L67)-1,COLUMNS($L$38:L67)-1),"") -> 1350 | K53: =IF(OFFSET(DE100_14!$N$38,ROWS($N$38:N67)-1,COLUMNS($N$38:N67)-1)<>"",OFFSET(DE100_14!$N$38,ROWS($N$38:N67)-1,COLUMNS($N$38:N67)-1),"") -> 
A54: =IF(OFFSET(DE100_14!$C$38,ROWS($C$38:C68)-1,COLUMNS($C$38:C68)-1)<>"",OFFSET(DE100_14!$C$38,ROWS($C$38:C68)-1,COLUMNS($C$38:C68)-1),"") -> 17 | B54: =IF(OFFSET(DE100_14!$D$38,ROWS($D$38:D68)-1,COLUMNS($D$38:D68)-1)<>"",OFFSET(DE100_14!$D$38,ROWS($D$38:D68)-1,COLUMNS($D$38:D68)-1),"") -> 100845 | C54: =IF(OFFSET(DE100_14!$E$38,ROWS($E$38:E68)-1,COLUMNS($E$38:E68)-1)<>"",OFFSET(DE100_14!$E$38,ROWS($E$38:E68)-1,COLUMNS($E$38:E68)-1),"") -> Lt. | D54: =IF(OFFSET(DE100_14!$F$38,ROWS($F$38:F68)-1,COLUMNS($F$38:F68)-1)<>"",OFFSET(DE100_14!$F$38,ROWS($F$38:F68)-1,COLUMNS($F$38:F68)-1),"") -> 1 | E54: =IF(OFFSET(DE100_14!$G$38,ROWS($G$38:G68)-1,COLUMNS($G$38:G68)-1)<>"",OFFSET(DE100_14!$G$38,ROWS($G$38:G68)-1,COLUMNS($G$38:G68)-1),"") -> 1 | F54: =IF(OFFSET(DE100_14!$H$38,ROWS($H$38:H68)-1,COLUMNS($H$38:H68)-1)<>"",OFFSET(DE100_14!$H$38,ROWS($H$38:H68)-1,COLUMNS($H$38:H68)-1),"") -> 10 | G54: =IF(OFFSET(DE100_14!$I$38,ROWS($I$38:I68)-1,COLUMNS($I$38:I68)-1)<>"",OFFSET(DE100_14!$I$38,ROWS($I$38:I68)-1,COLUMNS($I$38:I68)-1),"") -> 50 | H54: =IF(OFFSET(DE100_14!$J$38,ROWS($J$38:J68)-1,COLUMNS($J$38:J68)-1)<>"",OFFSET(DE100_14!$J$38,ROWS($J$38:J68)-1,COLUMNS($J$38:J68)-1),"") -> 2.85 | I54: =IF(OFFSET(DE100_14!$K$38,ROWS($K$38:K68)-1,COLUMNS($K$38:K68)-1)<>"",OFFSET(DE100_14!$K$38,ROWS($K$38:K68)-1,COLUMNS($K$38:K68)-1),"") -> 0.007 | J54: =IF(OFFSET(DE100_14!$L$38,ROWS($L$38:L68)-1,COLUMNS($L$38:L68)-1)<>"",OFFSET(DE100_14!$L$38,ROWS($L$38:L68)-1,COLUMNS($L$38:L68)-1),"") -> 1337.5 | K54: =IF(OFFSET(DE100_14!$N$38,ROWS($N$38:N68)-1,COLUMNS($N$38:N68)-1)<>"",OFFSET(DE100_14!$N$38,ROWS($N$38:N68)-1,COLUMNS($N$38:N68)-1),"") -> 
A55: =IF(OFFSET(DE100_14!$C$38,ROWS($C$38:C69)-1,COLUMNS($C$38:C69)-1)<>"",OFFSET(DE100_14!$C$38,ROWS($C$38:C69)-1,COLUMNS($C$38:C69)-1),"") -> 17 | B55: =IF(OFFSET(DE100_14!$D$38,ROWS($D$38:D69)-1,COLUMNS($D$38:D69)-1)<>"",OFFSET(DE100_14!$D$38,ROWS($D$38:D69)-1,COLUMNS($D$38:D69)-1),"") -> 100785 | C55: =IF(OFFSET(DE100_14!$E$38,ROWS($E$38:E69)-1,COLUMNS($E$38:E69)-1)<>"",OFFSET(DE100_14!$E$38,ROWS($E$38:E69)-1,COLUMNS($E$38:E69)-1),"") -> Rt. | D55: =IF(OFFSET(DE100_14!$F$38,ROWS($F$38:F69)-1,COLUMNS($F$38:F69)-1)<>"",OFFSET(DE100_14!$F$38,ROWS($F$38:F69)-1,COLUMNS($F$38:F69)-1),"") -> 1 | E55: =IF(OFFSET(DE100_14!$G$38,ROWS($G$38:G69)-1,COLUMNS($G$38:G69)-1)<>"",OFFSET(DE100_14!$G$38,ROWS($G$38:G69)-1,COLUMNS($G$38:G69)-1),"") -> 1 | F55: =IF(OFFSET(DE100_14!$H$38,ROWS($H$38:H69)-1,COLUMNS($H$38:H69)-1)<>"",OFFSET(DE100_14!$H$38,ROWS($H$38:H69)-1,COLUMNS($H$38:H69)-1),"") -> 10 | G55: =IF(OFFSET(DE100_14!$I$38,ROWS($I$38:I69)-1,COLUMNS($I$38:I69)-1)<>"",OFFSET(DE100_14!$I$38,ROWS($I$38:I69)-1,COLUMNS($I$38:I69)-1),"") -> 50 | H55: =IF(OFFSET(DE100_14!$J$38,ROWS($J$38:J69)-1,COLUMNS($J$38:J69)-1)<>"",OFFSET(DE100_14!$J$38,ROWS($J$38:J69)-1,COLUMNS($J$38:J69)-1),"") -> 2.85 | I55: =IF(OFFSET(DE100_14!$K$38,ROWS($K$38:K69)-1,COLUMNS($K$38:K69)-1)<>"",OFFSET(DE100_14!$K$38,ROWS($K$38:K69)-1,COLUMNS($K$38:K69)-1),"") -> -0.005 | J55: =IF(OFFSET(DE100_14!$L$38,ROWS($L$38:L69)-1,COLUMNS($L$38:L69)-1)<>"",OFFSET(DE100_14!$L$38,ROWS($L$38:L69)-1,COLUMNS($L$38:L69)-1),"") -> 1362.5 | K55: =IF(OFFSET(DE100_14!$N$38,ROWS($N$38:N69)-1,COLUMNS($N$38:N69)-1)<>"",OFFSET(DE100_14!$N$38,ROWS($N$38:N69)-1,COLUMNS($N$38:N69)-1),"") -> 
A56: =IF(OFFSET(DE100_14!$C$38,ROWS($C$38:C70)-1,COLUMNS($C$38:C70)-1)<>"",OFFSET(DE100_14!$C$38,ROWS($C$38:C70)-1,COLUMNS($C$38:C70)-1),"") -> 17 | B56: =IF(OFFSET(DE100_14!$D$38,ROWS($D$38:D70)-1,COLUMNS($D$38:D70)-1)<>"",OFFSET(DE100_14!$D$38,ROWS($D$38:D70)-1,COLUMNS($D$38:D70)-1),"") -> 100845 | C56: =IF(OFFSET(DE100_14!$E$38,ROWS($E$38:E70)-1,COLUMNS($E$38:E70)-1)<>"",OFFSET(DE100_14!$E$38,ROWS($E$38:E70)-1,COLUMNS($E$38:E70)-1),"") -> Rt. | D56: =IF(OFFSET(DE100_14!$F$38,ROWS($F$38:F70)-1,COLUMNS($F$38:F70)-1)<>"",OFFSET(DE100_14!$F$38,ROWS($F$38:F70)-1,COLUMNS($F$38:F70)-1),"") -> 1 | E56: =IF(OFFSET(DE100_14!$G$38,ROWS($G$38:G70)-1,COLUMNS($G$38:G70)-1)<>"",OFFSET(DE100_14!$G$38,ROWS($G$38:G70)-1,COLUMNS($G$38:G70)-1),"") -> 1 | F56: =IF(OFFSET(DE100_14!$H$38,ROWS($H$38:H70)-1,COLUMNS($H$38:H70)-1)<>"",OFFSET(DE100_14!$H$38,ROWS($H$38:H70)-1,COLUMNS($H$38:H70)-1),"") -> 10 | G56: =IF(OFFSET(DE100_14!$I$38,ROWS($I$38:I70)-1,COLUMNS($I$38:I70)-1)<>"",OFFSET(DE100_14!$I$38,ROWS($I$38:I70)-1,COLUMNS($I$38:I70)-1),"") -> 50 | H56: =IF(OFFSET(DE100_14!$J$38,ROWS($J$38:J70)-1,COLUMNS($J$38:J70)-1)<>"",OFFSET(DE100_14!$J$38,ROWS($J$38:J70)-1,COLUMNS($J$38:J70)-1),"") -> 2.85 | I56: =IF(OFFSET(DE100_14!$K$38,ROWS($K$38:K70)-1,COLUMNS($K$38:K70)-1)<>"",OFFSET(DE100_14!$K$38,ROWS($K$38:K70)-1,COLUMNS($K$38:K70)-1),"") -> 0.004 | J56: =IF(OFFSET(DE100_14!$L$38,ROWS($L$38:L70)-1,COLUMNS($L$38:L70)-1)<>"",OFFSET(DE100_14!$L$38,ROWS($L$38:L70)-1,COLUMNS($L$38:L70)-1),"") -> 1375 | K56: =IF(OFFSET(DE100_14!$N$38,ROWS($N$38:N70)-1,COLUMNS($N$38:N70)-1)<>"",OFFSET(DE100_14!$N$38,ROWS($N$38:N70)-1,COLUMNS($N$38:N70)-1),"") -> 
A57: =IF(OFFSET(DE100_14!$C$38,ROWS($C$38:C71)-1,COLUMNS($C$38:C71)-1)<>"",OFFSET(DE100_14!$C$38,ROWS($C$38:C71)-1,COLUMNS($C$38:C71)-1),"") ->  | B57: =IF(OFFSET(DE100_14!$D$38,ROWS($D$38:D71)-1,COLUMNS($D$38:D71)-1)<>"",OFFSET(DE100_14!$D$38,ROWS($D$38:D71)-1,COLUMNS($D$38:D71)-1),"") ->  | C57: =IF(OFFSET(DE100_14!$E$38,ROWS($E$38:E71)-1,COLUMNS($E$38:E71)-1)<>"",OFFSET(DE100_14!$E$38,ROWS($E$38:E71)-1,COLUMNS($E$38:E71)-1),"") ->  | D57: =IF(OFFSET(DE100_14!$F$38,ROWS($F$38:F71)-1,COLUMNS($F$38:F71)-1)<>"",OFFSET(DE100_14!$F$38,ROWS($F$38:F71)-1,COLUMNS($F$38:F71)-1),"") ->  | E57: =IF(OFFSET(DE100_14!$G$38,ROWS($G$38:G71)-1,COLUMNS($G$38:G71)-1)<>"",OFFSET(DE100_14!$G$38,ROWS($G$38:G71)-1,COLUMNS($G$38:G71)-1),"") ->  | F57: =IF(OFFSET(DE100_14!$H$38,ROWS($H$38:H71)-1,COLUMNS($H$38:H71)-1)<>"",OFFSET(DE100_14!$H$38,ROWS($H$38:H71)-1,COLUMNS($H$38:H71)-1),"") ->  | G57: =IF(OFFSET(DE100_14!$I$38,ROWS($I$38:I71)-1,COLUMNS($I$38:I71)-1)<>"",OFFSET(DE100_14!$I$38,ROWS($I$38:I71)-1,COLUMNS($I$38:I71)-1),"") ->  | H57: =IF(OFFSET(DE100_14!$J$38,ROWS($J$38:J71)-1,COLUMNS($J$38:J71)-1)<>"",OFFSET(DE100_14!$J$38,ROWS($J$38:J71)-1,COLUMNS($J$38:J71)-1),"") ->  | I57: =IF(OFFSET(DE100_14!$K$38,ROWS($K$38:K71)-1,COLUMNS($K$38:K71)-1)<>"",OFFSET(DE100_14!$K$38,ROWS($K$38:K71)-1,COLUMNS($K$38:K71)-1),"") ->  | J57: =IF(OFFSET(DE100_14!$L$38,ROWS($L$38:L71)-1,COLUMNS($L$38:L71)-1)<>"",OFFSET(DE100_14!$L$38,ROWS($L$38:L71)-1,COLUMNS($L$38:L71)-1),"") ->  | K57: =IF(OFFSET(DE100_14!$N$38,ROWS($N$38:N71)-1,COLUMNS($N$38:N71)-1)<>"",OFFSET(DE100_14!$N$38,ROWS($N$38:N71)-1,COLUMNS($N$38:N71)-1),"") -> 
A58: =IF(OFFSET(DE100_14!$C$38,ROWS($C$38:C72)-1,COLUMNS($C$38:C72)-1)<>"",OFFSET(DE100_14!$C$38,ROWS($C$38:C72)-1,COLUMNS($C$38:C72)-1),"") -> 18 | B58: =IF(OFFSET(DE100_14!$D$38,ROWS($D$38:D72)-1,COLUMNS($D$38:D72)-1)<>"",OFFSET(DE100_14!$D$38,ROWS($D$38:D72)-1,COLUMNS($D$38:D72)-1),"") -> 103265 | C58: =IF(OFFSET(DE100_14!$E$38,ROWS($E$38:E72)-1,COLUMNS($E$38:E72)-1)<>"",OFFSET(DE100_14!$E$38,ROWS($E$38:E72)-1,COLUMNS($E$38:E72)-1),"") -> Lt. | D58: =IF(OFFSET(DE100_14!$F$38,ROWS($F$38:F72)-1,COLUMNS($F$38:F72)-1)<>"",OFFSET(DE100_14!$F$38,ROWS($F$38:F72)-1,COLUMNS($F$38:F72)-1),"") -> 1 | E58: =IF(OFFSET(DE100_14!$G$38,ROWS($G$38:G72)-1,COLUMNS($G$38:G72)-1)<>"",OFFSET(DE100_14!$G$38,ROWS($G$38:G72)-1,COLUMNS($G$38:G72)-1),"") -> 1 | F58: =IF(OFFSET(DE100_14!$H$38,ROWS($H$38:H72)-1,COLUMNS($H$38:H72)-1)<>"",OFFSET(DE100_14!$H$38,ROWS($H$38:H72)-1,COLUMNS($H$38:H72)-1),"") -> 10 | G58: =IF(OFFSET(DE100_14!$I$38,ROWS($I$38:I72)-1,COLUMNS($I$38:I72)-1)<>"",OFFSET(DE100_14!$I$38,ROWS($I$38:I72)-1,COLUMNS($I$38:I72)-1),"") -> 50 | H58: =IF(OFFSET(DE100_14!$J$38,ROWS($J$38:J72)-1,COLUMNS($J$38:J72)-1)<>"",OFFSET(DE100_14!$J$38,ROWS($J$38:J72)-1,COLUMNS($J$38:J72)-1),"") -> 2.85 | I58: =IF(OFFSET(DE100_14!$K$38,ROWS($K$38:K72)-1,COLUMNS($K$38:K72)-1)<>"",OFFSET(DE100_14!$K$38,ROWS($K$38:K72)-1,COLUMNS($K$38:K72)-1),"") -> -0.005 | J58: =IF(OFFSET(DE100_14!$L$38,ROWS($L$38:L72)-1,COLUMNS($L$38:L72)-1)<>"",OFFSET(DE100_14!$L$38,ROWS($L$38:L72)-1,COLUMNS($L$38:L72)-1),"") -> 1362.5 | K58: =IF(OFFSET(DE100_14!$N$38,ROWS($N$38:N72)-1,COLUMNS($N$38:N72)-1)<>"",OFFSET(DE100_14!$N$38,ROWS($N$38:N72)-1,COLUMNS($N$38:N72)-1),"") -> 
A59: =IF(OFFSET(DE100_14!$C$38,ROWS($C$38:C73)-1,COLUMNS($C$38:C73)-1)<>"",OFFSET(DE100_14!$C$38,ROWS($C$38:C73)-1,COLUMNS($C$38:C73)-1),"") -> 18 | B59: =IF(OFFSET(DE100_14!$D$38,ROWS($D$38:D73)-1,COLUMNS($D$38:D73)-1)<>"",OFFSET(DE100_14!$D$38,ROWS($D$38:D73)-1,COLUMNS($D$38:D73)-1),"") -> 103325 | C59: =IF(OFFSET(DE100_14!$E$38,ROWS($E$38:E73)-1,COLUMNS($E$38:E73)-1)<>"",OFFSET(DE100_14!$E$38,ROWS($E$38:E73)-1,COLUMNS($E$38:E73)-1),"") -> Lt. | D59: =IF(OFFSET(DE100_14!$F$38,ROWS($F$38:F73)-1,COLUMNS($F$38:F73)-1)<>"",OFFSET(DE100_14!$F$38,ROWS($F$38:F73)-1,COLUMNS($F$38:F73)-1),"") -> 1 | E59: =IF(OFFSET(DE100_14!$G$38,ROWS($G$38:G73)-1,COLUMNS($G$38:G73)-1)<>"",OFFSET(DE100_14!$G$38,ROWS($G$38:G73)-1,COLUMNS($G$38:G73)-1),"") -> 1 | F59: =IF(OFFSET(DE100_14!$H$38,ROWS($H$38:H73)-1,COLUMNS($H$38:H73)-1)<>"",OFFSET(DE100_14!$H$38,ROWS($H$38:H73)-1,COLUMNS($H$38:H73)-1),"") -> 10 | G59: =IF(OFFSET(DE100_14!$I$38,ROWS($I$38:I73)-1,COLUMNS($I$38:I73)-1)<>"",OFFSET(DE100_14!$I$38,ROWS($I$38:I73)-1,COLUMNS($I$38:I73)-1),"") -> 50 | H59: =IF(OFFSET(DE100_14!$J$38,ROWS($J$38:J73)-1,COLUMNS($J$38:J73)-1)<>"",OFFSET(DE100_14!$J$38,ROWS($J$38:J73)-1,COLUMNS($J$38:J73)-1),"") -> 2.85 | I59: =IF(OFFSET(DE100_14!$K$38,ROWS($K$38:K73)-1,COLUMNS($K$38:K73)-1)<>"",OFFSET(DE100_14!$K$38,ROWS($K$38:K73)-1,COLUMNS($K$38:K73)-1),"") -> 0.01 | J59: =IF(OFFSET(DE100_14!$L$38,ROWS($L$38:L73)-1,COLUMNS($L$38:L73)-1)<>"",OFFSET(DE100_14!$L$38,ROWS($L$38:L73)-1,COLUMNS($L$38:L73)-1),"") -> 1300 | K59: =IF(OFFSET(DE100_14!$N$38,ROWS($N$38:N73)-1,COLUMNS($N$38:N73)-1)<>"",OFFSET(DE100_14!$N$38,ROWS($N$38:N73)-1,COLUMNS($N$38:N73)-1),"") -> 
A60: =IF(OFFSET(DE100_14!$C$38,ROWS($C$38:C74)-1,COLUMNS($C$38:C74)-1)<>"",OFFSET(DE100_14!$C$38,ROWS($C$38:C74)-1,COLUMNS($C$38:C74)-1),"") -> 18 | B60: =IF(OFFSET(DE100_14!$D$38,ROWS($D$38:D74)-1,COLUMNS($D$38:D74)-1)<>"",OFFSET(DE100_14!$D$38,ROWS($D$38:D74)-1,COLUMNS($D$38:D74)-1),"") -> 103265 | C60: =IF(OFFSET(DE100_14!$E$38,ROWS($E$38:E74)-1,COLUMNS($E$38:E74)-1)<>"",OFFSET(DE100_14!$E$38,ROWS($E$38:E74)-1,COLUMNS($E$38:E74)-1),"") -> Rt. | D60: =IF(OFFSET(DE100_14!$F$38,ROWS($F$38:F74)-1,COLUMNS($F$38:F74)-1)<>"",OFFSET(DE100_14!$F$38,ROWS($F$38:F74)-1,COLUMNS($F$38:F74)-1),"") -> 1 | E60: =IF(OFFSET(DE100_14!$G$38,ROWS($G$38:G74)-1,COLUMNS($G$38:G74)-1)<>"",OFFSET(DE100_14!$G$38,ROWS($G$38:G74)-1,COLUMNS($G$38:G74)-1),"") -> 1 | F60: =IF(OFFSET(DE100_14!$H$38,ROWS($H$38:H74)-1,COLUMNS($H$38:H74)-1)<>"",OFFSET(DE100_14!$H$38,ROWS($H$38:H74)-1,COLUMNS($H$38:H74)-1),"") -> 10 | G60: =IF(OFFSET(DE100_14!$I$38,ROWS($I$38:I74)-1,COLUMNS($I$38:I74)-1)<>"",OFFSET(DE100_14!$I$38,ROWS($I$38:I74)-1,COLUMNS($I$38:I74)-1),"") -> 50 | H60: =IF(OFFSET(DE100_14!$J$38,ROWS($J$38:J74)-1,COLUMNS($J$38:J74)-1)<>"",OFFSET(DE100_14!$J$38,ROWS($J$38:J74)-1,COLUMNS($J$38:J74)-1),"") -> 2.85 | I60: =IF(OFFSET(DE100_14!$K$38,ROWS($K$38:K74)-1,COLUMNS($K$38:K74)-1)<>"",OFFSET(DE100_14!$K$38,ROWS($K$38:K74)-1,COLUMNS($K$38:K74)-1),"") -> -0.009 | J60: =IF(OFFSET(DE100_14!$L$38,ROWS($L$38:L74)-1,COLUMNS($L$38:L74)-1)<>"",OFFSET(DE100_14!$L$38,ROWS($L$38:L74)-1,COLUMNS($L$38:L74)-1),"") -> 1312.5 | K60: =IF(OFFSET(DE100_14!$N$38,ROWS($N$38:N74)-1,COLUMNS($N$38:N74)-1)<>"",OFFSET(DE100_14!$N$38,ROWS($N$38:N74)-1,COLUMNS($N$38:N74)-1),"") -> 
A61: =IF(OFFSET(DE100_14!$C$38,ROWS($C$38:C75)-1,COLUMNS($C$38:C75)-1)<>"",OFFSET(DE100_14!$C$38,ROWS($C$38:C75)-1,COLUMNS($C$38:C75)-1),"") -> 18 | B61: =IF(OFFSET(DE100_14!$D$38,ROWS($D$38:D75)-1,COLUMNS($D$38:D75)-1)<>"",OFFSET(DE100_14!$D$38,ROWS($D$38:D75)-1,COLUMNS($D$38:D75)-1),"") -> 103325 | C61: =IF(OFFSET(DE100_14!$E$38,ROWS($E$38:E75)-1,COLUMNS($E$38:E75)-1)<>"",OFFSET(DE100_14!$E$38,ROWS($E$38:E75)-1,COLUMNS($E$38:E75)-1),"") -> Rt. | D61: =IF(OFFSET(DE100_14!$F$38,ROWS($F$38:F75)-1,COLUMNS($F$38:F75)-1)<>"",OFFSET(DE100_14!$F$38,ROWS($F$38:F75)-1,COLUMNS($F$38:F75)-1),"") -> 1 | E61: =IF(OFFSET(DE100_14!$G$38,ROWS($G$38:G75)-1,COLUMNS($G$38:G75)-1)<>"",OFFSET(DE100_14!$G$38,ROWS($G$38:G75)-1,COLUMNS($G$38:G75)-1),"") -> 1 | F61: =IF(OFFSET(DE100_14!$H$38,ROWS($H$38:H75)-1,COLUMNS($H$38:H75)-1)<>"",OFFSET(DE100_14!$H$38,ROWS($H$38:H75)-1,COLUMNS($H$38:H75)-1),"") -> 10 | G61: =IF(OFFSET(DE100_14!$I$38,ROWS($I$38:I75)-1,COLUMNS($I$38:I75)-1)<>"",OFFSET(DE100_14!$I$38,ROWS($I$38:I75)-1,COLUMNS($I$38:I75)-1),"") -> 50 | H61: =IF(OFFSET(DE100_14!$J$38,ROWS($J$38:J75)-1,COLUMNS($J$38:J75)-1)<>"",OFFSET(DE100_14!$J$38,ROWS($J$38:J75)-1,COLUMNS($J$38:J75)-1),"") -> 2.85 | I61: =IF(OFFSET(DE100_14!$K$38,ROWS($K$38:K75)-1,COLUMNS($K$38:K75)-1)<>"",OFFSET(DE100_14!$K$38,ROWS($K$38:K75)-1,COLUMNS($K$38:K75)-1),"") -> 0.016 | J61: =IF(OFFSET(DE100_14!$L$38,ROWS($L$38:L75)-1,COLUMNS($L$38:L75)-1)<>"",OFFSET(DE100_14!$L$38,ROWS($L$38:L75)-1,COLUMNS($L$38:L75)-1),"") -> 1225 | K61: =IF(OFFSET(DE100_14!$N$38,ROWS($N$38:N75)-1,COLUMNS($N$38:N75)-1)<>"",OFFSET(DE100_14!$N$38,ROWS($N$38:N75)-1,COLUMNS($N$38:N75)-1),"") -> 
A62: =IF(OFFSET(DE100_14!$C$38,ROWS($C$38:C76)-1,COLUMNS($C$38:C76)-1)<>"",OFFSET(DE100_14!$C$38,ROWS($C$38:C76)-1,COLUMNS($C$38:C76)-1),"") ->  | B62: =IF(OFFSET(DE100_14!$D$38,ROWS($D$38:D76)-1,COLUMNS($D$38:D76)-1)<>"",OFFSET(DE100_14!$D$38,ROWS($D$38:D76)-1,COLUMNS($D$38:D76)-1),"") ->  | C62: =IF(OFFSET(DE100_14!$E$38,ROWS($E$38:E76)-1,COLUMNS($E$38:E76)-1)<>"",OFFSET(DE100_14!$E$38,ROWS($E$38:E76)-1,COLUMNS($E$38:E76)-1),"") ->  | D62: =IF(OFFSET(DE100_14!$F$38,ROWS($F$38:F76)-1,COLUMNS($F$38:F76)-1)<>"",OFFSET(DE100_14!$F$38,ROWS($F$38:F76)-1,COLUMNS($F$38:F76)-1),"") ->  | E62: =IF(OFFSET(DE100_14!$G$38,ROWS($G$38:G76)-1,COLUMNS($G$38:G76)-1)<>"",OFFSET(DE100_14!$G$38,ROWS($G$38:G76)-1,COLUMNS($G$38:G76)-1),"") ->  | F62: =IF(OFFSET(DE100_14!$H$38,ROWS($H$38:H76)-1,COLUMNS($H$38:H76)-1)<>"",OFFSET(DE100_14!$H$38,ROWS($H$38:H76)-1,COLUMNS($H$38:H76)-1),"") ->  | G62: =IF(OFFSET(DE100_14!$I$38,ROWS($I$38:I76)-1,COLUMNS($I$38:I76)-1)<>"",OFFSET(DE100_14!$I$38,ROWS($I$38:I76)-1,COLUMNS($I$38:I76)-1),"") ->  | H62: =IF(OFFSET(DE100_14!$J$38,ROWS($J$38:J76)-1,COLUMNS($J$38:J76)-1)<>"",OFFSET(DE100_14!$J$38,ROWS($J$38:J76)-1,COLUMNS($J$38:J76)-1),"") ->  | I62: =IF(OFFSET(DE100_14!$K$38,ROWS($K$38:K76)-1,COLUMNS($K$38:K76)-1)<>"",OFFSET(DE100_14!$K$38,ROWS($K$38:K76)-1,COLUMNS($K$38:K76)-1),"") ->  | J62: =IF(OFFSET(DE100_14!$L$38,ROWS($L$38:L76)-1,COLUMNS($L$38:L76)-1)<>"",OFFSET(DE100_14!$L$38,ROWS($L$38:L76)-1,COLUMNS($L$38:L76)-1),"") ->  | K62: =IF(OFFSET(DE100_14!$N$38,ROWS($N$38:N76)-1,COLUMNS($N$38:N76)-1)<>"",OFFSET(DE100_14!$N$38,ROWS($N$38:N76)-1,COLUMNS($N$38:N76)-1),"") -> 
A63: =IF(OFFSET(DE100_14!$C$38,ROWS($C$38:C77)-1,COLUMNS($C$38:C77)-1)<>"",OFFSET(DE100_14!$C$38,ROWS($C$38:C77)-1,COLUMNS($C$38:C77)-1),"") -> 20 | B63: =IF(OFFSET(DE100_14!$D$38,ROWS($D$38:D77)-1,COLUMNS($D$38:D77)-1)<>"",OFFSET(DE100_14!$D$38,ROWS($D$38:D77)-1,COLUMNS($D$38:D77)-1),"") -> 105920 | C63: =IF(OFFSET(DE100_14!$E$38,ROWS($E$38:E77)-1,COLUMNS($E$38:E77)-1)<>"",OFFSET(DE100_14!$E$38,ROWS($E$38:E77)-1,COLUMNS($E$38:E77)-1),"") -> Lt. | D63: =IF(OFFSET(DE100_14!$F$38,ROWS($F$38:F77)-1,COLUMNS($F$38:F77)-1)<>"",OFFSET(DE100_14!$F$38,ROWS($F$38:F77)-1,COLUMNS($F$38:F77)-1),"") -> 1 | E63: =IF(OFFSET(DE100_14!$G$38,ROWS($G$38:G77)-1,COLUMNS($G$38:G77)-1)<>"",OFFSET(DE100_14!$G$38,ROWS($G$38:G77)-1,COLUMNS($G$38:G77)-1),"") -> 1 | F63: =IF(OFFSET(DE100_14!$H$38,ROWS($H$38:H77)-1,COLUMNS($H$38:H77)-1)<>"",OFFSET(DE100_14!$H$38,ROWS($H$38:H77)-1,COLUMNS($H$38:H77)-1),"") -> 10 | G63: =IF(OFFSET(DE100_14!$I$38,ROWS($I$38:I77)-1,COLUMNS($I$38:I77)-1)<>"",OFFSET(DE100_14!$I$38,ROWS($I$38:I77)-1,COLUMNS($I$38:I77)-1),"") -> 50 | H63: =IF(OFFSET(DE100_14!$J$38,ROWS($J$38:J77)-1,COLUMNS($J$38:J77)-1)<>"",OFFSET(DE100_14!$J$38,ROWS($J$38:J77)-1,COLUMNS($J$38:J77)-1),"") -> 2.85 | I63: =IF(OFFSET(DE100_14!$K$38,ROWS($K$38:K77)-1,COLUMNS($K$38:K77)-1)<>"",OFFSET(DE100_14!$K$38,ROWS($K$38:K77)-1,COLUMNS($K$38:K77)-1),"") -> -0.004 | J63: =IF(OFFSET(DE100_14!$L$38,ROWS($L$38:L77)-1,COLUMNS($L$38:L77)-1)<>"",OFFSET(DE100_14!$L$38,ROWS($L$38:L77)-1,COLUMNS($L$38:L77)-1),"") -> 1375 | K63: =IF(OFFSET(DE100_14!$N$38,ROWS($N$38:N77)-1,COLUMNS($N$38:N77)-1)<>"",OFFSET(DE100_14!$N$38,ROWS($N$38:N77)-1,COLUMNS($N$38:N77)-1),"") -> 
A64: =IF(OFFSET(DE100_14!$C$38,ROWS($C$38:C78)-1,COLUMNS($C$38:C78)-1)<>"",OFFSET(DE100_14!$C$38,ROWS($C$38:C78)-1,COLUMNS($C$38:C78)-1),"") -> 20 | B64: =IF(OFFSET(DE100_14!$D$38,ROWS($D$38:D78)-1,COLUMNS($D$38:D78)-1)<>"",OFFSET(DE100_14!$D$38,ROWS($D$38:D78)-1,COLUMNS($D$38:D78)-1),"") -> 105980 | C64: =IF(OFFSET(DE100_14!$E$38,ROWS($E$38:E78)-1,COLUMNS($E$38:E78)-1)<>"",OFFSET(DE100_14!$E$38,ROWS($E$38:E78)-1,COLUMNS($E$38:E78)-1),"") -> Lt. | D64: =IF(OFFSET(DE100_14!$F$38,ROWS($F$38:F78)-1,COLUMNS($F$38:F78)-1)<>"",OFFSET(DE100_14!$F$38,ROWS($F$38:F78)-1,COLUMNS($F$38:F78)-1),"") -> 1 | E64: =IF(OFFSET(DE100_14!$G$38,ROWS($G$38:G78)-1,COLUMNS($G$38:G78)-1)<>"",OFFSET(DE100_14!$G$38,ROWS($G$38:G78)-1,COLUMNS($G$38:G78)-1),"") -> 1 | F64: =IF(OFFSET(DE100_14!$H$38,ROWS($H$38:H78)-1,COLUMNS($H$38:H78)-1)<>"",OFFSET(DE100_14!$H$38,ROWS($H$38:H78)-1,COLUMNS($H$38:H78)-1),"") -> 10 | G64: =IF(OFFSET(DE100_14!$I$38,ROWS($I$38:I78)-1,COLUMNS($I$38:I78)-1)<>"",OFFSET(DE100_14!$I$38,ROWS($I$38:I78)-1,COLUMNS($I$38:I78)-1),"") -> 50 | H64: =IF(OFFSET(DE100_14!$J$38,ROWS($J$38:J78)-1,COLUMNS($J$38:J78)-1)<>"",OFFSET(DE100_14!$J$38,ROWS($J$38:J78)-1,COLUMNS($J$38:J78)-1),"") -> 2.85 | I64: =IF(OFFSET(DE100_14!$K$38,ROWS($K$38:K78)-1,COLUMNS($K$38:K78)-1)<>"",OFFSET(DE100_14!$K$38,ROWS($K$38:K78)-1,COLUMNS($K$38:K78)-1),"") -> 0.003 | J64: =IF(OFFSET(DE100_14!$L$38,ROWS($L$38:L78)-1,COLUMNS($L$38:L78)-1)<>"",OFFSET(DE100_14!$L$38,ROWS($L$38:L78)-1,COLUMNS($L$38:L78)-1),"") -> 1387.5 | K64: =IF(OFFSET(DE100_14!$N$38,ROWS($N$38:N78)-1,COLUMNS($N$38:N78)-1)<>"",OFFSET(DE100_14!$N$38,ROWS($N$38:N78)-1,COLUMNS($N$38:N78)-1),"") -> 
A65: =IF(OFFSET(DE100_14!$C$38,ROWS($C$38:C79)-1,COLUMNS($C$38:C79)-1)<>"",OFFSET(DE100_14!$C$38,ROWS($C$38:C79)-1,COLUMNS($C$38:C79)-1),"") -> 20 | B65: =IF(OFFSET(DE100_14!$D$38,ROWS($D$38:D79)-1,COLUMNS($D$38:D79)-1)<>"",OFFSET(DE100_14!$D$38,ROWS($D$38:D79)-1,COLUMNS($D$38:D79)-1),"") -> 105920 | C65: =IF(OFFSET(DE100_14!$E$38,ROWS($E$38:E79)-1,COLUMNS($E$38:E79)-1)<>"",OFFSET(DE100_14!$E$38,ROWS($E$38:E79)-1,COLUMNS($E$38:E79)-1),"") -> Rt. | D65: =IF(OFFSET(DE100_14!$F$38,ROWS($F$38:F79)-1,COLUMNS($F$38:F79)-1)<>"",OFFSET(DE100_14!$F$38,ROWS($F$38:F79)-1,COLUMNS($F$38:F79)-1),"") -> 1 | E65: =IF(OFFSET(DE100_14!$G$38,ROWS($G$38:G79)-1,COLUMNS($G$38:G79)-1)<>"",OFFSET(DE100_14!$G$38,ROWS($G$38:G79)-1,COLUMNS($G$38:G79)-1),"") -> 1 | F65: =IF(OFFSET(DE100_14!$H$38,ROWS($H$38:H79)-1,COLUMNS($H$38:H79)-1)<>"",OFFSET(DE100_14!$H$38,ROWS($H$38:H79)-1,COLUMNS($H$38:H79)-1),"") -> 10 | G65: =IF(OFFSET(DE100_14!$I$38,ROWS($I$38:I79)-1,COLUMNS($I$38:I79)-1)<>"",OFFSET(DE100_14!$I$38,ROWS($I$38:I79)-1,COLUMNS($I$38:I79)-1),"") -> 50 | H65: =IF(OFFSET(DE100_14!$J$38,ROWS($J$38:J79)-1,COLUMNS($J$38:J79)-1)<>"",OFFSET(DE100_14!$J$38,ROWS($J$38:J79)-1,COLUMNS($J$38:J79)-1),"") -> 2.85 | I65: =IF(OFFSET(DE100_14!$K$38,ROWS($K$38:K79)-1,COLUMNS($K$38:K79)-1)<>"",OFFSET(DE100_14!$K$38,ROWS($K$38:K79)-1,COLUMNS($K$38:K79)-1),"") -> -0.012 | J65: =IF(OFFSET(DE100_14!$L$38,ROWS($L$38:L79)-1,COLUMNS($L$38:L79)-1)<>"",OFFSET(DE100_14!$L$38,ROWS($L$38:L79)-1,COLUMNS($L$38:L79)-1),"") -> 1275 | K65: =IF(OFFSET(DE100_14!$N$38,ROWS($N$38:N79)-1,COLUMNS($N$38:N79)-1)<>"",OFFSET(DE100_14!$N$38,ROWS($N$38:N79)-1,COLUMNS($N$38:N79)-1),"") -> 
A66: =IF(OFFSET(DE100_14!$C$38,ROWS($C$38:C80)-1,COLUMNS($C$38:C80)-1)<>"",OFFSET(DE100_14!$C$38,ROWS($C$38:C80)-1,COLUMNS($C$38:C80)-1),"") -> 20 | B66: =IF(OFFSET(DE100_14!$D$38,ROWS($D$38:D80)-1,COLUMNS($D$38:D80)-1)<>"",OFFSET(DE100_14!$D$38,ROWS($D$38:D80)-1,COLUMNS($D$38:D80)-1),"") -> 105980 | C66: =IF(OFFSET(DE100_14!$E$38,ROWS($E$38:E80)-1,COLUMNS($E$38:E80)-1)<>"",OFFSET(DE100_14!$E$38,ROWS($E$38:E80)-1,COLUMNS($E$38:E80)-1),"") -> Rt. | D66: =IF(OFFSET(DE100_14!$F$38,ROWS($F$38:F80)-1,COLUMNS($F$38:F80)-1)<>"",OFFSET(DE100_14!$F$38,ROWS($F$38:F80)-1,COLUMNS($F$38:F80)-1),"") -> 1 | E66: =IF(OFFSET(DE100_14!$G$38,ROWS($G$38:G80)-1,COLUMNS($G$38:G80)-1)<>"",OFFSET(DE100_14!$G$38,ROWS($G$38:G80)-1,COLUMNS($G$38:G80)-1),"") -> 1 | F66: =IF(OFFSET(DE100_14!$H$38,ROWS($H$38:H80)-1,COLUMNS($H$38:H80)-1)<>"",OFFSET(DE100_14!$H$38,ROWS($H$38:H80)-1,COLUMNS($H$38:H80)-1),"") -> 10 | G66: =IF(OFFSET(DE100_14!$I$38,ROWS($I$38:I80)-1,COLUMNS($I$38:I80)-1)<>"",OFFSET(DE100_14!$I$38,ROWS($I$38:I80)-1,COLUMNS($I$38:I80)-1),"") -> 50 | H66: =IF(OFFSET(DE100_14!$J$38,ROWS($J$38:J80)-1,COLUMNS($J$38:J80)-1)<>"",OFFSET(DE100_14!$J$38,ROWS($J$38:J80)-1,COLUMNS($J$38:J80)-1),"") -> 2.85 | I66: =IF(OFFSET(DE100_14!$K$38,ROWS($K$38:K80)-1,COLUMNS($K$38:K80)-1)<>"",OFFSET(DE100_14!$K$38,ROWS($K$38:K80)-1,COLUMNS($K$38:K80)-1),"") -> 0.004 | J66: =IF(OFFSET(DE100_14!$L$38,ROWS($L$38:L80)-1,COLUMNS($L$38:L80)-1)<>"",OFFSET(DE100_14!$L$38,ROWS($L$38:L80)-1,COLUMNS($L$38:L80)-1),"") -> 1375 | K66: =IF(OFFSET(DE100_14!$N$38,ROWS($N$38:N80)-1,COLUMNS($N$38:N80)-1)<>"",OFFSET(DE100_14!$N$38,ROWS($N$38:N80)-1,COLUMNS($N$38:N80)-1),"") -> 
A67: =IF(OFFSET(DE100_14!$C$38,ROWS($C$38:C81)-1,COLUMNS($C$38:C81)-1)<>"",OFFSET(DE100_14!$C$38,ROWS($C$38:C81)-1,COLUMNS($C$38:C81)-1),"") ->  | B67: =IF(OFFSET(DE100_14!$D$38,ROWS($D$38:D81)-1,COLUMNS($D$38:D81)-1)<>"",OFFSET(DE100_14!$D$38,ROWS($D$38:D81)-1,COLUMNS($D$38:D81)-1),"") ->  | C67: =IF(OFFSET(DE100_14!$E$38,ROWS($E$38:E81)-1,COLUMNS($E$38:E81)-1)<>"",OFFSET(DE100_14!$E$38,ROWS($E$38:E81)-1,COLUMNS($E$38:E81)-1),"") ->  | D67: =IF(OFFSET(DE100_14!$F$38,ROWS($F$38:F81)-1,COLUMNS($F$38:F81)-1)<>"",OFFSET(DE100_14!$F$38,ROWS($F$38:F81)-1,COLUMNS($F$38:F81)-1),"") ->  | E67: =IF(OFFSET(DE100_14!$G$38,ROWS($G$38:G81)-1,COLUMNS($G$38:G81)-1)<>"",OFFSET(DE100_14!$G$38,ROWS($G$38:G81)-1,COLUMNS($G$38:G81)-1),"") ->  | F67: =IF(OFFSET(DE100_14!$H$38,ROWS($H$38:H81)-1,COLUMNS($H$38:H81)-1)<>"",OFFSET(DE100_14!$H$38,ROWS($H$38:H81)-1,COLUMNS($H$38:H81)-1),"") ->  | G67: =IF(OFFSET(DE100_14!$I$38,ROWS($I$38:I81)-1,COLUMNS($I$38:I81)-1)<>"",OFFSET(DE100_14!$I$38,ROWS($I$38:I81)-1,COLUMNS($I$38:I81)-1),"") ->  | H67: =IF(OFFSET(DE100_14!$J$38,ROWS($J$38:J81)-1,COLUMNS($J$38:J81)-1)<>"",OFFSET(DE100_14!$J$38,ROWS($J$38:J81)-1,COLUMNS($J$38:J81)-1),"") ->  | I67: =IF(OFFSET(DE100_14!$K$38,ROWS($K$38:K81)-1,COLUMNS($K$38:K81)-1)<>"",OFFSET(DE100_14!$K$38,ROWS($K$38:K81)-1,COLUMNS($K$38:K81)-1),"") ->  | J67: =IF(OFFSET(DE100_14!$L$38,ROWS($L$38:L81)-1,COLUMNS($L$38:L81)-1)<>"",OFFSET(DE100_14!$L$38,ROWS($L$38:L81)-1,COLUMNS($L$38:L81)-1),"") ->  | K67: =IF(OFFSET(DE100_14!$N$38,ROWS($N$38:N81)-1,COLUMNS($N$38:N81)-1)<>"",OFFSET(DE100_14!$N$38,ROWS($N$38:N81)-1,COLUMNS($N$38:N81)-1),"") -> 
A68: =IF(OFFSET(DE100_14!$C$38,ROWS($C$38:C82)-1,COLUMNS($C$38:C82)-1)<>"",OFFSET(DE100_14!$C$38,ROWS($C$38:C82)-1,COLUMNS($C$38:C82)-1),"") -> 22 | B68: =IF(OFFSET(DE100_14!$D$38,ROWS($D$38:D82)-1,COLUMNS($D$38:D82)-1)<>"",OFFSET(DE100_14!$D$38,ROWS($D$38:D82)-1,COLUMNS($D$38:D82)-1),"") -> 109030 | C68: =IF(OFFSET(DE100_14!$E$38,ROWS($E$38:E82)-1,COLUMNS($E$38:E82)-1)<>"",OFFSET(DE100_14!$E$38,ROWS($E$38:E82)-1,COLUMNS($E$38:E82)-1),"") -> Lt. | D68: =IF(OFFSET(DE100_14!$F$38,ROWS($F$38:F82)-1,COLUMNS($F$38:F82)-1)<>"",OFFSET(DE100_14!$F$38,ROWS($F$38:F82)-1,COLUMNS($F$38:F82)-1),"") -> 1 | E68: =IF(OFFSET(DE100_14!$G$38,ROWS($G$38:G82)-1,COLUMNS($G$38:G82)-1)<>"",OFFSET(DE100_14!$G$38,ROWS($G$38:G82)-1,COLUMNS($G$38:G82)-1),"") -> 1 | F68: =IF(OFFSET(DE100_14!$H$38,ROWS($H$38:H82)-1,COLUMNS($H$38:H82)-1)<>"",OFFSET(DE100_14!$H$38,ROWS($H$38:H82)-1,COLUMNS($H$38:H82)-1),"") -> 10 | G68: =IF(OFFSET(DE100_14!$I$38,ROWS($I$38:I82)-1,COLUMNS($I$38:I82)-1)<>"",OFFSET(DE100_14!$I$38,ROWS($I$38:I82)-1,COLUMNS($I$38:I82)-1),"") -> 50 | H68: =IF(OFFSET(DE100_14!$J$38,ROWS($J$38:J82)-1,COLUMNS($J$38:J82)-1)<>"",OFFSET(DE100_14!$J$38,ROWS($J$38:J82)-1,COLUMNS($J$38:J82)-1),"") -> 2.85 | I68: =IF(OFFSET(DE100_14!$K$38,ROWS($K$38:K82)-1,COLUMNS($K$38:K82)-1)<>"",OFFSET(DE100_14!$K$38,ROWS($K$38:K82)-1,COLUMNS($K$38:K82)-1),"") -> -0.127 | J68: =IF(OFFSET(DE100_14!$L$38,ROWS($L$38:L82)-1,COLUMNS($L$38:L82)-1)<>"",OFFSET(DE100_14!$L$38,ROWS($L$38:L82)-1,COLUMNS($L$38:L82)-1),"") -> 712.5 | K68: =IF(OFFSET(DE100_14!$N$38,ROWS($N$38:N82)-1,COLUMNS($N$38:N82)-1)<>"",OFFSET(DE100_14!$N$38,ROWS($N$38:N82)-1,COLUMNS($N$38:N82)-1),"") -> 
A69: =IF(OFFSET(DE100_14!$C$38,ROWS($C$38:C83)-1,COLUMNS($C$38:C83)-1)<>"",OFFSET(DE100_14!$C$38,ROWS($C$38:C83)-1,COLUMNS($C$38:C83)-1),"") -> 22 | B69: =IF(OFFSET(DE100_14!$D$38,ROWS($D$38:D83)-1,COLUMNS($D$38:D83)-1)<>"",OFFSET(DE100_14!$D$38,ROWS($D$38:D83)-1,COLUMNS($D$38:D83)-1),"") -> 109095 | C69: =IF(OFFSET(DE100_14!$E$38,ROWS($E$38:E83)-1,COLUMNS($E$38:E83)-1)<>"",OFFSET(DE100_14!$E$38,ROWS($E$38:E83)-1,COLUMNS($E$38:E83)-1),"") -> Lt. | D69: =IF(OFFSET(DE100_14!$F$38,ROWS($F$38:F83)-1,COLUMNS($F$38:F83)-1)<>"",OFFSET(DE100_14!$F$38,ROWS($F$38:F83)-1,COLUMNS($F$38:F83)-1),"") -> 1 | E69: =IF(OFFSET(DE100_14!$G$38,ROWS($G$38:G83)-1,COLUMNS($G$38:G83)-1)<>"",OFFSET(DE100_14!$G$38,ROWS($G$38:G83)-1,COLUMNS($G$38:G83)-1),"") -> 1 | F69: =IF(OFFSET(DE100_14!$H$38,ROWS($H$38:H83)-1,COLUMNS($H$38:H83)-1)<>"",OFFSET(DE100_14!$H$38,ROWS($H$38:H83)-1,COLUMNS($H$38:H83)-1),"") -> 10 | G69: =IF(OFFSET(DE100_14!$I$38,ROWS($I$38:I83)-1,COLUMNS($I$38:I83)-1)<>"",OFFSET(DE100_14!$I$38,ROWS($I$38:I83)-1,COLUMNS($I$38:I83)-1),"") -> 50 | H69: =IF(OFFSET(DE100_14!$J$38,ROWS($J$38:J83)-1,COLUMNS($J$38:J83)-1)<>"",OFFSET(DE100_14!$J$38,ROWS($J$38:J83)-1,COLUMNS($J$38:J83)-1),"") -> 2.85 | I69: =IF(OFFSET(DE100_14!$K$38,ROWS($K$38:K83)-1,COLUMNS($K$38:K83)-1)<>"",OFFSET(DE100_14!$K$38,ROWS($K$38:K83)-1,COLUMNS($K$38:K83)-1),"") -> 0.1757 | J69: =IF(OFFSET(DE100_14!$L$38,ROWS($L$38:L83)-1,COLUMNS($L$38:L83)-1)<>"",OFFSET(DE100_14!$L$38,ROWS($L$38:L83)-1,COLUMNS($L$38:L83)-1),"") -> 712.5 | K69: =IF(OFFSET(DE100_14!$N$38,ROWS($N$38:N83)-1,COLUMNS($N$38:N83)-1)<>"",OFFSET(DE100_14!$N$38,ROWS($N$38:N83)-1,COLUMNS($N$38:N83)-1),"") -> 
A70: =IF(OFFSET(DE100_14!$C$38,ROWS($C$38:C84)-1,COLUMNS($C$38:C84)-1)<>"",OFFSET(DE100_14!$C$38,ROWS($C$38:C84)-1,COLUMNS($C$38:C84)-1),"") -> 22 | B70: =IF(OFFSET(DE100_14!$D$38,ROWS($D$38:D84)-1,COLUMNS($D$38:D84)-1)<>"",OFFSET(DE100_14!$D$38,ROWS($D$38:D84)-1,COLUMNS($D$38:D84)-1),"") -> 108945 | C70: =IF(OFFSET(DE100_14!$E$38,ROWS($E$38:E84)-1,COLUMNS($E$38:E84)-1)<>"",OFFSET(DE100_14!$E$38,ROWS($E$38:E84)-1,COLUMNS($E$38:E84)-1),"") -> Rt. | D70: =IF(OFFSET(DE100_14!$F$38,ROWS($F$38:F84)-1,COLUMNS($F$38:F84)-1)<>"",OFFSET(DE100_14!$F$38,ROWS($F$38:F84)-1,COLUMNS($F$38:F84)-1),"") -> 1 | E70: =IF(OFFSET(DE100_14!$G$38,ROWS($G$38:G84)-1,COLUMNS($G$38:G84)-1)<>"",OFFSET(DE100_14!$G$38,ROWS($G$38:G84)-1,COLUMNS($G$38:G84)-1),"") -> 1 | F70: =IF(OFFSET(DE100_14!$H$38,ROWS($H$38:H84)-1,COLUMNS($H$38:H84)-1)<>"",OFFSET(DE100_14!$H$38,ROWS($H$38:H84)-1,COLUMNS($H$38:H84)-1),"") -> 10 | G70: =IF(OFFSET(DE100_14!$I$38,ROWS($I$38:I84)-1,COLUMNS($I$38:I84)-1)<>"",OFFSET(DE100_14!$I$38,ROWS($I$38:I84)-1,COLUMNS($I$38:I84)-1),"") -> 50 | H70: =IF(OFFSET(DE100_14!$J$38,ROWS($J$38:J84)-1,COLUMNS($J$38:J84)-1)<>"",OFFSET(DE100_14!$J$38,ROWS($J$38:J84)-1,COLUMNS($J$38:J84)-1),"") -> 2.85 | I70: =IF(OFFSET(DE100_14!$K$38,ROWS($K$38:K84)-1,COLUMNS($K$38:K84)-1)<>"",OFFSET(DE100_14!$K$38,ROWS($K$38:K84)-1,COLUMNS($K$38:K84)-1),"") -> -0.035 | J70: =IF(OFFSET(DE100_14!$L$38,ROWS($L$38:L84)-1,COLUMNS($L$38:L84)-1)<>"",OFFSET(DE100_14!$L$38,ROWS($L$38:L84)-1,COLUMNS($L$38:L84)-1),"") -> 987.5 | K70: =IF(OFFSET(DE100_14!$N$38,ROWS($N$38:N84)-1,COLUMNS($N$38:N84)-1)<>"",OFFSET(DE100_14!$N$38,ROWS($N$38:N84)-1,COLUMNS($N$38:N84)-1),"") -> 
A71: =IF(OFFSET(DE100_14!$C$38,ROWS($C$38:C85)-1,COLUMNS($C$38:C85)-1)<>"",OFFSET(DE100_14!$C$38,ROWS($C$38:C85)-1,COLUMNS($C$38:C85)-1),"") -> 22 | B71: =IF(OFFSET(DE100_14!$D$38,ROWS($D$38:D85)-1,COLUMNS($D$38:D85)-1)<>"",OFFSET(DE100_14!$D$38,ROWS($D$38:D85)-1,COLUMNS($D$38:D85)-1),"") -> 109030 | C71: =IF(OFFSET(DE100_14!$E$38,ROWS($E$38:E85)-1,COLUMNS($E$38:E85)-1)<>"",OFFSET(DE100_14!$E$38,ROWS($E$38:E85)-1,COLUMNS($E$38:E85)-1),"") -> Rt. | D71: =IF(OFFSET(DE100_14!$F$38,ROWS($F$38:F85)-1,COLUMNS($F$38:F85)-1)<>"",OFFSET(DE100_14!$F$38,ROWS($F$38:F85)-1,COLUMNS($F$38:F85)-1),"") -> 1 | E71: =IF(OFFSET(DE100_14!$G$38,ROWS($G$38:G85)-1,COLUMNS($G$38:G85)-1)<>"",OFFSET(DE100_14!$G$38,ROWS($G$38:G85)-1,COLUMNS($G$38:G85)-1),"") -> 1 | F71: =IF(OFFSET(DE100_14!$H$38,ROWS($H$38:H85)-1,COLUMNS($H$38:H85)-1)<>"",OFFSET(DE100_14!$H$38,ROWS($H$38:H85)-1,COLUMNS($H$38:H85)-1),"") -> 10 | G71: =IF(OFFSET(DE100_14!$I$38,ROWS($I$38:I85)-1,COLUMNS($I$38:I85)-1)<>"",OFFSET(DE100_14!$I$38,ROWS($I$38:I85)-1,COLUMNS($I$38:I85)-1),"") -> 50 | H71: =IF(OFFSET(DE100_14!$J$38,ROWS($J$38:J85)-1,COLUMNS($J$38:J85)-1)<>"",OFFSET(DE100_14!$J$38,ROWS($J$38:J85)-1,COLUMNS($J$38:J85)-1),"") -> 2.85 | I71: =IF(OFFSET(DE100_14!$K$38,ROWS($K$38:K85)-1,COLUMNS($K$38:K85)-1)<>"",OFFSET(DE100_14!$K$38,ROWS($K$38:K85)-1,COLUMNS($K$38:K85)-1),"") -> 0.04 | J71: =IF(OFFSET(DE100_14!$L$38,ROWS($L$38:L85)-1,COLUMNS($L$38:L85)-1)<>"",OFFSET(DE100_14!$L$38,ROWS($L$38:L85)-1,COLUMNS($L$38:L85)-1),"") -> 925 | K71: =IF(OFFSET(DE100_14!$N$38,ROWS($N$38:N85)-1,COLUMNS($N$38:N85)-1)<>"",OFFSET(DE100_14!$N$38,ROWS($N$38:N85)-1,COLUMNS($N$38:N85)-1),"") -> 
A72: =IF(OFFSET(DE100_14!$C$38,ROWS($C$38:C86)-1,COLUMNS($C$38:C86)-1)<>"",OFFSET(DE100_14!$C$38,ROWS($C$38:C86)-1,COLUMNS($C$38:C86)-1),"") ->  | B72: =IF(OFFSET(DE100_14!$D$38,ROWS($D$38:D86)-1,COLUMNS($D$38:D86)-1)<>"",OFFSET(DE100_14!$D$38,ROWS($D$38:D86)-1,COLUMNS($D$38:D86)-1),"") ->  | C72: =IF(OFFSET(DE100_14!$E$38,ROWS($E$38:E86)-1,COLUMNS($E$38:E86)-1)<>"",OFFSET(DE100_14!$E$38,ROWS($E$38:E86)-1,COLUMNS($E$38:E86)-1),"") ->  | D72: =IF(OFFSET(DE100_14!$F$38,ROWS($F$38:F86)-1,COLUMNS($F$38:F86)-1)<>"",OFFSET(DE100_14!$F$38,ROWS($F$38:F86)-1,COLUMNS($F$38:F86)-1),"") ->  | E72: =IF(OFFSET(DE100_14!$G$38,ROWS($G$38:G86)-1,COLUMNS($G$38:G86)-1)<>"",OFFSET(DE100_14!$G$38,ROWS($G$38:G86)-1,COLUMNS($G$38:G86)-1),"") ->  | F72: =IF(OFFSET(DE100_14!$H$38,ROWS($H$38:H86)-1,COLUMNS($H$38:H86)-1)<>"",OFFSET(DE100_14!$H$38,ROWS($H$38:H86)-1,COLUMNS($H$38:H86)-1),"") ->  | G72: =IF(OFFSET(DE100_14!$I$38,ROWS($I$38:I86)-1,COLUMNS($I$38:I86)-1)<>"",OFFSET(DE100_14!$I$38,ROWS($I$38:I86)-1,COLUMNS($I$38:I86)-1),"") ->  | H72: =IF(OFFSET(DE100_14!$J$38,ROWS($J$38:J86)-1,COLUMNS($J$38:J86)-1)<>"",OFFSET(DE100_14!$J$38,ROWS($J$38:J86)-1,COLUMNS($J$38:J86)-1),"") ->  | I72: =IF(OFFSET(DE100_14!$K$38,ROWS($K$38:K86)-1,COLUMNS($K$38:K86)-1)<>"",OFFSET(DE100_14!$K$38,ROWS($K$38:K86)-1,COLUMNS($K$38:K86)-1),"") ->  | J72: =IF(OFFSET(DE100_14!$L$38,ROWS($L$38:L86)-1,COLUMNS($L$38:L86)-1)<>"",OFFSET(DE100_14!$L$38,ROWS($L$38:L86)-1,COLUMNS($L$38:L86)-1),"") ->  | K72: =IF(OFFSET(DE100_14!$N$38,ROWS($N$38:N86)-1,COLUMNS($N$38:N86)-1)<>"",OFFSET(DE100_14!$N$38,ROWS($N$38:N86)-1,COLUMNS($N$38:N86)-1),"") -> 
A73: =IF(OFFSET(DE100_14!$C$38,ROWS($C$38:C87)-1,COLUMNS($C$38:C87)-1)<>"",OFFSET(DE100_14!$C$38,ROWS($C$38:C87)-1,COLUMNS($C$38:C87)-1),"") -> 23 | B73: =IF(OFFSET(DE100_14!$D$38,ROWS($D$38:D87)-1,COLUMNS($D$38:D87)-1)<>"",OFFSET(DE100_14!$D$38,ROWS($D$38:D87)-1,COLUMNS($D$38:D87)-1),"") -> 110045 | C73: =IF(OFFSET(DE100_14!$E$38,ROWS($E$38:E87)-1,COLUMNS($E$38:E87)-1)<>"",OFFSET(DE100_14!$E$38,ROWS($E$38:E87)-1,COLUMNS($E$38:E87)-1),"") -> Lt. | D73: =IF(OFFSET(DE100_14!$F$38,ROWS($F$38:F87)-1,COLUMNS($F$38:F87)-1)<>"",OFFSET(DE100_14!$F$38,ROWS($F$38:F87)-1,COLUMNS($F$38:F87)-1),"") -> 1 | E73: =IF(OFFSET(DE100_14!$G$38,ROWS($G$38:G87)-1,COLUMNS($G$38:G87)-1)<>"",OFFSET(DE100_14!$G$38,ROWS($G$38:G87)-1,COLUMNS($G$38:G87)-1),"") -> 1 | F73: =IF(OFFSET(DE100_14!$H$38,ROWS($H$38:H87)-1,COLUMNS($H$38:H87)-1)<>"",OFFSET(DE100_14!$H$38,ROWS($H$38:H87)-1,COLUMNS($H$38:H87)-1),"") -> 10 | G73: =IF(OFFSET(DE100_14!$I$38,ROWS($I$38:I87)-1,COLUMNS($I$38:I87)-1)<>"",OFFSET(DE100_14!$I$38,ROWS($I$38:I87)-1,COLUMNS($I$38:I87)-1),"") -> 50 | H73: =IF(OFFSET(DE100_14!$J$38,ROWS($J$38:J87)-1,COLUMNS($J$38:J87)-1)<>"",OFFSET(DE100_14!$J$38,ROWS($J$38:J87)-1,COLUMNS($J$38:J87)-1),"") -> 2.85 | I73: =IF(OFFSET(DE100_14!$K$38,ROWS($K$38:K87)-1,COLUMNS($K$38:K87)-1)<>"",OFFSET(DE100_14!$K$38,ROWS($K$38:K87)-1,COLUMNS($K$38:K87)-1),"") -> -0.03 | J73: =IF(OFFSET(DE100_14!$L$38,ROWS($L$38:L87)-1,COLUMNS($L$38:L87)-1)<>"",OFFSET(DE100_14!$L$38,ROWS($L$38:L87)-1,COLUMNS($L$38:L87)-1),"") -> 1050 | K73: =IF(OFFSET(DE100_14!$N$38,ROWS($N$38:N87)-1,COLUMNS($N$38:N87)-1)<>"",OFFSET(DE100_14!$N$38,ROWS($N$38:N87)-1,COLUMNS($N$38:N87)-1),"") -> 
A74: =IF(OFFSET(DE100_14!$C$38,ROWS($C$38:C88)-1,COLUMNS($C$38:C88)-1)<>"",OFFSET(DE100_14!$C$38,ROWS($C$38:C88)-1,COLUMNS($C$38:C88)-1),"") -> 23 | B74: =IF(OFFSET(DE100_14!$D$38,ROWS($D$38:D88)-1,COLUMNS($D$38:D88)-1)<>"",OFFSET(DE100_14!$D$38,ROWS($D$38:D88)-1,COLUMNS($D$38:D88)-1),"") -> 110105 | C74: =IF(OFFSET(DE100_14!$E$38,ROWS($E$38:E88)-1,COLUMNS($E$38:E88)-1)<>"",OFFSET(DE100_14!$E$38,ROWS($E$38:E88)-1,COLUMNS($E$38:E88)-1),"") -> Lt. | D74: =IF(OFFSET(DE100_14!$F$38,ROWS($F$38:F88)-1,COLUMNS($F$38:F88)-1)<>"",OFFSET(DE100_14!$F$38,ROWS($F$38:F88)-1,COLUMNS($F$38:F88)-1),"") -> 1 | E74: =IF(OFFSET(DE100_14!$G$38,ROWS($G$38:G88)-1,COLUMNS($G$38:G88)-1)<>"",OFFSET(DE100_14!$G$38,ROWS($G$38:G88)-1,COLUMNS($G$38:G88)-1),"") -> 1 | F74: =IF(OFFSET(DE100_14!$H$38,ROWS($H$38:H88)-1,COLUMNS($H$38:H88)-1)<>"",OFFSET(DE100_14!$H$38,ROWS($H$38:H88)-1,COLUMNS($H$38:H88)-1),"") -> 10 | G74: =IF(OFFSET(DE100_14!$I$38,ROWS($I$38:I88)-1,COLUMNS($I$38:I88)-1)<>"",OFFSET(DE100_14!$I$38,ROWS($I$38:I88)-1,COLUMNS($I$38:I88)-1),"") -> 50 | H74: =IF(OFFSET(DE100_14!$J$38,ROWS($J$38:J88)-1,COLUMNS($J$38:J88)-1)<>"",OFFSET(DE100_14!$J$38,ROWS($J$38:J88)-1,COLUMNS($J$38:J88)-1),"") -> 2.85 | I74: =IF(OFFSET(DE100_14!$K$38,ROWS($K$38:K88)-1,COLUMNS($K$38:K88)-1)<>"",OFFSET(DE100_14!$K$38,ROWS($K$38:K88)-1,COLUMNS($K$38:K88)-1),"") -> 0.016 | J74: =IF(OFFSET(DE100_14!$L$38,ROWS($L$38:L88)-1,COLUMNS($L$38:L88)-1)<>"",OFFSET(DE100_14!$L$38,ROWS($L$38:L88)-1,COLUMNS($L$38:L88)-1),"") -> 1225 | K74: =IF(OFFSET(DE100_14!$N$38,ROWS($N$38:N88)-1,COLUMNS($N$38:N88)-1)<>"",OFFSET(DE100_14!$N$38,ROWS($N$38:N88)-1,COLUMNS($N$38:N88)-1),"") -> 
A75: =IF(OFFSET(DE100_14!$C$38,ROWS($C$38:C89)-1,COLUMNS($C$38:C89)-1)<>"",OFFSET(DE100_14!$C$38,ROWS($C$38:C89)-1,COLUMNS($C$38:C89)-1),"") -> 23 | B75: =IF(OFFSET(DE100_14!$D$38,ROWS($D$38:D89)-1,COLUMNS($D$38:D89)-1)<>"",OFFSET(DE100_14!$D$38,ROWS($D$38:D89)-1,COLUMNS($D$38:D89)-1),"") -> 110105 | C75: =IF(OFFSET(DE100_14!$E$38,ROWS($E$38:E89)-1,COLUMNS($E$38:E89)-1)<>"",OFFSET(DE100_14!$E$38,ROWS($E$38:E89)-1,COLUMNS($E$38:E89)-1),"") -> Rt. | D75: =IF(OFFSET(DE100_14!$F$38,ROWS($F$38:F89)-1,COLUMNS($F$38:F89)-1)<>"",OFFSET(DE100_14!$F$38,ROWS($F$38:F89)-1,COLUMNS($F$38:F89)-1),"") -> 1 | E75: =IF(OFFSET(DE100_14!$G$38,ROWS($G$38:G89)-1,COLUMNS($G$38:G89)-1)<>"",OFFSET(DE100_14!$G$38,ROWS($G$38:G89)-1,COLUMNS($G$38:G89)-1),"") -> 1 | F75: =IF(OFFSET(DE100_14!$H$38,ROWS($H$38:H89)-1,COLUMNS($H$38:H89)-1)<>"",OFFSET(DE100_14!$H$38,ROWS($H$38:H89)-1,COLUMNS($H$38:H89)-1),"") -> 10 | G75: =IF(OFFSET(DE100_14!$I$38,ROWS($I$38:I89)-1,COLUMNS($I$38:I89)-1)<>"",OFFSET(DE100_14!$I$38,ROWS($I$38:I89)-1,COLUMNS($I$38:I89)-1),"") -> 50 | H75: =IF(OFFSET(DE100_14!$J$38,ROWS($J$38:J89)-1,COLUMNS($J$38:J89)-1)<>"",OFFSET(DE100_14!$J$38,ROWS($J$38:J89)-1,COLUMNS($J$38:J89)-1),"") -> 2.85 | I75: =IF(OFFSET(DE100_14!$K$38,ROWS($K$38:K89)-1,COLUMNS($K$38:K89)-1)<>"",OFFSET(DE100_14!$K$38,ROWS($K$38:K89)-1,COLUMNS($K$38:K89)-1),"") -> 0.01 | J75: =IF(OFFSET(DE100_14!$L$38,ROWS($L$38:L89)-1,COLUMNS($L$38:L89)-1)<>"",OFFSET(DE100_14!$L$38,ROWS($L$38:L89)-1,COLUMNS($L$38:L89)-1),"") -> 1300 | K75: =IF(OFFSET(DE100_14!$N$38,ROWS($N$38:N89)-1,COLUMNS($N$38:N89)-1)<>"",OFFSET(DE100_14!$N$38,ROWS($N$38:N89)-1,COLUMNS($N$38:N89)-1),"") -> 
A76: =IF(OFFSET(DE100_14!$C$38,ROWS($C$38:C90)-1,COLUMNS($C$38:C90)-1)<>"",OFFSET(DE100_14!$C$38,ROWS($C$38:C90)-1,COLUMNS($C$38:C90)-1),"") ->  | B76: =IF(OFFSET(DE100_14!$D$38,ROWS($D$38:D90)-1,COLUMNS($D$38:D90)-1)<>"",OFFSET(DE100_14!$D$38,ROWS($D$38:D90)-1,COLUMNS($D$38:D90)-1),"") ->  | C76: =IF(OFFSET(DE100_14!$E$38,ROWS($E$38:E90)-1,COLUMNS($E$38:E90)-1)<>"",OFFSET(DE100_14!$E$38,ROWS($E$38:E90)-1,COLUMNS($E$38:E90)-1),"") ->  | D76: =IF(OFFSET(DE100_14!$F$38,ROWS($F$38:F90)-1,COLUMNS($F$38:F90)-1)<>"",OFFSET(DE100_14!$F$38,ROWS($F$38:F90)-1,COLUMNS($F$38:F90)-1),"") ->  | E76: =IF(OFFSET(DE100_14!$G$38,ROWS($G$38:G90)-1,COLUMNS($G$38:G90)-1)<>"",OFFSET(DE100_14!$G$38,ROWS($G$38:G90)-1,COLUMNS($G$38:G90)-1),"") ->  | F76: =IF(OFFSET(DE100_14!$H$38,ROWS($H$38:H90)-1,COLUMNS($H$38:H90)-1)<>"",OFFSET(DE100_14!$H$38,ROWS($H$38:H90)-1,COLUMNS($H$38:H90)-1),"") ->  | G76: =IF(OFFSET(DE100_14!$I$38,ROWS($I$38:I90)-1,COLUMNS($I$38:I90)-1)<>"",OFFSET(DE100_14!$I$38,ROWS($I$38:I90)-1,COLUMNS($I$38:I90)-1),"") ->  | H76: =IF(OFFSET(DE100_14!$J$38,ROWS($J$38:J90)-1,COLUMNS($J$38:J90)-1)<>"",OFFSET(DE100_14!$J$38,ROWS($J$38:J90)-1,COLUMNS($J$38:J90)-1),"") ->  | I76: =IF(OFFSET(DE100_14!$K$38,ROWS($K$38:K90)-1,COLUMNS($K$38:K90)-1)<>"",OFFSET(DE100_14!$K$38,ROWS($K$38:K90)-1,COLUMNS($K$38:K90)-1),"") ->  | J76: =IF(OFFSET(DE100_14!$L$38,ROWS($L$38:L90)-1,COLUMNS($L$38:L90)-1)<>"",OFFSET(DE100_14!$L$38,ROWS($L$38:L90)-1,COLUMNS($L$38:L90)-1),"") ->  | K76: =IF(OFFSET(DE100_14!$N$38,ROWS($N$38:N90)-1,COLUMNS($N$38:N90)-1)<>"",OFFSET(DE100_14!$N$38,ROWS($N$38:N90)-1,COLUMNS($N$38:N90)-1),"") -> 
A77: =IF(OFFSET(DE100_14!$C$38,ROWS($C$38:C91)-1,COLUMNS($C$38:C91)-1)<>"",OFFSET(DE100_14!$C$38,ROWS($C$38:C91)-1,COLUMNS($C$38:C91)-1),"") -> 24 | B77: =IF(OFFSET(DE100_14!$D$38,ROWS($D$38:D91)-1,COLUMNS($D$38:D91)-1)<>"",OFFSET(DE100_14!$D$38,ROWS($D$38:D91)-1,COLUMNS($D$38:D91)-1),"") -> 111420 | C77: =IF(OFFSET(DE100_14!$E$38,ROWS($E$38:E91)-1,COLUMNS($E$38:E91)-1)<>"",OFFSET(DE100_14!$E$38,ROWS($E$38:E91)-1,COLUMNS($E$38:E91)-1),"") -> Lt. | D77: =IF(OFFSET(DE100_14!$F$38,ROWS($F$38:F91)-1,COLUMNS($F$38:F91)-1)<>"",OFFSET(DE100_14!$F$38,ROWS($F$38:F91)-1,COLUMNS($F$38:F91)-1),"") -> 1 | E77: =IF(OFFSET(DE100_14!$G$38,ROWS($G$38:G91)-1,COLUMNS($G$38:G91)-1)<>"",OFFSET(DE100_14!$G$38,ROWS($G$38:G91)-1,COLUMNS($G$38:G91)-1),"") -> 1 | F77: =IF(OFFSET(DE100_14!$H$38,ROWS($H$38:H91)-1,COLUMNS($H$38:H91)-1)<>"",OFFSET(DE100_14!$H$38,ROWS($H$38:H91)-1,COLUMNS($H$38:H91)-1),"") -> 10 | G77: =IF(OFFSET(DE100_14!$I$38,ROWS($I$38:I91)-1,COLUMNS($I$38:I91)-1)<>"",OFFSET(DE100_14!$I$38,ROWS($I$38:I91)-1,COLUMNS($I$38:I91)-1),"") -> 50 | H77: =IF(OFFSET(DE100_14!$J$38,ROWS($J$38:J91)-1,COLUMNS($J$38:J91)-1)<>"",OFFSET(DE100_14!$J$38,ROWS($J$38:J91)-1,COLUMNS($J$38:J91)-1),"") -> 2.85 | I77: =IF(OFFSET(DE100_14!$K$38,ROWS($K$38:K91)-1,COLUMNS($K$38:K91)-1)<>"",OFFSET(DE100_14!$K$38,ROWS($K$38:K91)-1,COLUMNS($K$38:K91)-1),"") -> -0.01 | J77: =IF(OFFSET(DE100_14!$L$38,ROWS($L$38:L91)-1,COLUMNS($L$38:L91)-1)<>"",OFFSET(DE100_14!$L$38,ROWS($L$38:L91)-1,COLUMNS($L$38:L91)-1),"") -> 1300 | K77: =IF(OFFSET(DE100_14!$N$38,ROWS($N$38:N91)-1,COLUMNS($N$38:N91)-1)<>"",OFFSET(DE100_14!$N$38,ROWS($N$38:N91)-1,COLUMNS($N$38:N91)-1),"") -> 
A78: =IF(OFFSET(DE100_14!$C$38,ROWS($C$38:C92)-1,COLUMNS($C$38:C92)-1)<>"",OFFSET(DE100_14!$C$38,ROWS($C$38:C92)-1,COLUMNS($C$38:C92)-1),"") -> 24 | B78: =IF(OFFSET(DE100_14!$D$38,ROWS($D$38:D92)-1,COLUMNS($D$38:D92)-1)<>"",OFFSET(DE100_14!$D$38,ROWS($D$38:D92)-1,COLUMNS($D$38:D92)-1),"") -> 111480 | C78: =IF(OFFSET(DE100_14!$E$38,ROWS($E$38:E92)-1,COLUMNS($E$38:E92)-1)<>"",OFFSET(DE100_14!$E$38,ROWS($E$38:E92)-1,COLUMNS($E$38:E92)-1),"") -> Lt. | D78: =IF(OFFSET(DE100_14!$F$38,ROWS($F$38:F92)-1,COLUMNS($F$38:F92)-1)<>"",OFFSET(DE100_14!$F$38,ROWS($F$38:F92)-1,COLUMNS($F$38:F92)-1),"") -> 1 | E78: =IF(OFFSET(DE100_14!$G$38,ROWS($G$38:G92)-1,COLUMNS($G$38:G92)-1)<>"",OFFSET(DE100_14!$G$38,ROWS($G$38:G92)-1,COLUMNS($G$38:G92)-1),"") -> 1 | F78: =IF(OFFSET(DE100_14!$H$38,ROWS($H$38:H92)-1,COLUMNS($H$38:H92)-1)<>"",OFFSET(DE100_14!$H$38,ROWS($H$38:H92)-1,COLUMNS($H$38:H92)-1),"") -> 10 | G78: =IF(OFFSET(DE100_14!$I$38,ROWS($I$38:I92)-1,COLUMNS($I$38:I92)-1)<>"",OFFSET(DE100_14!$I$38,ROWS($I$38:I92)-1,COLUMNS($I$38:I92)-1),"") -> 50 | H78: =IF(OFFSET(DE100_14!$J$38,ROWS($J$38:J92)-1,COLUMNS($J$38:J92)-1)<>"",OFFSET(DE100_14!$J$38,ROWS($J$38:J92)-1,COLUMNS($J$38:J92)-1),"") -> 2.85 | I78: =IF(OFFSET(DE100_14!$K$38,ROWS($K$38:K92)-1,COLUMNS($K$38:K92)-1)<>"",OFFSET(DE100_14!$K$38,ROWS($K$38:K92)-1,COLUMNS($K$38:K92)-1),"") -> 0.024 | J78: =IF(OFFSET(DE100_14!$L$38,ROWS($L$38:L92)-1,COLUMNS($L$38:L92)-1)<>"",OFFSET(DE100_14!$L$38,ROWS($L$38:L92)-1,COLUMNS($L$38:L92)-1),"") -> 1125 | K78: =IF(OFFSET(DE100_14!$N$38,ROWS($N$38:N92)-1,COLUMNS($N$38:N92)-1)<>"",OFFSET(DE100_14!$N$38,ROWS($N$38:N92)-1,COLUMNS($N$38:N92)-1),"") -> 
A79: =IF(OFFSET(DE100_14!$C$38,ROWS($C$38:C93)-1,COLUMNS($C$38:C93)-1)<>"",OFFSET(DE100_14!$C$38,ROWS($C$38:C93)-1,COLUMNS($C$38:C93)-1),"") -> 24 | B79: =IF(OFFSET(DE100_14!$D$38,ROWS($D$38:D93)-1,COLUMNS($D$38:D93)-1)<>"",OFFSET(DE100_14!$D$38,ROWS($D$38:D93)-1,COLUMNS($D$38:D93)-1),"") -> 111420 | C79: =IF(OFFSET(DE100_14!$E$38,ROWS($E$38:E93)-1,COLUMNS($E$38:E93)-1)<>"",OFFSET(DE100_14!$E$38,ROWS($E$38:E93)-1,COLUMNS($E$38:E93)-1),"") -> Rt. | D79: =IF(OFFSET(DE100_14!$F$38,ROWS($F$38:F93)-1,COLUMNS($F$38:F93)-1)<>"",OFFSET(DE100_14!$F$38,ROWS($F$38:F93)-1,COLUMNS($F$38:F93)-1),"") -> 1 | E79: =IF(OFFSET(DE100_14!$G$38,ROWS($G$38:G93)-1,COLUMNS($G$38:G93)-1)<>"",OFFSET(DE100_14!$G$38,ROWS($G$38:G93)-1,COLUMNS($G$38:G93)-1),"") -> 1 | F79: =IF(OFFSET(DE100_14!$H$38,ROWS($H$38:H93)-1,COLUMNS($H$38:H93)-1)<>"",OFFSET(DE100_14!$H$38,ROWS($H$38:H93)-1,COLUMNS($H$38:H93)-1),"") -> 10 | G79: =IF(OFFSET(DE100_14!$I$38,ROWS($I$38:I93)-1,COLUMNS($I$38:I93)-1)<>"",OFFSET(DE100_14!$I$38,ROWS($I$38:I93)-1,COLUMNS($I$38:I93)-1),"") -> 50 | H79: =IF(OFFSET(DE100_14!$J$38,ROWS($J$38:J93)-1,COLUMNS($J$38:J93)-1)<>"",OFFSET(DE100_14!$J$38,ROWS($J$38:J93)-1,COLUMNS($J$38:J93)-1),"") -> 2.85 | I79: =IF(OFFSET(DE100_14!$K$38,ROWS($K$38:K93)-1,COLUMNS($K$38:K93)-1)<>"",OFFSET(DE100_14!$K$38,ROWS($K$38:K93)-1,COLUMNS($K$38:K93)-1),"") -> -0.014 | J79: =IF(OFFSET(DE100_14!$L$38,ROWS($L$38:L93)-1,COLUMNS($L$38:L93)-1)<>"",OFFSET(DE100_14!$L$38,ROWS($L$38:L93)-1,COLUMNS($L$38:L93)-1),"") -> 1250 | K79: =IF(OFFSET(DE100_14!$N$38,ROWS($N$38:N93)-1,COLUMNS($N$38:N93)-1)<>"",OFFSET(DE100_14!$N$38,ROWS($N$38:N93)-1,COLUMNS($N$38:N93)-1),"") -> 
A80: =IF(OFFSET(DE100_14!$C$38,ROWS($C$38:C94)-1,COLUMNS($C$38:C94)-1)<>"",OFFSET(DE100_14!$C$38,ROWS($C$38:C94)-1,COLUMNS($C$38:C94)-1),"") -> 24 | B80: =IF(OFFSET(DE100_14!$D$38,ROWS($D$38:D94)-1,COLUMNS($D$38:D94)-1)<>"",OFFSET(DE100_14!$D$38,ROWS($D$38:D94)-1,COLUMNS($D$38:D94)-1),"") -> 111480 | C80: =IF(OFFSET(DE100_14!$E$38,ROWS($E$38:E94)-1,COLUMNS($E$38:E94)-1)<>"",OFFSET(DE100_14!$E$38,ROWS($E$38:E94)-1,COLUMNS($E$38:E94)-1),"") -> Rt. | D80: =IF(OFFSET(DE100_14!$F$38,ROWS($F$38:F94)-1,COLUMNS($F$38:F94)-1)<>"",OFFSET(DE100_14!$F$38,ROWS($F$38:F94)-1,COLUMNS($F$38:F94)-1),"") -> 1 | E80: =IF(OFFSET(DE100_14!$G$38,ROWS($G$38:G94)-1,COLUMNS($G$38:G94)-1)<>"",OFFSET(DE100_14!$G$38,ROWS($G$38:G94)-1,COLUMNS($G$38:G94)-1),"") -> 1 | F80: =IF(OFFSET(DE100_14!$H$38,ROWS($H$38:H94)-1,COLUMNS($H$38:H94)-1)<>"",OFFSET(DE100_14!$H$38,ROWS($H$38:H94)-1,COLUMNS($H$38:H94)-1),"") -> 10 | G80: =IF(OFFSET(DE100_14!$I$38,ROWS($I$38:I94)-1,COLUMNS($I$38:I94)-1)<>"",OFFSET(DE100_14!$I$38,ROWS($I$38:I94)-1,COLUMNS($I$38:I94)-1),"") -> 50 | H80: =IF(OFFSET(DE100_14!$J$38,ROWS($J$38:J94)-1,COLUMNS($J$38:J94)-1)<>"",OFFSET(DE100_14!$J$38,ROWS($J$38:J94)-1,COLUMNS($J$38:J94)-1),"") -> 2.85 | I80: =IF(OFFSET(DE100_14!$K$38,ROWS($K$38:K94)-1,COLUMNS($K$38:K94)-1)<>"",OFFSET(DE100_14!$K$38,ROWS($K$38:K94)-1,COLUMNS($K$38:K94)-1),"") -> 0.002 | J80: =IF(OFFSET(DE100_14!$L$38,ROWS($L$38:L94)-1,COLUMNS($L$38:L94)-1)<>"",OFFSET(DE100_14!$L$38,ROWS($L$38:L94)-1,COLUMNS($L$38:L94)-1),"") -> 1400 | K80: =IF(OFFSET(DE100_14!$N$38,ROWS($N$38:N94)-1,COLUMNS($N$38:N94)-1)<>"",OFFSET(DE100_14!$N$38,ROWS($N$38:N94)-1,COLUMNS($N$38:N94)-1),"") -> 
A81: =IF(OFFSET(DE100_14!$C$38,ROWS($C$38:C95)-1,COLUMNS($C$38:C95)-1)<>"",OFFSET(DE100_14!$C$38,ROWS($C$38:C95)-1,COLUMNS($C$38:C95)-1),"") ->  | B81: =IF(OFFSET(DE100_14!$D$38,ROWS($D$38:D95)-1,COLUMNS($D$38:D95)-1)<>"",OFFSET(DE100_14!$D$38,ROWS($D$38:D95)-1,COLUMNS($D$38:D95)-1),"") ->  | C81: =IF(OFFSET(DE100_14!$E$38,ROWS($E$38:E95)-1,COLUMNS($E$38:E95)-1)<>"",OFFSET(DE100_14!$E$38,ROWS($E$38:E95)-1,COLUMNS($E$38:E95)-1),"") ->  | D81: =IF(OFFSET(DE100_14!$F$38,ROWS($F$38:F95)-1,COLUMNS($F$38:F95)-1)<>"",OFFSET(DE100_14!$F$38,ROWS($F$38:F95)-1,COLUMNS($F$38:F95)-1),"") ->  | E81: =IF(OFFSET(DE100_14!$G$38,ROWS($G$38:G95)-1,COLUMNS($G$38:G95)-1)<>"",OFFSET(DE100_14!$G$38,ROWS($G$38:G95)-1,COLUMNS($G$38:G95)-1),"") ->  | F81: =IF(OFFSET(DE100_14!$H$38,ROWS($H$38:H95)-1,COLUMNS($H$38:H95)-1)<>"",OFFSET(DE100_14!$H$38,ROWS($H$38:H95)-1,COLUMNS($H$38:H95)-1),"") ->  | G81: =IF(OFFSET(DE100_14!$I$38,ROWS($I$38:I95)-1,COLUMNS($I$38:I95)-1)<>"",OFFSET(DE100_14!$I$38,ROWS($I$38:I95)-1,COLUMNS($I$38:I95)-1),"") ->  | H81: =IF(OFFSET(DE100_14!$J$38,ROWS($J$38:J95)-1,COLUMNS($J$38:J95)-1)<>"",OFFSET(DE100_14!$J$38,ROWS($J$38:J95)-1,COLUMNS($J$38:J95)-1),"") ->  | I81: =IF(OFFSET(DE100_14!$K$38,ROWS($K$38:K95)-1,COLUMNS($K$38:K95)-1)<>"",OFFSET(DE100_14!$K$38,ROWS($K$38:K95)-1,COLUMNS($K$38:K95)-1),"") ->  | J81: =IF(OFFSET(DE100_14!$L$38,ROWS($L$38:L95)-1,COLUMNS($L$38:L95)-1)<>"",OFFSET(DE100_14!$L$38,ROWS($L$38:L95)-1,COLUMNS($L$38:L95)-1),"") ->  | K81: =IF(OFFSET(DE100_14!$N$38,ROWS($N$38:N95)-1,COLUMNS($N$38:N95)-1)<>"",OFFSET(DE100_14!$N$38,ROWS($N$38:N95)-1,COLUMNS($N$38:N95)-1),"") -> 
A82: =IF(OFFSET(DE100_14!$C$38,ROWS($C$38:C96)-1,COLUMNS($C$38:C96)-1)<>"",OFFSET(DE100_14!$C$38,ROWS($C$38:C96)-1,COLUMNS($C$38:C96)-1),"") -> 26 | B82: =IF(OFFSET(DE100_14!$D$38,ROWS($D$38:D96)-1,COLUMNS($D$38:D96)-1)<>"",OFFSET(DE100_14!$D$38,ROWS($D$38:D96)-1,COLUMNS($D$38:D96)-1),"") -> 112520 | C82: =IF(OFFSET(DE100_14!$E$38,ROWS($E$38:E96)-1,COLUMNS($E$38:E96)-1)<>"",OFFSET(DE100_14!$E$38,ROWS($E$38:E96)-1,COLUMNS($E$38:E96)-1),"") -> Lt. | D82: =IF(OFFSET(DE100_14!$F$38,ROWS($F$38:F96)-1,COLUMNS($F$38:F96)-1)<>"",OFFSET(DE100_14!$F$38,ROWS($F$38:F96)-1,COLUMNS($F$38:F96)-1),"") -> 1 | E82: =IF(OFFSET(DE100_14!$G$38,ROWS($G$38:G96)-1,COLUMNS($G$38:G96)-1)<>"",OFFSET(DE100_14!$G$38,ROWS($G$38:G96)-1,COLUMNS($G$38:G96)-1),"") -> 1 | F82: =IF(OFFSET(DE100_14!$H$38,ROWS($H$38:H96)-1,COLUMNS($H$38:H96)-1)<>"",OFFSET(DE100_14!$H$38,ROWS($H$38:H96)-1,COLUMNS($H$38:H96)-1),"") -> 10 | G82: =IF(OFFSET(DE100_14!$I$38,ROWS($I$38:I96)-1,COLUMNS($I$38:I96)-1)<>"",OFFSET(DE100_14!$I$38,ROWS($I$38:I96)-1,COLUMNS($I$38:I96)-1),"") -> 50 | H82: =IF(OFFSET(DE100_14!$J$38,ROWS($J$38:J96)-1,COLUMNS($J$38:J96)-1)<>"",OFFSET(DE100_14!$J$38,ROWS($J$38:J96)-1,COLUMNS($J$38:J96)-1),"") -> 2.85 | I82: =IF(OFFSET(DE100_14!$K$38,ROWS($K$38:K96)-1,COLUMNS($K$38:K96)-1)<>"",OFFSET(DE100_14!$K$38,ROWS($K$38:K96)-1,COLUMNS($K$38:K96)-1),"") -> -0.006 | J82: =IF(OFFSET(DE100_14!$L$38,ROWS($L$38:L96)-1,COLUMNS($L$38:L96)-1)<>"",OFFSET(DE100_14!$L$38,ROWS($L$38:L96)-1,COLUMNS($L$38:L96)-1),"") -> 1350 | K82: =IF(OFFSET(DE100_14!$N$38,ROWS($N$38:N96)-1,COLUMNS($N$38:N96)-1)<>"",OFFSET(DE100_14!$N$38,ROWS($N$38:N96)-1,COLUMNS($N$38:N96)-1),"") -> 
A83: =IF(OFFSET(DE100_14!$C$38,ROWS($C$38:C97)-1,COLUMNS($C$38:C97)-1)<>"",OFFSET(DE100_14!$C$38,ROWS($C$38:C97)-1,COLUMNS($C$38:C97)-1),"") -> 26 | B83: =IF(OFFSET(DE100_14!$D$38,ROWS($D$38:D97)-1,COLUMNS($D$38:D97)-1)<>"",OFFSET(DE100_14!$D$38,ROWS($D$38:D97)-1,COLUMNS($D$38:D97)-1),"") -> 112580 | C83: =IF(OFFSET(DE100_14!$E$38,ROWS($E$38:E97)-1,COLUMNS($E$38:E97)-1)<>"",OFFSET(DE100_14!$E$38,ROWS($E$38:E97)-1,COLUMNS($E$38:E97)-1),"") -> Lt. | D83: =IF(OFFSET(DE100_14!$F$38,ROWS($F$38:F97)-1,COLUMNS($F$38:F97)-1)<>"",OFFSET(DE100_14!$F$38,ROWS($F$38:F97)-1,COLUMNS($F$38:F97)-1),"") -> 1 | E83: =IF(OFFSET(DE100_14!$G$38,ROWS($G$38:G97)-1,COLUMNS($G$38:G97)-1)<>"",OFFSET(DE100_14!$G$38,ROWS($G$38:G97)-1,COLUMNS($G$38:G97)-1),"") -> 1 | F83: =IF(OFFSET(DE100_14!$H$38,ROWS($H$38:H97)-1,COLUMNS($H$38:H97)-1)<>"",OFFSET(DE100_14!$H$38,ROWS($H$38:H97)-1,COLUMNS($H$38:H97)-1),"") -> 10 | G83: =IF(OFFSET(DE100_14!$I$38,ROWS($I$38:I97)-1,COLUMNS($I$38:I97)-1)<>"",OFFSET(DE100_14!$I$38,ROWS($I$38:I97)-1,COLUMNS($I$38:I97)-1),"") -> 50 | H83: =IF(OFFSET(DE100_14!$J$38,ROWS($J$38:J97)-1,COLUMNS($J$38:J97)-1)<>"",OFFSET(DE100_14!$J$38,ROWS($J$38:J97)-1,COLUMNS($J$38:J97)-1),"") -> 2.85 | I83: =IF(OFFSET(DE100_14!$K$38,ROWS($K$38:K97)-1,COLUMNS($K$38:K97)-1)<>"",OFFSET(DE100_14!$K$38,ROWS($K$38:K97)-1,COLUMNS($K$38:K97)-1),"") -> 0.008 | J83: =IF(OFFSET(DE100_14!$L$38,ROWS($L$38:L97)-1,COLUMNS($L$38:L97)-1)<>"",OFFSET(DE100_14!$L$38,ROWS($L$38:L97)-1,COLUMNS($L$38:L97)-1),"") -> 1325 | K83: =IF(OFFSET(DE100_14!$N$38,ROWS($N$38:N97)-1,COLUMNS($N$38:N97)-1)<>"",OFFSET(DE100_14!$N$38,ROWS($N$38:N97)-1,COLUMNS($N$38:N97)-1),"") -> 
A84: =IF(OFFSET(DE100_14!$C$38,ROWS($C$38:C98)-1,COLUMNS($C$38:C98)-1)<>"",OFFSET(DE100_14!$C$38,ROWS($C$38:C98)-1,COLUMNS($C$38:C98)-1),"") -> 26 | B84: =IF(OFFSET(DE100_14!$D$38,ROWS($D$38:D98)-1,COLUMNS($D$38:D98)-1)<>"",OFFSET(DE100_14!$D$38,ROWS($D$38:D98)-1,COLUMNS($D$38:D98)-1),"") -> 112505 | C84: =IF(OFFSET(DE100_14!$E$38,ROWS($E$38:E98)-1,COLUMNS($E$38:E98)-1)<>"",OFFSET(DE100_14!$E$38,ROWS($E$38:E98)-1,COLUMNS($E$38:E98)-1),"") -> Rt. | D84: =IF(OFFSET(DE100_14!$F$38,ROWS($F$38:F98)-1,COLUMNS($F$38:F98)-1)<>"",OFFSET(DE100_14!$F$38,ROWS($F$38:F98)-1,COLUMNS($F$38:F98)-1),"") -> 1 | E84: =IF(OFFSET(DE100_14!$G$38,ROWS($G$38:G98)-1,COLUMNS($G$38:G98)-1)<>"",OFFSET(DE100_14!$G$38,ROWS($G$38:G98)-1,COLUMNS($G$38:G98)-1),"") -> 1 | F84: =IF(OFFSET(DE100_14!$H$38,ROWS($H$38:H98)-1,COLUMNS($H$38:H98)-1)<>"",OFFSET(DE100_14!$H$38,ROWS($H$38:H98)-1,COLUMNS($H$38:H98)-1),"") -> 10 | G84: =IF(OFFSET(DE100_14!$I$38,ROWS($I$38:I98)-1,COLUMNS($I$38:I98)-1)<>"",OFFSET(DE100_14!$I$38,ROWS($I$38:I98)-1,COLUMNS($I$38:I98)-1),"") -> 50 | H84: =IF(OFFSET(DE100_14!$J$38,ROWS($J$38:J98)-1,COLUMNS($J$38:J98)-1)<>"",OFFSET(DE100_14!$J$38,ROWS($J$38:J98)-1,COLUMNS($J$38:J98)-1),"") -> 2.85 | I84: =IF(OFFSET(DE100_14!$K$38,ROWS($K$38:K98)-1,COLUMNS($K$38:K98)-1)<>"",OFFSET(DE100_14!$K$38,ROWS($K$38:K98)-1,COLUMNS($K$38:K98)-1),"") -> -0.012 | J84: =IF(OFFSET(DE100_14!$L$38,ROWS($L$38:L98)-1,COLUMNS($L$38:L98)-1)<>"",OFFSET(DE100_14!$L$38,ROWS($L$38:L98)-1,COLUMNS($L$38:L98)-1),"") -> 1275 | K84: =IF(OFFSET(DE100_14!$N$38,ROWS($N$38:N98)-1,COLUMNS($N$38:N98)-1)<>"",OFFSET(DE100_14!$N$38,ROWS($N$38:N98)-1,COLUMNS($N$38:N98)-1),"") -> 
A85: =IF(OFFSET(DE100_14!$C$38,ROWS($C$38:C99)-1,COLUMNS($C$38:C99)-1)<>"",OFFSET(DE100_14!$C$38,ROWS($C$38:C99)-1,COLUMNS($C$38:C99)-1),"") -> 26 | B85: =IF(OFFSET(DE100_14!$D$38,ROWS($D$38:D99)-1,COLUMNS($D$38:D99)-1)<>"",OFFSET(DE100_14!$D$38,ROWS($D$38:D99)-1,COLUMNS($D$38:D99)-1),"") -> 112580 | C85: =IF(OFFSET(DE100_14!$E$38,ROWS($E$38:E99)-1,COLUMNS($E$38:E99)-1)<>"",OFFSET(DE100_14!$E$38,ROWS($E$38:E99)-1,COLUMNS($E$38:E99)-1),"") -> Rt. | D85: =IF(OFFSET(DE100_14!$F$38,ROWS($F$38:F99)-1,COLUMNS($F$38:F99)-1)<>"",OFFSET(DE100_14!$F$38,ROWS($F$38:F99)-1,COLUMNS($F$38:F99)-1),"") -> 1 | E85: =IF(OFFSET(DE100_14!$G$38,ROWS($G$38:G99)-1,COLUMNS($G$38:G99)-1)<>"",OFFSET(DE100_14!$G$38,ROWS($G$38:G99)-1,COLUMNS($G$38:G99)-1),"") -> 1 | F85: =IF(OFFSET(DE100_14!$H$38,ROWS($H$38:H99)-1,COLUMNS($H$38:H99)-1)<>"",OFFSET(DE100_14!$H$38,ROWS($H$38:H99)-1,COLUMNS($H$38:H99)-1),"") -> 10 | G85: =IF(OFFSET(DE100_14!$I$38,ROWS($I$38:I99)-1,COLUMNS($I$38:I99)-1)<>"",OFFSET(DE100_14!$I$38,ROWS($I$38:I99)-1,COLUMNS($I$38:I99)-1),"") -> 50 | H85: =IF(OFFSET(DE100_14!$J$38,ROWS($J$38:J99)-1,COLUMNS($J$38:J99)-1)<>"",OFFSET(DE100_14!$J$38,ROWS($J$38:J99)-1,COLUMNS($J$38:J99)-1),"") -> 2.85 | I85: =IF(OFFSET(DE100_14!$K$38,ROWS($K$38:K99)-1,COLUMNS($K$38:K99)-1)<>"",OFFSET(DE100_14!$K$38,ROWS($K$38:K99)-1,COLUMNS($K$38:K99)-1),"") -> 0.005 | J85: =IF(OFFSET(DE100_14!$L$38,ROWS($L$38:L99)-1,COLUMNS($L$38:L99)-1)<>"",OFFSET(DE100_14!$L$38,ROWS($L$38:L99)-1,COLUMNS($L$38:L99)-1),"") -> 1362.5 | K85: =IF(OFFSET(DE100_14!$N$38,ROWS($N$38:N99)-1,COLUMNS($N$38:N99)-1)<>"",OFFSET(DE100_14!$N$38,ROWS($N$38:N99)-1,COLUMNS($N$38:N99)-1),"") -> 
A86: =IF(OFFSET(DE100_14!$C$38,ROWS($C$38:C100)-1,COLUMNS($C$38:C100)-1)<>"",OFFSET(DE100_14!$C$38,ROWS($C$38:C100)-1,COLUMNS($C$38:C100)-1),"") ->  | B86: =IF(OFFSET(DE100_14!$D$38,ROWS($D$38:D100)-1,COLUMNS($D$38:D100)-1)<>"",OFFSET(DE100_14!$D$38,ROWS($D$38:D100)-1,COLUMNS($D$38:D100)-1),"") ->  | C86: =IF(OFFSET(DE100_14!$E$38,ROWS($E$38:E100)-1,COLUMNS($E$38:E100)-1)<>"",OFFSET(DE100_14!$E$38,ROWS($E$38:E100)-1,COLUMNS($E$38:E100)-1),"") ->  | D86: =IF(OFFSET(DE100_14!$F$38,ROWS($F$38:F100)-1,COLUMNS($F$38:F100)-1)<>"",OFFSET(DE100_14!$F$38,ROWS($F$38:F100)-1,COLUMNS($F$38:F100)-1),"") ->  | E86: =IF(OFFSET(DE100_14!$G$38,ROWS($G$38:G100)-1,COLUMNS($G$38:G100)-1)<>"",OFFSET(DE100_14!$G$38,ROWS($G$38:G100)-1,COLUMNS($G$38:G100)-1),"") ->  | F86: =IF(OFFSET(DE100_14!$H$38,ROWS($H$38:H100)-1,COLUMNS($H$38:H100)-1)<>"",OFFSET(DE100_14!$H$38,ROWS($H$38:H100)-1,COLUMNS($H$38:H100)-1),"") ->  | G86: =IF(OFFSET(DE100_14!$I$38,ROWS($I$38:I100)-1,COLUMNS($I$38:I100)-1)<>"",OFFSET(DE100_14!$I$38,ROWS($I$38:I100)-1,COLUMNS($I$38:I100)-1),"") ->  | H86: =IF(OFFSET(DE100_14!$J$38,ROWS($J$38:J100)-1,COLUMNS($J$38:J100)-1)<>"",OFFSET(DE100_14!$J$38,ROWS($J$38:J100)-1,COLUMNS($J$38:J100)-1),"") ->  | I86: =IF(OFFSET(DE100_14!$K$38,ROWS($K$38:K100)-1,COLUMNS($K$38:K100)-1)<>"",OFFSET(DE100_14!$K$38,ROWS($K$38:K100)-1,COLUMNS($K$38:K100)-1),"") ->  | J86: =IF(OFFSET(DE100_14!$L$38,ROWS($L$38:L100)-1,COLUMNS($L$38:L100)-1)<>"",OFFSET(DE100_14!$L$38,ROWS($L$38:L100)-1,COLUMNS($L$38:L100)-1),"") ->  | K86: =IF(OFFSET(DE100_14!$N$38,ROWS($N$38:N100)-1,COLUMNS($N$38:N100)-1)<>"",OFFSET(DE100_14!$N$38,ROWS($N$38:N100)-1,COLUMNS($N$38:N100)-1),"") -> 
A87: =IF(OFFSET(DE100_14!$C$38,ROWS($C$38:C101)-1,COLUMNS($C$38:C101)-1)<>"",OFFSET(DE100_14!$C$38,ROWS($C$38:C101)-1,COLUMNS($C$38:C101)-1),"") -> 29 | B87: =IF(OFFSET(DE100_14!$D$38,ROWS($D$38:D101)-1,COLUMNS($D$38:D101)-1)<>"",OFFSET(DE100_14!$D$38,ROWS($D$38:D101)-1,COLUMNS($D$38:D101)-1),"") -> 120550 | C87: =IF(OFFSET(DE100_14!$E$38,ROWS($E$38:E101)-1,COLUMNS($E$38:E101)-1)<>"",OFFSET(DE100_14!$E$38,ROWS($E$38:E101)-1,COLUMNS($E$38:E101)-1),"") -> Lt. | D87: =IF(OFFSET(DE100_14!$F$38,ROWS($F$38:F101)-1,COLUMNS($F$38:F101)-1)<>"",OFFSET(DE100_14!$F$38,ROWS($F$38:F101)-1,COLUMNS($F$38:F101)-1),"") -> 1 | E87: =IF(OFFSET(DE100_14!$G$38,ROWS($G$38:G101)-1,COLUMNS($G$38:G101)-1)<>"",OFFSET(DE100_14!$G$38,ROWS($G$38:G101)-1,COLUMNS($G$38:G101)-1),"") -> 1 | F87: =IF(OFFSET(DE100_14!$H$38,ROWS($H$38:H101)-1,COLUMNS($H$38:H101)-1)<>"",OFFSET(DE100_14!$H$38,ROWS($H$38:H101)-1,COLUMNS($H$38:H101)-1),"") -> 10 | G87: =IF(OFFSET(DE100_14!$I$38,ROWS($I$38:I101)-1,COLUMNS($I$38:I101)-1)<>"",OFFSET(DE100_14!$I$38,ROWS($I$38:I101)-1,COLUMNS($I$38:I101)-1),"") -> 50 | H87: =IF(OFFSET(DE100_14!$J$38,ROWS($J$38:J101)-1,COLUMNS($J$38:J101)-1)<>"",OFFSET(DE100_14!$J$38,ROWS($J$38:J101)-1,COLUMNS($J$38:J101)-1),"") -> 2.85 | I87: =IF(OFFSET(DE100_14!$K$38,ROWS($K$38:K101)-1,COLUMNS($K$38:K101)-1)<>"",OFFSET(DE100_14!$K$38,ROWS($K$38:K101)-1,COLUMNS($K$38:K101)-1),"") -> -0.022 | J87: =IF(OFFSET(DE100_14!$L$38,ROWS($L$38:L101)-1,COLUMNS($L$38:L101)-1)<>"",OFFSET(DE100_14!$L$38,ROWS($L$38:L101)-1,COLUMNS($L$38:L101)-1),"") -> 1150 | K87: =IF(OFFSET(DE100_14!$N$38,ROWS($N$38:N101)-1,COLUMNS($N$38:N101)-1)<>"",OFFSET(DE100_14!$N$38,ROWS($N$38:N101)-1,COLUMNS($N$38:N101)-1),"") -> 
A88: =IF(OFFSET(DE100_14!$C$38,ROWS($C$38:C102)-1,COLUMNS($C$38:C102)-1)<>"",OFFSET(DE100_14!$C$38,ROWS($C$38:C102)-1,COLUMNS($C$38:C102)-1),"") -> 29 | B88: =IF(OFFSET(DE100_14!$D$38,ROWS($D$38:D102)-1,COLUMNS($D$38:D102)-1)<>"",OFFSET(DE100_14!$D$38,ROWS($D$38:D102)-1,COLUMNS($D$38:D102)-1),"") -> 120615 | C88: =IF(OFFSET(DE100_14!$E$38,ROWS($E$38:E102)-1,COLUMNS($E$38:E102)-1)<>"",OFFSET(DE100_14!$E$38,ROWS($E$38:E102)-1,COLUMNS($E$38:E102)-1),"") -> Lt. | D88: =IF(OFFSET(DE100_14!$F$38,ROWS($F$38:F102)-1,COLUMNS($F$38:F102)-1)<>"",OFFSET(DE100_14!$F$38,ROWS($F$38:F102)-1,COLUMNS($F$38:F102)-1),"") -> 1 | E88: =IF(OFFSET(DE100_14!$G$38,ROWS($G$38:G102)-1,COLUMNS($G$38:G102)-1)<>"",OFFSET(DE100_14!$G$38,ROWS($G$38:G102)-1,COLUMNS($G$38:G102)-1),"") -> 1 | F88: =IF(OFFSET(DE100_14!$H$38,ROWS($H$38:H102)-1,COLUMNS($H$38:H102)-1)<>"",OFFSET(DE100_14!$H$38,ROWS($H$38:H102)-1,COLUMNS($H$38:H102)-1),"") -> 10 | G88: =IF(OFFSET(DE100_14!$I$38,ROWS($I$38:I102)-1,COLUMNS($I$38:I102)-1)<>"",OFFSET(DE100_14!$I$38,ROWS($I$38:I102)-1,COLUMNS($I$38:I102)-1),"") -> 50 | H88: =IF(OFFSET(DE100_14!$J$38,ROWS($J$38:J102)-1,COLUMNS($J$38:J102)-1)<>"",OFFSET(DE100_14!$J$38,ROWS($J$38:J102)-1,COLUMNS($J$38:J102)-1),"") -> 2.85 | I88: =IF(OFFSET(DE100_14!$K$38,ROWS($K$38:K102)-1,COLUMNS($K$38:K102)-1)<>"",OFFSET(DE100_14!$K$38,ROWS($K$38:K102)-1,COLUMNS($K$38:K102)-1),"") -> 0.023 | J88: =IF(OFFSET(DE100_14!$L$38,ROWS($L$38:L102)-1,COLUMNS($L$38:L102)-1)<>"",OFFSET(DE100_14!$L$38,ROWS($L$38:L102)-1,COLUMNS($L$38:L102)-1),"") -> 1137.5 | K88: =IF(OFFSET(DE100_14!$N$38,ROWS($N$38:N102)-1,COLUMNS($N$38:N102)-1)<>"",OFFSET(DE100_14!$N$38,ROWS($N$38:N102)-1,COLUMNS($N$38:N102)-1),"") -> 
A89: =IF(OFFSET(DE100_14!$C$38,ROWS($C$38:C103)-1,COLUMNS($C$38:C103)-1)<>"",OFFSET(DE100_14!$C$38,ROWS($C$38:C103)-1,COLUMNS($C$38:C103)-1),"") -> 29 | B89: =IF(OFFSET(DE100_14!$D$38,ROWS($D$38:D103)-1,COLUMNS($D$38:D103)-1)<>"",OFFSET(DE100_14!$D$38,ROWS($D$38:D103)-1,COLUMNS($D$38:D103)-1),"") -> 120515 | C89: =IF(OFFSET(DE100_14!$E$38,ROWS($E$38:E103)-1,COLUMNS($E$38:E103)-1)<>"",OFFSET(DE100_14!$E$38,ROWS($E$38:E103)-1,COLUMNS($E$38:E103)-1),"") -> Rt. | D89: =IF(OFFSET(DE100_14!$F$38,ROWS($F$38:F103)-1,COLUMNS($F$38:F103)-1)<>"",OFFSET(DE100_14!$F$38,ROWS($F$38:F103)-1,COLUMNS($F$38:F103)-1),"") -> 1 | E89: =IF(OFFSET(DE100_14!$G$38,ROWS($G$38:G103)-1,COLUMNS($G$38:G103)-1)<>"",OFFSET(DE100_14!$G$38,ROWS($G$38:G103)-1,COLUMNS($G$38:G103)-1),"") -> 1 | F89: =IF(OFFSET(DE100_14!$H$38,ROWS($H$38:H103)-1,COLUMNS($H$38:H103)-1)<>"",OFFSET(DE100_14!$H$38,ROWS($H$38:H103)-1,COLUMNS($H$38:H103)-1),"") -> 10 | G89: =IF(OFFSET(DE100_14!$I$38,ROWS($I$38:I103)-1,COLUMNS($I$38:I103)-1)<>"",OFFSET(DE100_14!$I$38,ROWS($I$38:I103)-1,COLUMNS($I$38:I103)-1),"") -> 50 | H89: =IF(OFFSET(DE100_14!$J$38,ROWS($J$38:J103)-1,COLUMNS($J$38:J103)-1)<>"",OFFSET(DE100_14!$J$38,ROWS($J$38:J103)-1,COLUMNS($J$38:J103)-1),"") -> 2.85 | I89: =IF(OFFSET(DE100_14!$K$38,ROWS($K$38:K103)-1,COLUMNS($K$38:K103)-1)<>"",OFFSET(DE100_14!$K$38,ROWS($K$38:K103)-1,COLUMNS($K$38:K103)-1),"") -> -0.025 | J89: =IF(OFFSET(DE100_14!$L$38,ROWS($L$38:L103)-1,COLUMNS($L$38:L103)-1)<>"",OFFSET(DE100_14!$L$38,ROWS($L$38:L103)-1,COLUMNS($L$38:L103)-1),"") -> 1112.5 | K89: =IF(OFFSET(DE100_14!$N$38,ROWS($N$38:N103)-1,COLUMNS($N$38:N103)-1)<>"",OFFSET(DE100_14!$N$38,ROWS($N$38:N103)-1,COLUMNS($N$38:N103)-1),"") -> 
A90: =IF(OFFSET(DE100_14!$C$38,ROWS($C$38:C104)-1,COLUMNS($C$38:C104)-1)<>"",OFFSET(DE100_14!$C$38,ROWS($C$38:C104)-1,COLUMNS($C$38:C104)-1),"") -> 29 | B90: =IF(OFFSET(DE100_14!$D$38,ROWS($D$38:D104)-1,COLUMNS($D$38:D104)-1)<>"",OFFSET(DE100_14!$D$38,ROWS($D$38:D104)-1,COLUMNS($D$38:D104)-1),"") -> 120580 | C90: =IF(OFFSET(DE100_14!$E$38,ROWS($E$38:E104)-1,COLUMNS($E$38:E104)-1)<>"",OFFSET(DE100_14!$E$38,ROWS($E$38:E104)-1,COLUMNS($E$38:E104)-1),"") -> Rt. | D90: =IF(OFFSET(DE100_14!$F$38,ROWS($F$38:F104)-1,COLUMNS($F$38:F104)-1)<>"",OFFSET(DE100_14!$F$38,ROWS($F$38:F104)-1,COLUMNS($F$38:F104)-1),"") -> 1 | E90: =IF(OFFSET(DE100_14!$G$38,ROWS($G$38:G104)-1,COLUMNS($G$38:G104)-1)<>"",OFFSET(DE100_14!$G$38,ROWS($G$38:G104)-1,COLUMNS($G$38:G104)-1),"") -> 1 | F90: =IF(OFFSET(DE100_14!$H$38,ROWS($H$38:H104)-1,COLUMNS($H$38:H104)-1)<>"",OFFSET(DE100_14!$H$38,ROWS($H$38:H104)-1,COLUMNS($H$38:H104)-1),"") -> 10 | G90: =IF(OFFSET(DE100_14!$I$38,ROWS($I$38:I104)-1,COLUMNS($I$38:I104)-1)<>"",OFFSET(DE100_14!$I$38,ROWS($I$38:I104)-1,COLUMNS($I$38:I104)-1),"") -> 50 | H90: =IF(OFFSET(DE100_14!$J$38,ROWS($J$38:J104)-1,COLUMNS($J$38:J104)-1)<>"",OFFSET(DE100_14!$J$38,ROWS($J$38:J104)-1,COLUMNS($J$38:J104)-1),"") -> 2.85 | I90: =IF(OFFSET(DE100_14!$K$38,ROWS($K$38:K104)-1,COLUMNS($K$38:K104)-1)<>"",OFFSET(DE100_14!$K$38,ROWS($K$38:K104)-1,COLUMNS($K$38:K104)-1),"") -> 0.028 | J90: =IF(OFFSET(DE100_14!$L$38,ROWS($L$38:L104)-1,COLUMNS($L$38:L104)-1)<>"",OFFSET(DE100_14!$L$38,ROWS($L$38:L104)-1,COLUMNS($L$38:L104)-1),"") -> 1075 | K90: =IF(OFFSET(DE100_14!$N$38,ROWS($N$38:N104)-1,COLUMNS($N$38:N104)-1)<>"",OFFSET(DE100_14!$N$38,ROWS($N$38:N104)-1,COLUMNS($N$38:N104)-1),"") -> 
A91: 100-14
A92: 2016-10-18
A93: SILT BASINS
A96: Possible Standard: EW-403
A109: * The functional height used in the volume equation is 95% of effective height. Effective height is 3 feet as shown in EW-403.
A110: * Volume equation: (0.5*Length*(Width*Height+Width*(Height-Length*Avg%Slope))
A111: Basin No. | B111: Location | D111: Bid Items | F111: Stormwater Storage Volume Summary | K111: Remarks
B112: Station | C112: Side | D112: Installation | E112: Removal | F112: Basin Width | G112: Basin Length | H112: Height | I112: Avg. % Slope | J112: Volume*
D113: EACH | E113: EACH | F113: FT | G113: FT | H113: FT | J113: CF
A114: =IF(OFFSET(DE100_14!$C$105,ROWS($C$105:C105)-1,COLUMNS($C$105:C105)-1)<>"",OFFSET(DE100_14!$C$105,ROWS($C$105:C105)-1,COLUMNS($C$105:C105)-1),"") ->  | B114: =IF(OFFSET(DE100_14!$D$105,ROWS($D$105:D105)-1,COLUMNS($D$105:D105)-1)<>"",OFFSET(DE100_14!$D$105,ROWS($D$105:D105)-1,COLUMNS($D$105:D105)-1),"") ->  | C114: =IF(OFFSET(DE100_14!$E$105,ROWS($E$105:E105)-1,COLUMNS($E$105:E105)-1)<>"",OFFSET(DE100_14!$E$105,ROWS($E$105:E105)-1,COLUMNS($E$105:E105)-1),"") ->  | D114: =IF(OFFSET(DE100_14!$F$105,ROWS($F$105:F105)-1,COLUMNS($F$105:F105)-1)<>"",OFFSET(DE100_14!$F$105,ROWS($F$105:F105)-1,COLUMNS($F$105:F105)-1),"") ->  | E114: =IF(OFFSET(DE100_14!$G$105,ROWS($G$105:G105)-1,COLUMNS($G$105:G105)-1)<>"",OFFSET(DE100_14!$G$105,ROWS($G$105:G105)-1,COLUMNS($G$105:G105)-1),"") ->  | F114: =IF(OFFSET(DE100_14!$H$105,ROWS($H$105:H105)-1,COLUMNS($H$105:H105)-1)<>"",OFFSET(DE100_14!$H$105,ROWS($H$105:H105)-1,COLUMNS($H$105:H105)-1),"") ->  | G114: =IF(OFFSET(DE100_14!$I$105,ROWS($I$105:I105)-1,COLUMNS($I$105:I105)-1)<>"",OFFSET(DE100_14!$I$105,ROWS($I$105:I105)-1,COLUMNS($I$105:I105)-1),"") ->  | H114: =IF(OFFSET(DE100_14!$J$105,ROWS($J$105:J105)-1,COLUMNS($J$105:J105)-1)<>"",OFFSET(DE100_14!$J$105,ROWS($J$105:J105)-1,COLUMNS($J$105:J105)-1),"") ->  | I114: =IF(OFFSET(DE100_14!$K$105,ROWS($K$105:K105)-1,COLUMNS($K$105:K105)-1)<>"",OFFSET(DE100_14!$K$105,ROWS($K$105:K105)-1,COLUMNS($K$105:K105)-1),"") ->  | J114: =IF(OFFSET(DE100_14!$L$105,ROWS($L$105:L105)-1,COLUMNS($L$105:L105)-1)<>"",OFFSET(DE100_14!$L$105,ROWS($L$105:L105)-1,COLUMNS($L$105:L105)-1),"") ->  | K114: =IF(OFFSET(DE100_14!$N$105,ROWS($N$105:N105)-1,COLUMNS($N$105:N105)-1)<>"",OFFSET(DE100_14!$N$105,ROWS($N$105:N105)-1,COLUMNS($N$105:N105)-1),"") -> 
A115: =IF(OFFSET(DE100_14!$C$105,ROWS($C$105:C106)-1,COLUMNS($C$105:C106)-1)<>"",OFFSET(DE100_14!$C$105,ROWS($C$105:C106)-1,COLUMNS($C$105:C106)-1),"") -> 32 | B115: =IF(OFFSET(DE100_14!$D$105,ROWS($D$105:D106)-1,COLUMNS($D$105:D106)-1)<>"",OFFSET(DE100_14!$D$105,ROWS($D$105:D106)-1,COLUMNS($D$105:D106)-1),"") -> 122390 | C115: =IF(OFFSET(DE100_14!$E$105,ROWS($E$105:E106)-1,COLUMNS($E$105:E106)-1)<>"",OFFSET(DE100_14!$E$105,ROWS($E$105:E106)-1,COLUMNS($E$105:E106)-1),"") -> Lt. | D115: =IF(OFFSET(DE100_14!$F$105,ROWS($F$105:F106)-1,COLUMNS($F$105:F106)-1)<>"",OFFSET(DE100_14!$F$105,ROWS($F$105:F106)-1,COLUMNS($F$105:F106)-1),"") -> 1 | E115: =IF(OFFSET(DE100_14!$G$105,ROWS($G$105:G106)-1,COLUMNS($G$105:G106)-1)<>"",OFFSET(DE100_14!$G$105,ROWS($G$105:G106)-1,COLUMNS($G$105:G106)-1),"") -> 1 | F115: =IF(OFFSET(DE100_14!$H$105,ROWS($H$105:H106)-1,COLUMNS($H$105:H106)-1)<>"",OFFSET(DE100_14!$H$105,ROWS($H$105:H106)-1,COLUMNS($H$105:H106)-1),"") -> 10 | G115: =IF(OFFSET(DE100_14!$I$105,ROWS($I$105:I106)-1,COLUMNS($I$105:I106)-1)<>"",OFFSET(DE100_14!$I$105,ROWS($I$105:I106)-1,COLUMNS($I$105:I106)-1),"") -> 50 | H115: =IF(OFFSET(DE100_14!$J$105,ROWS($J$105:J106)-1,COLUMNS($J$105:J106)-1)<>"",OFFSET(DE100_14!$J$105,ROWS($J$105:J106)-1,COLUMNS($J$105:J106)-1),"") -> 2.85 | I115: =IF(OFFSET(DE100_14!$K$105,ROWS($K$105:K106)-1,COLUMNS($K$105:K106)-1)<>"",OFFSET(DE100_14!$K$105,ROWS($K$105:K106)-1,COLUMNS($K$105:K106)-1),"") -> -0.012 | J115: =IF(OFFSET(DE100_14!$L$105,ROWS($L$105:L106)-1,COLUMNS($L$105:L106)-1)<>"",OFFSET(DE100_14!$L$105,ROWS($L$105:L106)-1,COLUMNS($L$105:L106)-1),"") -> 1275 | K115: =IF(OFFSET(DE100_14!$N$105,ROWS($N$105:N106)-1,COLUMNS($N$105:N106)-1)<>"",OFFSET(DE100_14!$N$105,ROWS($N$105:N106)-1,COLUMNS($N$105:N106)-1),"") -> 
A116: =IF(OFFSET(DE100_14!$C$105,ROWS($C$105:C107)-1,COLUMNS($C$105:C107)-1)<>"",OFFSET(DE100_14!$C$105,ROWS($C$105:C107)-1,COLUMNS($C$105:C107)-1),"") -> 32 | B116: =IF(OFFSET(DE100_14!$D$105,ROWS($D$105:D107)-1,COLUMNS($D$105:D107)-1)<>"",OFFSET(DE100_14!$D$105,ROWS($D$105:D107)-1,COLUMNS($D$105:D107)-1),"") -> 122450 | C116: =IF(OFFSET(DE100_14!$E$105,ROWS($E$105:E107)-1,COLUMNS($E$105:E107)-1)<>"",OFFSET(DE100_14!$E$105,ROWS($E$105:E107)-1,COLUMNS($E$105:E107)-1),"") -> Lt. | D116: =IF(OFFSET(DE100_14!$F$105,ROWS($F$105:F107)-1,COLUMNS($F$105:F107)-1)<>"",OFFSET(DE100_14!$F$105,ROWS($F$105:F107)-1,COLUMNS($F$105:F107)-1),"") -> 1 | E116: =IF(OFFSET(DE100_14!$G$105,ROWS($G$105:G107)-1,COLUMNS($G$105:G107)-1)<>"",OFFSET(DE100_14!$G$105,ROWS($G$105:G107)-1,COLUMNS($G$105:G107)-1),"") -> 1 | F116: =IF(OFFSET(DE100_14!$H$105,ROWS($H$105:H107)-1,COLUMNS($H$105:H107)-1)<>"",OFFSET(DE100_14!$H$105,ROWS($H$105:H107)-1,COLUMNS($H$105:H107)-1),"") -> 10 | G116: =IF(OFFSET(DE100_14!$I$105,ROWS($I$105:I107)-1,COLUMNS($I$105:I107)-1)<>"",OFFSET(DE100_14!$I$105,ROWS($I$105:I107)-1,COLUMNS($I$105:I107)-1),"") -> 50 | H116: =IF(OFFSET(DE100_14!$J$105,ROWS($J$105:J107)-1,COLUMNS($J$105:J107)-1)<>"",OFFSET(DE100_14!$J$105,ROWS($J$105:J107)-1,COLUMNS($J$105:J107)-1),"") -> 2.85 | I116: =IF(OFFSET(DE100_14!$K$105,ROWS($K$105:K107)-1,COLUMNS($K$105:K107)-1)<>"",OFFSET(DE100_14!$K$105,ROWS($K$105:K107)-1,COLUMNS($K$105:K107)-1),"") -> 0.007 | J116: =IF(OFFSET(DE100_14!$L$105,ROWS($L$105:L107)-1,COLUMNS($L$105:L107)-1)<>"",OFFSET(DE100_14!$L$105,ROWS($L$105:L107)-1,COLUMNS($L$105:L107)-1),"") -> 1337.5 | K116: =IF(OFFSET(DE100_14!$N$105,ROWS($N$105:N107)-1,COLUMNS($N$105:N107)-1)<>"",OFFSET(DE100_14!$N$105,ROWS($N$105:N107)-1,COLUMNS($N$105:N107)-1),"") -> 
A117: =IF(OFFSET(DE100_14!$C$105,ROWS($C$105:C108)-1,COLUMNS($C$105:C108)-1)<>"",OFFSET(DE100_14!$C$105,ROWS($C$105:C108)-1,COLUMNS($C$105:C108)-1),"") -> 32 | B117: =IF(OFFSET(DE100_14!$D$105,ROWS($D$105:D108)-1,COLUMNS($D$105:D108)-1)<>"",OFFSET(DE100_14!$D$105,ROWS($D$105:D108)-1,COLUMNS($D$105:D108)-1),"") -> 122440 | C117: =IF(OFFSET(DE100_14!$E$105,ROWS($E$105:E108)-1,COLUMNS($E$105:E108)-1)<>"",OFFSET(DE100_14!$E$105,ROWS($E$105:E108)-1,COLUMNS($E$105:E108)-1),"") -> Rt. | D117: =IF(OFFSET(DE100_14!$F$105,ROWS($F$105:F108)-1,COLUMNS($F$105:F108)-1)<>"",OFFSET(DE100_14!$F$105,ROWS($F$105:F108)-1,COLUMNS($F$105:F108)-1),"") -> 1 | E117: =IF(OFFSET(DE100_14!$G$105,ROWS($G$105:G108)-1,COLUMNS($G$105:G108)-1)<>"",OFFSET(DE100_14!$G$105,ROWS($G$105:G108)-1,COLUMNS($G$105:G108)-1),"") -> 1 | F117: =IF(OFFSET(DE100_14!$H$105,ROWS($H$105:H108)-1,COLUMNS($H$105:H108)-1)<>"",OFFSET(DE100_14!$H$105,ROWS($H$105:H108)-1,COLUMNS($H$105:H108)-1),"") -> 10 | G117: =IF(OFFSET(DE100_14!$I$105,ROWS($I$105:I108)-1,COLUMNS($I$105:I108)-1)<>"",OFFSET(DE100_14!$I$105,ROWS($I$105:I108)-1,COLUMNS($I$105:I108)-1),"") -> 50 | H117: =IF(OFFSET(DE100_14!$J$105,ROWS($J$105:J108)-1,COLUMNS($J$105:J108)-1)<>"",OFFSET(DE100_14!$J$105,ROWS($J$105:J108)-1,COLUMNS($J$105:J108)-1),"") -> 2.85 | I117: =IF(OFFSET(DE100_14!$K$105,ROWS($K$105:K108)-1,COLUMNS($K$105:K108)-1)<>"",OFFSET(DE100_14!$K$105,ROWS($K$105:K108)-1,COLUMNS($K$105:K108)-1),"") -> -0.005 | J117: =IF(OFFSET(DE100_14!$L$105,ROWS($L$105:L108)-1,COLUMNS($L$105:L108)-1)<>"",OFFSET(DE100_14!$L$105,ROWS($L$105:L108)-1,COLUMNS($L$105:L108)-1),"") -> 1362.5 | K117: =IF(OFFSET(DE100_14!$N$105,ROWS($N$105:N108)-1,COLUMNS($N$105:N108)-1)<>"",OFFSET(DE100_14!$N$105,ROWS($N$105:N108)-1,COLUMNS($N$105:N108)-1),"") -> 
A118: =IF(OFFSET(DE100_14!$C$105,ROWS($C$105:C109)-1,COLUMNS($C$105:C109)-1)<>"",OFFSET(DE100_14!$C$105,ROWS($C$105:C109)-1,COLUMNS($C$105:C109)-1),"") -> 32 | B118: =IF(OFFSET(DE100_14!$D$105,ROWS($D$105:D109)-1,COLUMNS($D$105:D109)-1)<>"",OFFSET(DE100_14!$D$105,ROWS($D$105:D109)-1,COLUMNS($D$105:D109)-1),"") -> 122500 | C118: =IF(OFFSET(DE100_14!$E$105,ROWS($E$105:E109)-1,COLUMNS($E$105:E109)-1)<>"",OFFSET(DE100_14!$E$105,ROWS($E$105:E109)-1,COLUMNS($E$105:E109)-1),"") -> Rt. | D118: =IF(OFFSET(DE100_14!$F$105,ROWS($F$105:F109)-1,COLUMNS($F$105:F109)-1)<>"",OFFSET(DE100_14!$F$105,ROWS($F$105:F109)-1,COLUMNS($F$105:F109)-1),"") -> 1 | E118: =IF(OFFSET(DE100_14!$G$105,ROWS($G$105:G109)-1,COLUMNS($G$105:G109)-1)<>"",OFFSET(DE100_14!$G$105,ROWS($G$105:G109)-1,COLUMNS($G$105:G109)-1),"") -> 1 | F118: =IF(OFFSET(DE100_14!$H$105,ROWS($H$105:H109)-1,COLUMNS($H$105:H109)-1)<>"",OFFSET(DE100_14!$H$105,ROWS($H$105:H109)-1,COLUMNS($H$105:H109)-1),"") -> 10 | G118: =IF(OFFSET(DE100_14!$I$105,ROWS($I$105:I109)-1,COLUMNS($I$105:I109)-1)<>"",OFFSET(DE100_14!$I$105,ROWS($I$105:I109)-1,COLUMNS($I$105:I109)-1),"") -> 50 | H118: =IF(OFFSET(DE100_14!$J$105,ROWS($J$105:J109)-1,COLUMNS($J$105:J109)-1)<>"",OFFSET(DE100_14!$J$105,ROWS($J$105:J109)-1,COLUMNS($J$105:J109)-1),"") -> 2.85 | I118: =IF(OFFSET(DE100_14!$K$105,ROWS($K$105:K109)-1,COLUMNS($K$105:K109)-1)<>"",OFFSET(DE100_14!$K$105,ROWS($K$105:K109)-1,COLUMNS($K$105:K109)-1),"") -> 0.005 | J118: =IF(OFFSET(DE100_14!$L$105,ROWS($L$105:L109)-1,COLUMNS($L$105:L109)-1)<>"",OFFSET(DE100_14!$L$105,ROWS($L$105:L109)-1,COLUMNS($L$105:L109)-1),"") -> 1362.5 | K118: =IF(OFFSET(DE100_14!$N$105,ROWS($N$105:N109)-1,COLUMNS($N$105:N109)-1)<>"",OFFSET(DE100_14!$N$105,ROWS($N$105:N109)-1,COLUMNS($N$105:N109)-1),"") -> 
A119: =IF(OFFSET(DE100_14!$C$105,ROWS($C$105:C110)-1,COLUMNS($C$105:C110)-1)<>"",OFFSET(DE100_14!$C$105,ROWS($C$105:C110)-1,COLUMNS($C$105:C110)-1),"") ->  | B119: =IF(OFFSET(DE100_14!$D$105,ROWS($D$105:D110)-1,COLUMNS($D$105:D110)-1)<>"",OFFSET(DE100_14!$D$105,ROWS($D$105:D110)-1,COLUMNS($D$105:D110)-1),"") ->  | C119: =IF(OFFSET(DE100_14!$E$105,ROWS($E$105:E110)-1,COLUMNS($E$105:E110)-1)<>"",OFFSET(DE100_14!$E$105,ROWS($E$105:E110)-1,COLUMNS($E$105:E110)-1),"") ->  | D119: =IF(OFFSET(DE100_14!$F$105,ROWS($F$105:F110)-1,COLUMNS($F$105:F110)-1)<>"",OFFSET(DE100_14!$F$105,ROWS($F$105:F110)-1,COLUMNS($F$105:F110)-1),"") ->  | E119: =IF(OFFSET(DE100_14!$G$105,ROWS($G$105:G110)-1,COLUMNS($G$105:G110)-1)<>"",OFFSET(DE100_14!$G$105,ROWS($G$105:G110)-1,COLUMNS($G$105:G110)-1),"") ->  | F119: =IF(OFFSET(DE100_14!$H$105,ROWS($H$105:H110)-1,COLUMNS($H$105:H110)-1)<>"",OFFSET(DE100_14!$H$105,ROWS($H$105:H110)-1,COLUMNS($H$105:H110)-1),"") ->  | G119: =IF(OFFSET(DE100_14!$I$105,ROWS($I$105:I110)-1,COLUMNS($I$105:I110)-1)<>"",OFFSET(DE100_14!$I$105,ROWS($I$105:I110)-1,COLUMNS($I$105:I110)-1),"") ->  | H119: =IF(OFFSET(DE100_14!$J$105,ROWS($J$105:J110)-1,COLUMNS($J$105:J110)-1)<>"",OFFSET(DE100_14!$J$105,ROWS($J$105:J110)-1,COLUMNS($J$105:J110)-1),"") ->  | I119: =IF(OFFSET(DE100_14!$K$105,ROWS($K$105:K110)-1,COLUMNS($K$105:K110)-1)<>"",OFFSET(DE100_14!$K$105,ROWS($K$105:K110)-1,COLUMNS($K$105:K110)-1),"") ->  | J119: =IF(OFFSET(DE100_14!$L$105,ROWS($L$105:L110)-1,COLUMNS($L$105:L110)-1)<>"",OFFSET(DE100_14!$L$105,ROWS($L$105:L110)-1,COLUMNS($L$105:L110)-1),"") ->  | K119: =IF(OFFSET(DE100_14!$N$105,ROWS($N$105:N110)-1,COLUMNS($N$105:N110)-1)<>"",OFFSET(DE100_14!$N$105,ROWS($N$105:N110)-1,COLUMNS($N$105:N110)-1),"") -> 
A120: =IF(OFFSET(DE100_14!$C$105,ROWS($C$105:C111)-1,COLUMNS($C$105:C111)-1)<>"",OFFSET(DE100_14!$C$105,ROWS($C$105:C111)-1,COLUMNS($C$105:C111)-1),"") -> 33 | B120: =IF(OFFSET(DE100_14!$D$105,ROWS($D$105:D111)-1,COLUMNS($D$105:D111)-1)<>"",OFFSET(DE100_14!$D$105,ROWS($D$105:D111)-1,COLUMNS($D$105:D111)-1),"") -> 122860 | C120: =IF(OFFSET(DE100_14!$E$105,ROWS($E$105:E111)-1,COLUMNS($E$105:E111)-1)<>"",OFFSET(DE100_14!$E$105,ROWS($E$105:E111)-1,COLUMNS($E$105:E111)-1),"") -> Lt. | D120: =IF(OFFSET(DE100_14!$F$105,ROWS($F$105:F111)-1,COLUMNS($F$105:F111)-1)<>"",OFFSET(DE100_14!$F$105,ROWS($F$105:F111)-1,COLUMNS($F$105:F111)-1),"") -> 1 | E120: =IF(OFFSET(DE100_14!$G$105,ROWS($G$105:G111)-1,COLUMNS($G$105:G111)-1)<>"",OFFSET(DE100_14!$G$105,ROWS($G$105:G111)-1,COLUMNS($G$105:G111)-1),"") -> 1 | F120: =IF(OFFSET(DE100_14!$H$105,ROWS($H$105:H111)-1,COLUMNS($H$105:H111)-1)<>"",OFFSET(DE100_14!$H$105,ROWS($H$105:H111)-1,COLUMNS($H$105:H111)-1),"") -> 10 | G120: =IF(OFFSET(DE100_14!$I$105,ROWS($I$105:I111)-1,COLUMNS($I$105:I111)-1)<>"",OFFSET(DE100_14!$I$105,ROWS($I$105:I111)-1,COLUMNS($I$105:I111)-1),"") -> 50 | H120: =IF(OFFSET(DE100_14!$J$105,ROWS($J$105:J111)-1,COLUMNS($J$105:J111)-1)<>"",OFFSET(DE100_14!$J$105,ROWS($J$105:J111)-1,COLUMNS($J$105:J111)-1),"") -> 2.85 | I120: =IF(OFFSET(DE100_14!$K$105,ROWS($K$105:K111)-1,COLUMNS($K$105:K111)-1)<>"",OFFSET(DE100_14!$K$105,ROWS($K$105:K111)-1,COLUMNS($K$105:K111)-1),"") -> -0.011 | J120: =IF(OFFSET(DE100_14!$L$105,ROWS($L$105:L111)-1,COLUMNS($L$105:L111)-1)<>"",OFFSET(DE100_14!$L$105,ROWS($L$105:L111)-1,COLUMNS($L$105:L111)-1),"") -> 1287.5 | K120: =IF(OFFSET(DE100_14!$N$105,ROWS($N$105:N111)-1,COLUMNS($N$105:N111)-1)<>"",OFFSET(DE100_14!$N$105,ROWS($N$105:N111)-1,COLUMNS($N$105:N111)-1),"") -> 
A121: =IF(OFFSET(DE100_14!$C$105,ROWS($C$105:C112)-1,COLUMNS($C$105:C112)-1)<>"",OFFSET(DE100_14!$C$105,ROWS($C$105:C112)-1,COLUMNS($C$105:C112)-1),"") -> 33 | B121: =IF(OFFSET(DE100_14!$D$105,ROWS($D$105:D112)-1,COLUMNS($D$105:D112)-1)<>"",OFFSET(DE100_14!$D$105,ROWS($D$105:D112)-1,COLUMNS($D$105:D112)-1),"") -> 122915 | C121: =IF(OFFSET(DE100_14!$E$105,ROWS($E$105:E112)-1,COLUMNS($E$105:E112)-1)<>"",OFFSET(DE100_14!$E$105,ROWS($E$105:E112)-1,COLUMNS($E$105:E112)-1),"") -> Lt. | D121: =IF(OFFSET(DE100_14!$F$105,ROWS($F$105:F112)-1,COLUMNS($F$105:F112)-1)<>"",OFFSET(DE100_14!$F$105,ROWS($F$105:F112)-1,COLUMNS($F$105:F112)-1),"") -> 1 | E121: =IF(OFFSET(DE100_14!$G$105,ROWS($G$105:G112)-1,COLUMNS($G$105:G112)-1)<>"",OFFSET(DE100_14!$G$105,ROWS($G$105:G112)-1,COLUMNS($G$105:G112)-1),"") -> 1 | F121: =IF(OFFSET(DE100_14!$H$105,ROWS($H$105:H112)-1,COLUMNS($H$105:H112)-1)<>"",OFFSET(DE100_14!$H$105,ROWS($H$105:H112)-1,COLUMNS($H$105:H112)-1),"") -> 10 | G121: =IF(OFFSET(DE100_14!$I$105,ROWS($I$105:I112)-1,COLUMNS($I$105:I112)-1)<>"",OFFSET(DE100_14!$I$105,ROWS($I$105:I112)-1,COLUMNS($I$105:I112)-1),"") -> 50 | H121: =IF(OFFSET(DE100_14!$J$105,ROWS($J$105:J112)-1,COLUMNS($J$105:J112)-1)<>"",OFFSET(DE100_14!$J$105,ROWS($J$105:J112)-1,COLUMNS($J$105:J112)-1),"") -> 2.85 | I121: =IF(OFFSET(DE100_14!$K$105,ROWS($K$105:K112)-1,COLUMNS($K$105:K112)-1)<>"",OFFSET(DE100_14!$K$105,ROWS($K$105:K112)-1,COLUMNS($K$105:K112)-1),"") -> 0.022 | J121: =IF(OFFSET(DE100_14!$L$105,ROWS($L$105:L112)-1,COLUMNS($L$105:L112)-1)<>"",OFFSET(DE100_14!$L$105,ROWS($L$105:L112)-1,COLUMNS($L$105:L112)-1),"") -> 1150 | K121: =IF(OFFSET(DE100_14!$N$105,ROWS($N$105:N112)-1,COLUMNS($N$105:N112)-1)<>"",OFFSET(DE100_14!$N$105,ROWS($N$105:N112)-1,COLUMNS($N$105:N112)-1),"") -> 
A122: =IF(OFFSET(DE100_14!$C$105,ROWS($C$105:C113)-1,COLUMNS($C$105:C113)-1)<>"",OFFSET(DE100_14!$C$105,ROWS($C$105:C113)-1,COLUMNS($C$105:C113)-1),"") -> 33 | B122: =IF(OFFSET(DE100_14!$D$105,ROWS($D$105:D113)-1,COLUMNS($D$105:D113)-1)<>"",OFFSET(DE100_14!$D$105,ROWS($D$105:D113)-1,COLUMNS($D$105:D113)-1),"") -> 122860 | C122: =IF(OFFSET(DE100_14!$E$105,ROWS($E$105:E113)-1,COLUMNS($E$105:E113)-1)<>"",OFFSET(DE100_14!$E$105,ROWS($E$105:E113)-1,COLUMNS($E$105:E113)-1),"") -> Rt. | D122: =IF(OFFSET(DE100_14!$F$105,ROWS($F$105:F113)-1,COLUMNS($F$105:F113)-1)<>"",OFFSET(DE100_14!$F$105,ROWS($F$105:F113)-1,COLUMNS($F$105:F113)-1),"") -> 1 | E122: =IF(OFFSET(DE100_14!$G$105,ROWS($G$105:G113)-1,COLUMNS($G$105:G113)-1)<>"",OFFSET(DE100_14!$G$105,ROWS($G$105:G113)-1,COLUMNS($G$105:G113)-1),"") -> 1 | F122: =IF(OFFSET(DE100_14!$H$105,ROWS($H$105:H113)-1,COLUMNS($H$105:H113)-1)<>"",OFFSET(DE100_14!$H$105,ROWS($H$105:H113)-1,COLUMNS($H$105:H113)-1),"") -> 10 | G122: =IF(OFFSET(DE100_14!$I$105,ROWS($I$105:I113)-1,COLUMNS($I$105:I113)-1)<>"",OFFSET(DE100_14!$I$105,ROWS($I$105:I113)-1,COLUMNS($I$105:I113)-1),"") -> 50 | H122: =IF(OFFSET(DE100_14!$J$105,ROWS($J$105:J113)-1,COLUMNS($J$105:J113)-1)<>"",OFFSET(DE100_14!$J$105,ROWS($J$105:J113)-1,COLUMNS($J$105:J113)-1),"") -> 2.85 | I122: =IF(OFFSET(DE100_14!$K$105,ROWS($K$105:K113)-1,COLUMNS($K$105:K113)-1)<>"",OFFSET(DE100_14!$K$105,ROWS($K$105:K113)-1,COLUMNS($K$105:K113)-1),"") -> -0.008 | J122: =IF(OFFSET(DE100_14!$L$105,ROWS($L$105:L113)-1,COLUMNS($L$105:L113)-1)<>"",OFFSET(DE100_14!$L$105,ROWS($L$105:L113)-1,COLUMNS($L$105:L113)-1),"") -> 1325 | K122: =IF(OFFSET(DE100_14!$N$105,ROWS($N$105:N113)-1,COLUMNS($N$105:N113)-1)<>"",OFFSET(DE100_14!$N$105,ROWS($N$105:N113)-1,COLUMNS($N$105:N113)-1),"") -> 
A123: =IF(OFFSET(DE100_14!$C$105,ROWS($C$105:C114)-1,COLUMNS($C$105:C114)-1)<>"",OFFSET(DE100_14!$C$105,ROWS($C$105:C114)-1,COLUMNS($C$105:C114)-1),"") -> 33 | B123: =IF(OFFSET(DE100_14!$D$105,ROWS($D$105:D114)-1,COLUMNS($D$105:D114)-1)<>"",OFFSET(DE100_14!$D$105,ROWS($D$105:D114)-1,COLUMNS($D$105:D114)-1),"") -> 122915 | C123: =IF(OFFSET(DE100_14!$E$105,ROWS($E$105:E114)-1,COLUMNS($E$105:E114)-1)<>"",OFFSET(DE100_14!$E$105,ROWS($E$105:E114)-1,COLUMNS($E$105:E114)-1),"") -> Rt. | D123: =IF(OFFSET(DE100_14!$F$105,ROWS($F$105:F114)-1,COLUMNS($F$105:F114)-1)<>"",OFFSET(DE100_14!$F$105,ROWS($F$105:F114)-1,COLUMNS($F$105:F114)-1),"") -> 1 | E123: =IF(OFFSET(DE100_14!$G$105,ROWS($G$105:G114)-1,COLUMNS($G$105:G114)-1)<>"",OFFSET(DE100_14!$G$105,ROWS($G$105:G114)-1,COLUMNS($G$105:G114)-1),"") -> 1 | F123: =IF(OFFSET(DE100_14!$H$105,ROWS($H$105:H114)-1,COLUMNS($H$105:H114)-1)<>"",OFFSET(DE100_14!$H$105,ROWS($H$105:H114)-1,COLUMNS($H$105:H114)-1),"") -> 10 | G123: =IF(OFFSET(DE100_14!$I$105,ROWS($I$105:I114)-1,COLUMNS($I$105:I114)-1)<>"",OFFSET(DE100_14!$I$105,ROWS($I$105:I114)-1,COLUMNS($I$105:I114)-1),"") -> 50 | H123: =IF(OFFSET(DE100_14!$J$105,ROWS($J$105:J114)-1,COLUMNS($J$105:J114)-1)<>"",OFFSET(DE100_14!$J$105,ROWS($J$105:J114)-1,COLUMNS($J$105:J114)-1),"") -> 2.85 | I123: =IF(OFFSET(DE100_14!$K$105,ROWS($K$105:K114)-1,COLUMNS($K$105:K114)-1)<>"",OFFSET(DE100_14!$K$105,ROWS($K$105:K114)-1,COLUMNS($K$105:K114)-1),"") -> 0.012 | J123: =IF(OFFSET(DE100_14!$L$105,ROWS($L$105:L114)-1,COLUMNS($L$105:L114)-1)<>"",OFFSET(DE100_14!$L$105,ROWS($L$105:L114)-1,COLUMNS($L$105:L114)-1),"") -> 1275 | K123: =IF(OFFSET(DE100_14!$N$105,ROWS($N$105:N114)-1,COLUMNS($N$105:N114)-1)<>"",OFFSET(DE100_14!$N$105,ROWS($N$105:N114)-1,COLUMNS($N$105:N114)-1),"") -> 
A124: =IF(OFFSET(DE100_14!$C$105,ROWS($C$105:C115)-1,COLUMNS($C$105:C115)-1)<>"",OFFSET(DE100_14!$C$105,ROWS($C$105:C115)-1,COLUMNS($C$105:C115)-1),"") ->  | B124: =IF(OFFSET(DE100_14!$D$105,ROWS($D$105:D115)-1,COLUMNS($D$105:D115)-1)<>"",OFFSET(DE100_14!$D$105,ROWS($D$105:D115)-1,COLUMNS($D$105:D115)-1),"") ->  | C124: =IF(OFFSET(DE100_14!$E$105,ROWS($E$105:E115)-1,COLUMNS($E$105:E115)-1)<>"",OFFSET(DE100_14!$E$105,ROWS($E$105:E115)-1,COLUMNS($E$105:E115)-1),"") ->  | D124: =IF(OFFSET(DE100_14!$F$105,ROWS($F$105:F115)-1,COLUMNS($F$105:F115)-1)<>"",OFFSET(DE100_14!$F$105,ROWS($F$105:F115)-1,COLUMNS($F$105:F115)-1),"") ->  | E124: =IF(OFFSET(DE100_14!$G$105,ROWS($G$105:G115)-1,COLUMNS($G$105:G115)-1)<>"",OFFSET(DE100_14!$G$105,ROWS($G$105:G115)-1,COLUMNS($G$105:G115)-1),"") ->  | F124: =IF(OFFSET(DE100_14!$H$105,ROWS($H$105:H115)-1,COLUMNS($H$105:H115)-1)<>"",OFFSET(DE100_14!$H$105,ROWS($H$105:H115)-1,COLUMNS($H$105:H115)-1),"") ->  | G124: =IF(OFFSET(DE100_14!$I$105,ROWS($I$105:I115)-1,COLUMNS($I$105:I115)-1)<>"",OFFSET(DE100_14!$I$105,ROWS($I$105:I115)-1,COLUMNS($I$105:I115)-1),"") ->  | H124: =IF(OFFSET(DE100_14!$J$105,ROWS($J$105:J115)-1,COLUMNS($J$105:J115)-1)<>"",OFFSET(DE100_14!$J$105,ROWS($J$105:J115)-1,COLUMNS($J$105:J115)-1),"") ->  | I124: =IF(OFFSET(DE100_14!$K$105,ROWS($K$105:K115)-1,COLUMNS($K$105:K115)-1)<>"",OFFSET(DE100_14!$K$105,ROWS($K$105:K115)-1,COLUMNS($K$105:K115)-1),"") ->  | J124: =IF(OFFSET(DE100_14!$L$105,ROWS($L$105:L115)-1,COLUMNS($L$105:L115)-1)<>"",OFFSET(DE100_14!$L$105,ROWS($L$105:L115)-1,COLUMNS($L$105:L115)-1),"") ->  | K124: =IF(OFFSET(DE100_14!$N$105,ROWS($N$105:N115)-1,COLUMNS($N$105:N115)-1)<>"",OFFSET(DE100_14!$N$105,ROWS($N$105:N115)-1,COLUMNS($N$105:N115)-1),"") -> 
A125: =IF(OFFSET(DE100_14!$C$105,ROWS($C$105:C116)-1,COLUMNS($C$105:C116)-1)<>"",OFFSET(DE100_14!$C$105,ROWS($C$105:C116)-1,COLUMNS($C$105:C116)-1),"") -> 38 | B125: =IF(OFFSET(DE100_14!$D$105,ROWS($D$105:D116)-1,COLUMNS($D$105:D116)-1)<>"",OFFSET(DE100_14!$D$105,ROWS($D$105:D116)-1,COLUMNS($D$105:D116)-1),"") -> 127795 | C125: =IF(OFFSET(DE100_14!$E$105,ROWS($E$105:E116)-1,COLUMNS($E$105:E116)-1)<>"",OFFSET(DE100_14!$E$105,ROWS($E$105:E116)-1,COLUMNS($E$105:E116)-1),"") -> Lt. | D125: =IF(OFFSET(DE100_14!$F$105,ROWS($F$105:F116)-1,COLUMNS($F$105:F116)-1)<>"",OFFSET(DE100_14!$F$105,ROWS($F$105:F116)-1,COLUMNS($F$105:F116)-1),"") -> 1 | E125: =IF(OFFSET(DE100_14!$G$105,ROWS($G$105:G116)-1,COLUMNS($G$105:G116)-1)<>"",OFFSET(DE100_14!$G$105,ROWS($G$105:G116)-1,COLUMNS($G$105:G116)-1),"") -> 1 | F125: =IF(OFFSET(DE100_14!$H$105,ROWS($H$105:H116)-1,COLUMNS($H$105:H116)-1)<>"",OFFSET(DE100_14!$H$105,ROWS($H$105:H116)-1,COLUMNS($H$105:H116)-1),"") -> 10 | G125: =IF(OFFSET(DE100_14!$I$105,ROWS($I$105:I116)-1,COLUMNS($I$105:I116)-1)<>"",OFFSET(DE100_14!$I$105,ROWS($I$105:I116)-1,COLUMNS($I$105:I116)-1),"") -> 50 | H125: =IF(OFFSET(DE100_14!$J$105,ROWS($J$105:J116)-1,COLUMNS($J$105:J116)-1)<>"",OFFSET(DE100_14!$J$105,ROWS($J$105:J116)-1,COLUMNS($J$105:J116)-1),"") -> 2.85 | I125: =IF(OFFSET(DE100_14!$K$105,ROWS($K$105:K116)-1,COLUMNS($K$105:K116)-1)<>"",OFFSET(DE100_14!$K$105,ROWS($K$105:K116)-1,COLUMNS($K$105:K116)-1),"") -> -0.008 | J125: =IF(OFFSET(DE100_14!$L$105,ROWS($L$105:L116)-1,COLUMNS($L$105:L116)-1)<>"",OFFSET(DE100_14!$L$105,ROWS($L$105:L116)-1,COLUMNS($L$105:L116)-1),"") -> 1325 | K125: =IF(OFFSET(DE100_14!$N$105,ROWS($N$105:N116)-1,COLUMNS($N$105:N116)-1)<>"",OFFSET(DE100_14!$N$105,ROWS($N$105:N116)-1,COLUMNS($N$105:N116)-1),"") -> 
A126: =IF(OFFSET(DE100_14!$C$105,ROWS($C$105:C117)-1,COLUMNS($C$105:C117)-1)<>"",OFFSET(DE100_14!$C$105,ROWS($C$105:C117)-1,COLUMNS($C$105:C117)-1),"") -> 38 | B126: =IF(OFFSET(DE100_14!$D$105,ROWS($D$105:D117)-1,COLUMNS($D$105:D117)-1)<>"",OFFSET(DE100_14!$D$105,ROWS($D$105:D117)-1,COLUMNS($D$105:D117)-1),"") -> 127855 | C126: =IF(OFFSET(DE100_14!$E$105,ROWS($E$105:E117)-1,COLUMNS($E$105:E117)-1)<>"",OFFSET(DE100_14!$E$105,ROWS($E$105:E117)-1,COLUMNS($E$105:E117)-1),"") -> Lt. | D126: =IF(OFFSET(DE100_14!$F$105,ROWS($F$105:F117)-1,COLUMNS($F$105:F117)-1)<>"",OFFSET(DE100_14!$F$105,ROWS($F$105:F117)-1,COLUMNS($F$105:F117)-1),"") -> 1 | E126: =IF(OFFSET(DE100_14!$G$105,ROWS($G$105:G117)-1,COLUMNS($G$105:G117)-1)<>"",OFFSET(DE100_14!$G$105,ROWS($G$105:G117)-1,COLUMNS($G$105:G117)-1),"") -> 1 | F126: =IF(OFFSET(DE100_14!$H$105,ROWS($H$105:H117)-1,COLUMNS($H$105:H117)-1)<>"",OFFSET(DE100_14!$H$105,ROWS($H$105:H117)-1,COLUMNS($H$105:H117)-1),"") -> 10 | G126: =IF(OFFSET(DE100_14!$I$105,ROWS($I$105:I117)-1,COLUMNS($I$105:I117)-1)<>"",OFFSET(DE100_14!$I$105,ROWS($I$105:I117)-1,COLUMNS($I$105:I117)-1),"") -> 50 | H126: =IF(OFFSET(DE100_14!$J$105,ROWS($J$105:J117)-1,COLUMNS($J$105:J117)-1)<>"",OFFSET(DE100_14!$J$105,ROWS($J$105:J117)-1,COLUMNS($J$105:J117)-1),"") -> 2.85 | I126: =IF(OFFSET(DE100_14!$K$105,ROWS($K$105:K117)-1,COLUMNS($K$105:K117)-1)<>"",OFFSET(DE100_14!$K$105,ROWS($K$105:K117)-1,COLUMNS($K$105:K117)-1),"") -> 0.013 | J126: =IF(OFFSET(DE100_14!$L$105,ROWS($L$105:L117)-1,COLUMNS($L$105:L117)-1)<>"",OFFSET(DE100_14!$L$105,ROWS($L$105:L117)-1,COLUMNS($L$105:L117)-1),"") -> 1262.5 | K126: =IF(OFFSET(DE100_14!$N$105,ROWS($N$105:N117)-1,COLUMNS($N$105:N117)-1)<>"",OFFSET(DE100_14!$N$105,ROWS($N$105:N117)-1,COLUMNS($N$105:N117)-1),"") -> 
A127: =IF(OFFSET(DE100_14!$C$105,ROWS($C$105:C118)-1,COLUMNS($C$105:C118)-1)<>"",OFFSET(DE100_14!$C$105,ROWS($C$105:C118)-1,COLUMNS($C$105:C118)-1),"") -> 38 | B127: =IF(OFFSET(DE100_14!$D$105,ROWS($D$105:D118)-1,COLUMNS($D$105:D118)-1)<>"",OFFSET(DE100_14!$D$105,ROWS($D$105:D118)-1,COLUMNS($D$105:D118)-1),"") -> 127795 | C127: =IF(OFFSET(DE100_14!$E$105,ROWS($E$105:E118)-1,COLUMNS($E$105:E118)-1)<>"",OFFSET(DE100_14!$E$105,ROWS($E$105:E118)-1,COLUMNS($E$105:E118)-1),"") -> Rt. | D127: =IF(OFFSET(DE100_14!$F$105,ROWS($F$105:F118)-1,COLUMNS($F$105:F118)-1)<>"",OFFSET(DE100_14!$F$105,ROWS($F$105:F118)-1,COLUMNS($F$105:F118)-1),"") -> 1 | E127: =IF(OFFSET(DE100_14!$G$105,ROWS($G$105:G118)-1,COLUMNS($G$105:G118)-1)<>"",OFFSET(DE100_14!$G$105,ROWS($G$105:G118)-1,COLUMNS($G$105:G118)-1),"") -> 1 | F127: =IF(OFFSET(DE100_14!$H$105,ROWS($H$105:H118)-1,COLUMNS($H$105:H118)-1)<>"",OFFSET(DE100_14!$H$105,ROWS($H$105:H118)-1,COLUMNS($H$105:H118)-1),"") -> 10 | G127: =IF(OFFSET(DE100_14!$I$105,ROWS($I$105:I118)-1,COLUMNS($I$105:I118)-1)<>"",OFFSET(DE100_14!$I$105,ROWS($I$105:I118)-1,COLUMNS($I$105:I118)-1),"") -> 50 | H127: =IF(OFFSET(DE100_14!$J$105,ROWS($J$105:J118)-1,COLUMNS($J$105:J118)-1)<>"",OFFSET(DE100_14!$J$105,ROWS($J$105:J118)-1,COLUMNS($J$105:J118)-1),"") -> 2.85 | I127: =IF(OFFSET(DE100_14!$K$105,ROWS($K$105:K118)-1,COLUMNS($K$105:K118)-1)<>"",OFFSET(DE100_14!$K$105,ROWS($K$105:K118)-1,COLUMNS($K$105:K118)-1),"") -> -0.021 | J127: =IF(OFFSET(DE100_14!$L$105,ROWS($L$105:L118)-1,COLUMNS($L$105:L118)-1)<>"",OFFSET(DE100_14!$L$105,ROWS($L$105:L118)-1,COLUMNS($L$105:L118)-1),"") -> 1162.5 | K127: =IF(OFFSET(DE100_14!$N$105,ROWS($N$105:N118)-1,COLUMNS($N$105:N118)-1)<>"",OFFSET(DE100_14!$N$105,ROWS($N$105:N118)-1,COLUMNS($N$105:N118)-1),"") -> 
A128: =IF(OFFSET(DE100_14!$C$105,ROWS($C$105:C119)-1,COLUMNS($C$105:C119)-1)<>"",OFFSET(DE100_14!$C$105,ROWS($C$105:C119)-1,COLUMNS($C$105:C119)-1),"") -> 38 | B128: =IF(OFFSET(DE100_14!$D$105,ROWS($D$105:D119)-1,COLUMNS($D$105:D119)-1)<>"",OFFSET(DE100_14!$D$105,ROWS($D$105:D119)-1,COLUMNS($D$105:D119)-1),"") -> 127855 | C128: =IF(OFFSET(DE100_14!$E$105,ROWS($E$105:E119)-1,COLUMNS($E$105:E119)-1)<>"",OFFSET(DE100_14!$E$105,ROWS($E$105:E119)-1,COLUMNS($E$105:E119)-1),"") -> Rt. | D128: =IF(OFFSET(DE100_14!$F$105,ROWS($F$105:F119)-1,COLUMNS($F$105:F119)-1)<>"",OFFSET(DE100_14!$F$105,ROWS($F$105:F119)-1,COLUMNS($F$105:F119)-1),"") -> 1 | E128: =IF(OFFSET(DE100_14!$G$105,ROWS($G$105:G119)-1,COLUMNS($G$105:G119)-1)<>"",OFFSET(DE100_14!$G$105,ROWS($G$105:G119)-1,COLUMNS($G$105:G119)-1),"") -> 1 | F128: =IF(OFFSET(DE100_14!$H$105,ROWS($H$105:H119)-1,COLUMNS($H$105:H119)-1)<>"",OFFSET(DE100_14!$H$105,ROWS($H$105:H119)-1,COLUMNS($H$105:H119)-1),"") -> 10 | G128: =IF(OFFSET(DE100_14!$I$105,ROWS($I$105:I119)-1,COLUMNS($I$105:I119)-1)<>"",OFFSET(DE100_14!$I$105,ROWS($I$105:I119)-1,COLUMNS($I$105:I119)-1),"") -> 50 | H128: =IF(OFFSET(DE100_14!$J$105,ROWS($J$105:J119)-1,COLUMNS($J$105:J119)-1)<>"",OFFSET(DE100_14!$J$105,ROWS($J$105:J119)-1,COLUMNS($J$105:J119)-1),"") -> 2.85 | I128: =IF(OFFSET(DE100_14!$K$105,ROWS($K$105:K119)-1,COLUMNS($K$105:K119)-1)<>"",OFFSET(DE100_14!$K$105,ROWS($K$105:K119)-1,COLUMNS($K$105:K119)-1),"") -> 0.007 | J128: =IF(OFFSET(DE100_14!$L$105,ROWS($L$105:L119)-1,COLUMNS($L$105:L119)-1)<>"",OFFSET(DE100_14!$L$105,ROWS($L$105:L119)-1,COLUMNS($L$105:L119)-1),"") -> 1337.5 | K128: =IF(OFFSET(DE100_14!$N$105,ROWS($N$105:N119)-1,COLUMNS($N$105:N119)-1)<>"",OFFSET(DE100_14!$N$105,ROWS($N$105:N119)-1,COLUMNS($N$105:N119)-1),"") -> 
